Workbook

Sheet Notes
A1: Features
A2: 1) | B2: Color Coded Dashboard that crosses off" selected players | Q2: HOW TO USE
A3: 2) | B3: Team by Team analysis of players taken, players left.
A4: 3) | B4: Real time projected totals, along with real time projected league standings
A5: 4) | B5: Goal Tracking Dashboard | Q5: Click any of the drop-down arrow boxes to sort by that ranking
A6: 5) | B6: Auto updating Draftee List for your team.
A7: 6) | B7: User customizable for Team Names,League Type, and Goals
A9: User Steps
A10: 1) | B10: Complete User Input Tab based upon league parameters
B11: (Enter "Your Team" in the first slot. This populates the War Room page with your selected players.)
A12: 2) | B12: Populate Players Tab during Draft
A13: 3) | B13: Dashboard and War Room Tabs will automatically update
B14: NOTE: On the War Room tab, the box top left indicates "# of Players Taken". In order to get a "true" evaluation of my team, I add/drop players from specific teams until each has 13 hitters and 9 pitchers.
A15: Notes
A16: 1) | B16: All statistics based upon Grey Albright, RAZZBALL.COM, and Razzball's Steamer projections
A18: ANY QUESTIONS? Post a comment at the official website: | G18: http://razzball.com/2017-fantasy-baseball-war-room/
A21: Created by Lou Poulas
A22: 2011 updates: Fred Barker
A23: 2012 updates: John Hassett
A24: 2013 updates: Trevor Gallo & John Hassett
A25: 2014-2016 updates: Nick Kern
A26: 2016 tweaks: Jimmy Bond
A27: 2017 update: Hot Rod

Sheet User Input
A1: Team 1 Name | C1: a | D1: <--------- | E1: YOUR TEAM | G1: Hitting Categories | H1: Points | J1: Pitching Categories | K1: Points
A2: Team 2 Name | C2: b | G2: 1B | H2: 1 | J2: Win | K2: 7
A3: Team 3 Name | C3: c | G3: 2B | H3: 2 | J3: Loss | K3: -5
A4: Team 4 Name | C4: d | G4: 3B | H4: 3 | J4: Save | K4: 7
A5: Team 5 Name | C5: e | G5: HR | H5: 4 | J5: Blown Save | K5: 0
A6: Team 6 Name | C6: f | G6: RBI | H6: 1 | J6: Inning Pitched | K6: 3
A7: Team 7 Name | C7: g | G7: Run | H7: 1 | J7: Strikeout | K7: 0.5
A8: Team 8 Name | C8: h | G8: Walk | H8: 1 | J8: Walk | K8: -1
A9: Team 9 Name | C9: i | G9: Strikeout | H9: -0.5 | J9: ER | K9: -1
A10: Team 10 Name | C10: j | G10: Stolen Base | H10: 2 | J10: Hit | K10: -1
A11: Team 11 Name | C11: k | G11: Caught Stealing | H11: -1 | J11: Hold | K11: 0
A12: Team 12 Name | C12: l | G12: Hit By Pitch | H12: 0 | J12: Quality Start | K12: 3
A13: Team 13 Name | G13: Sacrifice Fly | H13: 0 | J13: Complete Game | K13: 0
A14: Team 14 Name | G14: Total Bases | H14: 0 | J14: Shutout | K14: 0
A15: Team 15 Name | G15: Hit | H15: 0 | J15: Hit Batsman | K15: -1
A16: Team 16 Name | G16: Plate Appearances | H16: 0 | J16: Wild Pitch | K16: 0
A17: Team 17 Name | G17: At Bat | H17: 0 | J17: HR Allowed | K17: 0
A18: Team 18 Name
A19: Team 19 Name | G19: POINTS LEAGUES - ENTER YOUR SCORING SYSTEM ABOVE IN YELLOW BOXES
A20: Team 20 Name | G20: (default is Malamoney's scoring system)
A21: Team 21 Name | G21: CLICK TO READ MORE ON POINTS PROJECTIONS
A22: Team 22 Name
A23: Team 23 Name
A24: Team 24 Name
A25: Team 25 Name
D26: Examples
A27: Team Budget | C27: 280 | D27: ($280, $260, etc)
A29: # of Batters Per Team | C29: 13 | D29: 15, 14, 9
A30: # of Pitchers Per Team | C30: 9 | D30: 10, 7
A32: Personal Team Goals (Optional)
A33: R | C33: 1021 | D33: 1021
A34: HR | C34: 255 | D34: 255
A35: RBI | C35: 973 | D35: 973
A36: SB | C36: 177 | D36: 177
A37: AVG | C37: 0.271 | D37: 0.271
A39: ERA | C39: 3.56 | D39: 3.56
A40: WHIP | C40: 1.23 | D40: 1.23
A41: W | C41: 86 | D41: 86
A42: S | C42: 122 | D42: 122
A43: K | C43: 1272 | D43: 1272

Sheet Dashboard
B1: C | F1: 1B | J1: 2B | N1: 3B | R1: SS | V1: OF | Z1: DH | AD1: SP | AH1: CLOSERS | AL1: Prospects - ALL | AQ1: Prospects - HIT | AV1: Prospects - PITCH | BA1: by ETA - Prospects HIT | BF1: by ETA - Prospects PITCH
A2: 1 | B2: Gary Sanchez | C2: =VLOOKUP($B2,Players!$F$3:$G$1242,2,FALSE) -> 0 | D2: =IF(C2>0,1,0) -> 0 | F2: Paul Goldschmidt | G2: =VLOOKUP($F2,Players!$F$3:$G$1242,2,FALSE) -> 0 | H2: =IF(G2>0,1,0) -> 0 | J2: Jose Altuve | K2: =VLOOKUP($J2,Players!$F$3:$G$1242,2,FALSE) -> 0 | L2: =IF(K2>0,1,0) -> 0 | N2: Kris Bryant | O2: =VLOOKUP($N2,Players!$F$3:$G$1242,2,FALSE) -> 0 | P2: =IF(O2>0,1,0) -> 0 | R2: Manny Machado | S2: =VLOOKUP($R2,Players!$F$3:$G$1242,2,FALSE) -> 0 | T2: =IF(S2>0,1,0) -> 0 | V2: Mike Trout | W2: =VLOOKUP($V2,Players!$F$3:$G$1242,2,FALSE) -> 0 | X2: =IF(W2>0,1,0) -> 0 | Z2: Kendrys Morales | AA2: =VLOOKUP($Z2,Players!$F$3:$G$1242,2,FALSE) -> 0 | AB2: =IF(AA2>0,1,0) -> 0 | AD2: Clayton Kershaw | AE2: =VLOOKUP($AD2,Players!$AI$3:$AJ$1425,2,FALSE) -> 0 | AF2: =IF(AE2>0,1,0) -> 0 | AH2: Kenley Jansen | AI2: =VLOOKUP($AH2,Players!$AI$3:$AJ$1425,2,FALSE) -> 0 | AJ2: =IF(AI2>0,1,0) -> 0 | AL2: OF | AM2: Andrew Benintendi | AN2: =IF(ISERROR(VLOOKUP($AM2,Players!$F$3:$G$1425,2,FALSE)),(VLOOKUP($AM2,Players!$AI$3:$AJ$1425,2,FALSE)),(VLOOKUP($AM2,Players!$F$3:$G$1425,2,FALSE))) -> 0 | AO2: =IF(AN2>0,1,0) -> 0 | AQ2: OF | AR2: Andrew Benintendi | AS2: =VLOOKUP($AR2,Players!$F$3:$G$1425,2,FALSE) -> 0 | AT2: =IF(AS2>0,1,0) -> 0 | AV2: RHP | AW2: Tyler Glasnow | AX2: =VLOOKUP($AW2,Players!$AI$3:$AJ$1425,2,FALSE) -> 0 | AY2: =IF(AX2>0,1,0) -> 0 | BB2: 2017 | BC2: =VLOOKUP($BB2,Players!$F$3:$G$1425,2,FALSE) ->  | BD2: =IF(BC2>0,1,0) ->  | BG2: 2017 | BH2: =VLOOKUP($BG2,Players!$AI$3:$AJ$1425,2,FALSE) ->  | BI2: =IF(BH2>0,1,0) -> 
A3: 2 | B3: Kyle Schwarber | C3: =VLOOKUP($B3,Players!$F$3:$G$1242,2,FALSE) -> 0 | D3: =IF(C3>0,1,0) -> 0 | F3: Anthony Rizzo | G3: =VLOOKUP($F3,Players!$F$3:$G$1242,2,FALSE) -> 0 | H3: =IF(G3>0,1,0) -> 0 | J3: Trea Turner | K3: =VLOOKUP($J3,Players!$F$3:$G$1242,2,FALSE) -> 0 | L3: =IF(K3>0,1,0) -> 0 | N3: Nolan Arenado | O3: =VLOOKUP($N3,Players!$F$3:$G$1242,2,FALSE) -> 0 | P3: =IF(O3>0,1,0) -> 0 | R3: Carlos Correa | S3: =VLOOKUP($R3,Players!$F$3:$G$1242,2,FALSE) -> 0 | T3: =IF(S3>0,1,0) -> 0 | V3: Mookie Betts | W3: =VLOOKUP($V3,Players!$F$3:$G$1242,2,FALSE) -> 0 | X3: =IF(W3>0,1,0) -> 0 | Z3: Victor Martinez | AA3: =VLOOKUP($Z3,Players!$F$3:$G$1242,2,FALSE) -> 0 | AB3: =IF(AA3>0,1,0) -> 0 | AD3: Max Scherzer | AE3: =VLOOKUP($AD3,Players!$AI$3:$AJ$1425,2,FALSE) -> 0 | AF3: =IF(AE3>0,1,0) -> 0 | AH3: Aroldis Chapman | AI3: =VLOOKUP($AH3,Players!$AI$3:$AJ$1425,2,FALSE) -> 0 | AJ3: =IF(AI3>0,1,0) -> 0 | AL3: 2B/3B | AM3: Yoan Moncada | AN3: =IF(ISERROR(VLOOKUP($AM3,Players!$F$3:$G$1425,2,FALSE)),(VLOOKUP($AM3,Players!$AI$3:$AJ$1425,2,FALSE)),(VLOOKUP($AM3,Players!$F$3:$G$1425,2,FALSE))) -> 0 | AO3: =IF(AN3>0,1,0) -> 0 | AQ3: 2B/3B | AR3: Yoan Moncada | AS3: =VLOOKUP($AR3,Players!$F$3:$G$1425,2,FALSE) -> 0 | AT3: =IF(AS3>0,1,0) -> 0 | AV3: RHP | AW3: Francis Martes | AX3: =VLOOKUP($AW3,Players!$AI$3:$AJ$1425,2,FALSE) -> 0 | AY3: 0 | BA3: OF | BB3: Andrew Benintendi | BC3: =VLOOKUP($BB3,Players!$F$3:$G$1425,2,FALSE) -> 0 | BD3: =IF(BC3>0,1,0) -> 0 | BF3: RHP | BG3: Tyler Glasnow | BH3: =VLOOKUP($BG3,Players!$AI$3:$AJ$1425,2,FALSE) -> 0 | BI3: 0 | BL3: Grey's Pitcher Pairings
A4: 3 | B4: Jonathan Lucroy | C4: =VLOOKUP($B4,Players!$F$3:$G$1242,2,FALSE) -> 0 | D4: 0 | F4: Miguel Cabrera | G4: =VLOOKUP($F4,Players!$F$3:$G$1242,2,FALSE) -> 0 | H4: 0 | J4: Rougned Odor | K4: =VLOOKUP($J4,Players!$F$3:$G$1242,2,FALSE) -> 0 | L4: 0 | N4: Manny Machado | O4: =VLOOKUP($N4,Players!$F$3:$G$1242,2,FALSE) -> 0 | P4: 0 | R4: Trevor Story | S4: =VLOOKUP($R4,Players!$F$3:$G$1242,2,FALSE) -> 0 | T4: 0 | V4: Kris Bryant | W4: =VLOOKUP($V4,Players!$F$3:$G$1242,2,FALSE) -> 0 | X4: 0 | Z4: Pedro Alvarez | AA4: =VLOOKUP($Z4,Players!$F$3:$G$1242,2,FALSE) -> 0 | AB4: 0 | AD4: Madison Bumgarner | AE4: =VLOOKUP($AD4,Players!$AI$3:$AJ$1425,2,FALSE) -> 0 | AF4: 0 | AH4: Zach Britton | AI4: =VLOOKUP($AH4,Players!$AI$3:$AJ$1425,2,FALSE) -> 0 | AJ4: =IF(AI4>0,1,0) -> 0 | AL4: OF | AM4: Austin Meadows | AN4: =IF(ISERROR(VLOOKUP($AM4,Players!$F$3:$G$1425,2,FALSE)),(VLOOKUP($AM4,Players!$AI$3:$AJ$1425,2,FALSE)),(VLOOKUP($AM4,Players!$F$3:$G$1425,2,FALSE))) -> 0 | AO4: 0 | AQ4: OF | AR4: Austin Meadows | AS4: =VLOOKUP($AR4,Players!$F$3:$G$1425,2,FALSE) -> 0 | AT4: 0 | AV4: LHP | AW4: Josh Hader | AX4: =VLOOKUP($AW4,Players!$AI$3:$AJ$1425,2,FALSE) -> 0 | AY4: 0 | BA4: 2B/3B | BB4: Yoan Moncada | BC4: =VLOOKUP($BB4,Players!$F$3:$G$1425,2,FALSE) -> 0 | BD4: 0 | BF4: LHP | BG4: Josh Hader | BH4: =VLOOKUP($BG4,Players!$AI$3:$AJ$1425,2,FALSE) -> 0 | BI4: 0
A5: 4 | B5: Buster Posey | C5: =VLOOKUP($B5,Players!$F$3:$G$1242,2,FALSE) -> 0 | D5: 0 | F5: Freddie Freeman | G5: =VLOOKUP($F5,Players!$F$3:$G$1242,2,FALSE) -> 0 | H5: 0 | J5: Robinson Cano | K5: =VLOOKUP($J5,Players!$F$3:$G$1242,2,FALSE) -> 0 | L5: 0 | N5: Josh Donaldson | O5: =VLOOKUP($N5,Players!$F$3:$G$1242,2,FALSE) -> 0 | P5: 0 | R5: Francisco Lindor | S5: =VLOOKUP($R5,Players!$F$3:$G$1242,2,FALSE) -> 0 | T5: 0 | V5: Bryce Harper | W5: =VLOOKUP($V5,Players!$F$3:$G$1242,2,FALSE) -> 0 | X5: 0 | Z5: Joey Gallo | AA5: =VLOOKUP($Z5,Players!$F$3:$G$1242,2,FALSE) -> 0 | AB5: 0 | AD5: Chris Sale | AE5: =VLOOKUP($AD5,Players!$AI$3:$AJ$1425,2,FALSE) -> 0 | AF5: 0 | AH5: Craig Kimbrel | AI5: =VLOOKUP($AH5,Players!$AI$3:$AJ$1425,2,FALSE) -> 0 | AJ5: 0 | AL5: OF | AM5: Victor Robles | AN5: =IF(ISERROR(VLOOKUP($AM5,Players!$F$3:$G$1425,2,FALSE)),(VLOOKUP($AM5,Players!$AI$3:$AJ$1425,2,FALSE)),(VLOOKUP($AM5,Players!$F$3:$G$1425,2,FALSE))) -> 0 | AO5: 0 | AQ5: OF | AR5: Victor Robles | AS5: =VLOOKUP($AR5,Players!$F$3:$G$1425,2,FALSE) -> 0 | AT5: 0 | AV5: RHP | AW5: Lucas Giolito | AX5: =VLOOKUP($AW5,Players!$AI$3:$AJ$1425,2,FALSE) -> 0 | AY5: 0 | BA5: OF | BB5: Austin Meadows | BC5: =VLOOKUP($BB5,Players!$F$3:$G$1425,2,FALSE) -> 0 | BD5: 0 | BF5: RHP | BG5: Lucas Giolito | BH5: =VLOOKUP($BG5,Players!$AI$3:$AJ$1425,2,FALSE) -> 0 | BI5: 0
A6: 5 | B6: Willson Contreras | C6: =VLOOKUP($B6,Players!$F$3:$G$1242,2,FALSE) -> 0 | D6: 0 | F6: Edwin Encarnacion | G6: =VLOOKUP($F6,Players!$F$3:$G$1242,2,FALSE) -> 0 | H6: 0 | J6: Jonathan Villar | K6: =VLOOKUP($J6,Players!$F$3:$G$1242,2,FALSE) -> 0 | L6: 0 | N6: Jonathan Villar | O6: =VLOOKUP($N6,Players!$F$3:$G$1242,2,FALSE) -> 0 | P6: 0 | R6: Xander Bogaerts | S6: =VLOOKUP($R6,Players!$F$3:$G$1242,2,FALSE) -> 0 | T6: 0 | V6: Trea Turner | W6: =VLOOKUP($V6,Players!$F$3:$G$1242,2,FALSE) -> 0 | X6: 0 | Z6: Dalton Pompey | AA6: =VLOOKUP($Z6,Players!$F$3:$G$1242,2,FALSE) -> 0 | AB6: 0 | AD6: Noah Syndergaard | AE6: =VLOOKUP($AD6,Players!$AI$3:$AJ$1425,2,FALSE) -> 0 | AF6: 0 | AH6: Edwin Diaz | AI6: =VLOOKUP($AH6,Players!$AI$3:$AJ$1425,2,FALSE) -> 0 | AJ6: 0 | AL6: OF | AM6: Eloy Jimenez | AN6: =IF(ISERROR(VLOOKUP($AM6,Players!$F$3:$G$1425,2,FALSE)),(VLOOKUP($AM6,Players!$AI$3:$AJ$1425,2,FALSE)),(VLOOKUP($AM6,Players!$F$3:$G$1425,2,FALSE))) -> 0 | AO6: 0 | AQ6: OF | AR6: Eloy Jimenez | AS6: =VLOOKUP($AR6,Players!$F$3:$G$1425,2,FALSE) -> 0 | AT6: 0 | AV6: RHP | AW6: Anderson Espinoza | AX6: =VLOOKUP($AW6,Players!$AI$3:$AJ$1425,2,FALSE) -> 0 | AY6: 0 | BA6: 1B/OF | BB6: Cody Bellinger | BC6: =VLOOKUP($BB6,Players!$F$3:$G$1425,2,FALSE) -> 0 | BD6: 0 | BF6: RHP | BG6: Jose de Leon | BH6: =VLOOKUP($BG6,Players!$AI$3:$AJ$1425,2,FALSE) -> 0 | BI6: 0
A7: 6 | B7: Salvador Perez | C7: =VLOOKUP($B7,Players!$F$3:$G$1242,2,FALSE) -> 0 | D7: 0 | F7: Joey Votto | G7: =VLOOKUP($F7,Players!$F$3:$G$1242,2,FALSE) -> 0 | H7: 0 | J7: Brian Dozier | K7: =VLOOKUP($J7,Players!$F$3:$G$1242,2,FALSE) -> 0 | L7: 0 | N7: Kyle Seager | O7: =VLOOKUP($N7,Players!$F$3:$G$1242,2,FALSE) -> 0 | P7: 0 | R7: Corey Seager | S7: =VLOOKUP($R7,Players!$F$3:$G$1242,2,FALSE) -> 0 | T7: 0 | V7: George Springer | W7: =VLOOKUP($V7,Players!$F$3:$G$1242,2,FALSE) -> 0 | X7: 0 | Z7: Trey Mancini | AA7: =VLOOKUP($Z7,Players!$F$3:$G$1242,2,FALSE) -> 0 | AB7: 0 | AD7: Jake Arrieta | AE7: =VLOOKUP($AD7,Players!$AI$3:$AJ$1425,2,FALSE) -> 0 | AF7: 0 | AH7: Wade Davis | AI7: =VLOOKUP($AH7,Players!$AI$3:$AJ$1425,2,FALSE) -> 0 | AJ7: 0 | AL7: 1B/OF | AM7: Cody Bellinger | AN7: =IF(ISERROR(VLOOKUP($AM7,Players!$F$3:$G$1425,2,FALSE)),(VLOOKUP($AM7,Players!$AI$3:$AJ$1425,2,FALSE)),(VLOOKUP($AM7,Players!$F$3:$G$1425,2,FALSE))) -> 0 | AO7: 0 | AQ7: 1B/OF | AR7: Cody Bellinger | AS7: =VLOOKUP($AR7,Players!$F$3:$G$1425,2,FALSE) -> 0 | AT7: 0 | AV7: RHP | AW7: Alex Reyes | AX7: =VLOOKUP($AW7,Players!$AI$3:$AJ$1425,2,FALSE) -> 0 | AY7: 0 | BA7: OF | BB7: Lewis Brinson | BC7: =VLOOKUP($BB7,Players!$F$3:$G$1425,2,FALSE) -> 0 | BD7: 0 | BF7: RHP | BG7: Luke Weaver | BH7: =VLOOKUP($BG7,Players!$AI$3:$AJ$1425,2,FALSE) -> 0 | BI7: 0
A8: 7 | B8: Russell Martin | C8: =VLOOKUP($B8,Players!$F$3:$G$1242,2,FALSE) -> 0 | D8: 0 | F8: Jose Abreu | G8: =VLOOKUP($F8,Players!$F$3:$G$1242,2,FALSE) -> 0 | H8: 0 | J8: Jean Segura | K8: =VLOOKUP($J8,Players!$F$3:$G$1242,2,FALSE) -> 0 | L8: 0 | N8: Anthony Rendon | O8: =VLOOKUP($N8,Players!$F$3:$G$1242,2,FALSE) -> 0 | P8: 0 | R8: Jonathan Villar | S8: =VLOOKUP($R8,Players!$F$3:$G$1242,2,FALSE) -> 0 | T8: 0 | V8: Charlie Blackmon | W8: =VLOOKUP($V8,Players!$F$3:$G$1242,2,FALSE) -> 0 | X8: 0 | AD8: Jon Lester | AE8: =VLOOKUP($AD8,Players!$AI$3:$AJ$1425,2,FALSE) -> 0 | AF8: 0 | AH8: Mark Melancon | AI8: =VLOOKUP($AH8,Players!$AI$3:$AJ$1425,2,FALSE) -> 0 | AJ8: 0 | AL8: SS/2B | AM8: Brendan Rodgers | AN8: =IF(ISERROR(VLOOKUP($AM8,Players!$F$3:$G$1425,2,FALSE)),(VLOOKUP($AM8,Players!$AI$3:$AJ$1425,2,FALSE)),(VLOOKUP($AM8,Players!$F$3:$G$1425,2,FALSE))) -> 0 | AO8: 0 | AQ8: SS/2B | AR8: Brendan Rodgers | AS8: =VLOOKUP($AR8,Players!$F$3:$G$1425,2,FALSE) -> 0 | AT8: 0 | AV8: RHP | AW8: Mitch Keller | AX8: =VLOOKUP($AW8,Players!$AI$3:$AJ$1425,2,FALSE) -> 0 | AY8: 0 | BA8: SS | BB8: Dansby Swanson | BC8: =VLOOKUP($BB8,Players!$F$3:$G$1425,2,FALSE) -> 0 | BD8: 0 | BF8: RHP | BG8: Robert Gsellman | BH8: =VLOOKUP($BG8,Players!$AI$3:$AJ$1425,2,FALSE) -> 0 | BI8: 0
A9: 8 | B9: Jacob Realmuto | C9: =VLOOKUP($B9,Players!$F$3:$G$1242,2,FALSE) -> 0 | D9: 0 | F9: Hanley Ramirez | G9: =VLOOKUP($F9,Players!$F$3:$G$1242,2,FALSE) -> 0 | H9: 0 | J9: Ian Kinsler | K9: =VLOOKUP($J9,Players!$F$3:$G$1242,2,FALSE) -> 0 | L9: 0 | N9: Justin Turner | O9: =VLOOKUP($N9,Players!$F$3:$G$1242,2,FALSE) -> 0 | P9: 0 | R9: Jean Segura | S9: =VLOOKUP($R9,Players!$F$3:$G$1242,2,FALSE) -> 0 | T9: 0 | V9: Starling Marte | W9: =VLOOKUP($V9,Players!$F$3:$G$1242,2,FALSE) -> 0 | X9: 0 | AD9: Justin Verlander | AE9: =VLOOKUP($AD9,Players!$AI$3:$AJ$1425,2,FALSE) -> 0 | AF9: 0 | AH9: Seung Hwan Oh | AI9: =VLOOKUP($AH9,Players!$AI$3:$AJ$1425,2,FALSE) -> 0 | AJ9: 0 | AL9: OF | AM9: Lewis Brinson | AN9: =IF(ISERROR(VLOOKUP($AM9,Players!$F$3:$G$1425,2,FALSE)),(VLOOKUP($AM9,Players!$AI$3:$AJ$1425,2,FALSE)),(VLOOKUP($AM9,Players!$F$3:$G$1425,2,FALSE))) -> 0 | AO9: 0 | AQ9: OF | AR9: Lewis Brinson | AS9: =VLOOKUP($AR9,Players!$F$3:$G$1425,2,FALSE) -> 0 | AT9: 0 | AV9: RHP | AW9: Michael Kopech | AX9: =VLOOKUP($AW9,Players!$AI$3:$AJ$1425,2,FALSE) -> 0 | AY9: 0 | BA9: OF | BB9: Manuel Margot | BC9: =VLOOKUP($BB9,Players!$F$3:$G$1425,2,FALSE) -> 0 | BD9: 0 | BF9: LHP | BG9: Yohander Mendez | BH9: =VLOOKUP($BG9,Players!$AI$3:$AJ$1425,2,FALSE) -> 0 | BI9: 0
A10: 9 | B10: Yasmani Grandal | C10: =VLOOKUP($B10,Players!$F$3:$G$1242,2,FALSE) -> 0 | D10: 0 | F10: Wil Myers | G10: =VLOOKUP($F10,Players!$F$3:$G$1242,2,FALSE) -> 0 | H10: 0 | J10: Daniel Murphy | K10: =VLOOKUP($J10,Players!$F$3:$G$1242,2,FALSE) -> 0 | L10: 0 | N10: Adrian Beltre | O10: =VLOOKUP($N10,Players!$F$3:$G$1242,2,FALSE) -> 0 | P10: 0 | R10: Addison Russell | S10: =VLOOKUP($R10,Players!$F$3:$G$1242,2,FALSE) -> 0 | T10: 0 | V10: Giancarlo Stanton | W10: =VLOOKUP($V10,Players!$F$3:$G$1242,2,FALSE) -> 0 | X10: 0 | AD10: Corey Kluber | AE10: =VLOOKUP($AD10,Players!$AI$3:$AJ$1425,2,FALSE) -> 0 | AF10: 0 | AH10: Ken Giles | AI10: =VLOOKUP($AH10,Players!$AI$3:$AJ$1425,2,FALSE) -> 0 | AJ10: 0 | AL10: SS | AM10: Dansby Swanson | AN10: =IF(ISERROR(VLOOKUP($AM10,Players!$F$3:$G$1425,2,FALSE)),(VLOOKUP($AM10,Players!$AI$3:$AJ$1425,2,FALSE)),(VLOOKUP($AM10,Players!$F$3:$G$1425,2,FALSE))) -> 0 | AO10: 0 | AQ10: SS | AR10: Dansby Swanson | AS10: =VLOOKUP($AR10,Players!$F$3:$G$1425,2,FALSE) -> 0 | AT10: 0 | AV10: RHP | AW10: Yadier Alvarez | AX10: =VLOOKUP($AW10,Players!$AI$3:$AJ$1425,2,FALSE) -> 0 | AY10: 0 | BA10: OF | BB10: Raimel Tapia | BC10: =VLOOKUP($BB10,Players!$F$3:$G$1425,2,FALSE) -> 0 | BD10: 0 | BF10: RHP | BG10: David Paulino | BH10: =VLOOKUP($BG10,Players!$AI$3:$AJ$1425,2,FALSE) -> 0 | BI10: 0
A11: 10 | B11: Tom Murphy | C11: =VLOOKUP($B11,Players!$F$3:$G$1242,2,FALSE) -> 0 | D11: 0 | F11: Carlos Santana | G11: =VLOOKUP($F11,Players!$F$3:$G$1242,2,FALSE) -> 0 | H11: 0 | J11: Jonathan Schoop | K11: =VLOOKUP($J11,Players!$F$3:$G$1242,2,FALSE) -> 0 | L11: 0 | N11: Evan Longoria | O11: =VLOOKUP($N11,Players!$F$3:$G$1242,2,FALSE) -> 0 | P11: 0 | R11: Marcus Semien | S11: =VLOOKUP($R11,Players!$F$3:$G$1242,2,FALSE) -> 0 | T11: 0 | V11: J.D. Martinez | W11: =VLOOKUP($V11,Players!$F$3:$G$1242,2,FALSE) -> 0 | X11: 0 | AD11: Yu Darvish | AE11: =VLOOKUP($AD11,Players!$AI$3:$AJ$1425,2,FALSE) -> 0 | AF11: 0 | AH11: Roberto Osuna | AI11: =VLOOKUP($AH11,Players!$AI$3:$AJ$1425,2,FALSE) -> 0 | AJ11: 0 | AL11: SS | AM11: Gleyber Torres | AN11: =IF(ISERROR(VLOOKUP($AM11,Players!$F$3:$G$1425,2,FALSE)),(VLOOKUP($AM11,Players!$AI$3:$AJ$1425,2,FALSE)),(VLOOKUP($AM11,Players!$F$3:$G$1425,2,FALSE))) -> 0 | AO11: 0 | AQ11: SS | AR11: Gleyber Torres | AS11: =VLOOKUP($AR11,Players!$F$3:$G$1425,2,FALSE) -> 0 | AT11: 0 | AV11: RHP | AW11: Jose de Leon | AX11: =VLOOKUP($AW11,Players!$AI$3:$AJ$1425,2,FALSE) -> 0 | AY11: 0 | BA11: OF | BB11: Hunter Renfroe | BC11: =VLOOKUP($BB11,Players!$F$3:$G$1425,2,FALSE) -> 0 | BD11: 0 | BF11: LHP | BG11: Amir Garrett | BH11: =VLOOKUP($BG11,Players!$AI$3:$AJ$1425,2,FALSE) -> 0 | BI11: 0
A12: 11 | B12: Brian McCann | C12: =VLOOKUP($B12,Players!$F$3:$G$1242,2,FALSE) -> 0 | D12: 0 | F12: Eric Hosmer | G12: =VLOOKUP($F12,Players!$F$3:$G$1242,2,FALSE) -> 0 | H12: 0 | J12: Dee Gordon | K12: =VLOOKUP($J12,Players!$F$3:$G$1242,2,FALSE) -> 0 | L12: 0 | N12: Todd Frazier | O12: =VLOOKUP($N12,Players!$F$3:$G$1242,2,FALSE) -> 0 | P12: 0 | R12: Brad Miller | S12: =VLOOKUP($R12,Players!$F$3:$G$1242,2,FALSE) -> 0 | T12: 0 | V12: Nelson Cruz | W12: =VLOOKUP($V12,Players!$F$3:$G$1242,2,FALSE) -> 0 | X12: 0 | AD12: Johnny Cueto | AE12: =VLOOKUP($AD12,Players!$AI$3:$AJ$1425,2,FALSE) -> 0 | AF12: 0 | AH12: David Robertson | AI12: =VLOOKUP($AH12,Players!$AI$3:$AJ$1425,2,FALSE) -> 0 | AJ12: 0 | AL12: OF | AM12: Manuel Margot | AN12: =IF(ISERROR(VLOOKUP($AM12,Players!$F$3:$G$1425,2,FALSE)),(VLOOKUP($AM12,Players!$AI$3:$AJ$1425,2,FALSE)),(VLOOKUP($AM12,Players!$F$3:$G$1425,2,FALSE))) -> 0 | AO12: 0 | AQ12: OF | AR12: Manuel Margot | AS12: =VLOOKUP($AR12,Players!$F$3:$G$1425,2,FALSE) -> 0 | AT12: 0 | AV12: RHP | AW12: Brent Honeywell | AX12: =VLOOKUP($AW12,Players!$AI$3:$AJ$1425,2,FALSE) -> 0 | AY12: 0 | BA12: OF | BB12: Bradley Zimmer | BC12: =VLOOKUP($BB12,Players!$F$3:$G$1425,2,FALSE) -> 0 | BD12: 0 | BF12: RHP | BG12: Jharel Cotton | BH12: =VLOOKUP($BG12,Players!$AI$3:$AJ$1425,2,FALSE) -> 0 | BI12: 0
A13: 12 | B13: Evan Gattis | C13: =VLOOKUP($B13,Players!$F$3:$G$1242,2,FALSE) -> 0 | D13: 0 | F13: Daniel Murphy | G13: =VLOOKUP($F13,Players!$F$3:$G$1242,2,FALSE) -> 0 | H13: 0 | J13: Devon Travis | K13: =VLOOKUP($J13,Players!$F$3:$G$1242,2,FALSE) -> 0 | L13: 0 | N13: Matt Carpenter | O13: =VLOOKUP($N13,Players!$F$3:$G$1242,2,FALSE) -> 0 | P13: 0 | R13: Tim Anderson | S13: =VLOOKUP($R13,Players!$F$3:$G$1242,2,FALSE) -> 0 | T13: 0 | V13: Ryan Braun | W13: =VLOOKUP($V13,Players!$F$3:$G$1242,2,FALSE) -> 0 | X13: 0 | AD13: Carlos Carrasco | AE13: =VLOOKUP($AD13,Players!$AI$3:$AJ$1425,2,FALSE) -> 0 | AF13: 0 | AH13: Cody Allen | AI13: =VLOOKUP($AH13,Players!$AI$3:$AJ$1425,2,FALSE) -> 0 | AJ13: 0 | AL13: OF | AM13: Clint Frazier | AN13: =IF(ISERROR(VLOOKUP($AM13,Players!$F$3:$G$1425,2,FALSE)),(VLOOKUP($AM13,Players!$AI$3:$AJ$1425,2,FALSE)),(VLOOKUP($AM13,Players!$F$3:$G$1425,2,FALSE))) -> 0 | AO13: 0 | AQ13: OF | AR13: Clint Frazier | AS13: =VLOOKUP($AR13,Players!$F$3:$G$1425,2,FALSE) -> 0 | AT13: 0 | AV13: RHP | AW13: Luke Weaver | AX13: =VLOOKUP($AW13,Players!$AI$3:$AJ$1425,2,FALSE) -> 0 | AY13: 0 | BA13: C | BB13: Tom Murphy | BC13: =VLOOKUP($BB13,Players!$F$3:$G$1425,2,FALSE) -> 0 | BD13: 0 | BF13: RHP | BG13: Tyler Beede | BH13: =VLOOKUP($BG13,Players!$AI$3:$AJ$1425,2,FALSE) -> 0 | BI13: 0
A14: 13 | B14: Matt Wieters | C14: =VLOOKUP($B14,Players!$F$3:$G$1242,2,FALSE) -> 0 | D14: 0 | F14: Albert Pujols | G14: =VLOOKUP($F14,Players!$F$3:$G$1242,2,FALSE) -> 0 | H14: 0 | J14: Jason Kipnis | K14: =VLOOKUP($J14,Players!$F$3:$G$1242,2,FALSE) -> 0 | L14: 0 | N14: Jake Lamb | O14: =VLOOKUP($N14,Players!$F$3:$G$1242,2,FALSE) -> 0 | P14: 0 | R14: Aledmys Diaz | S14: =VLOOKUP($R14,Players!$F$3:$G$1242,2,FALSE) -> 0 | T14: 0 | V14: Yoenis Cespedes | W14: =VLOOKUP($V14,Players!$F$3:$G$1242,2,FALSE) -> 0 | X14: 0 | AD14: Chris Archer | AE14: =VLOOKUP($AD14,Players!$AI$3:$AJ$1425,2,FALSE) -> 0 | AF14: 0 | AH14: Kelvin Herrera | AI14: =VLOOKUP($AH14,Players!$AI$3:$AJ$1425,2,FALSE) -> 0 | AJ14: 0 | AL14: RHP | AM14: Tyler Glasnow | AN14: =IF(ISERROR(VLOOKUP($AM14,Players!$F$3:$G$1425,2,FALSE)),(VLOOKUP($AM14,Players!$AI$3:$AJ$1425,2,FALSE)),(VLOOKUP($AM14,Players!$F$3:$G$1425,2,FALSE))) -> 0 | AO14: 0 | AQ14: OF | AR14: Raimel Tapia | AS14: =VLOOKUP($AR14,Players!$F$3:$G$1425,2,FALSE) -> 0 | AT14: 0 | AV14: RHP | AW14: Triston McKenzie | AX14: =VLOOKUP($AW14,Players!$AI$3:$AJ$1425,2,FALSE) -> 0 | AY14: 0 | BA14: OF | BB14: Aaron Judge | BC14: =VLOOKUP($BB14,Players!$F$3:$G$1425,2,FALSE) -> 0 | BD14: 0 | BF14: RHP | BG14: Reynaldo Lopez | BH14: =VLOOKUP($BG14,Players!$AI$3:$AJ$1425,2,FALSE) -> 0 | BI14: 0
A15: 14 | B15: Cameron Rupp | C15: =VLOOKUP($B15,Players!$F$3:$G$1242,2,FALSE) -> 0 | D15: 0 | F15: Buster Posey | G15: =VLOOKUP($F15,Players!$F$3:$G$1242,2,FALSE) -> 0 | H15: 0 | J15: DJ LeMahieu | K15: =VLOOKUP($J15,Players!$F$3:$G$1242,2,FALSE) -> 0 | L15: 0 | N15: Maikel Franco | O15: =VLOOKUP($N15,Players!$F$3:$G$1242,2,FALSE) -> 0 | P15: 0 | R15: Elvis Andrus | S15: =VLOOKUP($R15,Players!$F$3:$G$1242,2,FALSE) -> 0 | T15: 0 | V15: Mark Trumbo | W15: =VLOOKUP($V15,Players!$F$3:$G$1242,2,FALSE) -> 0 | X15: 0 | AD15: Carlos Martinez | AE15: =VLOOKUP($AD15,Players!$AI$3:$AJ$1425,2,FALSE) -> 0 | AF15: 0 | AH15: Jeurys Familia | AI15: =VLOOKUP($AH15,Players!$AI$3:$AJ$1425,2,FALSE) -> 0 | AJ15: 0 | AL15: OF | AM15: Raimel Tapia | AN15: =IF(ISERROR(VLOOKUP($AM15,Players!$F$3:$G$1425,2,FALSE)),(VLOOKUP($AM15,Players!$AI$3:$AJ$1425,2,FALSE)),(VLOOKUP($AM15,Players!$F$3:$G$1425,2,FALSE))) -> 0 | AO15: 0 | AQ15: OF | AR15: Tyler O’Neill | AS15: =VLOOKUP($AR15,Players!$F$3:$G$1425,2,FALSE) -> 0 | AT15: 0 | AV15: LHP | AW15: Jason Groome | AX15: =VLOOKUP($AW15,Players!$AI$3:$AJ$1425,2,FALSE) -> 0 | AY15: 0 | BA15: 1B/OF | BB15: Josh Bell | BC15: =VLOOKUP($BB15,Players!$F$3:$G$1425,2,FALSE) -> 0 | BD15: 0 | BG15: 2018 | BH15: =VLOOKUP($BG15,Players!$AI$3:$AJ$1425,2,FALSE) -> 
A16: 15 | B16: Travis d’Arnaud | C16: =VLOOKUP($B16,Players!$F$3:$G$1242,2,FALSE) -> 0 | D16: 0 | F16: Chris Davis | G16: =VLOOKUP($F16,Players!$F$3:$G$1242,2,FALSE) -> 0 | H16: 0 | J16: Matt Carpenter | K16: =VLOOKUP($J16,Players!$F$3:$G$1242,2,FALSE) -> 0 | L16: 0 | N16: Alex Bregman | O16: =VLOOKUP($N16,Players!$F$3:$G$1242,2,FALSE) -> 0 | P16: 0 | R16: Alcides Escobar | S16: =VLOOKUP($R16,Players!$F$3:$G$1242,2,FALSE) -> 0 | T16: 0 | V16: Gregory Polanco | W16: =VLOOKUP($V16,Players!$F$3:$G$1242,2,FALSE) -> 0 | X16: 0 | AD16: Jacob DeGrom | AE16: =VLOOKUP($AD16,Players!$AI$3:$AJ$1425,2,FALSE) -> 0 | AF16: 0 | AH16: A.J. Ramos | AI16: =VLOOKUP($AH16,Players!$AI$3:$AJ$1425,2,FALSE) -> 0 | AJ16: 0 | AL16: OF | AM16: Tyler O’Neill | AN16: =IF(ISERROR(VLOOKUP($AM16,Players!$F$3:$G$1425,2,FALSE)),(VLOOKUP($AM16,Players!$AI$3:$AJ$1425,2,FALSE)),(VLOOKUP($AM16,Players!$F$3:$G$1425,2,FALSE))) -> 0 | AO16: 0 | AQ16: 3B | AR16: Nick Senzel | AS16: =VLOOKUP($AR16,Players!$F$3:$G$1425,2,FALSE) -> 0 | AT16: 0 | AV16: RHP | AW16: Erick Fedde | AX16: =VLOOKUP($AW16,Players!$AI$3:$AJ$1425,2,FALSE) -> 0 | AY16: 0 | BA16: 3B | BB16: Matt Chapman | BC16: =VLOOKUP($BB16,Players!$F$3:$G$1425,2,FALSE) -> 0 | BD16: 0 | BF16: RHP | BG16: Francis Martes | BH16: =VLOOKUP($BG16,Players!$AI$3:$AJ$1425,2,FALSE) -> 0 | BI16: 0
A17: 16 | B17: Stephen Vogt | C17: =VLOOKUP($B17,Players!$F$3:$G$1242,2,FALSE) -> 0 | D17: 0 | F17: Brad Miller | G17: =VLOOKUP($F17,Players!$F$3:$G$1242,2,FALSE) -> 0 | H17: 0 | J17: Logan Forsythe | K17: =VLOOKUP($J17,Players!$F$3:$G$1242,2,FALSE) -> 0 | L17: 0 | N17: Miguel Sano | O17: =VLOOKUP($N17,Players!$F$3:$G$1242,2,FALSE) -> 0 | P17: 0 | R17: Eduardo Nunez | S17: =VLOOKUP($R17,Players!$F$3:$G$1242,2,FALSE) -> 0 | T17: 0 | V17: A.J. Pollock | W17: =VLOOKUP($V17,Players!$F$3:$G$1242,2,FALSE) -> 0 | X17: 0 | AD17: Stephen Strasburg | AE17: =VLOOKUP($AD17,Players!$AI$3:$AJ$1425,2,FALSE) -> 0 | AF17: 0 | AH17: Sam Dyson | AI17: =VLOOKUP($AH17,Players!$AI$3:$AJ$1425,2,FALSE) -> 0 | AJ17: 0 | AL17: RHP | AM17: Francis Martes | AN17: =IF(ISERROR(VLOOKUP($AM17,Players!$F$3:$G$1425,2,FALSE)),(VLOOKUP($AM17,Players!$AI$3:$AJ$1425,2,FALSE)),(VLOOKUP($AM17,Players!$F$3:$G$1425,2,FALSE))) -> 0 | AO17: 0 | AQ17: 2B | AR17: Willie Calhoun | AS17: =VLOOKUP($AR17,Players!$F$3:$G$1425,2,FALSE) -> 0 | AT17: 0 | AV17: RHP | AW17: Robert Gsellman | AX17: =VLOOKUP($AW17,Players!$AI$3:$AJ$1425,2,FALSE) -> 0 | AY17: 0 | BA17: OF | BB17: Jesse Winker | BC17: =VLOOKUP($BB17,Players!$F$3:$G$1425,2,FALSE) -> 0 | BD17: 0 | BF17: RHP | BG17: Alex Reyes | BH17: =VLOOKUP($BG17,Players!$AI$3:$AJ$1425,2,FALSE) -> 0 | BI17: 0
A18: 17 | B18: Andrew Susac | C18: =VLOOKUP($B18,Players!$F$3:$G$1242,2,FALSE) -> 0 | D18: 0 | F18: Mitch Moreland | G18: =VLOOKUP($F18,Players!$F$3:$G$1242,2,FALSE) -> 0 | H18: 0 | J18: Dustin Pedroia | K18: =VLOOKUP($J18,Players!$F$3:$G$1242,2,FALSE) -> 0 | L18: 0 | N18: Jose Ramirez | O18: =VLOOKUP($N18,Players!$F$3:$G$1242,2,FALSE) -> 0 | P18: 0 | R18: Troy Tulowitzki | S18: =VLOOKUP($R18,Players!$F$3:$G$1242,2,FALSE) -> 0 | T18: 0 | V18: Wil Myers | W18: =VLOOKUP($V18,Players!$F$3:$G$1242,2,FALSE) -> 0 | X18: 0 | AD18: Danny Duffy | AE18: =VLOOKUP($AD18,Players!$AI$3:$AJ$1425,2,FALSE) -> 0 | AF18: 0 | AH18: Alex Colome | AI18: =VLOOKUP($AH18,Players!$AI$3:$AJ$1425,2,FALSE) -> 0 | AJ18: 0 | AL18: 3B | AM18: Nick Senzel | AN18: =IF(ISERROR(VLOOKUP($AM18,Players!$F$3:$G$1425,2,FALSE)),(VLOOKUP($AM18,Players!$AI$3:$AJ$1425,2,FALSE)),(VLOOKUP($AM18,Players!$F$3:$G$1425,2,FALSE))) -> 0 | AO18: 0 | AQ18: SS | AR18: Willy Adames | AS18: =VLOOKUP($AR18,Players!$F$3:$G$1425,2,FALSE) -> 0 | AT18: 0 | AV18: LHP | AW18: Kolby Allard | AX18: =VLOOKUP($AW18,Players!$AI$3:$AJ$1425,2,FALSE) -> 0 | AY18: 0 | BA18: 1B | BB18: Casey Gillaspie | BC18: =VLOOKUP($BB18,Players!$F$3:$G$1425,2,FALSE) -> 0 | BD18: 0 | BF18: RHP | BG18: Mitch Keller | BH18: =VLOOKUP($BG18,Players!$AI$3:$AJ$1425,2,FALSE) -> 0 | BI18: 0
A19: 18 | B19: Welington Castillo | C19: =VLOOKUP($B19,Players!$F$3:$G$1242,2,FALSE) -> 0 | D19: 0 | F19: Tommy Joseph | G19: =VLOOKUP($F19,Players!$F$3:$G$1242,2,FALSE) -> 0 | H19: 0 | J19: Ben Zobrist | K19: =VLOOKUP($J19,Players!$F$3:$G$1242,2,FALSE) -> 0 | L19: 0 | N19: Yoan Moncada | O19: =VLOOKUP($N19,Players!$F$3:$G$1242,2,FALSE) -> 0 | P19: 0 | R19: Javier Baez | S19: =VLOOKUP($R19,Players!$F$3:$G$1242,2,FALSE) -> 0 | T19: 0 | V19: Christian Yelich | W19: =VLOOKUP($V19,Players!$F$3:$G$1242,2,FALSE) -> 0 | X19: 0 | AD19: Kenta Maeda | AE19: =VLOOKUP($AD19,Players!$AI$3:$AJ$1425,2,FALSE) -> 0 | AF19: 0 | AH19: Francisco Rodriguez | AI19: =VLOOKUP($AH19,Players!$AI$3:$AJ$1425,2,FALSE) -> 0 | AJ19: 0 | AL19: 2B | AM19: Willie Calhoun | AN19: =IF(ISERROR(VLOOKUP($AM19,Players!$F$3:$G$1425,2,FALSE)),(VLOOKUP($AM19,Players!$AI$3:$AJ$1425,2,FALSE)),(VLOOKUP($AM19,Players!$F$3:$G$1425,2,FALSE))) -> 0 | AO19: 0 | AQ19: SS | AR19: J.P. Crawford | AS19: =VLOOKUP($AR19,Players!$F$3:$G$1425,2,FALSE) -> 0 | AT19: 0 | AV19: RHP | AW19: Dylan Cease | AX19: =VLOOKUP($AW19,Players!$AI$3:$AJ$1425,2,FALSE) -> 0 | AY19: 0 | BA19: 1B | BB19: Dan Vogelbach | BC19: =VLOOKUP($BB19,Players!$F$3:$G$1425,2,FALSE) -> 0 | BD19: 0 | BF19: RHP | BG19: Michael Kopech | BH19: =VLOOKUP($BG19,Players!$AI$3:$AJ$1425,2,FALSE) -> 0 | BI19: 0
A20: 19 | B20: Wilson Ramos | C20: =VLOOKUP($B20,Players!$F$3:$G$1242,2,FALSE) -> 0 | D20: 0 | F20: Matt Carpenter | G20: =VLOOKUP($F20,Players!$F$3:$G$1242,2,FALSE) -> 0 | H20: 0 | J20: Neil Walker | K20: =VLOOKUP($J20,Players!$F$3:$G$1242,2,FALSE) -> 0 | L20: 0 | N20: Ryon Healy | O20: =VLOOKUP($N20,Players!$F$3:$G$1242,2,FALSE) -> 0 | P20: 0 | R20: Jose Peraza | S20: =VLOOKUP($R20,Players!$F$3:$G$1242,2,FALSE) -> 0 | T20: 0 | V20: Jackie Bradley Jr. | W20: =VLOOKUP($V20,Players!$F$3:$G$1242,2,FALSE) -> 0 | X20: 0 | AD20: Danny Salazar | AE20: =VLOOKUP($AD20,Players!$AI$3:$AJ$1425,2,FALSE) -> 0 | AF20: 0 | AH20: Tony Watson | AI20: =VLOOKUP($AH20,Players!$AI$3:$AJ$1425,2,FALSE) -> 0 | AJ20: 0 | AL20: LHP | AM20: Josh Hader | AN20: =IF(ISERROR(VLOOKUP($AM20,Players!$F$3:$G$1425,2,FALSE)),(VLOOKUP($AM20,Players!$AI$3:$AJ$1425,2,FALSE)),(VLOOKUP($AM20,Players!$F$3:$G$1425,2,FALSE))) -> 0 | AO20: 0 | AQ20: OF | AR20: Hunter Renfroe | AS20: =VLOOKUP($AR20,Players!$F$3:$G$1425,2,FALSE) -> 0 | AT20: 0 | AV20: LHP | AW20: Yohander Mendez | AX20: =VLOOKUP($AW20,Players!$AI$3:$AJ$1425,2,FALSE) -> 0 | AY20: 0 | BA20: C | BB20: Chance Sisco | BC20: =VLOOKUP($BB20,Players!$F$3:$G$1425,2,FALSE) -> 0 | BD20: 0 | BF20: RHP | BG20: Brent Honeywell | BH20: =VLOOKUP($BG20,Players!$AI$3:$AJ$1425,2,FALSE) -> 0 | BI20: 0
A21: 20 | B21: Yadier Molina | C21: =VLOOKUP($B21,Players!$F$3:$G$1242,2,FALSE) -> 0 | D21: 0 | F21: Mike Napoli | G21: =VLOOKUP($F21,Players!$F$3:$G$1242,2,FALSE) -> 0 | H21: 0 | J21: Starlin Castro | K21: =VLOOKUP($J21,Players!$F$3:$G$1242,2,FALSE) -> 0 | L21: 0 | N21: Yulieski Gurriel | O21: =VLOOKUP($N21,Players!$F$3:$G$1242,2,FALSE) -> 0 | P21: 0 | R21: Jedd Gyorko | S21: =VLOOKUP($R21,Players!$F$3:$G$1242,2,FALSE) -> 0 | T21: 0 | V21: Max Kepler | W21: =VLOOKUP($V21,Players!$F$3:$G$1242,2,FALSE) -> 0 | X21: 0 | AD21: Gerrit Cole | AE21: =VLOOKUP($AD21,Players!$AI$3:$AJ$1425,2,FALSE) -> 0 | AF21: 0 | AH21: Huston Street | AI21: =VLOOKUP($AH21,Players!$AI$3:$AJ$1425,2,FALSE) -> 0 | AJ21: 0 | AL21: RHP | AM21: Lucas Giolito | AN21: =IF(ISERROR(VLOOKUP($AM21,Players!$F$3:$G$1425,2,FALSE)),(VLOOKUP($AM21,Players!$AI$3:$AJ$1425,2,FALSE)),(VLOOKUP($AM21,Players!$F$3:$G$1425,2,FALSE))) -> 0 | AO21: 0 | AQ21: 3B | AR21: Rafael Devers | AS21: =VLOOKUP($AR21,Players!$F$3:$G$1425,2,FALSE) -> 0 | AT21: 0 | AV21: LHP | AW21: Justus Sheffield | AX21: =VLOOKUP($AW21,Players!$AI$3:$AJ$1425,2,FALSE) -> 0 | AY21: 0 | BA21: OF | BB21: Dylan Cozens | BC21: =VLOOKUP($BB21,Players!$F$3:$G$1425,2,FALSE) -> 0 | BD21: 0 | BF21: RHP | BG21: Erick Fedde | BH21: =VLOOKUP($BG21,Players!$AI$3:$AJ$1425,2,FALSE) -> 0 | BI21: 0
A22: 21 | B22: Sandy Leon | C22: =VLOOKUP($B22,Players!$F$3:$G$1242,2,FALSE) -> 0 | D22: 0 | F22: Adrian Gonzalez | G22: =VLOOKUP($F22,Players!$F$3:$G$1242,2,FALSE) -> 0 | H22: 0 | J22: Javier Baez | K22: =VLOOKUP($J22,Players!$F$3:$G$1242,2,FALSE) -> 0 | L22: 0 | N22: Nick Castellanos | O22: =VLOOKUP($N22,Players!$F$3:$G$1242,2,FALSE) -> 0 | P22: 0 | R22: Orlando Arcia | S22: =VLOOKUP($R22,Players!$F$3:$G$1242,2,FALSE) -> 0 | T22: 0 | V22: Carlos Gonzalez | W22: =VLOOKUP($V22,Players!$F$3:$G$1242,2,FALSE) -> 0 | X22: 0 | AD22: Jose Quintana | AE22: =VLOOKUP($AD22,Players!$AI$3:$AJ$1425,2,FALSE) -> 0 | AF22: 0 | AH22: Jim Johnson | AI22: =VLOOKUP($AH22,Players!$AI$3:$AJ$1425,2,FALSE) -> 0 | AJ22: 0 | AL22: SS | AM22: Willy Adames | AN22: =IF(ISERROR(VLOOKUP($AM22,Players!$F$3:$G$1425,2,FALSE)),(VLOOKUP($AM22,Players!$AI$3:$AJ$1425,2,FALSE)),(VLOOKUP($AM22,Players!$F$3:$G$1425,2,FALSE))) -> 0 | AO22: 0 | AQ22: OF | AR22: Bradley Zimmer | AS22: =VLOOKUP($AR22,Players!$F$3:$G$1425,2,FALSE) -> 0 | AT22: 0 | AV22: LHP | AW22: A.J. Puk | AX22: =VLOOKUP($AW22,Players!$AI$3:$AJ$1425,2,FALSE) -> 0 | AY22: 0 | BA22: OF | BB22: Mitch Haniger | BC22: =VLOOKUP($BB22,Players!$F$3:$G$1425,2,FALSE) -> 0 | BD22: 0 | BF22: LHP | BG22: Justus Sheffield | BH22: =VLOOKUP($BG22,Players!$AI$3:$AJ$1425,2,FALSE) -> 0 | BI22: 0
A23: 22 | B23: Devin Mesoraco | C23: =VLOOKUP($B23,Players!$F$3:$G$1242,2,FALSE) -> 0 | D23: 0 | F23: Brandon Belt | G23: =VLOOKUP($F23,Players!$F$3:$G$1242,2,FALSE) -> 0 | H23: 0 | J23: Jose Peraza | K23: =VLOOKUP($J23,Players!$F$3:$G$1242,2,FALSE) -> 0 | L23: 0 | N23: Eduardo Nunez | O23: =VLOOKUP($N23,Players!$F$3:$G$1242,2,FALSE) -> 0 | P23: 0 | R23: Dansby Swanson | S23: =VLOOKUP($R23,Players!$F$3:$G$1242,2,FALSE) -> 0 | T23: 0 | V23: Matt Kemp | W23: =VLOOKUP($V23,Players!$F$3:$G$1242,2,FALSE) -> 0 | X23: 0 | AD23: Kyle Hendricks | AE23: =VLOOKUP($AD23,Players!$AI$3:$AJ$1425,2,FALSE) -> 0 | AF23: 0 | AH23: Brandon Kintzler | AI23: =VLOOKUP($AH23,Players!$AI$3:$AJ$1425,2,FALSE) -> 0 | AJ23: 0 | AL23: SS | AM23: J.P. Crawford | AN23: =IF(ISERROR(VLOOKUP($AM23,Players!$F$3:$G$1425,2,FALSE)),(VLOOKUP($AM23,Players!$AI$3:$AJ$1425,2,FALSE)),(VLOOKUP($AM23,Players!$F$3:$G$1425,2,FALSE))) -> 0 | AO23: 0 | AQ23: OF | AR23: Derek Fisher | AS23: =VLOOKUP($AR23,Players!$F$3:$G$1425,2,FALSE) -> 0 | AT23: 0 | AV23: RHP | AW23: Sean-Reid Foley | AX23: =VLOOKUP($AW23,Players!$AI$3:$AJ$1425,2,FALSE) -> 0 | AY23: 0 | BB23: 2018 | BC23: =VLOOKUP($BB23,Players!$F$3:$G$1425,2,FALSE) ->  | BF23: RHP | BG23: Sean-Reid Foley | BH23: =VLOOKUP($BG23,Players!$AI$3:$AJ$1425,2,FALSE) -> 0 | BI23: 0
A24: 23 | B24: Austin Hedges | C24: =VLOOKUP($B24,Players!$F$3:$G$1242,2,FALSE) -> 0 | D24: 0 | F24: Matt Holliday | G24: =VLOOKUP($F24,Players!$F$3:$G$1242,2,FALSE) -> 0 | H24: 0 | J24: Jedd Gyorko | K24: =VLOOKUP($J24,Players!$F$3:$G$1242,2,FALSE) -> 0 | L24: 0 | N24: Javier Baez | O24: =VLOOKUP($N24,Players!$F$3:$G$1242,2,FALSE) -> 0 | P24: 0 | R24: Didi Gregorius | S24: =VLOOKUP($R24,Players!$F$3:$G$1242,2,FALSE) -> 0 | T24: 0 | V24: Adam Jones | W24: =VLOOKUP($V24,Players!$F$3:$G$1242,2,FALSE) -> 0 | X24: 0 | AD24: Masahiro Tanaka | AE24: =VLOOKUP($AD24,Players!$AI$3:$AJ$1425,2,FALSE) -> 0 | AF24: 0 | AH24: Adam Ottavino | AI24: =VLOOKUP($AH24,Players!$AI$3:$AJ$1425,2,FALSE) -> 0 | AJ24: 0 | AL24: RHP | AM24: Anderson Espinoza | AN24: =IF(ISERROR(VLOOKUP($AM24,Players!$F$3:$G$1425,2,FALSE)),(VLOOKUP($AM24,Players!$AI$3:$AJ$1425,2,FALSE)),(VLOOKUP($AM24,Players!$F$3:$G$1425,2,FALSE))) -> 0 | AO24: 0 | AQ24: 2B/SS | AR24: Ozzie Albies | AS24: =VLOOKUP($AR24,Players!$F$3:$G$1425,2,FALSE) -> 0 | AT24: 0 | AV24: LHP | AW24: Luiz Gohara | AX24: =VLOOKUP($AW24,Players!$AI$3:$AJ$1425,2,FALSE) -> 0 | AY24: 0 | BA24: SS | BB24: Gleyber Torres | BC24: =VLOOKUP($BB24,Players!$F$3:$G$1425,2,FALSE) -> 0 | BD24: 0 | BF24: LHP | BG24: Max Fried | BH24: =VLOOKUP($BG24,Players!$AI$3:$AJ$1425,2,FALSE) -> 0 | BI24: 0
A25: 24 | B25: James McCann | C25: =VLOOKUP($B25,Players!$F$3:$G$1242,2,FALSE) -> 0 | D25: 0 | F25: Jedd Gyorko | G25: =VLOOKUP($F25,Players!$F$3:$G$1242,2,FALSE) -> 0 | H25: 0 | J25: Josh Harrison | K25: =VLOOKUP($J25,Players!$F$3:$G$1242,2,FALSE) -> 0 | L25: 0 | N25: Jedd Gyorko | O25: =VLOOKUP($N25,Players!$F$3:$G$1242,2,FALSE) -> 0 | P25: 0 | R25: Jorge Polanco | S25: =VLOOKUP($R25,Players!$F$3:$G$1242,2,FALSE) -> 0 | T25: 0 | V25: Byron Buxton | W25: =VLOOKUP($V25,Players!$F$3:$G$1242,2,FALSE) -> 0 | X25: 0 | AD25: Cole Hamels | AE25: =VLOOKUP($AD25,Players!$AI$3:$AJ$1425,2,FALSE) -> 0 | AF25: 0 | AH25: Neftali Feliz | AI25: =VLOOKUP($AH25,Players!$AI$3:$AJ$1425,2,FALSE) -> 0 | AJ25: 0 | AL25: OF | AM25: Hunter Renfroe | AN25: =IF(ISERROR(VLOOKUP($AM25,Players!$F$3:$G$1425,2,FALSE)),(VLOOKUP($AM25,Players!$AI$3:$AJ$1425,2,FALSE)),(VLOOKUP($AM25,Players!$F$3:$G$1425,2,FALSE))) -> 0 | AO25: 0 | AQ25: C | AR25: Tom Murphy | AS25: =VLOOKUP($AR25,Players!$F$3:$G$1425,2,FALSE) -> 0 | AT25: 0 | AV25: LHP | AW25: Thomas Szapucki | AX25: =VLOOKUP($AW25,Players!$AI$3:$AJ$1425,2,FALSE) -> 0 | AY25: 0 | BA25: OF | BB25: Clint Frazier | BC25: =VLOOKUP($BB25,Players!$F$3:$G$1425,2,FALSE) -> 0 | BD25: 0 | BG25: 2019 | BH25: =VLOOKUP($BG25,Players!$AI$3:$AJ$1425,2,FALSE) -> 
A26: 25 | B26: Jett Bandy | C26: =VLOOKUP($B26,Players!$F$3:$G$1242,2,FALSE) -> 0 | D26: 0 | F26: Lucas Duda | G26: =VLOOKUP($F26,Players!$F$3:$G$1242,2,FALSE) -> 0 | H26: 0 | J26: Ryan Schimpf | K26: =VLOOKUP($J26,Players!$F$3:$G$1242,2,FALSE) -> 0 | L26: 0 | N26: Ryan Schimpf | O26: =VLOOKUP($N26,Players!$F$3:$G$1242,2,FALSE) -> 0 | P26: 0 | R26: Chris Owings | S26: =VLOOKUP($R26,Players!$F$3:$G$1242,2,FALSE) -> 0 | T26: 0 | V26: Adam Duvall | W26: =VLOOKUP($V26,Players!$F$3:$G$1242,2,FALSE) -> 0 | X26: 0 | AD26: Rich Hill | AE26: =VLOOKUP($AD26,Players!$AI$3:$AJ$1425,2,FALSE) -> 0 | AF26: 0 | AH26: Trevor Rosenthal | AI26: =VLOOKUP($AH26,Players!$AI$3:$AJ$1425,2,FALSE) -> 0 | AJ26: 0 | AL26: 3B | AM26: Rafael Devers | AN26: =IF(ISERROR(VLOOKUP($AM26,Players!$F$3:$G$1425,2,FALSE)),(VLOOKUP($AM26,Players!$AI$3:$AJ$1425,2,FALSE)),(VLOOKUP($AM26,Players!$F$3:$G$1425,2,FALSE))) -> 0 | AO26: 0 | AQ26: OF | AR26: Kyle Tucker | AS26: =VLOOKUP($AR26,Players!$F$3:$G$1425,2,FALSE) -> 0 | AT26: 0 | AV26: LHP | AW26: Braxton Garrett | AX26: =VLOOKUP($AW26,Players!$AI$3:$AJ$1425,2,FALSE) -> 0 | AY26: 0 | BA26: OF | BB26: Tyler O’Neill | BC26: =VLOOKUP($BB26,Players!$F$3:$G$1425,2,FALSE) -> 0 | BD26: 0 | BF26: RHP | BG26: Anderson Espinoza | BH26: =VLOOKUP($BG26,Players!$AI$3:$AJ$1425,2,FALSE) -> 0 | BI26: 0
A27: 26 | B27: Mike Zunino | C27: =VLOOKUP($B27,Players!$F$3:$G$1242,2,FALSE) -> 0 | D27: 0 | F27: C.J. Cron | G27: =VLOOKUP($F27,Players!$F$3:$G$1242,2,FALSE) -> 0 | H27: 0 | J27: Hernan Perez | K27: =VLOOKUP($J27,Players!$F$3:$G$1242,2,FALSE) -> 0 | L27: 0 | N27: Hernan Perez | O27: =VLOOKUP($N27,Players!$F$3:$G$1242,2,FALSE) -> 0 | P27: 0 | R27: Asdrubal Cabrera | S27: =VLOOKUP($R27,Players!$F$3:$G$1242,2,FALSE) -> 0 | T27: 0 | V27: Khris Davis | W27: =VLOOKUP($V27,Players!$F$3:$G$1242,2,FALSE) -> 0 | X27: 0 | AD27: John Lackey | AE27: =VLOOKUP($AD27,Players!$AI$3:$AJ$1425,2,FALSE) -> 0 | AF27: 0 | AH27: Jeanmar Gomez | AI27: =VLOOKUP($AH27,Players!$AI$3:$AJ$1425,2,FALSE) -> 0 | AJ27: 0 | AL27: OF | AM27: Bradley Zimmer | AN27: =IF(ISERROR(VLOOKUP($AM27,Players!$F$3:$G$1425,2,FALSE)),(VLOOKUP($AM27,Players!$AI$3:$AJ$1425,2,FALSE)),(VLOOKUP($AM27,Players!$F$3:$G$1425,2,FALSE))) -> 0 | AO27: 0 | AQ27: OF | AR27: Kyle Lewis | AS27: =VLOOKUP($AR27,Players!$F$3:$G$1425,2,FALSE) -> 0 | AT27: 0 | AV27: LHP | AW27: Max Fried | AX27: =VLOOKUP($AW27,Players!$AI$3:$AJ$1425,2,FALSE) -> 0 | AY27: 0 | BA27: 3B | BB27: Nick Senzel | BC27: =VLOOKUP($BB27,Players!$F$3:$G$1425,2,FALSE) -> 0 | BD27: 0 | BF27: RHP | BG27: Triston McKenzie | BH27: =VLOOKUP($BG27,Players!$AI$3:$AJ$1425,2,FALSE) -> 0 | BI27: 0
A28: 27 | B28: Chris Iannetta | C28: =VLOOKUP($B28,Players!$F$3:$G$1242,2,FALSE) -> 0 | D28: 0 | F28: Dan Vogelbach | G28: =VLOOKUP($F28,Players!$F$3:$G$1242,2,FALSE) -> 0 | H28: 0 | J28: Kolten Wong | K28: =VLOOKUP($J28,Players!$F$3:$G$1242,2,FALSE) -> 0 | L28: 0 | N28: Mike Moustakas | O28: =VLOOKUP($N28,Players!$F$3:$G$1242,2,FALSE) -> 0 | P28: 0 | R28: Brandon Crawford | S28: =VLOOKUP($R28,Players!$F$3:$G$1242,2,FALSE) -> 0 | T28: 0 | V28: Stephen Piscotty | W28: =VLOOKUP($V28,Players!$F$3:$G$1242,2,FALSE) -> 0 | X28: 0 | AD28: Kevin Gausman | AE28: =VLOOKUP($AD28,Players!$AI$3:$AJ$1425,2,FALSE) -> 0 | AF28: 0 | AH28: Ryan Madson | AI28: =VLOOKUP($AH28,Players!$AI$3:$AJ$1425,2,FALSE) -> 0 | AJ28: 0 | AL28: RHP | AM28: Alex Reyes | AN28: =IF(ISERROR(VLOOKUP($AM28,Players!$F$3:$G$1425,2,FALSE)),(VLOOKUP($AM28,Players!$AI$3:$AJ$1425,2,FALSE)),(VLOOKUP($AM28,Players!$F$3:$G$1425,2,FALSE))) -> 0 | AO28: 0 | AQ28: SS | AR28: Amed Rosario | AS28: =VLOOKUP($AR28,Players!$F$3:$G$1425,2,FALSE) -> 0 | AT28: 0 | AV28: RHP | AW28: David Paulino | AX28: =VLOOKUP($AW28,Players!$AI$3:$AJ$1425,2,FALSE) -> 0 | AY28: 0 | BA28: 2B | BB28: Willie Calhoun | BC28: =VLOOKUP($BB28,Players!$F$3:$G$1425,2,FALSE) -> 0 | BD28: 0 | BF28: RHP | BG28: Dylan Cease | BH28: =VLOOKUP($BG28,Players!$AI$3:$AJ$1425,2,FALSE) -> 0 | BI28: 0
A29: 28 | B29: Yan Gomes | C29: =VLOOKUP($B29,Players!$F$3:$G$1242,2,FALSE) -> 0 | D29: 0 | F29: Justin Bour | G29: =VLOOKUP($F29,Players!$F$3:$G$1242,2,FALSE) -> 0 | H29: 0 | J29: Raul Mondesi | K29: =VLOOKUP($J29,Players!$F$3:$G$1242,2,FALSE) -> 0 | L29: 0 | N29: Matt Duffy | O29: =VLOOKUP($N29,Players!$F$3:$G$1242,2,FALSE) -> 0 | P29: 0 | R29: Matt Duffy | S29: =VLOOKUP($R29,Players!$F$3:$G$1242,2,FALSE) -> 0 | T29: 0 | V29: Andrew Benintendi | W29: =VLOOKUP($V29,Players!$F$3:$G$1242,2,FALSE) -> 0 | X29: 0 | AD29: Lance McCullers | AE29: =VLOOKUP($AD29,Players!$AI$3:$AJ$1425,2,FALSE) -> 0 | AF29: 0 | AH29: Shawn Kelley | AI29: =VLOOKUP($AH29,Players!$AI$3:$AJ$1425,2,FALSE) -> 0 | AJ29: 0 | AL29: RHP | AM29: Mitch Keller | AN29: =IF(ISERROR(VLOOKUP($AM29,Players!$F$3:$G$1425,2,FALSE)),(VLOOKUP($AM29,Players!$AI$3:$AJ$1425,2,FALSE)),(VLOOKUP($AM29,Players!$F$3:$G$1425,2,FALSE))) -> 0 | AO29: 0 | AQ29: 1B | AR29: Dominic Smith | AS29: =VLOOKUP($AR29,Players!$F$3:$G$1425,2,FALSE) -> 0 | AT29: 0 | AV29: LHP | AW29: Amir Garrett | AX29: =VLOOKUP($AW29,Players!$AI$3:$AJ$1425,2,FALSE) -> 0 | AY29: 0 | BA29: SS | BB29: Willy Adames | BC29: =VLOOKUP($BB29,Players!$F$3:$G$1425,2,FALSE) -> 0 | BD29: 0 | BF29: LHP | BG29: A.J. Puk | BH29: =VLOOKUP($BG29,Players!$AI$3:$AJ$1425,2,FALSE) -> 0 | BI29: 0
A30: 29 | B30: Tyler Flowers | C30: =VLOOKUP($B30,Players!$F$3:$G$1242,2,FALSE) -> 0 | D30: 0 | F30: Travis Shaw | G30: =VLOOKUP($F30,Players!$F$3:$G$1242,2,FALSE) -> 0 | H30: 0 | J30: Danny Espinosa | K30: =VLOOKUP($J30,Players!$F$3:$G$1242,2,FALSE) -> 0 | L30: 0 | N30: Travis Shaw | O30: =VLOOKUP($N30,Players!$F$3:$G$1242,2,FALSE) -> 0 | P30: 0 | R30: Zack Cozart | S30: =VLOOKUP($R30,Players!$F$3:$G$1242,2,FALSE) -> 0 | T30: 0 | V30: Kyle Schwarber | W30: =VLOOKUP($V30,Players!$F$3:$G$1242,2,FALSE) -> 0 | X30: 0 | AD30: Aaron Nola | AE30: =VLOOKUP($AD30,Players!$AI$3:$AJ$1425,2,FALSE) -> 0 | AF30: 0 | AH30: Brandon Maurer | AI30: =VLOOKUP($AH30,Players!$AI$3:$AJ$1425,2,FALSE) -> 0 | AJ30: 0 | AL30: OF | AM30: Derek Fisher | AN30: =IF(ISERROR(VLOOKUP($AM30,Players!$F$3:$G$1425,2,FALSE)),(VLOOKUP($AM30,Players!$AI$3:$AJ$1425,2,FALSE)),(VLOOKUP($AM30,Players!$F$3:$G$1425,2,FALSE))) -> 0 | AO30: 0 | AQ30: OF | AR30: Aaron Judge | AS30: =VLOOKUP($AR30,Players!$F$3:$G$1425,2,FALSE) -> 0 | AT30: 0 | AV30: RHP | AW30: Jharel Cotton | AX30: =VLOOKUP($AW30,Players!$AI$3:$AJ$1425,2,FALSE) -> 0 | AY30: 0 | BA30: SS | BB30: J.P. Crawford | BC30: =VLOOKUP($BB30,Players!$F$3:$G$1425,2,FALSE) -> 0 | BD30: 0 | BF30: LHP | BG30: Luiz Gohara | BH30: =VLOOKUP($BG30,Players!$AI$3:$AJ$1425,2,FALSE) -> 0 | BI30: 0
A31: 30 | B31: Jason Castro | C31: =VLOOKUP($B31,Players!$F$3:$G$1242,2,FALSE) -> 0 | D31: 0 | F31: Eric Thames | G31: =VLOOKUP($F31,Players!$F$3:$G$1242,2,FALSE) -> 0 | H31: 0 | J31: Brandon Drury | K31: =VLOOKUP($J31,Players!$F$3:$G$1242,2,FALSE) -> 0 | L31: 0 | N31: Brandon Drury | O31: =VLOOKUP($N31,Players!$F$3:$G$1242,2,FALSE) -> 0 | P31: 0 | R31: Danny Espinosa | S31: =VLOOKUP($R31,Players!$F$3:$G$1242,2,FALSE) -> 0 | T31: 0 | V31: Andrew McCutchen | W31: =VLOOKUP($V31,Players!$F$3:$G$1242,2,FALSE) -> 0 | X31: 0 | AD31: Taijuan Walker | AE31: =VLOOKUP($AD31,Players!$AI$3:$AJ$1425,2,FALSE) -> 0 | AF31: 0 | AH31: Fernando Rodney | AI31: =VLOOKUP($AH31,Players!$AI$3:$AJ$1425,2,FALSE) -> 0 | AJ31: 0 | AL31: 2B/SS | AM31: Ozzie Albies | AN31: =IF(ISERROR(VLOOKUP($AM31,Players!$F$3:$G$1425,2,FALSE)),(VLOOKUP($AM31,Players!$AI$3:$AJ$1425,2,FALSE)),(VLOOKUP($AM31,Players!$F$3:$G$1425,2,FALSE))) -> 0 | AO31: 0 | AQ31: 1B/OF | AR31: Josh Bell | AS31: =VLOOKUP($AR31,Players!$F$3:$G$1425,2,FALSE) -> 0 | AT31: 0 | AV31: LHP | AW31: Adrian Morejon | AX31: =VLOOKUP($AW31,Players!$AI$3:$AJ$1425,2,FALSE) -> 0 | AY31: 0 | BA31: OF | BB31: Derek Fisher | BC31: =VLOOKUP($BB31,Players!$F$3:$G$1425,2,FALSE) -> 0 | BD31: 0 | BF31: LHP | BG31: Thomas Szapucki | BH31: =VLOOKUP($BG31,Players!$AI$3:$AJ$1425,2,FALSE) -> 0 | BI31: 0
A32: 31 | B32: Derek Norris | C32: =VLOOKUP($B32,Players!$F$3:$G$1242,2,FALSE) -> 0 | D32: 0 | F32: Gregory Bird | G32: =VLOOKUP($F32,Players!$F$3:$G$1242,2,FALSE) -> 0 | H32: 0 | J32: Joe Panik | K32: =VLOOKUP($J32,Players!$F$3:$G$1242,2,FALSE) -> 0 | L32: 0 | N32: Eugenio Suarez | O32: =VLOOKUP($N32,Players!$F$3:$G$1242,2,FALSE) -> 0 | P32: 0 | R32: J.P. Crawford | S32: =VLOOKUP($R32,Players!$F$3:$G$1242,2,FALSE) -> 0 | T32: 0 | V32: Justin Upton | W32: =VLOOKUP($V32,Players!$F$3:$G$1242,2,FALSE) -> 0 | X32: 0 | AD32: Marcus Stroman | AE32: =VLOOKUP($AD32,Players!$AI$3:$AJ$1425,2,FALSE) -> 0 | AF32: 0 | AH32: Raisel Iglesias | AI32: =VLOOKUP($AH32,Players!$AI$3:$AJ$1425,2,FALSE) -> 0 | AJ32: 0 | AL32: C | AM32: Tom Murphy | AN32: =IF(ISERROR(VLOOKUP($AM32,Players!$F$3:$G$1425,2,FALSE)),(VLOOKUP($AM32,Players!$AI$3:$AJ$1425,2,FALSE)),(VLOOKUP($AM32,Players!$F$3:$G$1425,2,FALSE))) -> 0 | AO32: 0 | AQ32: OF | AR32: Ronald Acuna | AS32: =VLOOKUP($AR32,Players!$F$3:$G$1425,2,FALSE) -> 0 | AT32: 0 | AV32: RHP | AW32: Cal Quantrill | AX32: =VLOOKUP($AW32,Players!$AI$3:$AJ$1425,2,FALSE) -> 0 | AY32: 0 | BA32: 2B/SS | BB32: Ozzie Albies | BC32: =VLOOKUP($BB32,Players!$F$3:$G$1425,2,FALSE) -> 0 | BD32: 0 | BF32: RHP | BG32: Cal Quantrill | BH32: =VLOOKUP($BG32,Players!$AI$3:$AJ$1425,2,FALSE) -> 0 | BI32: 0
A33: 32 | B33: Curt Casali | C33: =VLOOKUP($B33,Players!$F$3:$G$1242,2,FALSE) -> 0 | D33: 0 | F33: Josh Bell | G33: =VLOOKUP($F33,Players!$F$3:$G$1242,2,FALSE) -> 0 | H33: 0 | J33: Cesar Hernandez | K33: =VLOOKUP($J33,Players!$F$3:$G$1242,2,FALSE) -> 0 | L33: 0 | N33: Pablo Sandoval | O33: =VLOOKUP($N33,Players!$F$3:$G$1242,2,FALSE) -> 0 | P33: 0 | R33: Jose Reyes | S33: =VLOOKUP($R33,Players!$F$3:$G$1242,2,FALSE) -> 0 | T33: 0 | V33: Jose Bautista | W33: =VLOOKUP($V33,Players!$F$3:$G$1242,2,FALSE) -> 0 | X33: 0 | AD33: Michael Pineda | AE33: =VLOOKUP($AD33,Players!$AI$3:$AJ$1425,2,FALSE) -> 0 | AF33: 0 | AH33: Hector Neris | AI33: =VLOOKUP($AH33,Players!$AI$3:$AJ$1425,2,FALSE) -> 0 | AJ33: 0 | AL33: OF | AM33: Kyle Tucker | AN33: =IF(ISERROR(VLOOKUP($AM33,Players!$F$3:$G$1425,2,FALSE)),(VLOOKUP($AM33,Players!$AI$3:$AJ$1425,2,FALSE)),(VLOOKUP($AM33,Players!$F$3:$G$1425,2,FALSE))) -> 0 | AO33: 0 | AQ33: 2B/OF | AR33: Ian Happ | AS33: =VLOOKUP($AR33,Players!$F$3:$G$1425,2,FALSE) -> 0 | AT33: 0 | AV33: RHP | AW33: Tyler Beede | AX33: =VLOOKUP($AW33,Players!$AI$3:$AJ$1425,2,FALSE) -> 0 | AY33: 0 | BA33: SS | BB33: Amed Rosario | BC33: =VLOOKUP($BB33,Players!$F$3:$G$1425,2,FALSE) -> 0 | BD33: 0 | BG33: 2020 | BH33: =VLOOKUP($BG33,Players!$AI$3:$AJ$1425,2,FALSE) -> 
A34: 33 | B34: Geovany Soto | C34: =VLOOKUP($B34,Players!$F$3:$G$1242,2,FALSE) -> 0 | D34: 0 | F34: Ryan Zimmerman | G34: =VLOOKUP($F34,Players!$F$3:$G$1242,2,FALSE) -> 0 | H34: 0 | J34: Howie Kendrick | K34: =VLOOKUP($J34,Players!$F$3:$G$1242,2,FALSE) -> 0 | L34: 0 | N34: Howie Kendrick | O34: =VLOOKUP($N34,Players!$F$3:$G$1242,2,FALSE) -> 0 | P34: 0 | R34: Tyler Saladino | S34: =VLOOKUP($R34,Players!$F$3:$G$1242,2,FALSE) -> 0 | T34: 0 | V34: Hunter Pence | W34: =VLOOKUP($V34,Players!$F$3:$G$1242,2,FALSE) -> 0 | X34: 0 | AD34: Jonathan Gray | AE34: =VLOOKUP($AD34,Players!$AI$3:$AJ$1425,2,FALSE) -> 0 | AF34: 0 | AH34: Santiago Casilla | AI34: =VLOOKUP($AH34,Players!$AI$3:$AJ$1425,2,FALSE) -> 0 | AJ34: 0 | AL34: OF | AM34: Kyle Lewis | AN34: =IF(ISERROR(VLOOKUP($AM34,Players!$F$3:$G$1425,2,FALSE)),(VLOOKUP($AM34,Players!$AI$3:$AJ$1425,2,FALSE)),(VLOOKUP($AM34,Players!$F$3:$G$1425,2,FALSE))) -> 0 | AO34: 0 | AQ34: C | AR34: Francisco Mejia | AS34: =VLOOKUP($AR34,Players!$F$3:$G$1425,2,FALSE) -> 0 | AT34: 0 | AV34: RHP | AW34: Matt Manning | AX34: =VLOOKUP($AW34,Players!$AI$3:$AJ$1425,2,FALSE) -> 0 | AY34: 0 | BA34: 1B | BB34: Dominic Smith | BC34: =VLOOKUP($BB34,Players!$F$3:$G$1425,2,FALSE) -> 0 | BD34: 0 | BF34: RHP | BG34: Yadier Alvarez | BH34: =VLOOKUP($BG34,Players!$AI$3:$AJ$1425,2,FALSE) -> 0 | BI34: 0
A35: 34 | B35: Francisco Cervelli | C35: =VLOOKUP($B35,Players!$F$3:$G$1242,2,FALSE) -> 0 | D35: 0 | F35: Chris Carter | G35: =VLOOKUP($F35,Players!$F$3:$G$1242,2,FALSE) -> 0 | H35: 0 | J35: Brandon Phillips | K35: =VLOOKUP($J35,Players!$F$3:$G$1242,2,FALSE) -> 0 | L35: 0 | N35: Danny Valencia | O35: =VLOOKUP($N35,Players!$F$3:$G$1242,2,FALSE) -> 0 | P35: 0 | R35: Freddy Galvis | S35: =VLOOKUP($R35,Players!$F$3:$G$1242,2,FALSE) -> 0 | T35: 0 | V35: Billy Hamilton | W35: =VLOOKUP($V35,Players!$F$3:$G$1242,2,FALSE) -> 0 | X35: 0 | AD35: Aaron Sanchez | AE35: =VLOOKUP($AD35,Players!$AI$3:$AJ$1425,2,FALSE) -> 0 | AF35: 0 | AL35: SS | AM35: Amed Rosario | AN35: =IF(ISERROR(VLOOKUP($AM35,Players!$F$3:$G$1425,2,FALSE)),(VLOOKUP($AM35,Players!$AI$3:$AJ$1425,2,FALSE)),(VLOOKUP($AM35,Players!$F$3:$G$1425,2,FALSE))) -> 0 | AO35: 0 | AQ35: 2B/SS | AR35: Isan Diaz | AS35: =VLOOKUP($AR35,Players!$F$3:$G$1425,2,FALSE) -> 0 | AT35: 0 | AV35: RHP | AW35: Reynaldo Lopez | AX35: =VLOOKUP($AW35,Players!$AI$3:$AJ$1425,2,FALSE) -> 0 | AY35: 0 | BA35: 2B/OF | BB35: Ian Happ | BC35: =VLOOKUP($BB35,Players!$F$3:$G$1425,2,FALSE) -> 0 | BD35: 0 | BF35: LHP | BG35: Jason Groome | BH35: =VLOOKUP($BG35,Players!$AI$3:$AJ$1425,2,FALSE) -> 0 | BI35: 0
A36: 35 | B36: Tony Wolters | C36: =VLOOKUP($B36,Players!$F$3:$G$1242,2,FALSE) -> 0 | D36: 0 | F36: Joe Mauer | G36: =VLOOKUP($F36,Players!$F$3:$G$1242,2,FALSE) -> 0 | H36: 0 | J36: Yangervis Solarte | K36: =VLOOKUP($J36,Players!$F$3:$G$1242,2,FALSE) -> 0 | L36: 0 | N36: Yangervis Solarte | O36: =VLOOKUP($N36,Players!$F$3:$G$1242,2,FALSE) -> 0 | P36: 0 | R36: Jurickson Profar | S36: =VLOOKUP($R36,Players!$F$3:$G$1242,2,FALSE) -> 0 | T36: 0 | V36: David Dahl | W36: =VLOOKUP($V36,Players!$F$3:$G$1242,2,FALSE) -> 0 | X36: 0 | AD36: David Price | AE36: =VLOOKUP($AD36,Players!$AI$3:$AJ$1425,2,FALSE) -> 0 | AF36: 0 | AL36: RHP | AM36: Michael Kopech | AN36: =IF(ISERROR(VLOOKUP($AM36,Players!$F$3:$G$1425,2,FALSE)),(VLOOKUP($AM36,Players!$AI$3:$AJ$1425,2,FALSE)),(VLOOKUP($AM36,Players!$F$3:$G$1425,2,FALSE))) -> 0 | AO36: 0 | AQ36: SS | AR36: Franklin Barreto | AS36: =VLOOKUP($AR36,Players!$F$3:$G$1425,2,FALSE) -> 0 | AT36: 0 | AV36: RHP | AW36: Ginny Baker | AX36: =VLOOKUP($AW36,Players!$AI$3:$AJ$1425,2,FALSE) -> 0 | AY36: 0 | BA36: SS | BB36: Franklin Barreto | BC36: =VLOOKUP($BB36,Players!$F$3:$G$1425,2,FALSE) -> 0 | BD36: 0 | BF36: LHP | BG36: Kolby Allard | BH36: =VLOOKUP($BG36,Players!$AI$3:$AJ$1425,2,FALSE) -> 0 | BI36: 0
A37: 36 | B37: Chris Herrmann | C37: =VLOOKUP($B37,Players!$F$3:$G$1242,2,FALSE) -> 0 | D37: 0 | F37: Howie Kendrick | G37: =VLOOKUP($F37,Players!$F$3:$G$1242,2,FALSE) -> 0 | H37: 0 | J37: Wilmer Flores | K37: =VLOOKUP($J37,Players!$F$3:$G$1242,2,FALSE) -> 0 | L37: 0 | N37: Jose Reyes | O37: =VLOOKUP($N37,Players!$F$3:$G$1242,2,FALSE) -> 0 | P37: 0 | R37: Jose Iglesias | S37: =VLOOKUP($R37,Players!$F$3:$G$1242,2,FALSE) -> 0 | T37: 0 | V37: Dexter Fowler | W37: =VLOOKUP($V37,Players!$F$3:$G$1242,2,FALSE) -> 0 | X37: 0 | AD37: Tanner Roark | AE37: =VLOOKUP($AD37,Players!$AI$3:$AJ$1425,2,FALSE) -> 0 | AF37: 0 | AL37: 1B | AM37: Dominic Smith | AN37: =IF(ISERROR(VLOOKUP($AM37,Players!$F$3:$G$1425,2,FALSE)),(VLOOKUP($AM37,Players!$AI$3:$AJ$1425,2,FALSE)),(VLOOKUP($AM37,Players!$F$3:$G$1425,2,FALSE))) -> 0 | AO37: 0 | AQ37: OF | AR37: Alex Verdugo | AS37: =VLOOKUP($AR37,Players!$F$3:$G$1425,2,FALSE) -> 0 | AT37: 0 | BA37: OF | BB37: Alex Verdugo | BC37: =VLOOKUP($BB37,Players!$F$3:$G$1425,2,FALSE) -> 0 | BD37: 0 | BF37: LHP | BG37: Braxton Garrett | BH37: =VLOOKUP($BG37,Players!$AI$3:$AJ$1425,2,FALSE) -> 0 | BI37: 0
A38: 37 | B38: Bruce Maxwell | C38: =VLOOKUP($B38,Players!$F$3:$G$1242,2,FALSE) -> 0 | D38: 0 | F38: Justin Smoak | G38: =VLOOKUP($F38,Players!$F$3:$G$1242,2,FALSE) -> 0 | H38: 0 | J38: Steve Pearce | K38: =VLOOKUP($J38,Players!$F$3:$G$1242,2,FALSE) -> 0 | L38: 0 | N38: Trevor Plouffe | O38: =VLOOKUP($N38,Players!$F$3:$G$1242,2,FALSE) -> 0 | P38: 0 | R38: Andrelton Simmons | S38: =VLOOKUP($R38,Players!$F$3:$G$1242,2,FALSE) -> 0 | T38: 0 | V38: Adam Eaton | W38: =VLOOKUP($V38,Players!$F$3:$G$1242,2,FALSE) -> 0 | X38: 0 | AD38: Rick Porcello | AE38: =VLOOKUP($AD38,Players!$AI$3:$AJ$1425,2,FALSE) -> 0 | AF38: 0 | AL38: OF | AM38: Aaron Judge | AN38: =IF(ISERROR(VLOOKUP($AM38,Players!$F$3:$G$1425,2,FALSE)),(VLOOKUP($AM38,Players!$AI$3:$AJ$1425,2,FALSE)),(VLOOKUP($AM38,Players!$F$3:$G$1425,2,FALSE))) -> 0 | AO38: 0 | AQ38: OF | AR38: Harrison Bader | AS38: =VLOOKUP($AR38,Players!$F$3:$G$1425,2,FALSE) -> 0 | AT38: 0 | BA38: OF | BB38: Harrison Bader | BC38: =VLOOKUP($BB38,Players!$F$3:$G$1425,2,FALSE) -> 0 | BD38: 0 | BF38: LHP | BG38: Adrian Morejon | BH38: =VLOOKUP($BG38,Players!$AI$3:$AJ$1425,2,FALSE) -> 0 | BI38: 0
A39: 38 | B39: Omar Narvaez | C39: =VLOOKUP($B39,Players!$F$3:$G$1242,2,FALSE) -> 0 | D39: 0 | F39: Danny Valencia | G39: =VLOOKUP($F39,Players!$F$3:$G$1242,2,FALSE) -> 0 | H39: 0 | J39: Scooter Gennett | K39: =VLOOKUP($J39,Players!$F$3:$G$1242,2,FALSE) -> 0 | L39: 0 | N39: Wilmer Flores | O39: =VLOOKUP($N39,Players!$F$3:$G$1242,2,FALSE) -> 0 | P39: 0 | R39: Luis Sardinas | S39: =VLOOKUP($R39,Players!$F$3:$G$1242,2,FALSE) -> 0 | T39: 0 | V39: Odubel Herrera | W39: =VLOOKUP($V39,Players!$F$3:$G$1242,2,FALSE) -> 0 | X39: 0 | AD39: Zack Greinke | AE39: =VLOOKUP($AD39,Players!$AI$3:$AJ$1425,2,FALSE) -> 0 | AF39: 0 | AL39: 1B/OF | AM39: Josh Bell | AN39: =IF(ISERROR(VLOOKUP($AM39,Players!$F$3:$G$1425,2,FALSE)),(VLOOKUP($AM39,Players!$AI$3:$AJ$1425,2,FALSE)),(VLOOKUP($AM39,Players!$F$3:$G$1425,2,FALSE))) -> 0 | AO39: 0 | AQ39: OF | AR39: Mickey Moniak | AS39: =VLOOKUP($AR39,Players!$F$3:$G$1425,2,FALSE) -> 0 | AT39: 0 | BA39: 1B | BB39: Rowdy Tellez | BC39: =VLOOKUP($BB39,Players!$F$3:$G$1425,2,FALSE) -> 0 | BD39: 0 | BF39: RHP | BG39: Matt Manning | BH39: =VLOOKUP($BG39,Players!$AI$3:$AJ$1425,2,FALSE) -> 0 | BI39: 0
A40: 39 | F40: Brandon Moss | G40: =VLOOKUP($F40,Players!$F$3:$G$1242,2,FALSE) -> 0 | H40: 0 | J40: Tyler Saladino | K40: =VLOOKUP($J40,Players!$F$3:$G$1242,2,FALSE) -> 0 | L40: 0 | N40: David Freese | O40: =VLOOKUP($N40,Players!$F$3:$G$1242,2,FALSE) -> 0 | P40: 0 | R40: Nick Ahmed | S40: =VLOOKUP($R40,Players!$F$3:$G$1242,2,FALSE) -> 0 | T40: 0 | V40: Leonys Martin | W40: =VLOOKUP($V40,Players!$F$3:$G$1242,2,FALSE) -> 0 | X40: 0 | AD40: Felix Hernandez | AE40: =VLOOKUP($AD40,Players!$AI$3:$AJ$1425,2,FALSE) -> 0 | AF40: 0 | AL40: RHP | AM40: Yadier Alvarez | AN40: =IF(ISERROR(VLOOKUP($AM40,Players!$F$3:$G$1425,2,FALSE)),(VLOOKUP($AM40,Players!$AI$3:$AJ$1425,2,FALSE)),(VLOOKUP($AM40,Players!$F$3:$G$1425,2,FALSE))) -> 0 | AO40: 0 | AQ40: 3B | AR40: Matt Chapman | AS40: =VLOOKUP($AR40,Players!$F$3:$G$1425,2,FALSE) -> 0 | AT40: 0 | BA40: OF | BB40: Corey Ray | BC40: =VLOOKUP($BB40,Players!$F$3:$G$1425,2,FALSE) -> 0 | BD40: 0
A41: 40 | F41: Trevor Plouffe | G41: =VLOOKUP($F41,Players!$F$3:$G$1242,2,FALSE) -> 0 | H41: 0 | J41: Jace Peterson | K41: =VLOOKUP($J41,Players!$F$3:$G$1242,2,FALSE) -> 0 | L41: 0 | N41: Tyler Saladino | O41: =VLOOKUP($N41,Players!$F$3:$G$1242,2,FALSE) -> 0 | P41: 0 | R41: Jordy Mercer | S41: =VLOOKUP($R41,Players!$F$3:$G$1242,2,FALSE) -> 0 | T41: 0 | V41: Ender Inciarte | W41: =VLOOKUP($V41,Players!$F$3:$G$1242,2,FALSE) -> 0 | X41: 0 | AD41: Vincent Velasquez | AE41: =VLOOKUP($AD41,Players!$AI$3:$AJ$1425,2,FALSE) -> 0 | AF41: 0 | AL41: RHP | AM41: Jose de Leon | AN41: =IF(ISERROR(VLOOKUP($AM41,Players!$F$3:$G$1425,2,FALSE)),(VLOOKUP($AM41,Players!$AI$3:$AJ$1425,2,FALSE)),(VLOOKUP($AM41,Players!$F$3:$G$1425,2,FALSE))) -> 0 | AO41: 0 | AQ41: 1B | AR41: Rowdy Tellez | AS41: =VLOOKUP($AR41,Players!$F$3:$G$1425,2,FALSE) -> 0 | AT41: 0 | BA41: 1B | BB41: Rhys Hoskins | BC41: =VLOOKUP($BB41,Players!$F$3:$G$1425,2,FALSE) -> 0 | BD41: 0
A42: 41 | F42: Wilmer Flores | G42: =VLOOKUP($F42,Players!$F$3:$G$1242,2,FALSE) -> 0 | H42: 0 | J42: Whitley Merrifield | K42: =VLOOKUP($J42,Players!$F$3:$G$1242,2,FALSE) -> 0 | L42: 0 | N42: Jung Ho Kang | O42: =VLOOKUP($N42,Players!$F$3:$G$1242,2,FALSE) -> 0 | P42: 0 | R42: Adeiny Hechavarria | S42: =VLOOKUP($R42,Players!$F$3:$G$1242,2,FALSE) -> 0 | T42: 0 | V42: Miguel Sano | W42: =VLOOKUP($V42,Players!$F$3:$G$1242,2,FALSE) -> 0 | X42: 0 | AD42: James Paxton | AE42: =VLOOKUP($AD42,Players!$AI$3:$AJ$1425,2,FALSE) -> 0 | AF42: 0 | AL42: RHP | AM42: Brent Honeywell | AN42: =IF(ISERROR(VLOOKUP($AM42,Players!$F$3:$G$1425,2,FALSE)),(VLOOKUP($AM42,Players!$AI$3:$AJ$1425,2,FALSE)),(VLOOKUP($AM42,Players!$F$3:$G$1425,2,FALSE))) -> 0 | AO42: 0 | AQ42: 3B | AR42: Vladimir Guerrero Jr. | AS42: =VLOOKUP($AR42,Players!$F$3:$G$1425,2,FALSE) -> 0 | AT42: 0 | BA42: C | BB42: Zack Collins | BC42: =VLOOKUP($BB42,Players!$F$3:$G$1425,2,FALSE) -> 0 | BD42: 0
A43: 42 | F43: Mark Reynolds | G43: =VLOOKUP($F43,Players!$F$3:$G$1242,2,FALSE) -> 0 | H43: 0 | J43: Derek Dietrich | K43: =VLOOKUP($J43,Players!$F$3:$G$1242,2,FALSE) -> 0 | L43: 0 | N43: Adonis Garcia | O43: =VLOOKUP($N43,Players!$F$3:$G$1242,2,FALSE) -> 0 | P43: 0 | R43: J.J. Hardy | S43: =VLOOKUP($R43,Players!$F$3:$G$1242,2,FALSE) -> 0 | T43: 0 | V43: Nomar Mazara | W43: =VLOOKUP($V43,Players!$F$3:$G$1242,2,FALSE) -> 0 | X43: 0 | AD43: Jameson Taillon | AE43: =VLOOKUP($AD43,Players!$AI$3:$AJ$1425,2,FALSE) -> 0 | AF43: 0 | AL43: OF | AM43: Ronald Acuna | AN43: =IF(ISERROR(VLOOKUP($AM43,Players!$F$3:$G$1425,2,FALSE)),(VLOOKUP($AM43,Players!$AI$3:$AJ$1425,2,FALSE)),(VLOOKUP($AM43,Players!$F$3:$G$1425,2,FALSE))) -> 0 | AO43: 0 | AQ43: OF | AR43: Corey Ray | AS43: =VLOOKUP($AR43,Players!$F$3:$G$1425,2,FALSE) -> 0 | AT43: 0 | BA43: OF | BB43: Christin Stewart | BC43: =VLOOKUP($BB43,Players!$F$3:$G$1425,2,FALSE) -> 0 | BD43: 0
A44: 43 | F44: Ryan Rua | G44: =VLOOKUP($F44,Players!$F$3:$G$1242,2,FALSE) -> 0 | H44: 0 | J44: Jurickson Profar | K44: =VLOOKUP($J44,Players!$F$3:$G$1242,2,FALSE) -> 0 | L44: 0 | N44: Martin Prado | O44: =VLOOKUP($N44,Players!$F$3:$G$1242,2,FALSE) -> 0 | P44: 0 | V44: Yasmany Tomas | W44: =VLOOKUP($V44,Players!$F$3:$G$1242,2,FALSE) -> 0 | X44: 0 | AD44: Matt Shoemaker | AE44: =VLOOKUP($AD44,Players!$AI$3:$AJ$1425,2,FALSE) -> 0 | AF44: 0 | AL44: 2B/OF | AM44: Ian Happ | AN44: =IF(ISERROR(VLOOKUP($AM44,Players!$F$3:$G$1425,2,FALSE)),(VLOOKUP($AM44,Players!$AI$3:$AJ$1425,2,FALSE)),(VLOOKUP($AM44,Players!$F$3:$G$1425,2,FALSE))) -> 0 | AO44: 0 | AQ44: 1B | AR44: Rhys Hoskins | AS44: =VLOOKUP($AR44,Players!$F$3:$G$1425,2,FALSE) -> 0 | AT44: 0 | BA44: OF | BB44: Ramon Laureano | BC44: =VLOOKUP($BB44,Players!$F$3:$G$1425,2,FALSE) -> 0 | BD44: 0
A45: 44 | F45: David Freese | G45: =VLOOKUP($F45,Players!$F$3:$G$1242,2,FALSE) -> 0 | H45: 0 | J45: Jed Lowrie | K45: =VLOOKUP($J45,Players!$F$3:$G$1242,2,FALSE) -> 0 | L45: 0 | N45: Chase Headley | O45: =VLOOKUP($N45,Players!$F$3:$G$1242,2,FALSE) -> 0 | P45: 0 | V45: Jose Ramirez | W45: =VLOOKUP($V45,Players!$F$3:$G$1242,2,FALSE) -> 0 | X45: 0 | AD45: Carlos Rodon | AE45: =VLOOKUP($AD45,Players!$AI$3:$AJ$1425,2,FALSE) -> 0 | AF45: 0 | AL45: C | AM45: Francisco Mejia | AN45: =IF(ISERROR(VLOOKUP($AM45,Players!$F$3:$G$1425,2,FALSE)),(VLOOKUP($AM45,Players!$AI$3:$AJ$1425,2,FALSE)),(VLOOKUP($AM45,Players!$F$3:$G$1425,2,FALSE))) -> 0 | AO45: 0 | AQ45: OF | AR45: Jesse Winker | AS45: =VLOOKUP($AR45,Players!$F$3:$G$1425,2,FALSE) -> 0 | AT45: 0 | BA45: SS | BB45: Kevin Newman | BC45: =VLOOKUP($BB45,Players!$F$3:$G$1425,2,FALSE) -> 0 | BD45: 0
A46: 45 | F46: A.J. Reed | G46: =VLOOKUP($F46,Players!$F$3:$G$1242,2,FALSE) -> 0 | H46: 0 | N46: David Wright | O46: =VLOOKUP($N46,Players!$F$3:$G$1242,2,FALSE) -> 0 | P46: 0 | V46: Keon Broxton | W46: =VLOOKUP($V46,Players!$F$3:$G$1242,2,FALSE) -> 0 | X46: 0 | AD46: Joe Ross | AE46: =VLOOKUP($AD46,Players!$AI$3:$AJ$1425,2,FALSE) -> 0 | AF46: 0 | AL46: 2B/SS | AM46: Isan Diaz | AN46: =IF(ISERROR(VLOOKUP($AM46,Players!$F$3:$G$1425,2,FALSE)),(VLOOKUP($AM46,Players!$AI$3:$AJ$1425,2,FALSE)),(VLOOKUP($AM46,Players!$F$3:$G$1425,2,FALSE))) -> 0 | AO46: 0 | AQ46: C | AR46: Zack Collins | AS46: =VLOOKUP($AR46,Players!$F$3:$G$1425,2,FALSE) -> 0 | AT46: 0 | BA46: OF | BB46: Greg Allen | BC46: =VLOOKUP($BB46,Players!$F$3:$G$1425,2,FALSE) -> 0 | BD46: 0
A47: 46 | F47: Gerardo Parra | G47: =VLOOKUP($F47,Players!$F$3:$G$1242,2,FALSE) -> 0 | H47: 0 | N47: Jurickson Profar | O47: =VLOOKUP($N47,Players!$F$3:$G$1242,2,FALSE) -> 0 | P47: 0 | V47: Randal Grichuk | W47: =VLOOKUP($V47,Players!$F$3:$G$1242,2,FALSE) -> 0 | X47: 0 | AD47: Michael Fulmer | AE47: =VLOOKUP($AD47,Players!$AI$3:$AJ$1425,2,FALSE) -> 0 | AF47: 0 | AL47: SS | AM47: Franklin Barreto | AN47: =IF(ISERROR(VLOOKUP($AM47,Players!$F$3:$G$1425,2,FALSE)),(VLOOKUP($AM47,Players!$AI$3:$AJ$1425,2,FALSE)),(VLOOKUP($AM47,Players!$F$3:$G$1425,2,FALSE))) -> 0 | AO47: 0 | AQ47: 1B | AR47: Bobby Bradley | AS47: =VLOOKUP($AR47,Players!$F$3:$G$1425,2,FALSE) -> 0 | AT47: 0 | BB47: 2019 | BC47: =VLOOKUP($BB47,Players!$F$3:$G$1425,2,FALSE) -> 
A48: 47 | F48: Derek Dietrich | G48: =VLOOKUP($F48,Players!$F$3:$G$1242,2,FALSE) -> 0 | H48: 0 | N48: Yunel Escobar | O48: =VLOOKUP($N48,Players!$F$3:$G$1242,2,FALSE) -> 0 | P48: 0 | V48: Kole Calhoun | W48: =VLOOKUP($V48,Players!$F$3:$G$1242,2,FALSE) -> 0 | X48: 0 | AD48: Robbie Ray | AE48: =VLOOKUP($AD48,Players!$AI$3:$AJ$1425,2,FALSE) -> 0 | AF48: 0 | AL48: OF | AM48: Alex Verdugo | AN48: =IF(ISERROR(VLOOKUP($AM48,Players!$F$3:$G$1425,2,FALSE)),(VLOOKUP($AM48,Players!$AI$3:$AJ$1425,2,FALSE)),(VLOOKUP($AM48,Players!$F$3:$G$1425,2,FALSE))) -> 0 | AO48: 0 | AQ48: OF | AR48: Anthony Alford | AS48: =VLOOKUP($AR48,Players!$F$3:$G$1425,2,FALSE) -> 0 | AT48: 0 | BA48: OF | BB48: Victor Robles | BC48: =VLOOKUP($BB48,Players!$F$3:$G$1425,2,FALSE) -> 0 | BD48: 0
A49: 48 | F49: Jurickson Profar | G49: =VLOOKUP($F49,Players!$F$3:$G$1242,2,FALSE) -> 0 | H49: 0 | V49: Marcell Ozuna | W49: =VLOOKUP($V49,Players!$F$3:$G$1242,2,FALSE) -> 0 | X49: 0 | AD49: Jake Odorizzi | AE49: =VLOOKUP($AD49,Players!$AI$3:$AJ$1425,2,FALSE) -> 0 | AF49: 0 | AL49: RHP | AM49: Luke Weaver | AN49: =IF(ISERROR(VLOOKUP($AM49,Players!$F$3:$G$1425,2,FALSE)),(VLOOKUP($AM49,Players!$AI$3:$AJ$1425,2,FALSE)),(VLOOKUP($AM49,Players!$F$3:$G$1425,2,FALSE))) -> 0 | AO49: 0 | AQ49: SS | AR49: Kevin Maitan | AS49: =VLOOKUP($AR49,Players!$F$3:$G$1425,2,FALSE) -> 0 | AT49: 0 | BA49: OF | BB49: Eloy Jimenez | BC49: =VLOOKUP($BB49,Players!$F$3:$G$1425,2,FALSE) -> 0 | BD49: 0
A50: 49 | F50: Tyler Austin | G50: =VLOOKUP($F50,Players!$F$3:$G$1242,2,FALSE) -> 0 | H50: 0 | V50: Lorenzo Cain | W50: =VLOOKUP($V50,Players!$F$3:$G$1242,2,FALSE) -> 0 | X50: 0 | AD50: Julio Teheran | AE50: =VLOOKUP($AD50,Players!$AI$3:$AJ$1425,2,FALSE) -> 0 | AF50: 0 | AL50: OF | AM50: Harrison Bader | AN50: =IF(ISERROR(VLOOKUP($AM50,Players!$F$3:$G$1425,2,FALSE)),(VLOOKUP($AM50,Players!$AI$3:$AJ$1425,2,FALSE)),(VLOOKUP($AM50,Players!$F$3:$G$1425,2,FALSE))) -> 0 | AO50: 0 | AQ50: OF | AR50: Blake Rutherford | AS50: =VLOOKUP($AR50,Players!$F$3:$G$1425,2,FALSE) -> 0 | AT50: 0 | BA50: SS/2B | BB50: Brendan Rodgers | BC50: =VLOOKUP($BB50,Players!$F$3:$G$1425,2,FALSE) -> 0 | BD50: 0
A51: 50 | F51: Yonder Alonso | G51: =VLOOKUP($F51,Players!$F$3:$G$1242,2,FALSE) -> 0 | H51: 0 | V51: Joc Pederson | W51: =VLOOKUP($V51,Players!$F$3:$G$1242,2,FALSE) -> 0 | X51: 0 | AD51: Drew Smyly | AE51: =VLOOKUP($AD51,Players!$AI$3:$AJ$1425,2,FALSE) -> 0 | AF51: 0 | AL51: OF | AM51: Mickey Moniak | AN51: =IF(ISERROR(VLOOKUP($AM51,Players!$F$3:$G$1425,2,FALSE)),(VLOOKUP($AM51,Players!$AI$3:$AJ$1425,2,FALSE)),(VLOOKUP($AM51,Players!$F$3:$G$1425,2,FALSE))) -> 0 | AO51: 0 | AQ51: OF | AR51: Christin Stewart | AS51: =VLOOKUP($AR51,Players!$F$3:$G$1425,2,FALSE) -> 0 | AT51: 0 | BA51: 3B | BB51: Rafael Devers | BC51: =VLOOKUP($BB51,Players!$F$3:$G$1425,2,FALSE) -> 0 | BD51: 0
A52: 51 | V52: Willson Contreras | W52: =VLOOKUP($V52,Players!$F$3:$G$1242,2,FALSE) -> 0 | X52: 0 | AD52: Jason Hammel | AE52: =VLOOKUP($AD52,Players!$AI$3:$AJ$1425,2,FALSE) -> 0 | AF52: 0 | AL52: 3B | AM52: Matt Chapman | AN52: =IF(ISERROR(VLOOKUP($AM52,Players!$F$3:$G$1425,2,FALSE)),(VLOOKUP($AM52,Players!$AI$3:$AJ$1425,2,FALSE)),(VLOOKUP($AM52,Players!$F$3:$G$1425,2,FALSE))) -> 0 | AO52: 0 | AQ52: OF | AR52: Leody Taveras | AS52: =VLOOKUP($AR52,Players!$F$3:$G$1425,2,FALSE) -> 0 | AT52: 0 | BA52: OF | BB52: Kyle Tucker | BC52: =VLOOKUP($BB52,Players!$F$3:$G$1425,2,FALSE) -> 0 | BD52: 0
A53: 52 | V53: Jay Bruce | W53: =VLOOKUP($V53,Players!$F$3:$G$1242,2,FALSE) -> 0 | X53: 0 | AD53: J.A. Happ | AE53: =VLOOKUP($AD53,Players!$AI$3:$AJ$1425,2,FALSE) -> 0 | AF53: 0 | AL53: 1B | AM53: Rowdy Tellez | AN53: =IF(ISERROR(VLOOKUP($AM53,Players!$F$3:$G$1425,2,FALSE)),(VLOOKUP($AM53,Players!$AI$3:$AJ$1425,2,FALSE)),(VLOOKUP($AM53,Players!$F$3:$G$1425,2,FALSE))) -> 0 | AO53: 0 | AQ53: 1B | AR53: Casey Gillaspie | AS53: =VLOOKUP($AR53,Players!$F$3:$G$1425,2,FALSE) -> 0 | AT53: 0 | BA53: OF | BB53: Kyle Lewis | BC53: =VLOOKUP($BB53,Players!$F$3:$G$1425,2,FALSE) -> 0 | BD53: 0
A54: 53 | V54: Carlos Gomez | W54: =VLOOKUP($V54,Players!$F$3:$G$1242,2,FALSE) -> 0 | X54: 0 | AD54: Steven Matz | AE54: =VLOOKUP($AD54,Players!$AI$3:$AJ$1425,2,FALSE) -> 0 | AF54: 0 | AL54: RHP | AM54: Triston McKenzie | AN54: =IF(ISERROR(VLOOKUP($AM54,Players!$F$3:$G$1425,2,FALSE)),(VLOOKUP($AM54,Players!$AI$3:$AJ$1425,2,FALSE)),(VLOOKUP($AM54,Players!$F$3:$G$1425,2,FALSE))) -> 0 | AO54: 0 | AQ54: 1B | AR54: Dan Vogelbach | AS54: =VLOOKUP($AR54,Players!$F$3:$G$1425,2,FALSE) -> 0 | AT54: 0 | BA54: OF | BB54: Ronald Acuna | BC54: =VLOOKUP($BB54,Players!$F$3:$G$1425,2,FALSE) -> 0 | BD54: 0
A55: 54 | V55: Ian Desmond | W55: =VLOOKUP($V55,Players!$F$3:$G$1242,2,FALSE) -> 0 | X55: 0 | AD55: Matt Harvey | AE55: =VLOOKUP($AD55,Players!$AI$3:$AJ$1425,2,FALSE) -> 0 | AF55: 0 | AL55: 3B | AM55: Vladimir Guerrero Jr. | AN55: =IF(ISERROR(VLOOKUP($AM55,Players!$F$3:$G$1425,2,FALSE)),(VLOOKUP($AM55,Players!$AI$3:$AJ$1425,2,FALSE)),(VLOOKUP($AM55,Players!$F$3:$G$1425,2,FALSE))) -> 0 | AO55: 0 | AQ55: C | AR55: Chance Sisco | AS55: =VLOOKUP($AR55,Players!$F$3:$G$1425,2,FALSE) -> 0 | AT55: 0 | BA55: C | BB55: Francisco Mejia | BC55: =VLOOKUP($BB55,Players!$F$3:$G$1425,2,FALSE) -> 0 | BD55: 0
A56: 55 | V56: Yasiel Puig | W56: =VLOOKUP($V56,Players!$F$3:$G$1242,2,FALSE) -> 0 | X56: 0 | AD56: Jeff Samardzija | AE56: =VLOOKUP($AD56,Players!$AI$3:$AJ$1425,2,FALSE) -> 0 | AF56: 0 | AL56: OF | AM56: Corey Ray | AN56: =IF(ISERROR(VLOOKUP($AM56,Players!$F$3:$G$1425,2,FALSE)),(VLOOKUP($AM56,Players!$AI$3:$AJ$1425,2,FALSE)),(VLOOKUP($AM56,Players!$F$3:$G$1425,2,FALSE))) -> 0 | AO56: 0 | AQ56: 3B | AR56: Austin Riley | AS56: =VLOOKUP($AR56,Players!$F$3:$G$1425,2,FALSE) -> 0 | AT56: 0 | BA56: 2B/SS | BB56: Isan Diaz | BC56: =VLOOKUP($BB56,Players!$F$3:$G$1425,2,FALSE) -> 0 | BD56: 0
A57: 56 | V57: Curtis Granderson | W57: =VLOOKUP($V57,Players!$F$3:$G$1242,2,FALSE) -> 0 | X57: 0 | AD57: Sean Manaea | AE57: =VLOOKUP($AD57,Players!$AI$3:$AJ$1425,2,FALSE) -> 0 | AF57: 0 | AL57: LHP | AM57: Jason Groome | AN57: =IF(ISERROR(VLOOKUP($AM57,Players!$F$3:$G$1425,2,FALSE)),(VLOOKUP($AM57,Players!$AI$3:$AJ$1425,2,FALSE)),(VLOOKUP($AM57,Players!$F$3:$G$1425,2,FALSE))) -> 0 | AO57: 0 | AQ57: OF | AR57: Ramon Laureano | AS57: =VLOOKUP($AR57,Players!$F$3:$G$1425,2,FALSE) -> 0 | AT57: 0 | BA57: 1B | BB57: Bobby Bradley | BC57: =VLOOKUP($BB57,Players!$F$3:$G$1425,2,FALSE) -> 0 | BD57: 0
A58: 57 | V58: Ben Zobrist | W58: =VLOOKUP($V58,Players!$F$3:$G$1242,2,FALSE) -> 0 | X58: 0 | AD58: Dallas Keuchel | AE58: =VLOOKUP($AD58,Players!$AI$3:$AJ$1425,2,FALSE) -> 0 | AF58: 0 | AL58: 1B | AM58: Rhys Hoskins | AN58: =IF(ISERROR(VLOOKUP($AM58,Players!$F$3:$G$1425,2,FALSE)),(VLOOKUP($AM58,Players!$AI$3:$AJ$1425,2,FALSE)),(VLOOKUP($AM58,Players!$F$3:$G$1425,2,FALSE))) -> 0 | AO58: 0 | AQ58: SS | AR58: Jorge Mateo | AS58: =VLOOKUP($AR58,Players!$F$3:$G$1425,2,FALSE) -> 0 | AT58: 0 | BA58: OF | BB58: Anthony Alford | BC58: =VLOOKUP($BB58,Players!$F$3:$G$1425,2,FALSE) -> 0 | BD58: 0
A59: 58 | V59: Carlos Beltran | W59: =VLOOKUP($V59,Players!$F$3:$G$1242,2,FALSE) -> 0 | X59: 0 | AD59: Drew Pomeranz | AE59: =VLOOKUP($AD59,Players!$AI$3:$AJ$1425,2,FALSE) -> 0 | AF59: 0 | AL59: OF | AM59: Jesse Winker | AN59: =IF(ISERROR(VLOOKUP($AM59,Players!$F$3:$G$1425,2,FALSE)),(VLOOKUP($AM59,Players!$AI$3:$AJ$1425,2,FALSE)),(VLOOKUP($AM59,Players!$F$3:$G$1425,2,FALSE))) -> 0 | AO59: 0 | AQ59: SS | AR59: Kevin Newman | AS59: =VLOOKUP($AR59,Players!$F$3:$G$1425,2,FALSE) -> 0 | AT59: 0 | BA59: 3B | BB59: Austin Riley | BC59: =VLOOKUP($BB59,Players!$F$3:$G$1425,2,FALSE) -> 0 | BD59: 0
A60: 59 | V60: Matt Holliday | W60: =VLOOKUP($V60,Players!$F$3:$G$1242,2,FALSE) -> 0 | X60: 0 | AD60: Hisashi Iwakuma | AE60: =VLOOKUP($AD60,Players!$AI$3:$AJ$1425,2,FALSE) -> 0 | AF60: 0 | AL60: RHP | AM60: Erick Fedde | AN60: =IF(ISERROR(VLOOKUP($AM60,Players!$F$3:$G$1425,2,FALSE)),(VLOOKUP($AM60,Players!$AI$3:$AJ$1425,2,FALSE)),(VLOOKUP($AM60,Players!$F$3:$G$1425,2,FALSE))) -> 0 | AO60: 0 | AQ60: SS | AR60: Delvin Perez | AS60: =VLOOKUP($AR60,Players!$F$3:$G$1425,2,FALSE) -> 0 | AT60: 0 | BA60: SS | BB60: Jorge Mateo | BC60: =VLOOKUP($BB60,Players!$F$3:$G$1425,2,FALSE) -> 0 | BD60: 0
A61: 60 | V61: Michael Brantley | W61: =VLOOKUP($V61,Players!$F$3:$G$1242,2,FALSE) -> 0 | X61: 0 | AD61: Ian Kennedy | AE61: =VLOOKUP($AD61,Players!$AI$3:$AJ$1425,2,FALSE) -> 0 | AF61: 0 | AL61: C | AM61: Zack Collins | AN61: =IF(ISERROR(VLOOKUP($AM61,Players!$F$3:$G$1425,2,FALSE)),(VLOOKUP($AM61,Players!$AI$3:$AJ$1425,2,FALSE)),(VLOOKUP($AM61,Players!$F$3:$G$1425,2,FALSE))) -> 0 | AO61: 0 | AQ61: OF | AR61: Dylan Cozens | AS61: =VLOOKUP($AR61,Players!$F$3:$G$1425,2,FALSE) -> 0 | AT61: 0 | BA61: OF | BB61: Luis Alexander Basabe | BC61: =VLOOKUP($BB61,Players!$F$3:$G$1425,2,FALSE) -> 0 | BD61: 0
A62: 61 | V62: Jacoby Ellsbury | W62: =VLOOKUP($V62,Players!$F$3:$G$1242,2,FALSE) -> 0 | X62: 0 | AD62: Collin McHugh | AE62: =VLOOKUP($AD62,Players!$AI$3:$AJ$1425,2,FALSE) -> 0 | AF62: 0 | AL62: RHP | AM62: Robert Gsellman | AN62: =IF(ISERROR(VLOOKUP($AM62,Players!$F$3:$G$1425,2,FALSE)),(VLOOKUP($AM62,Players!$AI$3:$AJ$1425,2,FALSE)),(VLOOKUP($AM62,Players!$F$3:$G$1425,2,FALSE))) -> 0 | AO62: 0 | AQ62: OF | AR62: Luis Alexander Basabe | AS62: =VLOOKUP($AR62,Players!$F$3:$G$1425,2,FALSE) -> 0 | AT62: 0 | BA62: OF | BB62: Jahmai Jones | BC62: =VLOOKUP($BB62,Players!$F$3:$G$1425,2,FALSE) -> 0 | BD62: 0
A63: 62 | V63: Rajai Davis | W63: =VLOOKUP($V63,Players!$F$3:$G$1242,2,FALSE) -> 0 | X63: 0 | AD63: Gio Gonzalez | AE63: =VLOOKUP($AD63,Players!$AI$3:$AJ$1425,2,FALSE) -> 0 | AF63: 0 | AL63: 1B | AM63: Bobby Bradley | AN63: =IF(ISERROR(VLOOKUP($AM63,Players!$F$3:$G$1425,2,FALSE)),(VLOOKUP($AM63,Players!$AI$3:$AJ$1425,2,FALSE)),(VLOOKUP($AM63,Players!$F$3:$G$1425,2,FALSE))) -> 0 | AO63: 0 | AQ63: 3B | AR63: Fernando Tatis Jr. | AS63: =VLOOKUP($AR63,Players!$F$3:$G$1425,2,FALSE) -> 0 | AT63: 0 | BB63: 2020 | BC63: =VLOOKUP($BB63,Players!$F$3:$G$1425,2,FALSE) -> 
A64: 63 | V64: Jose Peraza | W64: =VLOOKUP($V64,Players!$F$3:$G$1242,2,FALSE) -> 0 | X64: 0 | AD64: Marco Estrada | AE64: =VLOOKUP($AD64,Players!$AI$3:$AJ$1425,2,FALSE) -> 0 | AF64: 0 | AL64: OF | AM64: Anthony Alford | AN64: =IF(ISERROR(VLOOKUP($AM64,Players!$F$3:$G$1425,2,FALSE)),(VLOOKUP($AM64,Players!$AI$3:$AJ$1425,2,FALSE)),(VLOOKUP($AM64,Players!$F$3:$G$1425,2,FALSE))) -> 0 | AO64: 0 | AQ64: OF | AR64: Greg Allen | AS64: =VLOOKUP($AR64,Players!$F$3:$G$1425,2,FALSE) -> 0 | AT64: 0 | BA64: OF | BB64: Mickey Moniak | BC64: =VLOOKUP($BB64,Players!$F$3:$G$1425,2,FALSE) -> 0 | BD64: 0
A65: 64 | V65: Travis Jankowski | W65: =VLOOKUP($V65,Players!$F$3:$G$1242,2,FALSE) -> 0 | X65: 0 | AD65: Jaime Garcia | AE65: =VLOOKUP($AD65,Players!$AI$3:$AJ$1425,2,FALSE) -> 0 | AF65: 0 | AL65: SS | AM65: Kevin Maitan | AN65: =IF(ISERROR(VLOOKUP($AM65,Players!$F$3:$G$1425,2,FALSE)),(VLOOKUP($AM65,Players!$AI$3:$AJ$1425,2,FALSE)),(VLOOKUP($AM65,Players!$F$3:$G$1425,2,FALSE))) -> 0 | AO65: 0 | AQ65: OF | AR65: Mitch Haniger | AS65: =VLOOKUP($AR65,Players!$F$3:$G$1425,2,FALSE) -> 0 | AT65: 0 | BA65: OF | BB65: Blake Rutherford | BC65: =VLOOKUP($BB65,Players!$F$3:$G$1425,2,FALSE) -> 0 | BD65: 0
A66: 65 | V66: Hernan Perez | W66: =VLOOKUP($V66,Players!$F$3:$G$1242,2,FALSE) -> 0 | X66: 0 | AD66: Jeremy Hellickson | AE66: =VLOOKUP($AD66,Players!$AI$3:$AJ$1425,2,FALSE) -> 0 | AF66: 0 | AL66: LHP | AM66: Kolby Allard | AN66: =IF(ISERROR(VLOOKUP($AM66,Players!$F$3:$G$1425,2,FALSE)),(VLOOKUP($AM66,Players!$AI$3:$AJ$1425,2,FALSE)),(VLOOKUP($AM66,Players!$F$3:$G$1425,2,FALSE))) -> 0 | AO66: 0 | AQ66: OF | AR66: Juan Soto | AS66: =VLOOKUP($AR66,Players!$F$3:$G$1425,2,FALSE) -> 0 | AT66: 0 | BA66: OF | BB66: Leody Taveras | BC66: =VLOOKUP($BB66,Players!$F$3:$G$1425,2,FALSE) -> 0 | BD66: =IF(BC66>0,1,0) -> 0
A67: 66 | V67: Manuel Margot | W67: =VLOOKUP($V67,Players!$F$3:$G$1242,2,FALSE) -> 0 | X67: =IF(W67>0,1,0) -> 0 | AD67: Jerad Eickhoff | AE67: =VLOOKUP($AD67,Players!$AI$3:$AJ$1425,2,FALSE) -> 0 | AF67: =IF(AE67>0,1,0) -> 0 | AL67: RHP | AM67: Dylan Cease | AN67: =IF(ISERROR(VLOOKUP($AM67,Players!$F$3:$G$1425,2,FALSE)),(VLOOKUP($AM67,Players!$AI$3:$AJ$1425,2,FALSE)),(VLOOKUP($AM67,Players!$F$3:$G$1425,2,FALSE))) -> 0 | AO67: =IF(AN67>0,1,0) -> 0 | AQ67: OF | AR67: Jahmai Jones | AS67: =VLOOKUP($AR67,Players!$F$3:$G$1425,2,FALSE) -> 0 | AT67: =IF(AS67>0,1,0) -> 0 | BA67: OF | BB67: Jahmai Jones | BC67: =VLOOKUP($BB67,Players!$F$3:$G$1425,2,FALSE) -> 0 | BD67: 0
A68: 67 | V68: Charlie Tilson | W68: =VLOOKUP($V68,Players!$F$3:$G$1242,2,FALSE) -> 0 | X68: 0 | AD68: Lance Lynn | AE68: =VLOOKUP($AD68,Players!$AI$3:$AJ$1425,2,FALSE) -> 0 | AF68: 0 | AL68: LHP | AM68: Yohander Mendez | AN68: =IF(ISERROR(VLOOKUP($AM68,Players!$F$3:$G$1425,2,FALSE)),(VLOOKUP($AM68,Players!$AI$3:$AJ$1425,2,FALSE)),(VLOOKUP($AM68,Players!$F$3:$G$1425,2,FALSE))) -> 0 | AO68: 0 | BB68: 2021 | BC68: =VLOOKUP($BB68,Players!$F$3:$G$1425,2,FALSE) ->  | BD68: =IF(BC68>0,1,0) -> 
A69: 68 | V69: Jarrod Dyson | W69: =VLOOKUP($V69,Players!$F$3:$G$1242,2,FALSE) -> 0 | X69: 0 | AD69: Chris Tillman | AE69: =VLOOKUP($AD69,Players!$AI$3:$AJ$1425,2,FALSE) -> 0 | AF69: 0 | AL69: LHP | AM69: Justus Sheffield | AN69: =IF(ISERROR(VLOOKUP($AM69,Players!$F$3:$G$1425,2,FALSE)),(VLOOKUP($AM69,Players!$AI$3:$AJ$1425,2,FALSE)),(VLOOKUP($AM69,Players!$F$3:$G$1425,2,FALSE))) -> 0 | AO69: 0 | BA69: 3B | BB69: Vladimir Guerrero Jr. | BC69: =VLOOKUP($BB69,Players!$F$3:$G$1425,2,FALSE) -> 0 | BD69: 0
A70: 69 | V70: Aaron Judge | W70: =VLOOKUP($V70,Players!$F$3:$G$1242,2,FALSE) -> 0 | X70: 0 | AD70: Ivan Nova | AE70: =VLOOKUP($AD70,Players!$AI$3:$AJ$1425,2,FALSE) -> 0 | AF70: 0 | AL70: OF | AM70: Blake Rutherford | AN70: =IF(ISERROR(VLOOKUP($AM70,Players!$F$3:$G$1425,2,FALSE)),(VLOOKUP($AM70,Players!$AI$3:$AJ$1425,2,FALSE)),(VLOOKUP($AM70,Players!$F$3:$G$1425,2,FALSE))) -> 0 | AO70: 0 | BA70: SS | BB70: Kevin Maitan | BC70: =VLOOKUP($BB70,Players!$F$3:$G$1425,2,FALSE) -> 0 | BD70: 0
A71: 70 | V71: David Peralta | W71: =VLOOKUP($V71,Players!$F$3:$G$1242,2,FALSE) -> 0 | X71: 0 | AD71: Robert Gsellman | AE71: =VLOOKUP($AD71,Players!$AI$3:$AJ$1425,2,FALSE) -> 0 | AF71: 0 | AL71: OF | AM71: Christin Stewart | AN71: =IF(ISERROR(VLOOKUP($AM71,Players!$F$3:$G$1425,2,FALSE)),(VLOOKUP($AM71,Players!$AI$3:$AJ$1425,2,FALSE)),(VLOOKUP($AM71,Players!$F$3:$G$1425,2,FALSE))) -> 0 | AO71: 0 | BA71: SS | BB71: Delvin Perez | BC71: =VLOOKUP($BB71,Players!$F$3:$G$1425,2,FALSE) -> 0 | BD71: 0
A72: 71 | V72: Jorge Soler | W72: =VLOOKUP($V72,Players!$F$3:$G$1242,2,FALSE) -> 0 | X72: 0 | AD72: Alex Cobb | AE72: =VLOOKUP($AD72,Players!$AI$3:$AJ$1425,2,FALSE) -> 0 | AF72: 0 | AL72: LHP | AM72: A.J. Puk | AN72: =IF(ISERROR(VLOOKUP($AM72,Players!$F$3:$G$1425,2,FALSE)),(VLOOKUP($AM72,Players!$AI$3:$AJ$1425,2,FALSE)),(VLOOKUP($AM72,Players!$F$3:$G$1425,2,FALSE))) -> 0 | AO72: 0 | BA72: 3B | BB72: Fernando Tatis Jr. | BC72: =VLOOKUP($BB72,Players!$F$3:$G$1425,2,FALSE) -> 0 | BD72: 0
A73: 72 | V73: Domingo Santana | W73: =VLOOKUP($V73,Players!$F$3:$G$1242,2,FALSE) -> 0 | X73: 0 | AD73: Matt Moore | AE73: =VLOOKUP($AD73,Players!$AI$3:$AJ$1425,2,FALSE) -> 0 | AF73: 0 | AL73: OF | AM73: Leody Taveras | AN73: =IF(ISERROR(VLOOKUP($AM73,Players!$F$3:$G$1425,2,FALSE)),(VLOOKUP($AM73,Players!$AI$3:$AJ$1425,2,FALSE)),(VLOOKUP($AM73,Players!$F$3:$G$1425,2,FALSE))) -> 0 | AO73: 0 | BA73: OF | BB73: Juan Soto | BC73: =VLOOKUP($BB73,Players!$F$3:$G$1425,2,FALSE) -> 0 | BD73: 0
A74: 73 | V74: Hunter Renfroe | W74: =VLOOKUP($V74,Players!$F$3:$G$1242,2,FALSE) -> 0 | X74: 0 | AD74: Mike Montgomery | AE74: =VLOOKUP($AD74,Players!$AI$3:$AJ$1425,2,FALSE) -> 0 | AF74: 0 | AL74: RHP | AM74: Sean-Reid Foley | AN74: =IF(ISERROR(VLOOKUP($AM74,Players!$F$3:$G$1425,2,FALSE)),(VLOOKUP($AM74,Players!$AI$3:$AJ$1425,2,FALSE)),(VLOOKUP($AM74,Players!$F$3:$G$1425,2,FALSE))) -> 0 | AO74: 0
A75: 74 | V75: Josh Bell | W75: =VLOOKUP($V75,Players!$F$3:$G$1242,2,FALSE) -> 0 | X75: 0 | AD75: Julio Urias | AE75: =VLOOKUP($AD75,Players!$AI$3:$AJ$1425,2,FALSE) -> 0 | AF75: 0 | AL75: 1B | AM75: Casey Gillaspie | AN75: =IF(ISERROR(VLOOKUP($AM75,Players!$F$3:$G$1425,2,FALSE)),(VLOOKUP($AM75,Players!$AI$3:$AJ$1425,2,FALSE)),(VLOOKUP($AM75,Players!$F$3:$G$1425,2,FALSE))) -> 0 | AO75: 0
A76: 75 | V76: Kevin Kiermaier | W76: =VLOOKUP($V76,Players!$F$3:$G$1242,2,FALSE) -> 0 | X76: 0 | AD76: Blake Snell | AE76: =VLOOKUP($AD76,Players!$AI$3:$AJ$1425,2,FALSE) -> 0 | AF76: 0 | AL76: LHP | AM76: Luiz Gohara | AN76: =IF(ISERROR(VLOOKUP($AM76,Players!$F$3:$G$1425,2,FALSE)),(VLOOKUP($AM76,Players!$AI$3:$AJ$1425,2,FALSE)),(VLOOKUP($AM76,Players!$F$3:$G$1425,2,FALSE))) -> 0 | AO76: 0
A77: 76 | V77: Shin-Soo Choo | W77: =VLOOKUP($V77,Players!$F$3:$G$1242,2,FALSE) -> 0 | X77: 0 | AD77: Mike Foltynewicz | AE77: =VLOOKUP($AD77,Players!$AI$3:$AJ$1425,2,FALSE) -> 0 | AF77: 0 | AL77: 1B | AM77: Dan Vogelbach | AN77: =IF(ISERROR(VLOOKUP($AM77,Players!$F$3:$G$1425,2,FALSE)),(VLOOKUP($AM77,Players!$AI$3:$AJ$1425,2,FALSE)),(VLOOKUP($AM77,Players!$F$3:$G$1425,2,FALSE))) -> 0 | AO77: 0
A78: 77 | V78: Kevin Pillar | W78: =VLOOKUP($V78,Players!$F$3:$G$1242,2,FALSE) -> 0 | X78: 0 | AD78: Daniel Norris | AE78: =VLOOKUP($AD78,Players!$AI$3:$AJ$1425,2,FALSE) -> 0 | AF78: 0 | AL78: C | AM78: Chance Sisco | AN78: =IF(ISERROR(VLOOKUP($AM78,Players!$F$3:$G$1425,2,FALSE)),(VLOOKUP($AM78,Players!$AI$3:$AJ$1425,2,FALSE)),(VLOOKUP($AM78,Players!$F$3:$G$1425,2,FALSE))) -> 0 | AO78: 0
A79: 78 | V79: Cameron Maybin | W79: =VLOOKUP($V79,Players!$F$3:$G$1242,2,FALSE) -> 0 | X79: 0 | AD79: Michael Wacha | AE79: =VLOOKUP($AD79,Players!$AI$3:$AJ$1425,2,FALSE) -> 0 | AF79: 0 | AL79: 3B | AM79: Austin Riley | AN79: =IF(ISERROR(VLOOKUP($AM79,Players!$F$3:$G$1425,2,FALSE)),(VLOOKUP($AM79,Players!$AI$3:$AJ$1425,2,FALSE)),(VLOOKUP($AM79,Players!$F$3:$G$1425,2,FALSE))) -> 0 | AO79: 0
A80: 79 | V80: Josh Reddick | W80: =VLOOKUP($V80,Players!$F$3:$G$1242,2,FALSE) -> 0 | X80: 0 | AD80: Adam Conley | AE80: =VLOOKUP($AD80,Players!$AI$3:$AJ$1425,2,FALSE) -> 0 | AF80: 0 | AL80: OF | AM80: Ramon Laureano | AN80: =IF(ISERROR(VLOOKUP($AM80,Players!$F$3:$G$1425,2,FALSE)),(VLOOKUP($AM80,Players!$AI$3:$AJ$1425,2,FALSE)),(VLOOKUP($AM80,Players!$F$3:$G$1425,2,FALSE))) -> 0 | AO80: 0
A81: 80 | V81: Jason Heyward | W81: =VLOOKUP($V81,Players!$F$3:$G$1242,2,FALSE) -> 0 | X81: 0 | AD81: Tyler Skaggs | AE81: =VLOOKUP($AD81,Players!$AI$3:$AJ$1425,2,FALSE) -> 0 | AF81: 0 | AL81: SS | AM81: Jorge Mateo | AN81: =IF(ISERROR(VLOOKUP($AM81,Players!$F$3:$G$1425,2,FALSE)),(VLOOKUP($AM81,Players!$AI$3:$AJ$1425,2,FALSE)),(VLOOKUP($AM81,Players!$F$3:$G$1425,2,FALSE))) -> 0 | AO81: 0
A82: 81 | V82: Brett Gardner | W82: =VLOOKUP($V82,Players!$F$3:$G$1242,2,FALSE) -> 0 | X82: 0 | AD82: Dylan Bundy | AE82: =VLOOKUP($AD82,Players!$AI$3:$AJ$1425,2,FALSE) -> 0 | AF82: 0 | AL82: LHP | AM82: Thomas Szapucki | AN82: =IF(ISERROR(VLOOKUP($AM82,Players!$F$3:$G$1425,2,FALSE)),(VLOOKUP($AM82,Players!$AI$3:$AJ$1425,2,FALSE)),(VLOOKUP($AM82,Players!$F$3:$G$1425,2,FALSE))) -> 0 | AO82: 0
A83: 82 | V83: Michael Saunders | W83: =VLOOKUP($V83,Players!$F$3:$G$1242,2,FALSE) -> 0 | X83: 0 | AD83: Luis Severino | AE83: =VLOOKUP($AD83,Players!$AI$3:$AJ$1425,2,FALSE) -> 0 | AF83: 0 | AL83: LHP | AM83: Braxton Garrett | AN83: =IF(ISERROR(VLOOKUP($AM83,Players!$F$3:$G$1425,2,FALSE)),(VLOOKUP($AM83,Players!$AI$3:$AJ$1425,2,FALSE)),(VLOOKUP($AM83,Players!$F$3:$G$1425,2,FALSE))) -> 0 | AO83: 0
A84: 83 | V84: Avisail Garcia | W84: =VLOOKUP($V84,Players!$F$3:$G$1242,2,FALSE) -> 0 | X84: 0 | AD84: Jharel Cotton | AE84: =VLOOKUP($AD84,Players!$AI$3:$AJ$1425,2,FALSE) -> 0 | AF84: 0 | AL84: SS | AM84: Kevin Newman | AN84: =IF(ISERROR(VLOOKUP($AM84,Players!$F$3:$G$1425,2,FALSE)),(VLOOKUP($AM84,Players!$AI$3:$AJ$1425,2,FALSE)),(VLOOKUP($AM84,Players!$F$3:$G$1425,2,FALSE))) -> 0 | AO84: 0
A85: 84 | V85: Howie Kendrick | W85: =VLOOKUP($V85,Players!$F$3:$G$1242,2,FALSE) -> 0 | X85: 0 | AD85: Trevor Bauer | AE85: =VLOOKUP($AD85,Players!$AI$3:$AJ$1425,2,FALSE) -> 0 | AF85: 0 | AL85: SS | AM85: Delvin Perez | AN85: =IF(ISERROR(VLOOKUP($AM85,Players!$F$3:$G$1425,2,FALSE)),(VLOOKUP($AM85,Players!$AI$3:$AJ$1425,2,FALSE)),(VLOOKUP($AM85,Players!$F$3:$G$1425,2,FALSE))) -> 0 | AO85: 0
A86: 85 | V86: Melvin Upton | W86: =VLOOKUP($V86,Players!$F$3:$G$1242,2,FALSE) -> 0 | X86: 0 | AD86: Andrew Triggs | AE86: =VLOOKUP($AD86,Players!$AI$3:$AJ$1425,2,FALSE) -> 0 | AF86: 0 | AL86: LHP | AM86: Max Fried | AN86: =IF(ISERROR(VLOOKUP($AM86,Players!$F$3:$G$1425,2,FALSE)),(VLOOKUP($AM86,Players!$AI$3:$AJ$1425,2,FALSE)),(VLOOKUP($AM86,Players!$F$3:$G$1425,2,FALSE))) -> 0 | AO86: 0
A87: 86 | V87: Melky Cabrera | W87: =VLOOKUP($V87,Players!$F$3:$G$1242,2,FALSE) -> 0 | X87: 0 | AD87: Jose Berrios | AE87: =VLOOKUP($AD87,Players!$AI$3:$AJ$1425,2,FALSE) -> 0 | AF87: 0 | AL87: RHP | AM87: David Paulino | AN87: =IF(ISERROR(VLOOKUP($AM87,Players!$F$3:$G$1425,2,FALSE)),(VLOOKUP($AM87,Players!$AI$3:$AJ$1425,2,FALSE)),(VLOOKUP($AM87,Players!$F$3:$G$1425,2,FALSE))) -> 0 | AO87: 0
A88: 87 | V88: Corey Dickerson | W88: =VLOOKUP($V88,Players!$F$3:$G$1242,2,FALSE) -> 0 | X88: 0 | AD88: Jose De Leon | AE88: =VLOOKUP($AD88,Players!$AI$3:$AJ$1425,2,FALSE) -> 0 | AF88: 0 | AL88: OF | AM88: Dylan Cozens | AN88: =IF(ISERROR(VLOOKUP($AM88,Players!$F$3:$G$1425,2,FALSE)),(VLOOKUP($AM88,Players!$AI$3:$AJ$1425,2,FALSE)),(VLOOKUP($AM88,Players!$F$3:$G$1425,2,FALSE))) -> 0 | AO88: 0
A89: 88 | V89: Danny Valencia | W89: =VLOOKUP($V89,Players!$F$3:$G$1242,2,FALSE) -> 0 | X89: 0 | AD89: Lucas Giolito | AE89: =VLOOKUP($AD89,Players!$AI$3:$AJ$1425,2,FALSE) -> 0 | AF89: 0 | AL89: OF | AM89: Luis Alexander Basabe | AN89: =IF(ISERROR(VLOOKUP($AM89,Players!$F$3:$G$1425,2,FALSE)),(VLOOKUP($AM89,Players!$AI$3:$AJ$1425,2,FALSE)),(VLOOKUP($AM89,Players!$F$3:$G$1425,2,FALSE))) -> 0 | AO89: 0
A90: 89 | V90: Brandon Moss | W90: =VLOOKUP($V90,Players!$F$3:$G$1242,2,FALSE) -> 0 | X90: 0 | AD90: Scott Kazmir | AE90: =VLOOKUP($AD90,Players!$AI$3:$AJ$1425,2,FALSE) -> 0 | AF90: 0 | AL90: 3B | AM90: Fernando Tatis Jr. | AN90: =IF(ISERROR(VLOOKUP($AM90,Players!$F$3:$G$1425,2,FALSE)),(VLOOKUP($AM90,Players!$AI$3:$AJ$1425,2,FALSE)),(VLOOKUP($AM90,Players!$F$3:$G$1425,2,FALSE))) -> 0 | AO90: 0
A91: 90 | V91: Mitch Haniger | W91: =VLOOKUP($V91,Players!$F$3:$G$1242,2,FALSE) -> 0 | X91: 0 | AD91: Zack Wheeler | AE91: =VLOOKUP($AD91,Players!$AI$3:$AJ$1425,2,FALSE) -> 0 | AF91: 0 | AL91: OF | AM91: Greg Allen | AN91: =IF(ISERROR(VLOOKUP($AM91,Players!$F$3:$G$1425,2,FALSE)),(VLOOKUP($AM91,Players!$AI$3:$AJ$1425,2,FALSE)),(VLOOKUP($AM91,Players!$F$3:$G$1425,2,FALSE))) -> 0 | AO91: 0
A92: 91 | V92: Michael Conforto | W92: =VLOOKUP($V92,Players!$F$3:$G$1242,2,FALSE) -> 0 | X92: 0 | AD92: Eduardo Rodriguez | AE92: =VLOOKUP($AD92,Players!$AI$3:$AJ$1425,2,FALSE) -> 0 | AF92: 0 | AL92: LHP | AM92: Amir Garrett | AN92: =IF(ISERROR(VLOOKUP($AM92,Players!$F$3:$G$1425,2,FALSE)),(VLOOKUP($AM92,Players!$AI$3:$AJ$1425,2,FALSE)),(VLOOKUP($AM92,Players!$F$3:$G$1425,2,FALSE))) -> 0 | AO92: 0
A93: 92 | V93: Andrew Toles | W93: =VLOOKUP($V93,Players!$F$3:$G$1242,2,FALSE) -> 0 | X93: 0 | AD93: Archie Bradley | AE93: =VLOOKUP($AD93,Players!$AI$3:$AJ$1425,2,FALSE) -> 0 | AF93: 0 | AL93: RHP | AM93: Jharel Cotton | AN93: =IF(ISERROR(VLOOKUP($AM93,Players!$F$3:$G$1425,2,FALSE)),(VLOOKUP($AM93,Players!$AI$3:$AJ$1425,2,FALSE)),(VLOOKUP($AM93,Players!$F$3:$G$1425,2,FALSE))) -> 0 | AO93: 0
A94: 93 | V94: Steven Souza | W94: =VLOOKUP($V94,Players!$F$3:$G$1242,2,FALSE) -> 0 | X94: 0 | AD94: Tyler Glasnow | AE94: =VLOOKUP($AD94,Players!$AI$3:$AJ$1425,2,FALSE) -> 0 | AF94: 0 | AL94: LHP | AM94: Adrian Morejon | AN94: =IF(ISERROR(VLOOKUP($AM94,Players!$F$3:$G$1425,2,FALSE)),(VLOOKUP($AM94,Players!$AI$3:$AJ$1425,2,FALSE)),(VLOOKUP($AM94,Players!$F$3:$G$1425,2,FALSE))) -> 0 | AO94: 0
A95: 94 | V95: Tyler Naquin | W95: =VLOOKUP($V95,Players!$F$3:$G$1242,2,FALSE) -> 0 | X95: 0 | AD95: Luke Weaver | AE95: =VLOOKUP($AD95,Players!$AI$3:$AJ$1425,2,FALSE) -> 0 | AF95: 0 | AL95: OF | AM95: Mitch Haniger | AN95: =IF(ISERROR(VLOOKUP($AM95,Players!$F$3:$G$1425,2,FALSE)),(VLOOKUP($AM95,Players!$AI$3:$AJ$1425,2,FALSE)),(VLOOKUP($AM95,Players!$F$3:$G$1425,2,FALSE))) -> 0 | AO95: 0
A96: 95 | V96: Cody Asche | W96: =VLOOKUP($V96,Players!$F$3:$G$1242,2,FALSE) -> 0 | X96: 0 | AD96: Matthew Strahm | AE96: =VLOOKUP($AD96,Players!$AI$3:$AJ$1425,2,FALSE) -> 0 | AF96: 0 | AL96: RHP | AM96: Cal Quantrill | AN96: =IF(ISERROR(VLOOKUP($AM96,Players!$F$3:$G$1425,2,FALSE)),(VLOOKUP($AM96,Players!$AI$3:$AJ$1425,2,FALSE)),(VLOOKUP($AM96,Players!$F$3:$G$1425,2,FALSE))) -> 0 | AO96: 0
A97: 96 | V97: Ryan Rua | W97: =VLOOKUP($V97,Players!$F$3:$G$1242,2,FALSE) -> 0 | X97: 0 | AD97: Robert Stephenson | AE97: =VLOOKUP($AD97,Players!$AI$3:$AJ$1425,2,FALSE) -> 0 | AF97: 0 | AL97: OF | AM97: Juan Soto | AN97: =IF(ISERROR(VLOOKUP($AM97,Players!$F$3:$G$1425,2,FALSE)),(VLOOKUP($AM97,Players!$AI$3:$AJ$1425,2,FALSE)),(VLOOKUP($AM97,Players!$F$3:$G$1425,2,FALSE))) -> 0 | AO97: 0
A98: 97 | V98: Steve Pearce | W98: =VLOOKUP($V98,Players!$F$3:$G$1242,2,FALSE) -> 0 | X98: 0 | AD98: Clay Buchholz | AE98: =VLOOKUP($AD98,Players!$AI$3:$AJ$1425,2,FALSE) -> 0 | AF98: 0 | AL98: RHP | AM98: Tyler Beede | AN98: =IF(ISERROR(VLOOKUP($AM98,Players!$F$3:$G$1425,2,FALSE)),(VLOOKUP($AM98,Players!$AI$3:$AJ$1425,2,FALSE)),(VLOOKUP($AM98,Players!$F$3:$G$1425,2,FALSE))) -> 0 | AO98: 0
A99: 98 | V99: Gerardo Parra | W99: =VLOOKUP($V99,Players!$F$3:$G$1242,2,FALSE) -> 0 | X99: 0 | AD99: Sonny Gray | AE99: =VLOOKUP($AD99,Players!$AI$3:$AJ$1425,2,FALSE) -> 0 | AF99: 0 | AL99: RHP | AM99: Matt Manning | AN99: =IF(ISERROR(VLOOKUP($AM99,Players!$F$3:$G$1425,2,FALSE)),(VLOOKUP($AM99,Players!$AI$3:$AJ$1425,2,FALSE)),(VLOOKUP($AM99,Players!$F$3:$G$1425,2,FALSE))) -> 0 | AO99: 0
A100: 99 | V100: Jace Peterson | W100: =VLOOKUP($V100,Players!$F$3:$G$1242,2,FALSE) -> 0 | X100: 0 | AD100: Anthony Desclafani | AE100: =VLOOKUP($AD100,Players!$AI$3:$AJ$1425,2,FALSE) -> 0 | AF100: 0 | AL100: RHP | AM100: Reynaldo Lopez | AN100: =IF(ISERROR(VLOOKUP($AM100,Players!$F$3:$G$1425,2,FALSE)),(VLOOKUP($AM100,Players!$AI$3:$AJ$1425,2,FALSE)),(VLOOKUP($AM100,Players!$F$3:$G$1425,2,FALSE))) -> 0 | AO100: 0
A101: 100 | V101: Raimel Tapia | W101: =VLOOKUP($V101,Players!$F$3:$G$1242,2,FALSE) -> 0 | X101: 0 | AD101: Miguel Gonzalez | AE101: =VLOOKUP($AD101,Players!$AI$3:$AJ$1425,2,FALSE) -> 0 | AF101: 0 | AL101: OF | AM101: Jahmai Jones | AN101: =IF(ISERROR(VLOOKUP($AM101,Players!$F$3:$G$1425,2,FALSE)),(VLOOKUP($AM101,Players!$AI$3:$AJ$1425,2,FALSE)),(VLOOKUP($AM101,Players!$F$3:$G$1425,2,FALSE))) -> 0 | AO101: 0
A102: 101 | V102: Mallex Smith | W102: =VLOOKUP($V102,Players!$F$3:$G$1242,2,FALSE) -> 0 | X102: 0 | AD102: Zach Davies | AE102: =VLOOKUP($AD102,Players!$AI$3:$AJ$1425,2,FALSE) -> 0 | AF102: 0 | AL102: RHP | AM102: Ginny Baker | AN102: =IF(ISERROR(VLOOKUP($AM102,Players!$F$3:$G$1425,2,FALSE)),(VLOOKUP($AM102,Players!$AI$3:$AJ$1425,2,FALSE)),(VLOOKUP($AM102,Players!$F$3:$G$1425,2,FALSE))) -> 0 | AO102: 0
A103: 102 | V103: Roman Quinn | W103: =VLOOKUP($V103,Players!$F$3:$G$1242,2,FALSE) -> 0 | X103: 0 | AD103: Junior Guerra | AE103: =VLOOKUP($AD103,Players!$AI$3:$AJ$1425,2,FALSE) -> 0 | AF103: 0
A104: 103 | V104: Angel Pagan | W104: =VLOOKUP($V104,Players!$F$3:$G$1242,2,FALSE) -> 0 | X104: 0 | AD104: R.A. Dickey | AE104: =VLOOKUP($AD104,Players!$AI$3:$AJ$1425,2,FALSE) -> 0 | AF104: 0
A105: 104 | V105: Alex Gordon | W105: =VLOOKUP($V105,Players!$F$3:$G$1242,2,FALSE) -> 0 | X105: 0 | AD105: Bartolo Colon | AE105: =VLOOKUP($AD105,Players!$AI$3:$AJ$1425,2,FALSE) -> 0 | AF105: 0
A106: 105 | V106: Jayson Werth | W106: =VLOOKUP($V106,Players!$F$3:$G$1242,2,FALSE) -> 0 | X106: 0 | AD106: Matt Andriese | AE106: =VLOOKUP($AD106,Players!$AI$3:$AJ$1425,2,FALSE) -> 0 | AF106: 0
A107: 106 | V107: Colby Rasmus | W107: =VLOOKUP($V107,Players!$F$3:$G$1242,2,FALSE) -> 0 | X107: 0 | AD107: Tyler Chatwood | AE107: =VLOOKUP($AD107,Players!$AI$3:$AJ$1425,2,FALSE) -> 0 | AF107: 0
A108: 107 | V108: Nick Markakis | W108: =VLOOKUP($V108,Players!$F$3:$G$1242,2,FALSE) -> 0 | X108: 0 | AD108: Tom Koehler | AE108: =VLOOKUP($AD108,Players!$AI$3:$AJ$1425,2,FALSE) -> 0 | AF108: 0
A109: 108 | V109: Denard Span | W109: =VLOOKUP($V109,Players!$F$3:$G$1242,2,FALSE) -> 0 | X109: 0 | AD109: Edinson Volquez | AE109: =VLOOKUP($AD109,Players!$AI$3:$AJ$1425,2,FALSE) -> 0 | AF109: 0
A110: 109 | V110: Tyler Collins | W110: =VLOOKUP($V110,Players!$F$3:$G$1242,2,FALSE) -> 0 | X110: 0 | AD110: Jesse Chavez | AE110: =VLOOKUP($AD110,Players!$AI$3:$AJ$1425,2,FALSE) -> 0 | AF110: 0
A111: 110 | V111: Aaron Altherr | W111: =VLOOKUP($V111,Players!$F$3:$G$1242,2,FALSE) -> 0 | X111: 0 | AD111: Mike Leake | AE111: =VLOOKUP($AD111,Players!$AI$3:$AJ$1425,2,FALSE) -> 0 | AF111: 0
A112: 111 | V112: Norichika Aoki | W112: =VLOOKUP($V112,Players!$F$3:$G$1242,2,FALSE) -> 0 | X112: 0 | AD112: Wei-Yin Chen | AE112: =VLOOKUP($AD112,Players!$AI$3:$AJ$1425,2,FALSE) -> 0 | AF112: 0
A113: 112 | V113: Nick Franklin | W113: =VLOOKUP($V113,Players!$F$3:$G$1242,2,FALSE) -> 0 | X113: 0 | AD113: Steven Wright | AE113: =VLOOKUP($AD113,Players!$AI$3:$AJ$1425,2,FALSE) -> 0 | AF113: 0
A114: 113 | V114: Hyun Soo Kim | W114: =VLOOKUP($V114,Players!$F$3:$G$1242,2,FALSE) -> 0 | X114: 0 | AD114: Josh Tomlin | AE114: =VLOOKUP($AD114,Players!$AI$3:$AJ$1425,2,FALSE) -> 0 | AF114: 0
A115: 114 | V115: Joey Rickard | W115: =VLOOKUP($V115,Players!$F$3:$G$1242,2,FALSE) -> 0 | X115: 0 | AD115: Dan Straily | AE115: =VLOOKUP($AD115,Players!$AI$3:$AJ$1425,2,FALSE) -> 0 | AF115: 0
A116: 115 | V116: Seth Smith | W116: =VLOOKUP($V116,Players!$F$3:$G$1242,2,FALSE) -> 0 | X116: 0 | AD116: Brandon Finnegan | AE116: =VLOOKUP($AD116,Players!$AI$3:$AJ$1425,2,FALSE) -> 0 | AF116: 0
A117: 116 | V117: Scott Schebler | W117: =VLOOKUP($V117,Players!$F$3:$G$1242,2,FALSE) -> 0 | X117: 0 | AD117: Jordan Zimmermann | AE117: =VLOOKUP($AD117,Players!$AI$3:$AJ$1425,2,FALSE) -> 0 | AF117: 0
A118: 117 | V118: Eddie Rosario | W118: =VLOOKUP($V118,Players!$F$3:$G$1242,2,FALSE) -> 0 | X118: 0 | AD118: Mike Fiers | AE118: =VLOOKUP($AD118,Players!$AI$3:$AJ$1425,2,FALSE) -> 0 | AF118: 0
A119: 118 | V119: Lonnie Chisenhall | W119: =VLOOKUP($V119,Players!$F$3:$G$1242,2,FALSE) -> 0 | X119: 0 | AD119: Homer Bailey | AE119: =VLOOKUP($AD119,Players!$AI$3:$AJ$1425,2,FALSE) -> 0 | AF119: 0
A120: 119 | V120: Matt Joyce | W120: =VLOOKUP($V120,Players!$F$3:$G$1242,2,FALSE) -> 0 | X120: 0 | AD120: Hector Santiago | AE120: =VLOOKUP($AD120,Players!$AI$3:$AJ$1425,2,FALSE) -> 0 | AF120: 0
A121: 120 | V121: Jurickson Profar | W121: =VLOOKUP($V121,Players!$F$3:$G$1242,2,FALSE) -> 0 | X121: 0 | AD121: Shelby Miller | AE121: =VLOOKUP($AD121,Players!$AI$3:$AJ$1425,2,FALSE) -> 0 | AF121: 0
A122: 121 | V122: Jarrett Parker | W122: =VLOOKUP($V122,Players!$F$3:$G$1242,2,FALSE) -> 0 | X122: 0 | AD122: Martin Perez | AE122: =VLOOKUP($AD122,Players!$AI$3:$AJ$1425,2,FALSE) -> 0 | AF122: 0
A123: 122 | V123: Mikie Mahtook | W123: =VLOOKUP($V123,Players!$F$3:$G$1242,2,FALSE) -> 0 | X123: 0 | AD123: Francisco Liriano | AE123: =VLOOKUP($AD123,Players!$AI$3:$AJ$1425,2,FALSE) -> 0 | AF123: 0
A124: 123 | V124: Michael Taylor | W124: =VLOOKUP($V124,Players!$F$3:$G$1242,2,FALSE) -> 0 | X124: 0 | AD124: Jhoulys Chacin | AE124: =VLOOKUP($AD124,Players!$AI$3:$AJ$1425,2,FALSE) -> 0 | AF124: 0
A125: 124 | V125: Peter O’Brien | W125: =VLOOKUP($V125,Players!$F$3:$G$1242,2,FALSE) -> 0 | X125: 0 | AD125: Hyun-Jin Ryu | AE125: =VLOOKUP($AD125,Players!$AI$3:$AJ$1425,2,FALSE) -> 0 | AF125: 0
A126: 125 | V126: Bradley Zimmer | W126: =VLOOKUP($V126,Players!$F$3:$G$1242,2,FALSE) -> 0 | X126: 0 | AD126: Patrick Corbin | AE126: =VLOOKUP($AD126,Players!$AI$3:$AJ$1425,2,FALSE) -> 0 | AF126: 0
A127: 126 | V127: Lewis Brinson | W127: =VLOOKUP($V127,Players!$F$3:$G$1242,2,FALSE) -> 0 | X127: 0 | AD127: Kyle Gibson | AE127: =VLOOKUP($AD127,Players!$AI$3:$AJ$1425,2,FALSE) -> 0 | AF127: 0
A128: 127 | V128: Clint Frazier | W128: =VLOOKUP($V128,Players!$F$3:$G$1242,2,FALSE) -> 0 | X128: 0 | AD128: Tyson Ross | AE128: =VLOOKUP($AD128,Players!$AI$3:$AJ$1425,2,FALSE) -> 0 | AF128: 0
A129: 128 | V129: Austin Meadows | W129: =VLOOKUP($V129,Players!$F$3:$G$1242,2,FALSE) -> 0 | X129: 0 | AD129: Garrett Richards | AE129: =VLOOKUP($AD129,Players!$AI$3:$AJ$1425,2,FALSE) -> 0 | AF129: 0
A130: 129 | V130: Delino DeShields Jr. | W130: =VLOOKUP($V130,Players!$F$3:$G$1242,2,FALSE) -> 0 | X130: 0 | AD130: Chad Green | AE130: =VLOOKUP($AD130,Players!$AI$3:$AJ$1425,2,FALSE) -> 0 | AF130: 0
A131: 130 | V131: Ezequiel Carrera | W131: =VLOOKUP($V131,Players!$F$3:$G$1242,2,FALSE) -> 0 | X131: =IF(W131>0,1,0) -> 0 | AD131: Matt Wisler | AE131: =VLOOKUP($AD131,Players!$AI$3:$AJ$1425,2,FALSE) -> 0 | AF131: =IF(AE131>0,1,0) -> 0
A132: 131 | V132: Jon Jay | W132: =VLOOKUP($V132,Players!$F$3:$G$1242,2,FALSE) -> 0 | X132: 0 | AD132: Jesse Hahn | AE132: =VLOOKUP($AD132,Players!$AI$3:$AJ$1425,2,FALSE) -> 0 | AF132: 0
A133: 132 | V133: Brock Holt | W133: =VLOOKUP($V133,Players!$F$3:$G$1242,2,FALSE) -> 0 | X133: 0 | AD133: Nathan Karns | AE133: =VLOOKUP($AD133,Players!$AI$3:$AJ$1425,2,FALSE) -> 0 | AF133: 0
A134: 133 | V134: Albert Almora | W134: =VLOOKUP($V134,Players!$F$3:$G$1242,2,FALSE) -> 0 | X134: 0 | AD134: Ariel Miranda | AE134: =VLOOKUP($AD134,Players!$AI$3:$AJ$1425,2,FALSE) -> 0 | AF134: 0
A135: 134 | V135: Austin Jackson | W135: =VLOOKUP($V135,Players!$F$3:$G$1242,2,FALSE) -> 0 | X135: 0 | AD135: Joe Musgrove | AE135: =VLOOKUP($AD135,Players!$AI$3:$AJ$1425,2,FALSE) -> 0 | AF135: 0
A136: 135 | V136: Arismendy Alcantara | W136: =VLOOKUP($V136,Players!$F$3:$G$1242,2,FALSE) -> 0 | X136: 0 | AD136: Wade Miley | AE136: =VLOOKUP($AD136,Players!$AI$3:$AJ$1425,2,FALSE) -> 0 | AF136: 0
A137: 136 | V137: Trayce Thompson | W137: =VLOOKUP($V137,Players!$F$3:$G$1242,2,FALSE) -> 0 | X137: 0 | AD137: Adam Wainwright | AE137: =VLOOKUP($AD137,Players!$AI$3:$AJ$1425,2,FALSE) -> 0 | AF137: 0
A138: 137 | AD138: Chad Kuhl | AE138: =VLOOKUP($AD138,Players!$AI$3:$AJ$1425,2,FALSE) -> 0 | AF138: 0
A139: 138 | AD139: Steven Brault | AE139: =VLOOKUP($AD139,Players!$AI$3:$AJ$1425,2,FALSE) -> 0 | AF139: 0
A140: 139 | AD140: Matt Cain | AE140: =VLOOKUP($AD140,Players!$AI$3:$AJ$1425,2,FALSE) -> 
A141: 140 | AD141: Alex Reyes | AE141: =VLOOKUP($AD141,Players!$AI$3:$AJ$1425,2,FALSE) -> 0 | AF141: 0
A142: 141
A143: 142
A144: 143
A145: 144
A146: 145
A147: 146
A148: 147
A149: 148
A150: 149
A151: 150
A152: 151
A153: 152
A154: 153
A155: 154
A156: 155
A157: 156
A158: 157
A159: 158
A160: 159
A161: 160
A162: 161
A163: 162
A164: 163
A165: 164
A166: 165
A167: 166
A168: 167
A169: 168
A170: 169
A171: 170
A172: 171
A173: 172
A174: 173
A175: 174
A176: 175
A177: 176
A178: 177
A179: 178
A180: 179
A181: 180
A182: 181
A183: 182
A184: 183
A185: 184
A186: 185
A187: 186
A188: 187
A189: 188
A190: 189
A191: 190
A192: 191
A193: 192
A194: 193
A195: 194
A196: 195
A197: 196
A198: 197
A199: 198
A200: 199
... 24 more rows

Sheet War Room
B1: # of Players Taken | E1: Salaries | H1: # of Players Left | K1: Finances
A2: Team | B2: Bat | C2: Pit | D2: Tot | E2: Bat | F2: Pit | G2: Tot | H2: Bat | I2: Pit | J2: Tot | K2: $$ Left | L2: APP | M2: Max Bid
A3: =IF('User Input'!C1 = 0,"",'User Input'!C1) -> a | B3: =IF('User Input'!C1=0,"",COUNTIF(Players!$G$3:$G$872,A3)) -> 0 | C3: =IF('User Input'!C1=0,"",COUNTIF(Players!$AI$3:$AJ$915,A3)) -> 0 | D3: =IF('User Input'!C1=0,"",C3+B3) -> 0 | E3: =IF('User Input'!C1=0,"",SUMIF(Players!$G$3:$G$872,A3,Players!$H$3:$H$872)) -> 0 | F3: =IF('User Input'!C1=0,"",SUMIF(Players!$AJ$3:$AJ$915,A3,Players!$AK$3:$AK$915)) -> 0 | G3: =IF('User Input'!C1 = 0,"",F3+E3) -> 0 | H3: =IF('User Input'!C1 = 0,"",'User Input'!$C$29-B3) -> 13 | I3: =IF('User Input'!C1 = 0,"",'User Input'!$C$30-C3) -> 9 | J3: =IF('User Input'!C1 = 0,"",I3+H3) -> 22 | K3: =IF('User Input'!C1 = 0,"",'User Input'!$C$27-G3) -> 280 | L3: =IF('User Input'!C1 = 0,"",K3/J3) -> 12.72727273 | M3: =IF('User Input'!C1 = 0,"",K3-J3+1) -> 259
A4: =IF('User Input'!C2 = 0,"",'User Input'!C2) -> b | B4: =IF('User Input'!C2=0,"",COUNTIF(Players!$G$3:$G$872,A4)) -> 0 | C4: =IF('User Input'!C2=0,"",COUNTIF(Players!$AI$3:$AJ$915,A4)) -> 0 | D4: =IF('User Input'!C2=0,"",C4+B4) -> 0 | E4: =IF('User Input'!C2=0,"",SUMIF(Players!$G$3:$G$872,A4,Players!$H$3:$H$872)) -> 0 | F4: =IF('User Input'!C2=0,"",SUMIF(Players!$AJ$3:$AJ$915,A4,Players!$AK$3:$AK$915)) -> 0 | G4: =IF('User Input'!C2 = 0,"",F4+E4) -> 0 | H4: =IF('User Input'!C2 = 0,"",'User Input'!$C$29-B4) -> 13 | I4: =IF('User Input'!C2 = 0,"",'User Input'!$C$30-C4) -> 9 | J4: =IF('User Input'!C2 = 0,"",I4+H4) -> 22 | K4: =IF('User Input'!C2 = 0,"",'User Input'!$C$27-G4) -> 280 | L4: =IF('User Input'!C2 = 0,"",K4/J4) -> 12.72727273 | M4: =IF('User Input'!C2 = 0,"",K4-J4+1) -> 259 | DV4: C | DW4: SP
A5: =IF('User Input'!C3 = 0,"",'User Input'!C3) -> c | B5: =IF('User Input'!C3=0,"",COUNTIF(Players!$G$3:$G$872,A5)) -> 0 | C5: =IF('User Input'!C3=0,"",COUNTIF(Players!$AI$3:$AJ$915,A5)) -> 0 | D5: =IF('User Input'!C3=0,"",C5+B5) -> 0 | E5: =IF('User Input'!C3=0,"",SUMIF(Players!$G$3:$G$872,A5,Players!$H$3:$H$872)) -> 0 | F5: =IF('User Input'!C3=0,"",SUMIF(Players!$AJ$3:$AJ$915,A5,Players!$AK$3:$AK$915)) -> 0 | G5: =IF('User Input'!C3 = 0,"",F5+E5) -> 0 | H5: =IF('User Input'!C3 = 0,"",'User Input'!$C$29-B5) -> 13 | I5: =IF('User Input'!C3 = 0,"",'User Input'!$C$30-C5) -> 9 | J5: =IF('User Input'!C3 = 0,"",I5+H5) -> 22 | K5: =IF('User Input'!C3 = 0,"",'User Input'!$C$27-G5) -> 280 | L5: =IF('User Input'!C3 = 0,"",K5/J5) -> 12.72727273 | M5: =IF('User Input'!C3 = 0,"",K5-J5+1) -> 259 | P5: Your Selected Players | AF5: =ISERROR(AD8) -> TRUE | AG5: =IF(AF5=FALSE,AC8,0) -> 0 | AH5: =IF(AF5=FALSE,AD8,0) -> 0 | DV5: 1B | DW5: RP
A6: =IF('User Input'!C4 = 0,"",'User Input'!C4) -> d | B6: =IF('User Input'!C4=0,"",COUNTIF(Players!$G$3:$G$872,A6)) -> 0 | C6: =IF('User Input'!C4=0,"",COUNTIF(Players!$AI$3:$AJ$915,A6)) -> 0 | D6: =IF('User Input'!C4=0,"",C6+B6) -> 0 | E6: =IF('User Input'!C4=0,"",SUMIF(Players!$G$3:$G$872,A6,Players!$H$3:$H$872)) -> 0 | F6: =IF('User Input'!C4=0,"",SUMIF(Players!$AJ$3:$AJ$915,A6,Players!$AK$3:$AK$915)) -> 0 | G6: =IF('User Input'!C4 = 0,"",F6+E6) -> 0 | H6: =IF('User Input'!C4 = 0,"",'User Input'!$C$29-B6) -> 13 | I6: =IF('User Input'!C4 = 0,"",'User Input'!$C$30-C6) -> 9 | J6: =IF('User Input'!C4 = 0,"",I6+H6) -> 22 | K6: =IF('User Input'!C4 = 0,"",'User Input'!$C$27-G6) -> 280 | L6: =IF('User Input'!C4 = 0,"",K6/J6) -> 12.72727273 | M6: =IF('User Input'!C4 = 0,"",K6-J6+1) -> 259 | P6: Batters | Z6: Pitchers | AF6: TRUE | AG6: 0 | AH6: 0 | DV6: 2B
A7: =IF('User Input'!C5 = 0,"",'User Input'!C5) -> e | B7: =IF('User Input'!C5=0,"",COUNTIF(Players!$G$3:$G$872,A7)) -> 0 | C7: =IF('User Input'!C5=0,"",COUNTIF(Players!$AI$3:$AJ$915,A7)) -> 0 | D7: =IF('User Input'!C5=0,"",C7+B7) -> 0 | E7: =IF('User Input'!C5=0,"",SUMIF(Players!$G$3:$G$872,A7,Players!$H$3:$H$872)) -> 0 | F7: =IF('User Input'!C5=0,"",SUMIF(Players!$AJ$3:$AJ$915,A7,Players!$AK$3:$AK$915)) -> 0 | G7: =IF('User Input'!C5 = 0,"",F7+E7) -> 0 | H7: =IF('User Input'!C5 = 0,"",'User Input'!$C$29-B7) -> 13 | I7: =IF('User Input'!C5 = 0,"",'User Input'!$C$30-C7) -> 9 | J7: =IF('User Input'!C5 = 0,"",I7+H7) -> 22 | K7: =IF('User Input'!C5 = 0,"",'User Input'!$C$27-G7) -> 280 | L7: =IF('User Input'!C5 = 0,"",K7/J7) -> 12.72727273 | M7: =IF('User Input'!C5 = 0,"",K7-J7+1) -> 259 | P7: # | Q7: Player | S7: Bid | T7: Proj | U7: Pos | Z7: # | AA7: Player | AC7: Bid | AD7: Proj | AE7: Pos | AF7: TRUE | AG7: 0 | AH7: 0 | DV7: 3B
A8: =IF('User Input'!C6 = 0,"",'User Input'!C6) -> f | B8: =IF('User Input'!C6=0,"",COUNTIF(Players!$G$3:$G$872,A8)) -> 0 | C8: =IF('User Input'!C6=0,"",COUNTIF(Players!$AI$3:$AJ$915,A8)) -> 0 | D8: =IF('User Input'!C6=0,"",C8+B8) -> 0 | E8: =IF('User Input'!C6=0,"",SUMIF(Players!$G$3:$G$872,A8,Players!$H$3:$H$872)) -> 0 | F8: =IF('User Input'!C6=0,"",SUMIF(Players!$AJ$3:$AJ$915,A8,Players!$AK$3:$AK$915)) -> 0 | G8: =IF('User Input'!C6 = 0,"",F8+E8) -> 0 | H8: =IF('User Input'!C6 = 0,"",'User Input'!$C$29-B8) -> 13 | I8: =IF('User Input'!C6 = 0,"",'User Input'!$C$30-C8) -> 9 | J8: =IF('User Input'!C6 = 0,"",I8+H8) -> 22 | K8: =IF('User Input'!C6 = 0,"",'User Input'!$C$27-G8) -> 280 | L8: =IF('User Input'!C6 = 0,"",K8/J8) -> 12.72727273 | M8: =IF('User Input'!C6 = 0,"",K8-J8+1) -> 259 | P8: 1 | Q8: =VLOOKUP(P8,Players!$W$3:$Y$997,2,FALSE) ->  | S8: =VLOOKUP(P8,Players!$W$3:$Y$997,3,FALSE) ->  | T8: =VLOOKUP(P8,Players!$W$3:$Z$997,4,FALSE) ->  | V8: =ISERROR(T8) -> TRUE | W8: =IF(V8=FALSE,S8,0) -> 0 | X8: =IF(V8=FALSE,T8,0) -> 0 | Z8: 1 | AA8: =VLOOKUP(Z8,Players!$BA$3:$BC$997,2,FALSE) ->  | AC8: =VLOOKUP(Z8,Players!$BA$3:$BC$997,3,FALSE) ->  | AD8: =VLOOKUP(Z8,Players!$BA$3:$BD$997,4,FALSE) ->  | AF8: TRUE | AG8: 0 | AH8: 0 | DV8: SS
A9: =IF('User Input'!C7 = 0,"",'User Input'!C7) -> g | B9: =IF('User Input'!C7=0,"",COUNTIF(Players!$G$3:$G$872,A9)) -> 0 | C9: =IF('User Input'!C7=0,"",COUNTIF(Players!$AI$3:$AJ$915,A9)) -> 0 | D9: =IF('User Input'!C7=0,"",C9+B9) -> 0 | E9: =IF('User Input'!C7=0,"",SUMIF(Players!$G$3:$G$872,A9,Players!$H$3:$H$872)) -> 0 | F9: =IF('User Input'!C7=0,"",SUMIF(Players!$AJ$3:$AJ$915,A9,Players!$AK$3:$AK$915)) -> 0 | G9: =IF('User Input'!C7 = 0,"",F9+E9) -> 0 | H9: =IF('User Input'!C7 = 0,"",'User Input'!$C$29-B9) -> 13 | I9: =IF('User Input'!C7 = 0,"",'User Input'!$C$30-C9) -> 9 | J9: =IF('User Input'!C7 = 0,"",I9+H9) -> 22 | K9: =IF('User Input'!C7 = 0,"",'User Input'!$C$27-G9) -> 280 | L9: =IF('User Input'!C7 = 0,"",K9/J9) -> 12.72727273 | M9: =IF('User Input'!C7 = 0,"",K9-J9+1) -> 259 | P9: 2 | Q9: =VLOOKUP(P9,Players!$W$3:$Y$997,2,FALSE) ->  | S9: =VLOOKUP(P9,Players!$W$3:$Y$997,3,FALSE) ->  | T9: =VLOOKUP(P9,Players!$W$3:$Z$997,4,FALSE) ->  | V9: TRUE | W9: 0 | X9: 0 | Z9: 2 | AA9: =VLOOKUP(Z9,Players!$BA$3:$BC$997,2,FALSE) ->  | AC9: =VLOOKUP(Z9,Players!$BA$3:$BC$997,3,FALSE) ->  | AD9: =VLOOKUP(Z9,Players!$BA$3:$BD$997,4,FALSE) ->  | AF9: TRUE | AG9: 0 | AH9: 0 | DV9: OF
A10: =IF('User Input'!C8 = 0,"",'User Input'!C8) -> h | B10: =IF('User Input'!C8=0,"",COUNTIF(Players!$G$3:$G$872,A10)) -> 0 | C10: =IF('User Input'!C8=0,"",COUNTIF(Players!$AI$3:$AJ$915,A10)) -> 0 | D10: =IF('User Input'!C8=0,"",C10+B10) -> 0 | E10: =IF('User Input'!C8=0,"",SUMIF(Players!$G$3:$G$872,A10,Players!$H$3:$H$872)) -> 0 | F10: =IF('User Input'!C8=0,"",SUMIF(Players!$AJ$3:$AJ$915,A10,Players!$AK$3:$AK$915)) -> 0 | G10: =IF('User Input'!C8 = 0,"",F10+E10) -> 0 | H10: =IF('User Input'!C8 = 0,"",'User Input'!$C$29-B10) -> 13 | I10: =IF('User Input'!C8 = 0,"",'User Input'!$C$30-C10) -> 9 | J10: =IF('User Input'!C8 = 0,"",I10+H10) -> 22 | K10: =IF('User Input'!C8 = 0,"",'User Input'!$C$27-G10) -> 280 | L10: =IF('User Input'!C8 = 0,"",K10/J10) -> 12.72727273 | M10: =IF('User Input'!C8 = 0,"",K10-J10+1) -> 259 | P10: 3 | Q10: =VLOOKUP(P10,Players!$W$3:$Y$997,2,FALSE) ->  | S10: =VLOOKUP(P10,Players!$W$3:$Y$997,3,FALSE) ->  | T10: =VLOOKUP(P10,Players!$W$3:$Z$997,4,FALSE) ->  | V10: TRUE | W10: 0 | X10: 0 | Z10: 3 | AA10: =VLOOKUP(Z10,Players!$BA$3:$BC$997,2,FALSE) ->  | AC10: =VLOOKUP(Z10,Players!$BA$3:$BC$997,3,FALSE) ->  | AD10: =VLOOKUP(Z10,Players!$BA$3:$BD$997,4,FALSE) ->  | AF10: TRUE | AG10: 0 | AH10: 0 | DV10: CI
A11: =IF('User Input'!C9 = 0,"",'User Input'!C9) -> i | B11: =IF('User Input'!C9=0,"",COUNTIF(Players!$G$3:$G$872,A11)) -> 0 | C11: =IF('User Input'!C9=0,"",COUNTIF(Players!$AI$3:$AJ$915,A11)) -> 0 | D11: =IF('User Input'!C9=0,"",C11+B11) -> 0 | E11: =IF('User Input'!C9=0,"",SUMIF(Players!$G$3:$G$872,A11,Players!$H$3:$H$872)) -> 0 | F11: =IF('User Input'!C9=0,"",SUMIF(Players!$AJ$3:$AJ$915,A11,Players!$AK$3:$AK$915)) -> 0 | G11: =IF('User Input'!C9 = 0,"",F11+E11) -> 0 | H11: =IF('User Input'!C9 = 0,"",'User Input'!$C$29-B11) -> 13 | I11: =IF('User Input'!C9 = 0,"",'User Input'!$C$30-C11) -> 9 | J11: =IF('User Input'!C9 = 0,"",I11+H11) -> 22 | K11: =IF('User Input'!C9 = 0,"",'User Input'!$C$27-G11) -> 280 | L11: =IF('User Input'!C9 = 0,"",K11/J11) -> 12.72727273 | M11: =IF('User Input'!C9 = 0,"",K11-J11+1) -> 259 | P11: 4 | Q11: =VLOOKUP(P11,Players!$W$3:$Y$997,2,FALSE) ->  | S11: =VLOOKUP(P11,Players!$W$3:$Y$997,3,FALSE) ->  | T11: =VLOOKUP(P11,Players!$W$3:$Z$997,4,FALSE) ->  | V11: TRUE | W11: 0 | X11: 0 | Z11: 4 | AA11: =VLOOKUP(Z11,Players!$BA$3:$BC$997,2,FALSE) ->  | AC11: =VLOOKUP(Z11,Players!$BA$3:$BC$997,3,FALSE) ->  | AD11: =VLOOKUP(Z11,Players!$BA$3:$BD$997,4,FALSE) ->  | AF11: TRUE | AG11: 0 | AH11: 0 | DV11: MI
A12: =IF('User Input'!C10 = 0,"",'User Input'!C10) -> j | B12: =IF('User Input'!C10=0,"",COUNTIF(Players!$G$3:$G$872,A12)) -> 0 | C12: =IF('User Input'!C10=0,"",COUNTIF(Players!$AI$3:$AJ$915,A12)) -> 0 | D12: =IF('User Input'!C10=0,"",C12+B12) -> 0 | E12: =IF('User Input'!C10=0,"",SUMIF(Players!$G$3:$G$872,A12,Players!$H$3:$H$872)) -> 0 | F12: =IF('User Input'!C10=0,"",SUMIF(Players!$AJ$3:$AJ$915,A12,Players!$AK$3:$AK$915)) -> 0 | G12: =IF('User Input'!C10 = 0,"",F12+E12) -> 0 | H12: =IF('User Input'!C10 = 0,"",'User Input'!$C$29-B12) -> 13 | I12: =IF('User Input'!C10 = 0,"",'User Input'!$C$30-C12) -> 9 | J12: =IF('User Input'!C10 = 0,"",I12+H12) -> 22 | K12: =IF('User Input'!C10 = 0,"",'User Input'!$C$27-G12) -> 280 | L12: =IF('User Input'!C10 = 0,"",K12/J12) -> 12.72727273 | M12: =IF('User Input'!C10 = 0,"",K12-J12+1) -> 259 | P12: 5 | Q12: =VLOOKUP(P12,Players!$W$3:$Y$997,2,FALSE) ->  | S12: =VLOOKUP(P12,Players!$W$3:$Y$997,3,FALSE) ->  | T12: =VLOOKUP(P12,Players!$W$3:$Z$997,4,FALSE) ->  | V12: TRUE | W12: 0 | X12: 0 | Z12: 5 | AA12: =VLOOKUP(Z12,Players!$BA$3:$BC$997,2,FALSE) ->  | AC12: =VLOOKUP(Z12,Players!$BA$3:$BC$997,3,FALSE) ->  | AD12: =VLOOKUP(Z12,Players!$BA$3:$BD$997,4,FALSE) ->  | AF12: TRUE | AG12: 0 | AH12: 0 | DV12: UT
A13: =IF('User Input'!C11 = 0,"",'User Input'!C11) -> k | B13: =IF('User Input'!C11=0,"",COUNTIF(Players!$G$3:$G$872,A13)) -> 0 | C13: =IF('User Input'!C11=0,"",COUNTIF(Players!$AI$3:$AJ$915,A13)) -> 0 | D13: =IF('User Input'!C11=0,"",C13+B13) -> 0 | E13: =IF('User Input'!C11=0,"",SUMIF(Players!$G$3:$G$872,A13,Players!$H$3:$H$872)) -> 0 | F13: =IF('User Input'!C11=0,"",SUMIF(Players!$AJ$3:$AJ$915,A13,Players!$AK$3:$AK$915)) -> 0 | G13: =IF('User Input'!C11 = 0,"",F13+E13) -> 0 | H13: =IF('User Input'!C11 = 0,"",'User Input'!$C$29-B13) -> 13 | I13: =IF('User Input'!C11 = 0,"",'User Input'!$C$30-C13) -> 9 | J13: =IF('User Input'!C11 = 0,"",I13+H13) -> 22 | K13: =IF('User Input'!C11 = 0,"",'User Input'!$C$27-G13) -> 280 | L13: =IF('User Input'!C11 = 0,"",K13/J13) -> 12.72727273 | M13: =IF('User Input'!C11 = 0,"",K13-J13+1) -> 259 | P13: 6 | Q13: =VLOOKUP(P13,Players!$W$3:$Y$997,2,FALSE) ->  | S13: =VLOOKUP(P13,Players!$W$3:$Y$997,3,FALSE) ->  | T13: =VLOOKUP(P13,Players!$W$3:$Z$997,4,FALSE) ->  | V13: TRUE | W13: 0 | X13: 0 | Z13: 6 | AA13: =VLOOKUP(Z13,Players!$BA$3:$BC$997,2,FALSE) ->  | AC13: =VLOOKUP(Z13,Players!$BA$3:$BC$997,3,FALSE) ->  | AD13: =VLOOKUP(Z13,Players!$BA$3:$BD$997,4,FALSE) ->  | AF13: TRUE | AG13: 0 | AH13: 0
A14: =IF('User Input'!C12 = 0,"",'User Input'!C12) -> l | B14: =IF('User Input'!C12=0,"",COUNTIF(Players!$G$3:$G$872,A14)) -> 0 | C14: =IF('User Input'!C12=0,"",COUNTIF(Players!$AI$3:$AJ$915,A14)) -> 0 | D14: =IF('User Input'!C12=0,"",C14+B14) -> 0 | E14: =IF('User Input'!C12=0,"",SUMIF(Players!$G$3:$G$872,A14,Players!$H$3:$H$872)) -> 0 | F14: =IF('User Input'!C12=0,"",SUMIF(Players!$AJ$3:$AJ$915,A14,Players!$AK$3:$AK$915)) -> 0 | G14: =IF('User Input'!C12 = 0,"",F14+E14) -> 0 | H14: =IF('User Input'!C12 = 0,"",'User Input'!$C$29-B14) -> 13 | I14: =IF('User Input'!C12 = 0,"",'User Input'!$C$30-C14) -> 9 | J14: =IF('User Input'!C12 = 0,"",I14+H14) -> 22 | K14: =IF('User Input'!C12 = 0,"",'User Input'!$C$27-G14) -> 280 | L14: =IF('User Input'!C12 = 0,"",K14/J14) -> 12.72727273 | M14: =IF('User Input'!C12 = 0,"",K14-J14+1) -> 259 | P14: 7 | Q14: =VLOOKUP(P14,Players!$W$3:$Y$997,2,FALSE) ->  | S14: =VLOOKUP(P14,Players!$W$3:$Y$997,3,FALSE) ->  | T14: =VLOOKUP(P14,Players!$W$3:$Z$997,4,FALSE) ->  | V14: TRUE | W14: 0 | X14: 0 | Z14: 7 | AA14: =VLOOKUP(Z14,Players!$BA$3:$BC$997,2,FALSE) ->  | AC14: =VLOOKUP(Z14,Players!$BA$3:$BC$997,3,FALSE) ->  | AD14: =VLOOKUP(Z14,Players!$BA$3:$BD$997,4,FALSE) ->  | AF14: TRUE | AG14: 0 | AH14: 0
A15: =IF('User Input'!C13 = 0,"",'User Input'!C13) ->  | B15: =IF('User Input'!C13=0,"",COUNTIF(Players!$G$3:$G$872,A15)) ->  | C15: =IF('User Input'!C13=0,"",COUNTIF(Players!$AI$3:$AJ$915,A15)) ->  | D15: =IF('User Input'!C13=0,"",C15+B15) ->  | E15: =IF('User Input'!C13=0,"",SUMIF(Players!$G$3:$G$872,A15,Players!$H$3:$H$872)) ->  | F15: =IF('User Input'!C13=0,"",SUMIF(Players!$AJ$3:$AJ$915,A15,Players!$AK$3:$AK$915)) ->  | G15: =IF('User Input'!C13 = 0,"",F15+E15) ->  | H15: =IF('User Input'!C13 = 0,"",'User Input'!$C$29-B15) ->  | I15: =IF('User Input'!C13 = 0,"",'User Input'!$C$30-C15) ->  | J15: =IF('User Input'!C13 = 0,"",I15+H15) ->  | K15: =IF('User Input'!C13 = 0,"",'User Input'!$C$27-G15) ->  | L15: =IF('User Input'!C13 = 0,"",K15/J15) ->  | M15: =IF('User Input'!C13 = 0,"",K15-J15+1) ->  | P15: 8 | Q15: =VLOOKUP(P15,Players!$W$3:$Y$997,2,FALSE) ->  | S15: =VLOOKUP(P15,Players!$W$3:$Y$997,3,FALSE) ->  | T15: =VLOOKUP(P15,Players!$W$3:$Z$997,4,FALSE) ->  | V15: TRUE | W15: 0 | X15: 0 | Z15: 8 | AA15: =VLOOKUP(Z15,Players!$BA$3:$BC$997,2,FALSE) ->  | AC15: =VLOOKUP(Z15,Players!$BA$3:$BC$997,3,FALSE) ->  | AD15: =VLOOKUP(Z15,Players!$BA$3:$BD$997,4,FALSE) ->  | AF15: TRUE | AG15: 0 | AH15: 0
A16: =IF('User Input'!C14 = 0,"",'User Input'!C14) ->  | B16: =IF('User Input'!C14=0,"",COUNTIF(Players!$G$3:$G$872,A16)) ->  | C16: =IF('User Input'!C14=0,"",COUNTIF(Players!$AI$3:$AJ$915,A16)) ->  | D16: =IF('User Input'!C14=0,"",C16+B16) ->  | E16: =IF('User Input'!C14=0,"",SUMIF(Players!$G$3:$G$872,A16,Players!$H$3:$H$872)) ->  | F16: =IF('User Input'!C14=0,"",SUMIF(Players!$AJ$3:$AJ$915,A16,Players!$AK$3:$AK$915)) ->  | G16: =IF('User Input'!C14 = 0,"",F16+E16) ->  | H16: =IF('User Input'!C14 = 0,"",'User Input'!$C$29-B16) ->  | I16: =IF('User Input'!C14 = 0,"",'User Input'!$C$30-C16) ->  | J16: =IF('User Input'!C14 = 0,"",I16+H16) ->  | K16: =IF('User Input'!C14 = 0,"",'User Input'!$C$27-G16) ->  | L16: =IF('User Input'!C14 = 0,"",K16/J16) ->  | M16: =IF('User Input'!C14 = 0,"",K16-J16+1) ->  | P16: 9 | Q16: =VLOOKUP(P16,Players!$W$3:$Y$997,2,FALSE) ->  | S16: =VLOOKUP(P16,Players!$W$3:$Y$997,3,FALSE) ->  | T16: =VLOOKUP(P16,Players!$W$3:$Z$997,4,FALSE) ->  | V16: TRUE | W16: 0 | X16: 0 | Z16: 9 | AA16: =VLOOKUP(Z16,Players!$BA$3:$BC$997,2,FALSE) ->  | AC16: =VLOOKUP(Z16,Players!$BA$3:$BC$997,3,FALSE) ->  | AD16: =VLOOKUP(Z16,Players!$BA$3:$BD$997,4,FALSE) ->  | AF16: TRUE | AG16: 0 | AH16: 0
A17: =IF('User Input'!C15 = 0,"",'User Input'!C15) ->  | B17: =IF('User Input'!C15=0,"",COUNTIF(Players!$G$3:$G$872,A17)) ->  | C17: =IF('User Input'!C15=0,"",COUNTIF(Players!$AI$3:$AJ$915,A17)) ->  | D17: =IF('User Input'!C15=0,"",C17+B17) ->  | E17: =IF('User Input'!C15=0,"",SUMIF(Players!$G$3:$G$872,A17,Players!$H$3:$H$872)) ->  | F17: =IF('User Input'!C15=0,"",SUMIF(Players!$AJ$3:$AJ$915,A17,Players!$AK$3:$AK$915)) ->  | G17: =IF('User Input'!C15 = 0,"",F17+E17) ->  | H17: =IF('User Input'!C15 = 0,"",'User Input'!$C$29-B17) ->  | I17: =IF('User Input'!C15 = 0,"",'User Input'!$C$30-C17) ->  | J17: =IF('User Input'!C15 = 0,"",I17+H17) ->  | K17: =IF('User Input'!C15 = 0,"",'User Input'!$C$27-G17) ->  | L17: =IF('User Input'!C15 = 0,"",K17/J17) ->  | M17: =IF('User Input'!C15 = 0,"",K17-J17+1) ->  | P17: 10 | Q17: =VLOOKUP(P17,Players!$W$3:$Y$997,2,FALSE) ->  | S17: =VLOOKUP(P17,Players!$W$3:$Y$997,3,FALSE) ->  | T17: =VLOOKUP(P17,Players!$W$3:$Z$997,4,FALSE) ->  | V17: TRUE | W17: 0 | X17: 0 | Z17: 10 | AA17: =VLOOKUP(Z17,Players!$BA$3:$BC$997,2,FALSE) ->  | AC17: =VLOOKUP(Z17,Players!$BA$3:$BC$997,3,FALSE) ->  | AD17: =VLOOKUP(Z17,Players!$BA$3:$BD$997,4,FALSE) ->  | AF17: TRUE | AG17: 0 | AH17: 0
A18: =IF('User Input'!C16 = 0,"",'User Input'!C16) ->  | B18: =IF('User Input'!C16=0,"",COUNTIF(Players!$G$3:$G$872,A18)) ->  | C18: =IF('User Input'!C16=0,"",COUNTIF(Players!$AI$3:$AJ$915,A18)) ->  | D18: =IF('User Input'!C16=0,"",C18+B18) ->  | E18: =IF('User Input'!C16=0,"",SUMIF(Players!$G$3:$G$872,A18,Players!$H$3:$H$872)) ->  | F18: =IF('User Input'!C16=0,"",SUMIF(Players!$AJ$3:$AJ$915,A18,Players!$AK$3:$AK$915)) ->  | G18: =IF('User Input'!C16 = 0,"",F18+E18) ->  | H18: =IF('User Input'!C16 = 0,"",'User Input'!$C$29-B18) ->  | I18: =IF('User Input'!C16 = 0,"",'User Input'!$C$30-C18) ->  | J18: =IF('User Input'!C16 = 0,"",I18+H18) ->  | K18: =IF('User Input'!C16 = 0,"",'User Input'!$C$27-G18) ->  | L18: =IF('User Input'!C16 = 0,"",K18/J18) ->  | M18: =IF('User Input'!C16 = 0,"",K18-J18+1) ->  | P18: 11 | Q18: =VLOOKUP(P18,Players!$W$3:$Y$997,2,FALSE) ->  | S18: =VLOOKUP(P18,Players!$W$3:$Y$997,3,FALSE) ->  | T18: =VLOOKUP(P18,Players!$W$3:$Z$997,4,FALSE) ->  | V18: TRUE | W18: 0 | X18: 0 | Z18: 11 | AA18: =VLOOKUP(Z18,Players!$BA$3:$BC$997,2,FALSE) ->  | AC18: =VLOOKUP(Z18,Players!$BA$3:$BC$997,3,FALSE) ->  | AD18: =VLOOKUP(Z18,Players!$BA$3:$BD$997,4,FALSE) ->  | AF18: TRUE | AG18: 0 | AH18: 0
A19: =IF('User Input'!C17 = 0,"",'User Input'!C17) ->  | B19: =IF('User Input'!C17=0,"",COUNTIF(Players!$G$3:$G$872,A19)) ->  | C19: =IF('User Input'!C17=0,"",COUNTIF(Players!$AI$3:$AJ$915,A19)) ->  | D19: =IF('User Input'!C17=0,"",C19+B19) ->  | E19: =IF('User Input'!C17=0,"",SUMIF(Players!$G$3:$G$872,A19,Players!$H$3:$H$872)) ->  | F19: =IF('User Input'!C17=0,"",SUMIF(Players!$AJ$3:$AJ$915,A19,Players!$AK$3:$AK$915)) ->  | G19: =IF('User Input'!C17 = 0,"",F19+E19) ->  | H19: =IF('User Input'!C17 = 0,"",'User Input'!$C$29-B19) ->  | I19: =IF('User Input'!C17 = 0,"",'User Input'!$C$30-C19) ->  | J19: =IF('User Input'!C17 = 0,"",I19+H19) ->  | K19: =IF('User Input'!C17 = 0,"",'User Input'!$C$27-G19) ->  | L19: =IF('User Input'!C17 = 0,"",K19/J19) ->  | M19: =IF('User Input'!C17 = 0,"",K19-J19+1) ->  | P19: 12 | Q19: =VLOOKUP(P19,Players!$W$3:$Y$997,2,FALSE) ->  | S19: =VLOOKUP(P19,Players!$W$3:$Y$997,3,FALSE) ->  | T19: =VLOOKUP(P19,Players!$W$3:$Z$997,4,FALSE) ->  | V19: TRUE | W19: 0 | X19: 0 | Z19: 12 | AA19: =VLOOKUP(Z19,Players!$BA$3:$BC$997,2,FALSE) ->  | AC19: =VLOOKUP(Z19,Players!$BA$3:$BC$997,3,FALSE) ->  | AD19: =VLOOKUP(Z19,Players!$BA$3:$BD$997,4,FALSE) ->  | AF19: TRUE | AG19: 0 | AH19: 0
A20: =IF('User Input'!C18 = 0,"",'User Input'!C18) ->  | B20: =IF('User Input'!C18=0,"",COUNTIF(Players!$G$3:$G$872,A20)) ->  | C20: =IF('User Input'!C18=0,"",COUNTIF(Players!$AI$3:$AJ$915,A20)) ->  | D20: =IF('User Input'!C18=0,"",C20+B20) ->  | E20: =IF('User Input'!C18=0,"",SUMIF(Players!$G$3:$G$872,A20,Players!$H$3:$H$872)) ->  | F20: =IF('User Input'!C18=0,"",SUMIF(Players!$AJ$3:$AJ$915,A20,Players!$AK$3:$AK$915)) ->  | G20: =IF('User Input'!C18 = 0,"",F20+E20) ->  | H20: =IF('User Input'!C18 = 0,"",'User Input'!$C$29-B20) ->  | I20: =IF('User Input'!C18 = 0,"",'User Input'!$C$30-C20) ->  | J20: =IF('User Input'!C18 = 0,"",I20+H20) ->  | K20: =IF('User Input'!C18 = 0,"",'User Input'!$C$27-G20) ->  | L20: =IF('User Input'!C18 = 0,"",K20/J20) ->  | M20: =IF('User Input'!C18 = 0,"",K20-J20+1) ->  | P20: 13 | Q20: =VLOOKUP(P20,Players!$W$3:$Y$997,2,FALSE) ->  | S20: =VLOOKUP(P20,Players!$W$3:$Y$997,3,FALSE) ->  | T20: =VLOOKUP(P20,Players!$W$3:$Z$997,4,FALSE) ->  | V20: TRUE | W20: 0 | X20: 0 | Z20: 13 | AA20: =VLOOKUP(Z20,Players!$BA$3:$BC$997,2,FALSE) ->  | AC20: =VLOOKUP(Z20,Players!$BA$3:$BC$997,3,FALSE) ->  | AD20: =VLOOKUP(Z20,Players!$BA$3:$BD$997,4,FALSE) ->  | AF20: TRUE | AG20: 0 | AH20: 0
A21: =IF('User Input'!C19 = 0,"",'User Input'!C19) ->  | B21: =IF('User Input'!C19=0,"",COUNTIF(Players!$G$3:$G$872,A21)) ->  | C21: =IF('User Input'!C19=0,"",COUNTIF(Players!$AI$3:$AJ$915,A21)) ->  | D21: =IF('User Input'!C19=0,"",C21+B21) ->  | E21: =IF('User Input'!C19=0,"",SUMIF(Players!$G$3:$G$872,A21,Players!$H$3:$H$872)) ->  | F21: =IF('User Input'!C19=0,"",SUMIF(Players!$AJ$3:$AJ$915,A21,Players!$AK$3:$AK$915)) ->  | G21: =IF('User Input'!C19 = 0,"",F21+E21) ->  | H21: =IF('User Input'!C19 = 0,"",'User Input'!$C$29-B21) ->  | I21: =IF('User Input'!C19 = 0,"",'User Input'!$C$30-C21) ->  | J21: =IF('User Input'!C19 = 0,"",I21+H21) ->  | K21: =IF('User Input'!C19 = 0,"",'User Input'!$C$27-G21) ->  | L21: =IF('User Input'!C19 = 0,"",K21/J21) ->  | M21: =IF('User Input'!C19 = 0,"",K21-J21+1) ->  | P21: 14 | Q21: =VLOOKUP(P21,Players!$W$3:$Y$997,2,FALSE) ->  | S21: =VLOOKUP(P21,Players!$W$3:$Y$997,3,FALSE) ->  | T21: =VLOOKUP(P21,Players!$W$3:$Z$997,4,FALSE) ->  | V21: TRUE | W21: 0 | X21: 0 | Z21: 14 | AA21: =VLOOKUP(Z21,Players!$BA$3:$BC$997,2,FALSE) ->  | AC21: =VLOOKUP(Z21,Players!$BA$3:$BC$997,3,FALSE) ->  | AD21: =VLOOKUP(Z21,Players!$BA$3:$BD$997,4,FALSE) ->  | AF21: =ISERROR(#REF!) -> TRUE | AG21: =IF(AF21=FALSE,#REF!,0) -> 0 | AH21: =IF(AF21=FALSE,#REF!,0) -> 0
A22: =IF('User Input'!C20 = 0,"",'User Input'!C20) ->  | B22: =IF('User Input'!C20=0,"",COUNTIF(Players!$G$3:$G$872,A22)) ->  | C22: =IF('User Input'!C20=0,"",COUNTIF(Players!$AI$3:$AJ$915,A22)) ->  | D22: =IF('User Input'!C20=0,"",C22+B22) ->  | E22: =IF('User Input'!C20=0,"",SUMIF(Players!$G$3:$G$872,A22,Players!$H$3:$H$872)) ->  | F22: =IF('User Input'!C20=0,"",SUMIF(Players!$AJ$3:$AJ$915,A22,Players!$AK$3:$AK$915)) ->  | G22: =IF('User Input'!C20 = 0,"",F22+E22) ->  | H22: =IF('User Input'!C20 = 0,"",'User Input'!$C$29-B22) ->  | I22: =IF('User Input'!C20 = 0,"",'User Input'!$C$30-C22) ->  | J22: =IF('User Input'!C20 = 0,"",I22+H22) ->  | K22: =IF('User Input'!C20 = 0,"",'User Input'!$C$27-G22) ->  | L22: =IF('User Input'!C20 = 0,"",K22/J22) ->  | M22: =IF('User Input'!C20 = 0,"",K22-J22+1) ->  | P22: 15 | Q22: =VLOOKUP(P22,Players!$W$3:$Y$997,2,FALSE) ->  | S22: =VLOOKUP(P22,Players!$W$3:$Y$997,3,FALSE) ->  | T22: =VLOOKUP(P22,Players!$W$3:$Z$997,4,FALSE) ->  | V22: TRUE | W22: 0 | X22: 0 | Z22: 15 | AA22: =VLOOKUP(Z22,Players!$BA$3:$BC$997,2,FALSE) ->  | AC22: =VLOOKUP(Z22,Players!$BA$3:$BC$997,3,FALSE) ->  | AD22: =VLOOKUP(Z22,Players!$BA$3:$BD$997,4,FALSE) -> 
A23: =IF('User Input'!C21 = 0,"",'User Input'!C21) ->  | B23: =IF('User Input'!C21=0,"",COUNTIF(Players!$G$3:$G$872,A23)) ->  | C23: =IF('User Input'!C21=0,"",COUNTIF(Players!$AI$3:$AJ$915,A23)) ->  | D23: =IF('User Input'!C21=0,"",C23+B23) ->  | E23: =IF('User Input'!C21=0,"",SUMIF(Players!$G$3:$G$872,A23,Players!$H$3:$H$872)) ->  | F23: =IF('User Input'!C21=0,"",SUMIF(Players!$AJ$3:$AJ$915,A23,Players!$AK$3:$AK$915)) ->  | G23: =IF('User Input'!C21 = 0,"",F23+E23) ->  | H23: =IF('User Input'!C21 = 0,"",'User Input'!$C$29-B23) ->  | I23: =IF('User Input'!C21 = 0,"",'User Input'!$C$30-C23) ->  | J23: =IF('User Input'!C21 = 0,"",I23+H23) ->  | K23: =IF('User Input'!C21 = 0,"",'User Input'!$C$27-G23) ->  | L23: =IF('User Input'!C21 = 0,"",K23/J23) ->  | M23: =IF('User Input'!C21 = 0,"",K23-J23+1) ->  | P23: 16 | Q23: =VLOOKUP(P23,Players!$W$3:$Y$997,2,FALSE) ->  | S23: =VLOOKUP(P23,Players!$W$3:$Y$997,3,FALSE) ->  | T23: =VLOOKUP(P23,Players!$W$3:$Z$997,4,FALSE) ->  | V23: TRUE | W23: 0 | X23: 0 | Z23: 16 | AA23: =VLOOKUP(Z23,Players!$BA$3:$BC$997,2,FALSE) ->  | AC23: =VLOOKUP(Z23,Players!$BA$3:$BC$997,3,FALSE) ->  | AD23: =VLOOKUP(Z23,Players!$BA$3:$BD$997,4,FALSE) -> 
A24: =IF('User Input'!C22 = 0,"",'User Input'!C22) ->  | B24: =IF('User Input'!C22=0,"",COUNTIF(Players!$G$3:$G$872,A24)) ->  | C24: =IF('User Input'!C22=0,"",COUNTIF(Players!$AI$3:$AJ$915,A24)) ->  | D24: =IF('User Input'!C22=0,"",C24+B24) ->  | E24: =IF('User Input'!C22=0,"",SUMIF(Players!$G$3:$G$872,A24,Players!$H$3:$H$872)) ->  | F24: =IF('User Input'!C22=0,"",SUMIF(Players!$AJ$3:$AJ$915,A24,Players!$AK$3:$AK$915)) ->  | G24: =IF('User Input'!C22 = 0,"",F24+E24) ->  | H24: =IF('User Input'!C22 = 0,"",'User Input'!$C$29-B24) ->  | I24: =IF('User Input'!C22 = 0,"",'User Input'!$C$30-C24) ->  | J24: =IF('User Input'!C22 = 0,"",I24+H24) ->  | K24: =IF('User Input'!C22 = 0,"",'User Input'!$C$27-G24) ->  | L24: =IF('User Input'!C22 = 0,"",K24/J24) ->  | M24: =IF('User Input'!C22 = 0,"",K24-J24+1) ->  | S24: =SUM(W8:W23) -> 0 | T24: =SUM(X8:X23) -> 0 | AC24: =SUM(AG5:AG21) -> 0 | AD24: =SUM(AH5:AH21) -> 0
A25: =IF('User Input'!C23 = 0,"",'User Input'!C23) ->  | B25: =IF('User Input'!C23=0,"",COUNTIF(Players!$G$3:$G$872,A25)) ->  | C25: =IF('User Input'!C23=0,"",COUNTIF(Players!$AI$3:$AJ$915,A25)) ->  | D25: =IF('User Input'!C23=0,"",C25+B25) ->  | E25: =IF('User Input'!C23=0,"",SUMIF(Players!$G$3:$G$872,A25,Players!$H$3:$H$872)) ->  | F25: =IF('User Input'!C23=0,"",SUMIF(Players!$AJ$3:$AJ$915,A25,Players!$AK$3:$AK$915)) ->  | G25: =IF('User Input'!C23 = 0,"",F25+E25) ->  | H25: =IF('User Input'!C23 = 0,"",'User Input'!$C$29-B25) ->  | I25: =IF('User Input'!C23 = 0,"",'User Input'!$C$30-C25) ->  | J25: =IF('User Input'!C23 = 0,"",I25+H25) ->  | K25: =IF('User Input'!C23 = 0,"",'User Input'!$C$27-G25) ->  | L25: =IF('User Input'!C23 = 0,"",K25/J25) ->  | M25: =IF('User Input'!C23 = 0,"",K25-J25+1) -> 
A26: =IF('User Input'!C24 = 0,"",'User Input'!C24) ->  | B26: =IF('User Input'!C24=0,"",COUNTIF(Players!$G$3:$G$872,A26)) ->  | C26: =IF('User Input'!C24=0,"",COUNTIF(Players!$AI$3:$AJ$915,A26)) ->  | D26: =IF('User Input'!C24=0,"",C26+B26) ->  | E26: =IF('User Input'!C24=0,"",SUMIF(Players!$G$3:$G$872,A26,Players!$H$3:$H$872)) ->  | F26: =IF('User Input'!C24=0,"",SUMIF(Players!$AJ$3:$AJ$915,A26,Players!$AK$3:$AK$915)) ->  | G26: =IF('User Input'!C24 = 0,"",F26+E26) ->  | H26: =IF('User Input'!C24 = 0,"",'User Input'!$C$29-B26) ->  | I26: =IF('User Input'!C24 = 0,"",'User Input'!$C$30-C26) ->  | J26: =IF('User Input'!C24 = 0,"",I26+H26) ->  | K26: =IF('User Input'!C24 = 0,"",'User Input'!$C$27-G26) ->  | L26: =IF('User Input'!C24 = 0,"",K26/J26) ->  | M26: =IF('User Input'!C24 = 0,"",K26-J26+1) -> 
A27: =IF('User Input'!C25 = 0,"",'User Input'!C25) ->  | B27: =IF('User Input'!C25=0,"",COUNTIF(Players!$G$3:$G$872,A27)) ->  | C27: =IF('User Input'!C25=0,"",COUNTIF(Players!$AI$3:$AJ$915,A27)) ->  | D27: =IF('User Input'!C25=0,"",C27+B27) ->  | E27: =IF('User Input'!C25=0,"",SUMIF(Players!$G$3:$G$872,A27,Players!$H$3:$H$872)) ->  | F27: =IF('User Input'!C25=0,"",SUMIF(Players!$AJ$3:$AJ$915,A27,Players!$AK$3:$AK$915)) ->  | G27: =IF('User Input'!C25 = 0,"",F27+E27) ->  | H27: =IF('User Input'!C25 = 0,"",'User Input'!$C$29-B27) ->  | I27: =IF('User Input'!C25 = 0,"",'User Input'!$C$30-C27) ->  | J27: =IF('User Input'!C25 = 0,"",I27+H27) ->  | K27: =IF('User Input'!C25 = 0,"",'User Input'!$C$27-G27) ->  | L27: =IF('User Input'!C25 = 0,"",K27/J27) ->  | M27: =IF('User Input'!C25 = 0,"",K27-J27+1) -> 
B29: Projected Batting Ranks | G29: Projected Pitching Ranks | M29: tot | N29: Team Rank | P29: Goal Tracking
B30: R | C30: HR | D30: RBI | E30: SB | F30: AVG | G30: IP | H30: ERA | I30: WHIP | J30: W | K30: S | L30: K | P30: R | Q30: HR | R30: RBI | S30: SB | U30: AVG
A31: =IF('User Input'!C1 = 0,"",'User Input'!C1) -> a | B31: =IF('User Input'!C1=0,"",RANK(C75,C$75:C$86,1)) -> 1 | C31: =IF('User Input'!C1=0,"",RANK(D75,D$75:D$86,1)) -> 1 | D31: =IF('User Input'!C1=0,"",RANK(E75,E$75:E$86,1)) -> 1 | E31: =IF('User Input'!C1=0,"",RANK(F75,F$75:F$86,1)) -> 1 | F31: =IF('User Input'!C1=0,"",RANK(G75,G$75:G$86,1)) ->  | G31: =IF('User Input'!C1=0,"",SUMIF(Players!$AJ$3:$AJ$915,A31,Players!AQ$3:AQ$915)) -> 0 | H31: =IF('User Input'!C1=0,"",RANK(I75,I$75:I$86,0)) ->  | I31: =IF('User Input'!C1=0,"",RANK(J75,J$75:J$86,0)) ->  | J31: =IF('User Input'!C1=0,"",RANK(K75,K$75:K$86,1)) -> 1 | K31: =IF('User Input'!C1=0,"",RANK(L75,L$75:L$86,1)) -> 1 | L31: =IF('User Input'!C1=0,"",RANK(M75,M$75:M$86,1)) -> 1 | M31: =IF('User Input'!C1 = 0,"",B31+C31+D31+E31+F31+H31+I31+J31+K31+L31) ->  | N31: =IF('User Input'!C1=0,"",RANK(M31,M$31:M$42,1)) ->  | P31: ='User Input'!C33/'User Input'!C29 -> 78.53846154 | Q31: ='User Input'!C34/'User Input'!C29 -> 19.61538462 | R31: ='User Input'!C35/'User Input'!C29 -> 74.84615385 | S31: ='User Input'!C36/'User Input'!C29 -> 13.61538462 | U31: ='User Input'!C37 -> 0.271 | Y31: T
A32: =IF('User Input'!C2 = 0,"",'User Input'!C2) -> b | B32: =IF('User Input'!C2=0,"",RANK(C76,C$75:C$86,1)) -> 1 | C32: =IF('User Input'!C2=0,"",RANK(D76,D$75:D$86,1)) -> 1 | D32: =IF('User Input'!C2=0,"",RANK(E76,E$75:E$86,1)) -> 1 | E32: =IF('User Input'!C2=0,"",RANK(F76,F$75:F$86,1)) -> 1 | F32: =IF('User Input'!C2=0,"",RANK(G76,G$75:G$86,1)) ->  | G32: =IF('User Input'!C2=0,"",SUMIF(Players!$AJ$3:$AJ$915,A32,Players!AQ$3:AQ$915)) -> 0 | H32: =IF('User Input'!C2=0,"",RANK(I76,I$75:I$86,0)) ->  | I32: =IF('User Input'!C2=0,"",RANK(J76,J$75:J$86,0)) ->  | J32: =IF('User Input'!C2=0,"",RANK(K76,K$75:K$86,1)) -> 1 | K32: =IF('User Input'!C2=0,"",RANK(L76,L$75:L$86,1)) -> 1 | L32: =IF('User Input'!C2=0,"",RANK(M76,M$75:M$86,1)) -> 1 | M32: =IF('User Input'!C2 = 0,"",B32+C32+D32+E32+F32+H32+I32+J32+K32+L32) ->  | N32: =IF('User Input'!C2=0,"",RANK(M32,M$31:M$42,1)) ->  | P32: =C47 ->  | Q32: =D47 ->  | R32: =E47 ->  | S32: =F47 ->  | U32: =G47 ->  | Y32: C
A33: =IF('User Input'!C3 = 0,"",'User Input'!C3) -> c | B33: =IF('User Input'!C3=0,"",RANK(C77,C$75:C$86,1)) -> 1 | C33: =IF('User Input'!C3=0,"",RANK(D77,D$75:D$86,1)) -> 1 | D33: =IF('User Input'!C3=0,"",RANK(E77,E$75:E$86,1)) -> 1 | E33: =IF('User Input'!C3=0,"",RANK(F77,F$75:F$86,1)) -> 1 | F33: =IF('User Input'!C3=0,"",RANK(G77,G$75:G$86,1)) ->  | G33: =IF('User Input'!C3=0,"",SUMIF(Players!$AJ$3:$AJ$915,A33,Players!AQ$3:AQ$915)) -> 0 | H33: =IF('User Input'!C3=0,"",RANK(I77,I$75:I$86,0)) ->  | I33: =IF('User Input'!C3=0,"",RANK(J77,J$75:J$86,0)) ->  | J33: =IF('User Input'!C3=0,"",RANK(K77,K$75:K$86,1)) -> 1 | K33: =IF('User Input'!C3=0,"",RANK(L77,L$75:L$86,1)) -> 1 | L33: =IF('User Input'!C3=0,"",RANK(M77,M$75:M$86,1)) -> 1 | M33: =IF('User Input'!C3 = 0,"",B33+C33+D33+E33+F33+H33+I33+J33+K33+L33) ->  | N33: =IF('User Input'!C3=0,"",RANK(M33,M$31:M$42,1)) -> 
A34: =IF('User Input'!C4 = 0,"",'User Input'!C4) -> d | B34: =IF('User Input'!C4=0,"",RANK(C78,C$75:C$86,1)) -> 1 | C34: =IF('User Input'!C4=0,"",RANK(D78,D$75:D$86,1)) -> 1 | D34: =IF('User Input'!C4=0,"",RANK(E78,E$75:E$86,1)) -> 1 | E34: =IF('User Input'!C4=0,"",RANK(F78,F$75:F$86,1)) -> 1 | F34: =IF('User Input'!C4=0,"",RANK(G78,G$75:G$86,1)) ->  | G34: =IF('User Input'!C4=0,"",SUMIF(Players!$AJ$3:$AJ$915,A34,Players!AQ$3:AQ$915)) -> 0 | H34: =IF('User Input'!C4=0,"",RANK(I78,I$75:I$86,0)) ->  | I34: =IF('User Input'!C4=0,"",RANK(J78,J$75:J$86,0)) ->  | J34: =IF('User Input'!C4=0,"",RANK(K78,K$75:K$86,1)) -> 1 | K34: =IF('User Input'!C4=0,"",RANK(L78,L$75:L$86,1)) -> 1 | L34: =IF('User Input'!C4=0,"",RANK(M78,M$75:M$86,1)) -> 1 | M34: =IF('User Input'!C4 = 0,"",B34+C34+D34+E34+F34+H34+I34+J34+K34+L34) ->  | N34: =IF('User Input'!C4=0,"",RANK(M34,M$31:M$42,1)) ->  | P34: ERA | Q34: WHIP | R34: W | S34: S | U34: K
A35: =IF('User Input'!C5 = 0,"",'User Input'!C5) -> e | B35: =IF('User Input'!C5=0,"",RANK(C79,C$75:C$86,1)) -> 1 | C35: =IF('User Input'!C5=0,"",RANK(D79,D$75:D$86,1)) -> 1 | D35: =IF('User Input'!C5=0,"",RANK(E79,E$75:E$86,1)) -> 1 | E35: =IF('User Input'!C5=0,"",RANK(F79,F$75:F$86,1)) -> 1 | F35: =IF('User Input'!C5=0,"",RANK(G79,G$75:G$86,1)) ->  | G35: =IF('User Input'!C5=0,"",SUMIF(Players!$AJ$3:$AJ$915,A35,Players!AQ$3:AQ$915)) -> 0 | H35: =IF('User Input'!C5=0,"",RANK(I79,I$75:I$86,0)) ->  | I35: =IF('User Input'!C5=0,"",RANK(J79,J$75:J$86,0)) ->  | J35: =IF('User Input'!C5=0,"",RANK(K79,K$75:K$86,1)) -> 1 | K35: =IF('User Input'!C5=0,"",RANK(L79,L$75:L$86,1)) -> 1 | L35: =IF('User Input'!C5=0,"",RANK(M79,M$75:M$86,1)) -> 1 | M35: =IF('User Input'!C5 = 0,"",B35+C35+D35+E35+F35+H35+I35+J35+K35+L35) ->  | N35: =IF('User Input'!C5=0,"",RANK(M35,M$31:M$42,1)) ->  | P35: ='User Input'!C39 -> 3.56 | Q35: ='User Input'!C40 -> 1.23 | R35: ='User Input'!C41/'User Input'!C30 -> 9.555555556 | S35: ='User Input'!C42/'User Input'!C30 -> 13.55555556 | U35: ='User Input'!C43/'User Input'!C30 -> 141.3333333 | Y35: T
A36: =IF('User Input'!C6 = 0,"",'User Input'!C6) -> f | B36: =IF('User Input'!C6=0,"",RANK(C80,C$75:C$86,1)) -> 1 | C36: =IF('User Input'!C6=0,"",RANK(D80,D$75:D$86,1)) -> 1 | D36: =IF('User Input'!C6=0,"",RANK(E80,E$75:E$86,1)) -> 1 | E36: =IF('User Input'!C6=0,"",RANK(F80,F$75:F$86,1)) -> 1 | F36: =IF('User Input'!C6=0,"",RANK(G80,G$75:G$86,1)) ->  | G36: =IF('User Input'!C6=0,"",SUMIF(Players!$AJ$3:$AJ$915,A36,Players!AQ$3:AQ$915)) -> 0 | H36: =IF('User Input'!C6=0,"",RANK(I80,I$75:I$86,0)) ->  | I36: =IF('User Input'!C6=0,"",RANK(J80,J$75:J$86,0)) ->  | J36: =IF('User Input'!C6=0,"",RANK(K80,K$75:K$86,1)) -> 1 | K36: =IF('User Input'!C6=0,"",RANK(L80,L$75:L$86,1)) -> 1 | L36: =IF('User Input'!C6=0,"",RANK(M80,M$75:M$86,1)) -> 1 | M36: =IF('User Input'!C6 = 0,"",B36+C36+D36+E36+F36+H36+I36+J36+K36+L36) ->  | N36: =IF('User Input'!C6=0,"",RANK(M36,M$31:M$42,1)) ->  | P36: =I47 ->  | Q36: =J47 ->  | R36: =K47 ->  | S36: =L47 ->  | U36: =M47 ->  | Y36: C
A37: =IF('User Input'!C7 = 0,"",'User Input'!C7) -> g | B37: =IF('User Input'!C7=0,"",RANK(C81,C$75:C$86,1)) -> 1 | C37: =IF('User Input'!C7=0,"",RANK(D81,D$75:D$86,1)) -> 1 | D37: =IF('User Input'!C7=0,"",RANK(E81,E$75:E$86,1)) -> 1 | E37: =IF('User Input'!C7=0,"",RANK(F81,F$75:F$86,1)) -> 1 | F37: =IF('User Input'!C7=0,"",RANK(G81,G$75:G$86,1)) ->  | G37: =IF('User Input'!C7=0,"",SUMIF(Players!$AJ$3:$AJ$915,A37,Players!AQ$3:AQ$915)) -> 0 | H37: =IF('User Input'!C7=0,"",RANK(I81,I$75:I$86,0)) ->  | I37: =IF('User Input'!C7=0,"",RANK(J81,J$75:J$86,0)) ->  | J37: =IF('User Input'!C7=0,"",RANK(K81,K$75:K$86,1)) -> 1 | K37: =IF('User Input'!C7=0,"",RANK(L81,L$75:L$86,1)) -> 1 | L37: =IF('User Input'!C7=0,"",RANK(M81,M$75:M$86,1)) -> 1 | M37: =IF('User Input'!C7 = 0,"",B37+C37+D37+E37+F37+H37+I37+J37+K37+L37) ->  | N37: =IF('User Input'!C7=0,"",RANK(M37,M$31:M$42,1)) ->  | P37: Total Players Taken: | R37: =SUM(D3:D24) -> 0
A38: =IF('User Input'!C8 = 0,"",'User Input'!C8) -> h | B38: =IF('User Input'!C8=0,"",RANK(C82,C$75:C$86,1)) -> 1 | C38: =IF('User Input'!C8=0,"",RANK(D82,D$75:D$86,1)) -> 1 | D38: =IF('User Input'!C8=0,"",RANK(E82,E$75:E$86,1)) -> 1 | E38: =IF('User Input'!C8=0,"",RANK(F82,F$75:F$86,1)) -> 1 | F38: =IF('User Input'!C8=0,"",RANK(G82,G$75:G$86,1)) ->  | G38: =IF('User Input'!C8=0,"",SUMIF(Players!$AJ$3:$AJ$915,A38,Players!AQ$3:AQ$915)) -> 0 | H38: =IF('User Input'!C8=0,"",RANK(I82,I$75:I$86,0)) ->  | I38: =IF('User Input'!C8=0,"",RANK(J82,J$75:J$86,0)) ->  | J38: =IF('User Input'!C8=0,"",RANK(K82,K$75:K$86,1)) -> 1 | K38: =IF('User Input'!C8=0,"",RANK(L82,L$75:L$86,1)) -> 1 | L38: =IF('User Input'!C8=0,"",RANK(M82,M$75:M$86,1)) -> 1 | M38: =IF('User Input'!C8 = 0,"",B38+C38+D38+E38+F38+H38+I38+J38+K38+L38) ->  | N38: =IF('User Input'!C8=0,"",RANK(M38,M$31:M$42,1)) -> 
A39: =IF('User Input'!C9 = 0,"",'User Input'!C9) -> i | B39: =IF('User Input'!C9=0,"",RANK(C83,C$75:C$86,1)) -> 1 | C39: =IF('User Input'!C9=0,"",RANK(D83,D$75:D$86,1)) -> 1 | D39: =IF('User Input'!C9=0,"",RANK(E83,E$75:E$86,1)) -> 1 | E39: =IF('User Input'!C9=0,"",RANK(F83,F$75:F$86,1)) -> 1 | F39: =IF('User Input'!C9=0,"",RANK(G83,G$75:G$86,1)) ->  | G39: =IF('User Input'!C9=0,"",SUMIF(Players!$AJ$3:$AJ$915,A39,Players!AQ$3:AQ$915)) -> 0 | H39: =IF('User Input'!C9=0,"",RANK(I83,I$75:I$86,0)) ->  | I39: =IF('User Input'!C9=0,"",RANK(J83,J$75:J$86,0)) ->  | J39: =IF('User Input'!C9=0,"",RANK(K83,K$75:K$86,1)) -> 1 | K39: =IF('User Input'!C9=0,"",RANK(L83,L$75:L$86,1)) -> 1 | L39: =IF('User Input'!C9=0,"",RANK(M83,M$75:M$86,1)) -> 1 | M39: =IF('User Input'!C9 = 0,"",B39+C39+D39+E39+F39+H39+I39+J39+K39+L39) ->  | N39: =IF('User Input'!C9=0,"",RANK(M39,M$31:M$42,1)) -> 
A40: =IF('User Input'!C10 = 0,"",'User Input'!C10) -> j | B40: =IF('User Input'!C10=0,"",RANK(C84,C$75:C$86,1)) -> 1 | C40: =IF('User Input'!C10=0,"",RANK(D84,D$75:D$86,1)) -> 1 | D40: =IF('User Input'!C10=0,"",RANK(E84,E$75:E$86,1)) -> 1 | E40: =IF('User Input'!C10=0,"",RANK(F84,F$75:F$86,1)) -> 1 | F40: =IF('User Input'!C10=0,"",RANK(G84,G$75:G$86,1)) ->  | G40: =IF('User Input'!C10=0,"",SUMIF(Players!$AJ$3:$AJ$915,A40,Players!AQ$3:AQ$915)) -> 0 | H40: =IF('User Input'!C10=0,"",RANK(I84,I$75:I$86,0)) ->  | I40: =IF('User Input'!C10=0,"",RANK(J84,J$75:J$86,0)) ->  | J40: =IF('User Input'!C10=0,"",RANK(K84,K$75:K$86,1)) -> 1 | K40: =IF('User Input'!C10=0,"",RANK(L84,L$75:L$86,1)) -> 1 | L40: =IF('User Input'!C10=0,"",RANK(M84,M$75:M$86,1)) -> 1 | M40: =IF('User Input'!C10 = 0,"",B40+C40+D40+E40+F40+H40+I40+J40+K40+L40) ->  | N40: =IF('User Input'!C10=0,"",RANK(M40,M$31:M$42,1)) -> 
A41: =IF('User Input'!C11 = 0,"",'User Input'!C11) -> k | B41: =IF('User Input'!C11=0,"",RANK(C85,C$75:C$86,1)) -> 1 | C41: =IF('User Input'!C11=0,"",RANK(D85,D$75:D$86,1)) -> 1 | D41: =IF('User Input'!C11=0,"",RANK(E85,E$75:E$86,1)) -> 1 | E41: =IF('User Input'!C11=0,"",RANK(F85,F$75:F$86,1)) -> 1 | F41: =IF('User Input'!C11=0,"",RANK(G85,G$75:G$86,1)) ->  | G41: =IF('User Input'!C11=0,"",SUMIF(Players!$AJ$3:$AJ$915,A41,Players!AQ$3:AQ$915)) -> 0 | H41: =IF('User Input'!C11=0,"",RANK(I85,I$75:I$86,0)) ->  | I41: =IF('User Input'!C11=0,"",RANK(J85,J$75:J$86,0)) ->  | J41: =IF('User Input'!C11=0,"",RANK(K85,K$75:K$86,1)) -> 1 | K41: =IF('User Input'!C11=0,"",RANK(L85,L$75:L$86,1)) -> 1 | L41: =IF('User Input'!C11=0,"",RANK(M85,M$75:M$86,1)) -> 1 | M41: =IF('User Input'!C11 = 0,"",B41+C41+D41+E41+F41+H41+I41+J41+K41+L41) ->  | N41: =IF('User Input'!C11=0,"",RANK(M41,M$31:M$42,1)) -> 
A42: =IF('User Input'!C12 = 0,"",'User Input'!C12) -> l | B42: =IF('User Input'!C12=0,"",RANK(C86,C$75:C$86,1)) -> 1 | C42: =IF('User Input'!C12=0,"",RANK(D86,D$75:D$86,1)) -> 1 | D42: =IF('User Input'!C12=0,"",RANK(E86,E$75:E$86,1)) -> 1 | E42: =IF('User Input'!C12=0,"",RANK(F86,F$75:F$86,1)) -> 1 | F42: =IF('User Input'!C12=0,"",RANK(G86,G$75:G$86,1)) ->  | G42: =IF('User Input'!C12=0,"",SUMIF(Players!$AJ$3:$AJ$915,A42,Players!AQ$3:AQ$915)) -> 0 | H42: =IF('User Input'!C12=0,"",RANK(I86,I$75:I$86,0)) ->  | I42: =IF('User Input'!C12=0,"",RANK(J86,J$75:J$86,0)) ->  | J42: =IF('User Input'!C12=0,"",RANK(K86,K$75:K$86,1)) -> 1 | K42: =IF('User Input'!C12=0,"",RANK(L86,L$75:L$86,1)) -> 1 | L42: =IF('User Input'!C12=0,"",RANK(M86,M$75:M$86,1)) -> 1 | M42: =IF('User Input'!C12 = 0,"",B42+C42+D42+E42+F42+H42+I42+J42+K42+L42) ->  | N42: =IF('User Input'!C12=0,"",RANK(M42,M$31:M$42,1)) -> 
C45: Batting Per Player | I45: Pitching Per Player
A46: Team | C46: R | D46: HR | E46: RBI | F46: SB | G46: AVG | I46: ERA | J46: WHIP | K46: W | L46: S | M46: K
A47: =IF('User Input'!C1 = 0,"",'User Input'!C1) -> a | C47: =IF('User Input'!C1 = 0,"",C75/$B3) ->  | D47: =IF('User Input'!C1 = 0,"",D75/$B3) ->  | E47: =IF('User Input'!C1 = 0,"",E75/$B3) ->  | F47: =IF('User Input'!C1 = 0,"",F75/$B3) ->  | G47: =IF('User Input'!C1 = 0,"",G75) ->  | I47: =IF('User Input'!C1 = 0,"",I75) ->  | J47: =IF('User Input'!C1 = 0,"",J75) ->  | K47: =IF('User Input'!C1 = 0,"",K75/$C3) ->  | L47: =IF('User Input'!C1 = 0,"",L75/$C3) ->  | M47: =IF('User Input'!C1 = 0,"",M75/$C3) -> 
A48: =IF('User Input'!C2 = 0,"",'User Input'!C2) -> b | C48: =IF('User Input'!C2 = 0,"",C76/$B4) ->  | D48: =IF('User Input'!C2 = 0,"",D76/$B4) ->  | E48: =IF('User Input'!C2 = 0,"",E76/$B4) ->  | F48: =IF('User Input'!C2 = 0,"",F76/$B4) ->  | G48: =IF('User Input'!C2 = 0,"",G76) ->  | I48: =IF('User Input'!C2 = 0,"",I76) ->  | J48: =IF('User Input'!C2 = 0,"",J76) ->  | K48: =IF('User Input'!C2 = 0,"",K76/$C4) ->  | L48: =IF('User Input'!C2 = 0,"",L76/$C4) ->  | M48: =IF('User Input'!C2 = 0,"",M76/$C4) -> 
A49: =IF('User Input'!C3 = 0,"",'User Input'!C3) -> c | C49: =IF('User Input'!C3 = 0,"",C77/$B5) ->  | D49: =IF('User Input'!C3 = 0,"",D77/$B5) ->  | E49: =IF('User Input'!C3 = 0,"",E77/$B5) ->  | F49: =IF('User Input'!C3 = 0,"",F77/$B5) ->  | G49: =IF('User Input'!C3 = 0,"",G77) ->  | I49: =IF('User Input'!C3 = 0,"",I77) ->  | J49: =IF('User Input'!C3 = 0,"",J77) ->  | K49: =IF('User Input'!C3 = 0,"",K77/$C5) ->  | L49: =IF('User Input'!C3 = 0,"",L77/$C5) ->  | M49: =IF('User Input'!C3 = 0,"",M77/$C5) -> 
A50: =IF('User Input'!C4 = 0,"",'User Input'!C4) -> d | C50: =IF('User Input'!C4 = 0,"",C78/$B6) ->  | D50: =IF('User Input'!C4 = 0,"",D78/$B6) ->  | E50: =IF('User Input'!C4 = 0,"",E78/$B6) ->  | F50: =IF('User Input'!C4 = 0,"",F78/$B6) ->  | G50: =IF('User Input'!C4 = 0,"",G78) ->  | I50: =IF('User Input'!C4 = 0,"",I78) ->  | J50: =IF('User Input'!C4 = 0,"",J78) ->  | K50: =IF('User Input'!C4 = 0,"",K78/$C6) ->  | L50: =IF('User Input'!C4 = 0,"",L78/$C6) ->  | M50: =IF('User Input'!C4 = 0,"",M78/$C6) -> 
A51: =IF('User Input'!C5 = 0,"",'User Input'!C5) -> e | C51: =IF('User Input'!C5 = 0,"",C79/$B7) ->  | D51: =IF('User Input'!C5 = 0,"",D79/$B7) ->  | E51: =IF('User Input'!C5 = 0,"",E79/$B7) ->  | F51: =IF('User Input'!C5 = 0,"",F79/$B7) ->  | G51: =IF('User Input'!C5 = 0,"",G79) ->  | I51: =IF('User Input'!C5 = 0,"",I79) ->  | J51: =IF('User Input'!C5 = 0,"",J79) ->  | K51: =IF('User Input'!C5 = 0,"",K79/$C7) ->  | L51: =IF('User Input'!C5 = 0,"",L79/$C7) ->  | M51: =IF('User Input'!C5 = 0,"",M79/$C7) -> 
A52: =IF('User Input'!C6 = 0,"",'User Input'!C6) -> f | C52: =IF('User Input'!C6 = 0,"",C80/$B8) ->  | D52: =IF('User Input'!C6 = 0,"",D80/$B8) ->  | E52: =IF('User Input'!C6 = 0,"",E80/$B8) ->  | F52: =IF('User Input'!C6 = 0,"",F80/$B8) ->  | G52: =IF('User Input'!C6 = 0,"",G80) ->  | I52: =IF('User Input'!C6 = 0,"",I80) ->  | J52: =IF('User Input'!C6 = 0,"",J80) ->  | K52: =IF('User Input'!C6 = 0,"",K80/$C8) ->  | L52: =IF('User Input'!C6 = 0,"",L80/$C8) ->  | M52: =IF('User Input'!C6 = 0,"",M80/$C8) -> 
A53: =IF('User Input'!C7 = 0,"",'User Input'!C7) -> g | C53: =IF('User Input'!C7 = 0,"",C81/$B9) ->  | D53: =IF('User Input'!C7 = 0,"",D81/$B9) ->  | E53: =IF('User Input'!C7 = 0,"",E81/$B9) ->  | F53: =IF('User Input'!C7 = 0,"",F81/$B9) ->  | G53: =IF('User Input'!C7 = 0,"",G81) ->  | I53: =IF('User Input'!C7 = 0,"",I81) ->  | J53: =IF('User Input'!C7 = 0,"",J81) ->  | K53: =IF('User Input'!C7 = 0,"",K81/$C9) ->  | L53: =IF('User Input'!C7 = 0,"",L81/$C9) ->  | M53: =IF('User Input'!C7 = 0,"",M81/$C9) -> 
A54: =IF('User Input'!C8 = 0,"",'User Input'!C8) -> h | C54: =IF('User Input'!C8 = 0,"",C82/$B10) ->  | D54: =IF('User Input'!C8 = 0,"",D82/$B10) ->  | E54: =IF('User Input'!C8 = 0,"",E82/$B10) ->  | F54: =IF('User Input'!C8 = 0,"",F82/$B10) ->  | G54: =IF('User Input'!C8 = 0,"",G82) ->  | I54: =IF('User Input'!C8 = 0,"",I82) ->  | J54: =IF('User Input'!C8 = 0,"",J82) ->  | K54: =IF('User Input'!C8 = 0,"",K82/$C10) ->  | L54: =IF('User Input'!C8 = 0,"",L82/$C10) ->  | M54: =IF('User Input'!C8 = 0,"",M82/$C10) -> 
A55: =IF('User Input'!C9 = 0,"",'User Input'!C9) -> i | C55: =IF('User Input'!C9 = 0,"",C83/$B11) ->  | D55: =IF('User Input'!C9 = 0,"",D83/$B11) ->  | E55: =IF('User Input'!C9 = 0,"",E83/$B11) ->  | F55: =IF('User Input'!C9 = 0,"",F83/$B11) ->  | G55: =IF('User Input'!C9 = 0,"",G83) ->  | I55: =IF('User Input'!C9 = 0,"",I83) ->  | J55: =IF('User Input'!C9 = 0,"",J83) ->  | K55: =IF('User Input'!C9 = 0,"",K83/$C11) ->  | L55: =IF('User Input'!C9 = 0,"",L83/$C11) ->  | M55: =IF('User Input'!C9 = 0,"",M83/$C11) -> 
A56: =IF('User Input'!C10 = 0,"",'User Input'!C10) -> j | C56: =IF('User Input'!C10 = 0,"",C84/$B12) ->  | D56: =IF('User Input'!C10 = 0,"",D84/$B12) ->  | E56: =IF('User Input'!C10 = 0,"",E84/$B12) ->  | F56: =IF('User Input'!C10 = 0,"",F84/$B12) ->  | G56: =IF('User Input'!C10 = 0,"",G84) ->  | I56: =IF('User Input'!C10 = 0,"",I84) ->  | J56: =IF('User Input'!C10 = 0,"",J84) ->  | K56: =IF('User Input'!C10 = 0,"",K84/$C12) ->  | L56: =IF('User Input'!C10 = 0,"",L84/$C12) ->  | M56: =IF('User Input'!C10 = 0,"",M84/$C12) -> 
A57: =IF('User Input'!C11 = 0,"",'User Input'!C11) -> k | C57: =IF('User Input'!C11 = 0,"",C85/$B13) ->  | D57: =IF('User Input'!C11 = 0,"",D85/$B13) ->  | E57: =IF('User Input'!C11 = 0,"",E85/$B13) ->  | F57: =IF('User Input'!C11 = 0,"",F85/$B13) ->  | G57: =IF('User Input'!C11 = 0,"",G85) ->  | I57: =IF('User Input'!C11 = 0,"",I85) ->  | J57: =IF('User Input'!C11 = 0,"",J85) ->  | K57: =IF('User Input'!C11 = 0,"",K85/$C13) ->  | L57: =IF('User Input'!C11 = 0,"",L85/$C13) ->  | M57: =IF('User Input'!C11 = 0,"",M85/$C13) -> 
A58: =IF('User Input'!C12 = 0,"",'User Input'!C12) -> l | C58: =IF('User Input'!C12 = 0,"",C86/$B14) ->  | D58: =IF('User Input'!C12 = 0,"",D86/$B14) ->  | E58: =IF('User Input'!C12 = 0,"",E86/$B14) ->  | F58: =IF('User Input'!C12 = 0,"",F86/$B14) ->  | G58: =IF('User Input'!C12 = 0,"",G86) ->  | I58: =IF('User Input'!C12 = 0,"",I86) ->  | J58: =IF('User Input'!C12 = 0,"",J86) ->  | K58: =IF('User Input'!C12 = 0,"",K86/$C14) ->  | L58: =IF('User Input'!C12 = 0,"",L86/$C14) ->  | M58: =IF('User Input'!C12 = 0,"",M86/$C14) -> 
A59: =IF('User Input'!C13 = 0,"",'User Input'!C13) ->  | C59: =IF('User Input'!C13 = 0,"",C87/$B15) ->  | D59: =IF('User Input'!C13 = 0,"",D87/$B15) ->  | E59: =IF('User Input'!C13 = 0,"",E87/$B15) ->  | F59: =IF('User Input'!C13 = 0,"",F87/$B15) ->  | G59: =IF('User Input'!C13 = 0,"",G87) ->  | I59: =IF('User Input'!C13 = 0,"",I87) ->  | J59: =IF('User Input'!C13 = 0,"",J87) ->  | K59: =IF('User Input'!C13 = 0,"",K87/$C15) ->  | L59: =IF('User Input'!C13 = 0,"",L87/$C15) ->  | M59: =IF('User Input'!C13 = 0,"",M87/$C15) -> 
A60: =IF('User Input'!C14 = 0,"",'User Input'!C14) ->  | C60: =IF('User Input'!C14 = 0,"",C88/$B16) ->  | D60: =IF('User Input'!C14 = 0,"",D88/$B16) ->  | E60: =IF('User Input'!C14 = 0,"",E88/$B16) ->  | F60: =IF('User Input'!C14 = 0,"",F88/$B16) ->  | G60: =IF('User Input'!C14 = 0,"",G88) ->  | I60: =IF('User Input'!C14 = 0,"",I88) ->  | J60: =IF('User Input'!C14 = 0,"",J88) ->  | K60: =IF('User Input'!C14 = 0,"",K88/$C16) ->  | L60: =IF('User Input'!C14 = 0,"",L88/$C16) ->  | M60: =IF('User Input'!C14 = 0,"",M88/$C16) -> 
A61: =IF('User Input'!C15 = 0,"",'User Input'!C15) ->  | C61: =IF('User Input'!C15 = 0,"",C89/$B17) ->  | D61: =IF('User Input'!C15 = 0,"",D89/$B17) ->  | E61: =IF('User Input'!C15 = 0,"",E89/$B17) ->  | F61: =IF('User Input'!C15 = 0,"",F89/$B17) ->  | G61: =IF('User Input'!C15 = 0,"",G89) ->  | I61: =IF('User Input'!C15 = 0,"",I89) ->  | J61: =IF('User Input'!C15 = 0,"",J89) ->  | K61: =IF('User Input'!C15 = 0,"",K89/$C17) ->  | L61: =IF('User Input'!C15 = 0,"",L89/$C17) ->  | M61: =IF('User Input'!C15 = 0,"",M89/$C17) -> 
A62: =IF('User Input'!C16 = 0,"",'User Input'!C16) ->  | C62: =IF('User Input'!C16 = 0,"",C90/$B18) ->  | D62: =IF('User Input'!C16 = 0,"",D90/$B18) ->  | E62: =IF('User Input'!C16 = 0,"",E90/$B18) ->  | F62: =IF('User Input'!C16 = 0,"",F90/$B18) ->  | G62: =IF('User Input'!C16 = 0,"",G90) ->  | I62: =IF('User Input'!C16 = 0,"",I90) ->  | J62: =IF('User Input'!C16 = 0,"",J90) ->  | K62: =IF('User Input'!C16 = 0,"",K90/$C18) ->  | L62: =IF('User Input'!C16 = 0,"",L90/$C18) ->  | M62: =IF('User Input'!C16 = 0,"",M90/$C18) -> 
A63: =IF('User Input'!C17 = 0,"",'User Input'!C17) ->  | C63: =IF('User Input'!C17 = 0,"",C91/$B19) ->  | D63: =IF('User Input'!C17 = 0,"",D91/$B19) ->  | E63: =IF('User Input'!C17 = 0,"",E91/$B19) ->  | F63: =IF('User Input'!C17 = 0,"",F91/$B19) ->  | G63: =IF('User Input'!C17 = 0,"",G91) ->  | I63: =IF('User Input'!C17 = 0,"",I91) ->  | J63: =IF('User Input'!C17 = 0,"",J91) ->  | K63: =IF('User Input'!C17 = 0,"",K91/$C19) ->  | L63: =IF('User Input'!C17 = 0,"",L91/$C19) ->  | M63: =IF('User Input'!C17 = 0,"",M91/$C19) -> 
A64: =IF('User Input'!C18 = 0,"",'User Input'!C18) ->  | C64: =IF('User Input'!C18 = 0,"",C92/$B20) ->  | D64: =IF('User Input'!C18 = 0,"",D92/$B20) ->  | E64: =IF('User Input'!C18 = 0,"",E92/$B20) ->  | F64: =IF('User Input'!C18 = 0,"",F92/$B20) ->  | G64: =IF('User Input'!C18 = 0,"",G92) ->  | I64: =IF('User Input'!C18 = 0,"",I92) ->  | J64: =IF('User Input'!C18 = 0,"",J92) ->  | K64: =IF('User Input'!C18 = 0,"",K92/$C20) ->  | L64: =IF('User Input'!C18 = 0,"",L92/$C20) ->  | M64: =IF('User Input'!C18 = 0,"",M92/$C20) -> 
A65: =IF('User Input'!C19 = 0,"",'User Input'!C19) ->  | C65: =IF('User Input'!C19 = 0,"",C93/$B21) ->  | D65: =IF('User Input'!C19 = 0,"",D93/$B21) ->  | E65: =IF('User Input'!C19 = 0,"",E93/$B21) ->  | F65: =IF('User Input'!C19 = 0,"",F93/$B21) ->  | G65: =IF('User Input'!C19 = 0,"",G93) ->  | I65: =IF('User Input'!C19 = 0,"",I93) ->  | J65: =IF('User Input'!C19 = 0,"",J93) ->  | K65: =IF('User Input'!C19 = 0,"",K93/$C21) ->  | L65: =IF('User Input'!C19 = 0,"",L93/$C21) ->  | M65: =IF('User Input'!C19 = 0,"",M93/$C21) -> 
A66: =IF('User Input'!C20 = 0,"",'User Input'!C20) ->  | C66: =IF('User Input'!C20 = 0,"",C94/$B22) ->  | D66: =IF('User Input'!C20 = 0,"",D94/$B22) ->  | E66: =IF('User Input'!C20 = 0,"",E94/$B22) ->  | F66: =IF('User Input'!C20 = 0,"",F94/$B22) ->  | G66: =IF('User Input'!C20 = 0,"",G94) ->  | I66: =IF('User Input'!C20 = 0,"",I94) ->  | J66: =IF('User Input'!C20 = 0,"",J94) ->  | K66: =IF('User Input'!C20 = 0,"",K94/$C22) ->  | L66: =IF('User Input'!C20 = 0,"",L94/$C22) ->  | M66: =IF('User Input'!C20 = 0,"",M94/$C22) -> 
A67: =IF('User Input'!C21 = 0,"",'User Input'!C21) ->  | C67: =IF('User Input'!C21 = 0,"",C95/$B23) ->  | D67: =IF('User Input'!C21 = 0,"",D95/$B23) ->  | E67: =IF('User Input'!C21 = 0,"",E95/$B23) ->  | F67: =IF('User Input'!C21 = 0,"",F95/$B23) ->  | G67: =IF('User Input'!C21 = 0,"",G95) ->  | I67: =IF('User Input'!C21 = 0,"",I95) ->  | J67: =IF('User Input'!C21 = 0,"",J95) ->  | K67: =IF('User Input'!C21 = 0,"",K95/$C23) ->  | L67: =IF('User Input'!C21 = 0,"",L95/$C23) ->  | M67: =IF('User Input'!C21 = 0,"",M95/$C23) -> 
A68: =IF('User Input'!C22 = 0,"",'User Input'!C22) ->  | C68: =IF('User Input'!C22 = 0,"",C96/$B24) ->  | D68: =IF('User Input'!C22 = 0,"",D96/$B24) ->  | E68: =IF('User Input'!C22 = 0,"",E96/$B24) ->  | F68: =IF('User Input'!C22 = 0,"",F96/$B24) ->  | G68: =IF('User Input'!C22 = 0,"",G96) ->  | I68: =IF('User Input'!C22 = 0,"",I96) ->  | J68: =IF('User Input'!C22 = 0,"",J96) ->  | K68: =IF('User Input'!C22 = 0,"",K96/$C24) ->  | L68: =IF('User Input'!C22 = 0,"",L96/$C24) ->  | M68: =IF('User Input'!C22 = 0,"",M96/$C24) -> 
A69: =IF('User Input'!C23 = 0,"",'User Input'!C23) ->  | C69: =IF('User Input'!C23 = 0,"",C97/$B25) ->  | D69: =IF('User Input'!C23 = 0,"",D97/$B25) ->  | E69: =IF('User Input'!C23 = 0,"",E97/$B25) ->  | F69: =IF('User Input'!C23 = 0,"",F97/$B25) ->  | G69: =IF('User Input'!C23 = 0,"",G97) ->  | I69: =IF('User Input'!C23 = 0,"",I97) ->  | J69: =IF('User Input'!C23 = 0,"",J97) ->  | K69: =IF('User Input'!C23 = 0,"",K97/$C25) ->  | L69: =IF('User Input'!C23 = 0,"",L97/$C25) ->  | M69: =IF('User Input'!C23 = 0,"",M97/$C25) -> 
A70: =IF('User Input'!C24 = 0,"",'User Input'!C24) ->  | C70: =IF('User Input'!C24 = 0,"",C98/$B26) ->  | D70: =IF('User Input'!C24 = 0,"",D98/$B26) ->  | E70: =IF('User Input'!C24 = 0,"",E98/$B26) ->  | F70: =IF('User Input'!C24 = 0,"",F98/$B26) ->  | G70: =IF('User Input'!C24 = 0,"",G98) ->  | I70: =IF('User Input'!C24 = 0,"",I98) ->  | J70: =IF('User Input'!C24 = 0,"",J98) ->  | K70: =IF('User Input'!C24 = 0,"",K98/$C26) ->  | L70: =IF('User Input'!C24 = 0,"",L98/$C26) ->  | M70: =IF('User Input'!C24 = 0,"",M98/$C26) -> 
A71: =IF('User Input'!C25 = 0,"",'User Input'!C25) ->  | C71: =IF('User Input'!C25 = 0,"",C99/$B27) ->  | D71: =IF('User Input'!C25 = 0,"",D99/$B27) ->  | E71: =IF('User Input'!C25 = 0,"",E99/$B27) ->  | F71: =IF('User Input'!C25 = 0,"",F99/$B27) ->  | G71: =IF('User Input'!C25 = 0,"",G99) ->  | I71: =IF('User Input'!C25 = 0,"",I99) ->  | J71: =IF('User Input'!C25 = 0,"",J99) ->  | K71: =IF('User Input'!C25 = 0,"",K99/$C27) ->  | L71: =IF('User Input'!C25 = 0,"",L99/$C27) ->  | M71: =IF('User Input'!C25 = 0,"",M99/$C27) -> 
B73: Projected Batting Totals | H73: Projected Pitching Totals
A74: Team | B74: AB | C74: R | D74: HR | E74: RBI | F74: SB | G74: AVG | H74: IP | I74: ERA | J74: WHIP | K74: W | L74: S | M74: K
A75: =IF('User Input'!C1 = 0,"",'User Input'!C1) -> a | B75: =IF('User Input'!C1=0,"",SUMIF(Players!$G$3:$G$872,A75,Players!N$3:N$872)) -> 0 | C75: =IF('User Input'!C1=0,"",SUMIF(Players!$G$3:$G$872,A75,Players!O$3:O$872)) -> 0 | D75: =IF('User Input'!C1=0,"",SUMIF(Players!$G$3:$G$872,A75,Players!P$3:P$872)) -> 0 | E75: =IF('User Input'!C1=0,"",SUMIF(Players!$G$3:$G$872,A75,Players!Q$3:Q$872)) -> 0 | F75: =IF('User Input'!C1=0,"",SUMIF(Players!$G$3:$G$872,A75,Players!R$3:R$872)) -> 0 | G75: =IF('User Input'!C1=0,"",(SUMIF(Players!$G$3:$G$872,A75,Players!T$3:T$997))/B75) ->  | H75: =IF('User Input'!C1=0,"",SUMIF(Players!$AJ$3:$AJ$915,A75,Players!AQ$3:AQ$915)) -> 0 | I75: =IF('User Input'!C1=0,"",SUMIF(Players!$AJ$3:$AJ$915,A75,Players!AW$3:AW$997)/H75) ->  | J75: =IF('User Input'!C1=0,"",SUMIF(Players!$AJ$3:$AJ$915,A75,Players!AX$3:AX$997)/H75) ->  | K75: =IF('User Input'!C1=0,"",SUMIF(Players!$AJ$3:$AJ$915,A75,Players!AT$3:AT$915)) -> 0 | L75: =IF('User Input'!C1=0,"",SUMIF(Players!$AJ$3:$AJ$915,A75,Players!AU$3:AU$915)) -> 0 | M75: =IF('User Input'!C1=0,"",SUMIF(Players!$AJ$3:$AJ$915,A75,Players!AV$3:AV$915)) -> 0
A76: =IF('User Input'!C2 = 0,"",'User Input'!C2) -> b | B76: =IF('User Input'!C2=0,"",SUMIF(Players!$G$3:$G$872,A76,Players!N$3:N$872)) -> 0 | C76: =IF('User Input'!C2=0,"",SUMIF(Players!$G$3:$G$872,A76,Players!O$3:O$872)) -> 0 | D76: =IF('User Input'!C2=0,"",SUMIF(Players!$G$3:$G$872,A76,Players!P$3:P$872)) -> 0 | E76: =IF('User Input'!C2=0,"",SUMIF(Players!$G$3:$G$872,A76,Players!Q$3:Q$872)) -> 0 | F76: =IF('User Input'!C2=0,"",SUMIF(Players!$G$3:$G$872,A76,Players!R$3:R$872)) -> 0 | G76: =IF('User Input'!C2=0,"",(SUMIF(Players!$G$3:$G$872,A76,Players!T$3:T$997))/B76) ->  | H76: =IF('User Input'!C2=0,"",SUMIF(Players!$AJ$3:$AJ$915,A76,Players!AQ$3:AQ$915)) -> 0 | I76: =IF('User Input'!C2=0,"",SUMIF(Players!$AJ$3:$AJ$915,A76,Players!AW$3:AW$997)/H76) ->  | J76: =IF('User Input'!C2=0,"",SUMIF(Players!$AJ$3:$AJ$915,A76,Players!AX$3:AX$997)/H76) ->  | K76: =IF('User Input'!C2=0,"",SUMIF(Players!$AJ$3:$AJ$915,A76,Players!AT$3:AT$915)) -> 0 | L76: =IF('User Input'!C2=0,"",SUMIF(Players!$AJ$3:$AJ$915,A76,Players!AU$3:AU$915)) -> 0 | M76: =IF('User Input'!C2=0,"",SUMIF(Players!$AJ$3:$AJ$915,A76,Players!AV$3:AV$915)) -> 0
A77: =IF('User Input'!C3 = 0,"",'User Input'!C3) -> c | B77: =IF('User Input'!C3=0,"",SUMIF(Players!$G$3:$G$872,A77,Players!N$3:N$872)) -> 0 | C77: =IF('User Input'!C3=0,"",SUMIF(Players!$G$3:$G$872,A77,Players!O$3:O$872)) -> 0 | D77: =IF('User Input'!C3=0,"",SUMIF(Players!$G$3:$G$872,A77,Players!P$3:P$872)) -> 0 | E77: =IF('User Input'!C3=0,"",SUMIF(Players!$G$3:$G$872,A77,Players!Q$3:Q$872)) -> 0 | F77: =IF('User Input'!C3=0,"",SUMIF(Players!$G$3:$G$872,A77,Players!R$3:R$872)) -> 0 | G77: =IF('User Input'!C3=0,"",(SUMIF(Players!$G$3:$G$872,A77,Players!T$3:T$997))/B77) ->  | H77: =IF('User Input'!C3=0,"",SUMIF(Players!$AJ$3:$AJ$915,A77,Players!AQ$3:AQ$915)) -> 0 | I77: =IF('User Input'!C3=0,"",SUMIF(Players!$AJ$3:$AJ$915,A77,Players!AW$3:AW$997)/H77) ->  | J77: =IF('User Input'!C3=0,"",SUMIF(Players!$AJ$3:$AJ$915,A77,Players!AX$3:AX$997)/H77) ->  | K77: =IF('User Input'!C3=0,"",SUMIF(Players!$AJ$3:$AJ$915,A77,Players!AT$3:AT$915)) -> 0 | L77: =IF('User Input'!C3=0,"",SUMIF(Players!$AJ$3:$AJ$915,A77,Players!AU$3:AU$915)) -> 0 | M77: =IF('User Input'!C3=0,"",SUMIF(Players!$AJ$3:$AJ$915,A77,Players!AV$3:AV$915)) -> 0
A78: =IF('User Input'!C4 = 0,"",'User Input'!C4) -> d | B78: =IF('User Input'!C4=0,"",SUMIF(Players!$G$3:$G$872,A78,Players!N$3:N$872)) -> 0 | C78: =IF('User Input'!C4=0,"",SUMIF(Players!$G$3:$G$872,A78,Players!O$3:O$872)) -> 0 | D78: =IF('User Input'!C4=0,"",SUMIF(Players!$G$3:$G$872,A78,Players!P$3:P$872)) -> 0 | E78: =IF('User Input'!C4=0,"",SUMIF(Players!$G$3:$G$872,A78,Players!Q$3:Q$872)) -> 0 | F78: =IF('User Input'!C4=0,"",SUMIF(Players!$G$3:$G$872,A78,Players!R$3:R$872)) -> 0 | G78: =IF('User Input'!C4=0,"",(SUMIF(Players!$G$3:$G$872,A78,Players!T$3:T$997))/B78) ->  | H78: =IF('User Input'!C4=0,"",SUMIF(Players!$AJ$3:$AJ$915,A78,Players!AQ$3:AQ$915)) -> 0 | I78: =IF('User Input'!C4=0,"",SUMIF(Players!$AJ$3:$AJ$915,A78,Players!AW$3:AW$997)/H78) ->  | J78: =IF('User Input'!C4=0,"",SUMIF(Players!$AJ$3:$AJ$915,A78,Players!AX$3:AX$997)/H78) ->  | K78: =IF('User Input'!C4=0,"",SUMIF(Players!$AJ$3:$AJ$915,A78,Players!AT$3:AT$915)) -> 0 | L78: =IF('User Input'!C4=0,"",SUMIF(Players!$AJ$3:$AJ$915,A78,Players!AU$3:AU$915)) -> 0 | M78: =IF('User Input'!C4=0,"",SUMIF(Players!$AJ$3:$AJ$915,A78,Players!AV$3:AV$915)) -> 0
A79: =IF('User Input'!C5 = 0,"",'User Input'!C5) -> e | B79: =IF('User Input'!C5=0,"",SUMIF(Players!$G$3:$G$872,A79,Players!N$3:N$872)) -> 0 | C79: =IF('User Input'!C5=0,"",SUMIF(Players!$G$3:$G$872,A79,Players!O$3:O$872)) -> 0 | D79: =IF('User Input'!C5=0,"",SUMIF(Players!$G$3:$G$872,A79,Players!P$3:P$872)) -> 0 | E79: =IF('User Input'!C5=0,"",SUMIF(Players!$G$3:$G$872,A79,Players!Q$3:Q$872)) -> 0 | F79: =IF('User Input'!C5=0,"",SUMIF(Players!$G$3:$G$872,A79,Players!R$3:R$872)) -> 0 | G79: =IF('User Input'!C5=0,"",(SUMIF(Players!$G$3:$G$872,A79,Players!T$3:T$997))/B79) ->  | H79: =IF('User Input'!C5=0,"",SUMIF(Players!$AJ$3:$AJ$915,A79,Players!AQ$3:AQ$915)) -> 0 | I79: =IF('User Input'!C5=0,"",SUMIF(Players!$AJ$3:$AJ$915,A79,Players!AW$3:AW$997)/H79) ->  | J79: =IF('User Input'!C5=0,"",SUMIF(Players!$AJ$3:$AJ$915,A79,Players!AX$3:AX$997)/H79) ->  | K79: =IF('User Input'!C5=0,"",SUMIF(Players!$AJ$3:$AJ$915,A79,Players!AT$3:AT$915)) -> 0 | L79: =IF('User Input'!C5=0,"",SUMIF(Players!$AJ$3:$AJ$915,A79,Players!AU$3:AU$915)) -> 0 | M79: =IF('User Input'!C5=0,"",SUMIF(Players!$AJ$3:$AJ$915,A79,Players!AV$3:AV$915)) -> 0
A80: =IF('User Input'!C6 = 0,"",'User Input'!C6) -> f | B80: =IF('User Input'!C6=0,"",SUMIF(Players!$G$3:$G$872,A80,Players!N$3:N$872)) -> 0 | C80: =IF('User Input'!C6=0,"",SUMIF(Players!$G$3:$G$872,A80,Players!O$3:O$872)) -> 0 | D80: =IF('User Input'!C6=0,"",SUMIF(Players!$G$3:$G$872,A80,Players!P$3:P$872)) -> 0 | E80: =IF('User Input'!C6=0,"",SUMIF(Players!$G$3:$G$872,A80,Players!Q$3:Q$872)) -> 0 | F80: =IF('User Input'!C6=0,"",SUMIF(Players!$G$3:$G$872,A80,Players!R$3:R$872)) -> 0 | G80: =IF('User Input'!C6=0,"",(SUMIF(Players!$G$3:$G$872,A80,Players!T$3:T$997))/B80) ->  | H80: =IF('User Input'!C6=0,"",SUMIF(Players!$AJ$3:$AJ$915,A80,Players!AQ$3:AQ$915)) -> 0 | I80: =IF('User Input'!C6=0,"",SUMIF(Players!$AJ$3:$AJ$915,A80,Players!AW$3:AW$997)/H80) ->  | J80: =IF('User Input'!C6=0,"",SUMIF(Players!$AJ$3:$AJ$915,A80,Players!AX$3:AX$997)/H80) ->  | K80: =IF('User Input'!C6=0,"",SUMIF(Players!$AJ$3:$AJ$915,A80,Players!AT$3:AT$915)) -> 0 | L80: =IF('User Input'!C6=0,"",SUMIF(Players!$AJ$3:$AJ$915,A80,Players!AU$3:AU$915)) -> 0 | M80: =IF('User Input'!C6=0,"",SUMIF(Players!$AJ$3:$AJ$915,A80,Players!AV$3:AV$915)) -> 0
A81: =IF('User Input'!C7 = 0,"",'User Input'!C7) -> g | B81: =IF('User Input'!C7=0,"",SUMIF(Players!$G$3:$G$872,A81,Players!N$3:N$872)) -> 0 | C81: =IF('User Input'!C7=0,"",SUMIF(Players!$G$3:$G$872,A81,Players!O$3:O$872)) -> 0 | D81: =IF('User Input'!C7=0,"",SUMIF(Players!$G$3:$G$872,A81,Players!P$3:P$872)) -> 0 | E81: =IF('User Input'!C7=0,"",SUMIF(Players!$G$3:$G$872,A81,Players!Q$3:Q$872)) -> 0 | F81: =IF('User Input'!C7=0,"",SUMIF(Players!$G$3:$G$872,A81,Players!R$3:R$872)) -> 0 | G81: =IF('User Input'!C7=0,"",(SUMIF(Players!$G$3:$G$872,A81,Players!T$3:T$997))/B81) ->  | H81: =IF('User Input'!C7=0,"",SUMIF(Players!$AJ$3:$AJ$915,A81,Players!AQ$3:AQ$915)) -> 0 | I81: =IF('User Input'!C7=0,"",SUMIF(Players!$AJ$3:$AJ$915,A81,Players!AW$3:AW$997)/H81) ->  | J81: =IF('User Input'!C7=0,"",SUMIF(Players!$AJ$3:$AJ$915,A81,Players!AX$3:AX$997)/H81) ->  | K81: =IF('User Input'!C7=0,"",SUMIF(Players!$AJ$3:$AJ$915,A81,Players!AT$3:AT$915)) -> 0 | L81: =IF('User Input'!C7=0,"",SUMIF(Players!$AJ$3:$AJ$915,A81,Players!AU$3:AU$915)) -> 0 | M81: =IF('User Input'!C7=0,"",SUMIF(Players!$AJ$3:$AJ$915,A81,Players!AV$3:AV$915)) -> 0
A82: =IF('User Input'!C8 = 0,"",'User Input'!C8) -> h | B82: =IF('User Input'!C8=0,"",SUMIF(Players!$G$3:$G$872,A82,Players!N$3:N$872)) -> 0 | C82: =IF('User Input'!C8=0,"",SUMIF(Players!$G$3:$G$872,A82,Players!O$3:O$872)) -> 0 | D82: =IF('User Input'!C8=0,"",SUMIF(Players!$G$3:$G$872,A82,Players!P$3:P$872)) -> 0 | E82: =IF('User Input'!C8=0,"",SUMIF(Players!$G$3:$G$872,A82,Players!Q$3:Q$872)) -> 0 | F82: =IF('User Input'!C8=0,"",SUMIF(Players!$G$3:$G$872,A82,Players!R$3:R$872)) -> 0 | G82: =IF('User Input'!C8=0,"",(SUMIF(Players!$G$3:$G$872,A82,Players!T$3:T$997))/B82) ->  | H82: =IF('User Input'!C8=0,"",SUMIF(Players!$AJ$3:$AJ$915,A82,Players!AQ$3:AQ$915)) -> 0 | I82: =IF('User Input'!C8=0,"",SUMIF(Players!$AJ$3:$AJ$915,A82,Players!AW$3:AW$997)/H82) ->  | J82: =IF('User Input'!C8=0,"",SUMIF(Players!$AJ$3:$AJ$915,A82,Players!AX$3:AX$997)/H82) ->  | K82: =IF('User Input'!C8=0,"",SUMIF(Players!$AJ$3:$AJ$915,A82,Players!AT$3:AT$915)) -> 0 | L82: =IF('User Input'!C8=0,"",SUMIF(Players!$AJ$3:$AJ$915,A82,Players!AU$3:AU$915)) -> 0 | M82: =IF('User Input'!C8=0,"",SUMIF(Players!$AJ$3:$AJ$915,A82,Players!AV$3:AV$915)) -> 0
A83: =IF('User Input'!C9 = 0,"",'User Input'!C9) -> i | B83: =IF('User Input'!C9=0,"",SUMIF(Players!$G$3:$G$872,A83,Players!N$3:N$872)) -> 0 | C83: =IF('User Input'!C9=0,"",SUMIF(Players!$G$3:$G$872,A83,Players!O$3:O$872)) -> 0 | D83: =IF('User Input'!C9=0,"",SUMIF(Players!$G$3:$G$872,A83,Players!P$3:P$872)) -> 0 | E83: =IF('User Input'!C9=0,"",SUMIF(Players!$G$3:$G$872,A83,Players!Q$3:Q$872)) -> 0 | F83: =IF('User Input'!C9=0,"",SUMIF(Players!$G$3:$G$872,A83,Players!R$3:R$872)) -> 0 | G83: =IF('User Input'!C9=0,"",(SUMIF(Players!$G$3:$G$872,A83,Players!T$3:T$997))/B83) ->  | H83: =IF('User Input'!C9=0,"",SUMIF(Players!$AJ$3:$AJ$915,A83,Players!AQ$3:AQ$915)) -> 0 | I83: =IF('User Input'!C9=0,"",SUMIF(Players!$AJ$3:$AJ$915,A83,Players!AW$3:AW$997)/H83) ->  | J83: =IF('User Input'!C9=0,"",SUMIF(Players!$AJ$3:$AJ$915,A83,Players!AX$3:AX$997)/H83) ->  | K83: =IF('User Input'!C9=0,"",SUMIF(Players!$AJ$3:$AJ$915,A83,Players!AT$3:AT$915)) -> 0 | L83: =IF('User Input'!C9=0,"",SUMIF(Players!$AJ$3:$AJ$915,A83,Players!AU$3:AU$915)) -> 0 | M83: =IF('User Input'!C9=0,"",SUMIF(Players!$AJ$3:$AJ$915,A83,Players!AV$3:AV$915)) -> 0
A84: =IF('User Input'!C10 = 0,"",'User Input'!C10) -> j | B84: =IF('User Input'!C10=0,"",SUMIF(Players!$G$3:$G$872,A84,Players!N$3:N$872)) -> 0 | C84: =IF('User Input'!C10=0,"",SUMIF(Players!$G$3:$G$872,A84,Players!O$3:O$872)) -> 0 | D84: =IF('User Input'!C10=0,"",SUMIF(Players!$G$3:$G$872,A84,Players!P$3:P$872)) -> 0 | E84: =IF('User Input'!C10=0,"",SUMIF(Players!$G$3:$G$872,A84,Players!Q$3:Q$872)) -> 0 | F84: =IF('User Input'!C10=0,"",SUMIF(Players!$G$3:$G$872,A84,Players!R$3:R$872)) -> 0 | G84: =IF('User Input'!C10=0,"",(SUMIF(Players!$G$3:$G$872,A84,Players!T$3:T$997))/B84) ->  | H84: =IF('User Input'!C10=0,"",SUMIF(Players!$AJ$3:$AJ$915,A84,Players!AQ$3:AQ$915)) -> 0 | I84: =IF('User Input'!C10=0,"",SUMIF(Players!$AJ$3:$AJ$915,A84,Players!AW$3:AW$997)/H84) ->  | J84: =IF('User Input'!C10=0,"",SUMIF(Players!$AJ$3:$AJ$915,A84,Players!AX$3:AX$997)/H84) ->  | K84: =IF('User Input'!C10=0,"",SUMIF(Players!$AJ$3:$AJ$915,A84,Players!AT$3:AT$915)) -> 0 | L84: =IF('User Input'!C10=0,"",SUMIF(Players!$AJ$3:$AJ$915,A84,Players!AU$3:AU$915)) -> 0 | M84: =IF('User Input'!C10=0,"",SUMIF(Players!$AJ$3:$AJ$915,A84,Players!AV$3:AV$915)) -> 0
A85: =IF('User Input'!C11 = 0,"",'User Input'!C11) -> k | B85: =IF('User Input'!C11=0,"",SUMIF(Players!$G$3:$G$872,A85,Players!N$3:N$872)) -> 0 | C85: =IF('User Input'!C11=0,"",SUMIF(Players!$G$3:$G$872,A85,Players!O$3:O$872)) -> 0 | D85: =IF('User Input'!C11=0,"",SUMIF(Players!$G$3:$G$872,A85,Players!P$3:P$872)) -> 0 | E85: =IF('User Input'!C11=0,"",SUMIF(Players!$G$3:$G$872,A85,Players!Q$3:Q$872)) -> 0 | F85: =IF('User Input'!C11=0,"",SUMIF(Players!$G$3:$G$872,A85,Players!R$3:R$872)) -> 0 | G85: =IF('User Input'!C11=0,"",(SUMIF(Players!$G$3:$G$872,A85,Players!T$3:T$997))/B85) ->  | H85: =IF('User Input'!C11=0,"",SUMIF(Players!$AJ$3:$AJ$915,A85,Players!AQ$3:AQ$915)) -> 0 | I85: =IF('User Input'!C11=0,"",SUMIF(Players!$AJ$3:$AJ$915,A85,Players!AW$3:AW$997)/H85) ->  | J85: =IF('User Input'!C11=0,"",SUMIF(Players!$AJ$3:$AJ$915,A85,Players!AX$3:AX$997)/H85) ->  | K85: =IF('User Input'!C11=0,"",SUMIF(Players!$AJ$3:$AJ$915,A85,Players!AT$3:AT$915)) -> 0 | L85: =IF('User Input'!C11=0,"",SUMIF(Players!$AJ$3:$AJ$915,A85,Players!AU$3:AU$915)) -> 0 | M85: =IF('User Input'!C11=0,"",SUMIF(Players!$AJ$3:$AJ$915,A85,Players!AV$3:AV$915)) -> 0
A86: =IF('User Input'!C12 = 0,"",'User Input'!C12) -> l | B86: =IF('User Input'!C12=0,"",SUMIF(Players!$G$3:$G$872,A86,Players!N$3:N$872)) -> 0 | C86: =IF('User Input'!C12=0,"",SUMIF(Players!$G$3:$G$872,A86,Players!O$3:O$872)) -> 0 | D86: =IF('User Input'!C12=0,"",SUMIF(Players!$G$3:$G$872,A86,Players!P$3:P$872)) -> 0 | E86: =IF('User Input'!C12=0,"",SUMIF(Players!$G$3:$G$872,A86,Players!Q$3:Q$872)) -> 0 | F86: =IF('User Input'!C12=0,"",SUMIF(Players!$G$3:$G$872,A86,Players!R$3:R$872)) -> 0 | G86: =IF('User Input'!C12=0,"",(SUMIF(Players!$G$3:$G$872,A86,Players!T$3:T$997))/B86) ->  | H86: =IF('User Input'!C12=0,"",SUMIF(Players!$AJ$3:$AJ$915,A86,Players!AQ$3:AQ$915)) -> 0 | I86: =IF('User Input'!C12=0,"",SUMIF(Players!$AJ$3:$AJ$915,A86,Players!AW$3:AW$997)/H86) ->  | J86: =IF('User Input'!C12=0,"",SUMIF(Players!$AJ$3:$AJ$915,A86,Players!AX$3:AX$997)/H86) ->  | K86: =IF('User Input'!C12=0,"",SUMIF(Players!$AJ$3:$AJ$915,A86,Players!AT$3:AT$915)) -> 0 | L86: =IF('User Input'!C12=0,"",SUMIF(Players!$AJ$3:$AJ$915,A86,Players!AU$3:AU$915)) -> 0 | M86: =IF('User Input'!C12=0,"",SUMIF(Players!$AJ$3:$AJ$915,A86,Players!AV$3:AV$915)) -> 0
A87: =IF('User Input'!C13 = 0,"",'User Input'!C13) ->  | B87: =IF('User Input'!C13=0,"",SUMIF(Players!$G$3:$G$872,A87,Players!N$3:N$872)) ->  | C87: =IF('User Input'!C13=0,"",SUMIF(Players!$G$3:$G$872,A87,Players!O$3:O$872)) ->  | D87: =IF('User Input'!C13=0,"",SUMIF(Players!$G$3:$G$872,A87,Players!P$3:P$872)) ->  | E87: =IF('User Input'!C13=0,"",SUMIF(Players!$G$3:$G$872,A87,Players!Q$3:Q$872)) ->  | F87: =IF('User Input'!C13=0,"",SUMIF(Players!$G$3:$G$872,A87,Players!R$3:R$872)) ->  | G87: =IF('User Input'!C13=0,"",(SUMIF(Players!$G$3:$G$872,A87,Players!T$3:T$997))/B87) ->  | H87: =IF('User Input'!C13=0,"",SUMIF(Players!$AJ$3:$AJ$915,A87,Players!AQ$3:AQ$915)) ->  | I87: =IF('User Input'!C13=0,"",SUMIF(Players!$AJ$3:$AJ$915,A87,Players!AW$3:AW$997)/H87) ->  | J87: =IF('User Input'!C13=0,"",SUMIF(Players!$AJ$3:$AJ$915,A87,Players!AX$3:AX$997)/H87) ->  | K87: =IF('User Input'!C13=0,"",SUMIF(Players!$AJ$3:$AJ$915,A87,Players!AT$3:AT$915)) ->  | L87: =IF('User Input'!C13=0,"",SUMIF(Players!$AJ$3:$AJ$915,A87,Players!AU$3:AU$915)) ->  | M87: =IF('User Input'!C13=0,"",SUMIF(Players!$AJ$3:$AJ$915,A87,Players!AV$3:AV$915)) -> 
A88: =IF('User Input'!C14 = 0,"",'User Input'!C14) ->  | B88: =IF('User Input'!C14=0,"",SUMIF(Players!$G$3:$G$872,A88,Players!N$3:N$872)) ->  | C88: =IF('User Input'!C14=0,"",SUMIF(Players!$G$3:$G$872,A88,Players!O$3:O$872)) ->  | D88: =IF('User Input'!C14=0,"",SUMIF(Players!$G$3:$G$872,A88,Players!P$3:P$872)) ->  | E88: =IF('User Input'!C14=0,"",SUMIF(Players!$G$3:$G$872,A88,Players!Q$3:Q$872)) ->  | F88: =IF('User Input'!C14=0,"",SUMIF(Players!$G$3:$G$872,A88,Players!R$3:R$872)) ->  | G88: =IF('User Input'!C14=0,"",(SUMIF(Players!$G$3:$G$872,A88,Players!T$3:T$997))/B88) ->  | H88: =IF('User Input'!C14=0,"",SUMIF(Players!$AJ$3:$AJ$915,A88,Players!AQ$3:AQ$915)) ->  | I88: =IF('User Input'!C14=0,"",SUMIF(Players!$AJ$3:$AJ$915,A88,Players!AW$3:AW$997)/H88) ->  | J88: =IF('User Input'!C14=0,"",SUMIF(Players!$AJ$3:$AJ$915,A88,Players!AX$3:AX$997)/H88) ->  | K88: =IF('User Input'!C14=0,"",SUMIF(Players!$AJ$3:$AJ$915,A88,Players!AT$3:AT$915)) ->  | L88: =IF('User Input'!C14=0,"",SUMIF(Players!$AJ$3:$AJ$915,A88,Players!AU$3:AU$915)) ->  | M88: =IF('User Input'!C14=0,"",SUMIF(Players!$AJ$3:$AJ$915,A88,Players!AV$3:AV$915)) -> 
A89: =IF('User Input'!C15 = 0,"",'User Input'!C15) ->  | B89: =IF('User Input'!C15=0,"",SUMIF(Players!$G$3:$G$872,A89,Players!N$3:N$872)) ->  | C89: =IF('User Input'!C15=0,"",SUMIF(Players!$G$3:$G$872,A89,Players!O$3:O$872)) ->  | D89: =IF('User Input'!C15=0,"",SUMIF(Players!$G$3:$G$872,A89,Players!P$3:P$872)) ->  | E89: =IF('User Input'!C15=0,"",SUMIF(Players!$G$3:$G$872,A89,Players!Q$3:Q$872)) ->  | F89: =IF('User Input'!C15=0,"",SUMIF(Players!$G$3:$G$872,A89,Players!R$3:R$872)) ->  | G89: =IF('User Input'!C15=0,"",(SUMIF(Players!$G$3:$G$872,A89,Players!T$3:T$997))/B89) ->  | H89: =IF('User Input'!C15=0,"",SUMIF(Players!$AJ$3:$AJ$915,A89,Players!AQ$3:AQ$915)) ->  | I89: =IF('User Input'!C15=0,"",SUMIF(Players!$AJ$3:$AJ$915,A89,Players!AW$3:AW$997)/H89) ->  | J89: =IF('User Input'!C15=0,"",SUMIF(Players!$AJ$3:$AJ$915,A89,Players!AX$3:AX$997)/H89) ->  | K89: =IF('User Input'!C15=0,"",SUMIF(Players!$AJ$3:$AJ$915,A89,Players!AT$3:AT$915)) ->  | L89: =IF('User Input'!C15=0,"",SUMIF(Players!$AJ$3:$AJ$915,A89,Players!AU$3:AU$915)) ->  | M89: =IF('User Input'!C15=0,"",SUMIF(Players!$AJ$3:$AJ$915,A89,Players!AV$3:AV$915)) -> 
A90: =IF('User Input'!C16 = 0,"",'User Input'!C16) ->  | B90: =IF('User Input'!C16=0,"",SUMIF(Players!$G$3:$G$872,A90,Players!N$3:N$872)) ->  | C90: =IF('User Input'!C16=0,"",SUMIF(Players!$G$3:$G$872,A90,Players!O$3:O$872)) ->  | D90: =IF('User Input'!C16=0,"",SUMIF(Players!$G$3:$G$872,A90,Players!P$3:P$872)) ->  | E90: =IF('User Input'!C16=0,"",SUMIF(Players!$G$3:$G$872,A90,Players!Q$3:Q$872)) ->  | F90: =IF('User Input'!C16=0,"",SUMIF(Players!$G$3:$G$872,A90,Players!R$3:R$872)) ->  | G90: =IF('User Input'!C16=0,"",(SUMIF(Players!$G$3:$G$872,A90,Players!T$3:T$997))/B90) ->  | H90: =IF('User Input'!C16=0,"",SUMIF(Players!$AJ$3:$AJ$915,A90,Players!AQ$3:AQ$915)) ->  | I90: =IF('User Input'!C16=0,"",SUMIF(Players!$AJ$3:$AJ$915,A90,Players!AW$3:AW$997)/H90) ->  | J90: =IF('User Input'!C16=0,"",SUMIF(Players!$AJ$3:$AJ$915,A90,Players!AX$3:AX$997)/H90) ->  | K90: =IF('User Input'!C16=0,"",SUMIF(Players!$AJ$3:$AJ$915,A90,Players!AT$3:AT$915)) ->  | L90: =IF('User Input'!C16=0,"",SUMIF(Players!$AJ$3:$AJ$915,A90,Players!AU$3:AU$915)) ->  | M90: =IF('User Input'!C16=0,"",SUMIF(Players!$AJ$3:$AJ$915,A90,Players!AV$3:AV$915)) -> 
A91: =IF('User Input'!C17 = 0,"",'User Input'!C17) ->  | B91: =IF('User Input'!C17=0,"",SUMIF(Players!$G$3:$G$872,A91,Players!N$3:N$872)) ->  | C91: =IF('User Input'!C17=0,"",SUMIF(Players!$G$3:$G$872,A91,Players!O$3:O$872)) ->  | D91: =IF('User Input'!C17=0,"",SUMIF(Players!$G$3:$G$872,A91,Players!P$3:P$872)) ->  | E91: =IF('User Input'!C17=0,"",SUMIF(Players!$G$3:$G$872,A91,Players!Q$3:Q$872)) ->  | F91: =IF('User Input'!C17=0,"",SUMIF(Players!$G$3:$G$872,A91,Players!R$3:R$872)) ->  | G91: =IF('User Input'!C17=0,"",(SUMIF(Players!$G$3:$G$872,A91,Players!T$3:T$997))/B91) ->  | H91: =IF('User Input'!C17=0,"",SUMIF(Players!$AJ$3:$AJ$915,A91,Players!AQ$3:AQ$915)) ->  | I91: =IF('User Input'!C17=0,"",SUMIF(Players!$AJ$3:$AJ$915,A91,Players!AW$3:AW$997)/H91) ->  | J91: =IF('User Input'!C17=0,"",SUMIF(Players!$AJ$3:$AJ$915,A91,Players!AX$3:AX$997)/H91) ->  | K91: =IF('User Input'!C17=0,"",SUMIF(Players!$AJ$3:$AJ$915,A91,Players!AT$3:AT$915)) ->  | L91: =IF('User Input'!C17=0,"",SUMIF(Players!$AJ$3:$AJ$915,A91,Players!AU$3:AU$915)) ->  | M91: =IF('User Input'!C17=0,"",SUMIF(Players!$AJ$3:$AJ$915,A91,Players!AV$3:AV$915)) -> 
A92: =IF('User Input'!C18 = 0,"",'User Input'!C18) ->  | B92: =IF('User Input'!C18=0,"",SUMIF(Players!$G$3:$G$872,A92,Players!N$3:N$872)) ->  | C92: =IF('User Input'!C18=0,"",SUMIF(Players!$G$3:$G$872,A92,Players!O$3:O$872)) ->  | D92: =IF('User Input'!C18=0,"",SUMIF(Players!$G$3:$G$872,A92,Players!P$3:P$872)) ->  | E92: =IF('User Input'!C18=0,"",SUMIF(Players!$G$3:$G$872,A92,Players!Q$3:Q$872)) ->  | F92: =IF('User Input'!C18=0,"",SUMIF(Players!$G$3:$G$872,A92,Players!R$3:R$872)) ->  | G92: =IF('User Input'!C18=0,"",(SUMIF(Players!$G$3:$G$872,A92,Players!T$3:T$997))/B92) ->  | H92: =IF('User Input'!C18=0,"",SUMIF(Players!$AJ$3:$AJ$915,A92,Players!AQ$3:AQ$915)) ->  | I92: =IF('User Input'!C18=0,"",SUMIF(Players!$AJ$3:$AJ$915,A92,Players!AW$3:AW$997)/H92) ->  | J92: =IF('User Input'!C18=0,"",SUMIF(Players!$AJ$3:$AJ$915,A92,Players!AX$3:AX$997)/H92) ->  | K92: =IF('User Input'!C18=0,"",SUMIF(Players!$AJ$3:$AJ$915,A92,Players!AT$3:AT$915)) ->  | L92: =IF('User Input'!C18=0,"",SUMIF(Players!$AJ$3:$AJ$915,A92,Players!AU$3:AU$915)) ->  | M92: =IF('User Input'!C18=0,"",SUMIF(Players!$AJ$3:$AJ$915,A92,Players!AV$3:AV$915)) -> 
A93: =IF('User Input'!C19 = 0,"",'User Input'!C19) ->  | B93: =IF('User Input'!C19=0,"",SUMIF(Players!$G$3:$G$872,A93,Players!N$3:N$872)) ->  | C93: =IF('User Input'!C19=0,"",SUMIF(Players!$G$3:$G$872,A93,Players!O$3:O$872)) ->  | D93: =IF('User Input'!C19=0,"",SUMIF(Players!$G$3:$G$872,A93,Players!P$3:P$872)) ->  | E93: =IF('User Input'!C19=0,"",SUMIF(Players!$G$3:$G$872,A93,Players!Q$3:Q$872)) ->  | F93: =IF('User Input'!C19=0,"",SUMIF(Players!$G$3:$G$872,A93,Players!R$3:R$872)) ->  | G93: =IF('User Input'!C19=0,"",(SUMIF(Players!$G$3:$G$872,A93,Players!T$3:T$997))/B93) ->  | H93: =IF('User Input'!C19=0,"",SUMIF(Players!$AJ$3:$AJ$915,A93,Players!AQ$3:AQ$915)) ->  | I93: =IF('User Input'!C19=0,"",SUMIF(Players!$AJ$3:$AJ$915,A93,Players!AW$3:AW$997)/H93) ->  | J93: =IF('User Input'!C19=0,"",SUMIF(Players!$AJ$3:$AJ$915,A93,Players!AX$3:AX$997)/H93) ->  | K93: =IF('User Input'!C19=0,"",SUMIF(Players!$AJ$3:$AJ$915,A93,Players!AT$3:AT$915)) ->  | L93: =IF('User Input'!C19=0,"",SUMIF(Players!$AJ$3:$AJ$915,A93,Players!AU$3:AU$915)) ->  | M93: =IF('User Input'!C19=0,"",SUMIF(Players!$AJ$3:$AJ$915,A93,Players!AV$3:AV$915)) -> 
A94: =IF('User Input'!C20 = 0,"",'User Input'!C20) ->  | B94: =IF('User Input'!C20=0,"",SUMIF(Players!$G$3:$G$872,A94,Players!N$3:N$872)) ->  | C94: =IF('User Input'!C20=0,"",SUMIF(Players!$G$3:$G$872,A94,Players!O$3:O$872)) ->  | D94: =IF('User Input'!C20=0,"",SUMIF(Players!$G$3:$G$872,A94,Players!P$3:P$872)) ->  | E94: =IF('User Input'!C20=0,"",SUMIF(Players!$G$3:$G$872,A94,Players!Q$3:Q$872)) ->  | F94: =IF('User Input'!C20=0,"",SUMIF(Players!$G$3:$G$872,A94,Players!R$3:R$872)) ->  | G94: =IF('User Input'!C20=0,"",(SUMIF(Players!$G$3:$G$872,A94,Players!T$3:T$997))/B94) ->  | H94: =IF('User Input'!C20=0,"",SUMIF(Players!$AJ$3:$AJ$915,A94,Players!AQ$3:AQ$915)) ->  | I94: =IF('User Input'!C20=0,"",SUMIF(Players!$AJ$3:$AJ$915,A94,Players!AW$3:AW$997)/H94) ->  | J94: =IF('User Input'!C20=0,"",SUMIF(Players!$AJ$3:$AJ$915,A94,Players!AX$3:AX$997)/H94) ->  | K94: =IF('User Input'!C20=0,"",SUMIF(Players!$AJ$3:$AJ$915,A94,Players!AT$3:AT$915)) ->  | L94: =IF('User Input'!C20=0,"",SUMIF(Players!$AJ$3:$AJ$915,A94,Players!AU$3:AU$915)) ->  | M94: =IF('User Input'!C20=0,"",SUMIF(Players!$AJ$3:$AJ$915,A94,Players!AV$3:AV$915)) -> 
A95: =IF('User Input'!C21 = 0,"",'User Input'!C21) ->  | B95: =IF('User Input'!C21=0,"",SUMIF(Players!$G$3:$G$872,A95,Players!N$3:N$872)) ->  | C95: =IF('User Input'!C21=0,"",SUMIF(Players!$G$3:$G$872,A95,Players!O$3:O$872)) ->  | D95: =IF('User Input'!C21=0,"",SUMIF(Players!$G$3:$G$872,A95,Players!P$3:P$872)) ->  | E95: =IF('User Input'!C21=0,"",SUMIF(Players!$G$3:$G$872,A95,Players!Q$3:Q$872)) ->  | F95: =IF('User Input'!C21=0,"",SUMIF(Players!$G$3:$G$872,A95,Players!R$3:R$872)) ->  | G95: =IF('User Input'!C21=0,"",(SUMIF(Players!$G$3:$G$872,A95,Players!T$3:T$997))/B95) ->  | H95: =IF('User Input'!C21=0,"",SUMIF(Players!$AJ$3:$AJ$915,A95,Players!AQ$3:AQ$915)) ->  | I95: =IF('User Input'!C21=0,"",SUMIF(Players!$AJ$3:$AJ$915,A95,Players!AW$3:AW$997)/H95) ->  | J95: =IF('User Input'!C21=0,"",SUMIF(Players!$AJ$3:$AJ$915,A95,Players!AX$3:AX$997)/H95) ->  | K95: =IF('User Input'!C21=0,"",SUMIF(Players!$AJ$3:$AJ$915,A95,Players!AT$3:AT$915)) ->  | L95: =IF('User Input'!C21=0,"",SUMIF(Players!$AJ$3:$AJ$915,A95,Players!AU$3:AU$915)) ->  | M95: =IF('User Input'!C21=0,"",SUMIF(Players!$AJ$3:$AJ$915,A95,Players!AV$3:AV$915)) -> 
A96: =IF('User Input'!C22 = 0,"",'User Input'!C22) ->  | B96: =IF('User Input'!C22=0,"",SUMIF(Players!$G$3:$G$872,A96,Players!N$3:N$872)) ->  | C96: =IF('User Input'!C22=0,"",SUMIF(Players!$G$3:$G$872,A96,Players!O$3:O$872)) ->  | D96: =IF('User Input'!C22=0,"",SUMIF(Players!$G$3:$G$872,A96,Players!P$3:P$872)) ->  | E96: =IF('User Input'!C22=0,"",SUMIF(Players!$G$3:$G$872,A96,Players!Q$3:Q$872)) ->  | F96: =IF('User Input'!C22=0,"",SUMIF(Players!$G$3:$G$872,A96,Players!R$3:R$872)) ->  | G96: =IF('User Input'!C22=0,"",(SUMIF(Players!$G$3:$G$872,A96,Players!T$3:T$997))/B96) ->  | H96: =IF('User Input'!C22=0,"",SUMIF(Players!$AJ$3:$AJ$915,A96,Players!AQ$3:AQ$915)) ->  | I96: =IF('User Input'!C22=0,"",SUMIF(Players!$AJ$3:$AJ$915,A96,Players!AW$3:AW$997)/H96) ->  | J96: =IF('User Input'!C22=0,"",SUMIF(Players!$AJ$3:$AJ$915,A96,Players!AX$3:AX$997)/H96) ->  | K96: =IF('User Input'!C22=0,"",SUMIF(Players!$AJ$3:$AJ$915,A96,Players!AT$3:AT$915)) ->  | L96: =IF('User Input'!C22=0,"",SUMIF(Players!$AJ$3:$AJ$915,A96,Players!AU$3:AU$915)) ->  | M96: =IF('User Input'!C22=0,"",SUMIF(Players!$AJ$3:$AJ$915,A96,Players!AV$3:AV$915)) -> 
A97: =IF('User Input'!C23 = 0,"",'User Input'!C23) ->  | B97: =IF('User Input'!C23=0,"",SUMIF(Players!$G$3:$G$872,A97,Players!N$3:N$872)) ->  | C97: =IF('User Input'!C23=0,"",SUMIF(Players!$G$3:$G$872,A97,Players!O$3:O$872)) ->  | D97: =IF('User Input'!C23=0,"",SUMIF(Players!$G$3:$G$872,A97,Players!P$3:P$872)) ->  | E97: =IF('User Input'!C23=0,"",SUMIF(Players!$G$3:$G$872,A97,Players!Q$3:Q$872)) ->  | F97: =IF('User Input'!C23=0,"",SUMIF(Players!$G$3:$G$872,A97,Players!R$3:R$872)) ->  | G97: =IF('User Input'!C23=0,"",(SUMIF(Players!$G$3:$G$872,A97,Players!T$3:T$997))/B97) ->  | H97: =IF('User Input'!C23=0,"",SUMIF(Players!$AJ$3:$AJ$915,A97,Players!AQ$3:AQ$915)) ->  | I97: =IF('User Input'!C23=0,"",SUMIF(Players!$AJ$3:$AJ$915,A97,Players!AW$3:AW$997)/H97) ->  | J97: =IF('User Input'!C23=0,"",SUMIF(Players!$AJ$3:$AJ$915,A97,Players!AX$3:AX$997)/H97) ->  | K97: =IF('User Input'!C23=0,"",SUMIF(Players!$AJ$3:$AJ$915,A97,Players!AT$3:AT$915)) ->  | L97: =IF('User Input'!C23=0,"",SUMIF(Players!$AJ$3:$AJ$915,A97,Players!AU$3:AU$915)) ->  | M97: =IF('User Input'!C23=0,"",SUMIF(Players!$AJ$3:$AJ$915,A97,Players!AV$3:AV$915)) -> 
A98: =IF('User Input'!C24 = 0,"",'User Input'!C24) ->  | B98: =IF('User Input'!C24=0,"",SUMIF(Players!$G$3:$G$872,A98,Players!N$3:N$872)) ->  | C98: =IF('User Input'!C24=0,"",SUMIF(Players!$G$3:$G$872,A98,Players!O$3:O$872)) ->  | D98: =IF('User Input'!C24=0,"",SUMIF(Players!$G$3:$G$872,A98,Players!P$3:P$872)) ->  | E98: =IF('User Input'!C24=0,"",SUMIF(Players!$G$3:$G$872,A98,Players!Q$3:Q$872)) ->  | F98: =IF('User Input'!C24=0,"",SUMIF(Players!$G$3:$G$872,A98,Players!R$3:R$872)) ->  | G98: =IF('User Input'!C24=0,"",(SUMIF(Players!$G$3:$G$872,A98,Players!T$3:T$997))/B98) ->  | H98: =IF('User Input'!C24=0,"",SUMIF(Players!$AJ$3:$AJ$915,A98,Players!AQ$3:AQ$915)) ->  | I98: =IF('User Input'!C24=0,"",SUMIF(Players!$AJ$3:$AJ$915,A98,Players!AW$3:AW$997)/H98) ->  | J98: =IF('User Input'!C24=0,"",SUMIF(Players!$AJ$3:$AJ$915,A98,Players!AX$3:AX$997)/H98) ->  | K98: =IF('User Input'!C24=0,"",SUMIF(Players!$AJ$3:$AJ$915,A98,Players!AT$3:AT$915)) ->  | L98: =IF('User Input'!C24=0,"",SUMIF(Players!$AJ$3:$AJ$915,A98,Players!AU$3:AU$915)) ->  | M98: =IF('User Input'!C24=0,"",SUMIF(Players!$AJ$3:$AJ$915,A98,Players!AV$3:AV$915)) -> 
A99: =IF('User Input'!C25 = 0,"",'User Input'!C25) ->  | B99: =IF('User Input'!C25=0,"",SUMIF(Players!$G$3:$G$872,A99,Players!N$3:N$872)) ->  | C99: =IF('User Input'!C25=0,"",SUMIF(Players!$G$3:$G$872,A99,Players!O$3:O$872)) ->  | D99: =IF('User Input'!C25=0,"",SUMIF(Players!$G$3:$G$872,A99,Players!P$3:P$872)) ->  | E99: =IF('User Input'!C25=0,"",SUMIF(Players!$G$3:$G$872,A99,Players!Q$3:Q$872)) ->  | F99: =IF('User Input'!C25=0,"",SUMIF(Players!$G$3:$G$872,A99,Players!R$3:R$872)) ->  | G99: =IF('User Input'!C25=0,"",(SUMIF(Players!$G$3:$G$872,A99,Players!T$3:T$997))/B99) ->  | H99: =IF('User Input'!C25=0,"",SUMIF(Players!$AJ$3:$AJ$915,A99,Players!AQ$3:AQ$915)) ->  | I99: =IF('User Input'!C25=0,"",SUMIF(Players!$AJ$3:$AJ$915,A99,Players!AW$3:AW$997)/H99) ->  | J99: =IF('User Input'!C25=0,"",SUMIF(Players!$AJ$3:$AJ$915,A99,Players!AX$3:AX$997)/H99) ->  | K99: =IF('User Input'!C25=0,"",SUMIF(Players!$AJ$3:$AJ$915,A99,Players!AT$3:AT$915)) ->  | L99: =IF('User Input'!C25=0,"",SUMIF(Players!$AJ$3:$AJ$915,A99,Players!AU$3:AU$915)) ->  | M99: =IF('User Input'!C25=0,"",SUMIF(Players!$AJ$3:$AJ$915,A99,Players!AV$3:AV$915)) -> 

Sheet Players
F1: HITTER Vitals | M1: Proj | N1: Average | T1: Formulas | AI1: PITCHER Vitals | AP1: Proj | AQ1: Average | AW1: Formulas | BF1: 9 | BG1: 7 | BH1: <-- | BI1: enter your own k/9 & 'ace' cutoff (K/9 - BB/9) | BQ1: LISTTEAMS
A2: Grey Hitter Rank | B2: Grey Tot Rank | C2: Keepers - HIT | D2: Prospects-HIT | E2: POINTS RANK | F2: Name | G2: Owner | H2: Sal | I2: Team | J2: ESPN | K2: Yahoo | L2: $ | M2: 12 Tm | N2: AB | O2: R | P2: HR | Q2: RBI | R2: SB | S2: AVG | T2: OBP Calc | U2: A | V2: B | W2: C | X2: WR Player | Y2: WR Sal | Z2: P S | AA2: Hitter ETA | AC2: Grey Pitch Rank | AD2: Grey Tot Rank | AE2: JB's Top 100 SP | AF2: Keepers - Pitch | AG2: Prospects-PITCH | AH2: POINTS RANK | AI2: Name | AJ2: Owner | AK2: Salary | AL2: Team | AM2: ESPN | AN2: Yahoo | AO2: $ P | AP2: 12 Tm9 | AQ2: IP | AR2: ERA | AS2: WHIP | AT2: W | AU2: S | AV2: K | AW2: ERA Calc | AX2: WHIP Calc | AY2: A10 | AZ2: B11 | BA2: C12 | BB2: WR Player13 | BC2: WR Sal14 | BD2: P S15 | BE2: Pitch ETA | BF2: K/9 | BG2: "ACE STUFF" INDEX (K/9 - BB/9) >7 good per Grey | BO2: =IF(BP2="","",MAX(BO$1:BO1)+1) -> 1 | BP2: =IF('User Input'!C1=0,"",'User Input'!C1) -> a | BQ2: =IFERROR(INDEX($BP$2:$BP$26,MATCH(ROW()-ROW($BQ$1),$BO$2:$BO$26,0)),"") -> a
A3: 1 | B3: =IFERROR(VLOOKUP(F3,Import!$B$3:$T$672,19,FALSE),"") -> 1 | C3: =IFERROR(VLOOKUP(F3,Import!$AN$3:$AR$672,4,FALSE),"") -> 1 | D3: =IFERROR(VLOOKUP(F3,Import!$AD$3:$AL$672,4,FALSE),"") ->  | E3: =IFERROR(VLOOKUP(F3,Import!$AW$3:$AX$672,2,FALSE),"") -> 1 | F3: =IFERROR(VLOOKUP(A3,Import!$V$3:$X$672,3,FALSE),"") -> Mike Trout | I3: =IFERROR(VLOOKUP($F3,Import!$B$3:$AL$671,2,FALSE),"") -> LAA | J3: =IFERROR(VLOOKUP($F3,Import!$B$3:$AL$671,3,FALSE),"") -> OF | K3: =IFERROR(VLOOKUP($F3,Import!$B$3:$AL$671,4,FALSE),"") -> OF | L3: =IFERROR(VLOOKUP($F3,Import!$B$3:$AL$671,5,FALSE),"") -> 49 | M3: =IFERROR(VLOOKUP($F3,Import!$B$4:$L$671,2,FALSE),"") ->  | N3: =IFERROR(VLOOKUP($F3,Import!$B$3:$AL$671,6,FALSE),"") -> 561 | O3: =IFERROR(VLOOKUP($F3,Import!$B$3:$AL$671,7,FALSE),"") -> 105 | P3: =IFERROR(VLOOKUP($F3,Import!$B$3:$AL$671,8,FALSE),"") -> 37 | Q3: =IFERROR(VLOOKUP($F3,Import!$B$3:$AL$671,9,FALSE),"") -> 117 | R3: =IFERROR(VLOOKUP($F3,Import!$B$3:$AL$671,10,FALSE),"") -> 21 | S3: =IFERROR(VLOOKUP($F3,Import!$B$3:$AL$671,11,FALSE),"") -> 0.326 | T3: =S3*N3 -> 182.886 | U3: =IF(G3='User Input'!$C$1,1,0) -> 0 | V3: =U3 -> 0 | W3: =IF(V3=V2,0,V3) -> 0 | X3: =F3 -> Mike Trout | Y3: =H3 -> 0 | Z3: =M3 ->  | AA3: =IFERROR(VLOOKUP($F3,Import!$B$3:$AL$671,35,FALSE),"") ->  | AC3: 1 | AD3: =IFERROR(VLOOKUP(AI3,Import!$B$3:$T$672,19,FALSE),"") -> 21 | AE3: =IFERROR(VLOOKUP(AI3,Import!$AT$3:$AU$672,2,FALSE),"") -> 1 | AF3: =IFERROR(VLOOKUP(AI3,Import!$AN$3:$AR$672,5,FALSE),"") -> 1 | AG3: =IFERROR(VLOOKUP(AI3,Import!$AD$3:$AH$672,5,FALSE),"") ->  | AH3: =IFERROR(VLOOKUP(AI3,Import!$AZ$3:$BA$672,2,FALSE),"") -> 1 | AI3: =IFERROR(VLOOKUP(AC3,Import!$W$3:$X$672,2,FALSE),"") -> Clayton Kershaw | AL3: =IFERROR(VLOOKUP($AI3,Import!$B$3:$L$671,2,FALSE),"") -> LAD | AM3: =IFERROR(VLOOKUP($AI3,Import!$B$3:$L$671,3,FALSE),"") -> SP | AN3: =IFERROR(VLOOKUP($AI3,Import!$B$3:$L$671,4,FALSE),"") -> SP | AO3: =IFERROR(VLOOKUP($AI3,Import!$B$3:$L$671,5,FALSE),"") -> 36 | AP3: =IFERROR(VLOOKUP($AI3,Import!$B$4:$L$671,2,FALSE),"") -> LAD | AQ3: =IFERROR(VLOOKUP($AI3,Import!$B$3:$X$672,12,FALSE),"") -> 222 | AR3: =IFERROR(VLOOKUP($AI3,Import!$B$3:$X$672,15,FALSE),"") -> 2.44 | AS3: =IFERROR(VLOOKUP($AI3,Import!$B$3:$X$672,16,FALSE),"") -> 0.95 | AT3: =IFERROR(VLOOKUP($AI3,Import!$B$3:$X$672,13,FALSE),"") -> 19 | AU3: =IFERROR(VLOOKUP($AI3,Import!$B$3:$X$672,14,FALSE),"") -> 0 | AV3: =IFERROR(VLOOKUP($AI3,Import!$B$3:$X$672,17,FALSE),"") -> 261 | AW3: =AR3*AQ3 -> 541.68 | AX3: =AS3*AQ3 -> 210.9 | AY3: =IF(AJ3='User Input'!$C$1,1,0) -> 0 | AZ3: =AY3 -> 0 | BA3: =IF(AZ3=AZ2,0,AZ3) -> 0 | BB3: =AI3 -> Clayton Kershaw | BC3: =AK3 -> 0 | BD3: =AP3 -> LAD | BE3: =IFERROR(VLOOKUP($AI3,Import!$B$3:$AL$671,35,FALSE),"") ->  | BF3: =9*(Table2[[#This Row],[K]]/Table2[[#This Row],[IP]]) -> 10.58108108 | BG3: =IFERROR(VLOOKUP($AI3,PITCH!$B$3:$AA$737,25,FALSE),"N/A") -> 9.247467438 | BO3: =IF(BP3="","",MAX(BO$1:BO2)+1) -> 2 | BP3: =IF('User Input'!C2=0,"",'User Input'!C2) -> b | BQ3: =IFERROR(INDEX($BP$2:$BP$26,MATCH(ROW()-ROW($BQ$1),$BO$2:$BO$26,0)),"") -> b
A4: 2 | B4: =IFERROR(VLOOKUP(F4,Import!$B$4:$T$672,19,FALSE),"") -> 2 | C4: =IFERROR(VLOOKUP(F4,Import!$AN$3:$AR$672,4,FALSE),"") -> 8 | D4: =IFERROR(VLOOKUP(F4,Import!$AD$3:$AL$672,4,FALSE),"") ->  | E4: =IFERROR(VLOOKUP(F4,Import!$AW$3:$AX$672,2,FALSE),"") -> 2 | F4: =IFERROR(VLOOKUP(A4,Import!$V$3:$X$672,3,FALSE),"") -> Paul Goldschmidt | I4: =IFERROR(VLOOKUP($F4,Import!$B$3:$AL$671,2,FALSE),"") -> ARI | J4: =IFERROR(VLOOKUP($F4,Import!$B$3:$AL$671,3,FALSE),"") -> 1B | K4: =IFERROR(VLOOKUP($F4,Import!$B$3:$AL$671,4,FALSE),"") -> 1B | L4: =IFERROR(VLOOKUP($F4,Import!$B$3:$AL$671,5,FALSE),"") -> 47 | M4: =IFERROR(VLOOKUP($F4,Import!$B$4:$L$671,2,FALSE),"") -> ARI | N4: =IFERROR(VLOOKUP($F4,Import!$B$3:$AL$671,6,FALSE),"") -> 581 | O4: =IFERROR(VLOOKUP($F4,Import!$B$3:$AL$671,7,FALSE),"") -> 105 | P4: =IFERROR(VLOOKUP($F4,Import!$B$3:$AL$671,8,FALSE),"") -> 28 | Q4: =IFERROR(VLOOKUP($F4,Import!$B$3:$AL$671,9,FALSE),"") -> 107 | R4: =IFERROR(VLOOKUP($F4,Import!$B$3:$AL$671,10,FALSE),"") -> 21 | S4: =IFERROR(VLOOKUP($F4,Import!$B$3:$AL$671,11,FALSE),"") -> 0.306 | T4: 177.786 | U4: =IF(G4='User Input'!$C$1,1,0) -> 0 | V4: =U4+V3 -> 0 | W4: 0 | X4: Paul Goldschmidt | Y4: 0 | Z4: ARI | AA4: =IFERROR(VLOOKUP($F4,Import!$B$3:$AL$671,35,FALSE),"") ->  | AC4: 2 | AD4: =IFERROR(VLOOKUP(AI4,Import!$B$3:$T$672,19,FALSE),"") -> 22 | AE4: =IFERROR(VLOOKUP(AI4,Import!$AT$3:$AU$672,2,FALSE),"") -> 2 | AF4: =IFERROR(VLOOKUP(AI4,Import!$AN$3:$AR$672,5,FALSE),"") -> 4 | AG4: =IFERROR(VLOOKUP(AI4,Import!$AD$3:$AH$672,5,FALSE),"") ->  | AH4: =IFERROR(VLOOKUP(AI4,Import!$AZ$3:$BA$672,2,FALSE),"") -> 5 | AI4: =IFERROR(VLOOKUP(AC4,Import!$W$3:$X$672,2,FALSE),"") -> Max Scherzer | AL4: =IFERROR(VLOOKUP($AI4,Import!$B$3:$L$671,2,FALSE),"") -> WSH | AM4: =IFERROR(VLOOKUP($AI4,Import!$B$3:$L$671,3,FALSE),"") -> SP | AN4: =IFERROR(VLOOKUP($AI4,Import!$B$3:$L$671,4,FALSE),"") -> SP | AO4: =IFERROR(VLOOKUP($AI4,Import!$B$3:$L$671,5,FALSE),"") -> 35 | AP4: =IFERROR(VLOOKUP($AI4,Import!$B$4:$L$671,2,FALSE),"") -> WSH | AQ4: =IFERROR(VLOOKUP($AI4,Import!$B$3:$X$672,12,FALSE),"") -> 225 | AR4: =IFERROR(VLOOKUP($AI4,Import!$B$3:$X$672,15,FALSE),"") -> 2.51 | AS4: =IFERROR(VLOOKUP($AI4,Import!$B$3:$X$672,16,FALSE),"") -> 0.96 | AT4: =IFERROR(VLOOKUP($AI4,Import!$B$3:$X$672,13,FALSE),"") -> 18 | AU4: =IFERROR(VLOOKUP($AI4,Import!$B$3:$X$672,14,FALSE),"") -> 0 | AV4: =IFERROR(VLOOKUP($AI4,Import!$B$3:$X$672,17,FALSE),"") -> 270 | AW4: 564.75 | AX4: 216 | AY4: =IF(AJ4='User Input'!$C$1,1,0) -> 0 | AZ4: =AY4+AZ3 -> 0 | BA4: 0 | BB4: Max Scherzer | BC4: 0 | BD4: WSH | BE4: =IFERROR(VLOOKUP($AI4,Import!$B$3:$AL$671,35,FALSE),"") ->  | BF4: =9*(Table2[[#This Row],[K]]/Table2[[#This Row],[IP]]) -> 10.8 | BG4: =IFERROR(VLOOKUP($AI4,PITCH!$B$3:$AA$737,25,FALSE),"N/A") -> 8.808139535 | BO4: =IF(BP4="","",MAX(BO$1:BO3)+1) -> 3 | BP4: =IF('User Input'!C3=0,"",'User Input'!C3) -> c | BQ4: c
A5: 3 | B5: =IFERROR(VLOOKUP(F5,Import!$B$4:$T$672,19,FALSE),"") -> 3 | C5: =IFERROR(VLOOKUP(F5,Import!$AN$3:$AR$672,4,FALSE),"") -> 2 | D5: =IFERROR(VLOOKUP(F5,Import!$AD$3:$AL$672,4,FALSE),"") ->  | E5: =IFERROR(VLOOKUP(F5,Import!$AW$3:$AX$672,2,FALSE),"") -> 4 | F5: =IFERROR(VLOOKUP(A5,Import!$V$3:$X$672,3,FALSE),"") -> Mookie Betts | I5: =IFERROR(VLOOKUP($F5,Import!$B$3:$AL$671,2,FALSE),"") -> BOS | J5: =IFERROR(VLOOKUP($F5,Import!$B$3:$AL$671,3,FALSE),"") -> OF | K5: =IFERROR(VLOOKUP($F5,Import!$B$3:$AL$671,4,FALSE),"") -> OF | L5: =IFERROR(VLOOKUP($F5,Import!$B$3:$AL$671,5,FALSE),"") -> 47 | M5: =IFERROR(VLOOKUP($F5,Import!$B$4:$L$671,2,FALSE),"") -> BOS | N5: =IFERROR(VLOOKUP($F5,Import!$B$3:$AL$671,6,FALSE),"") -> 584 | O5: =IFERROR(VLOOKUP($F5,Import!$B$3:$AL$671,7,FALSE),"") -> 104 | P5: =IFERROR(VLOOKUP($F5,Import!$B$3:$AL$671,8,FALSE),"") -> 29 | Q5: =IFERROR(VLOOKUP($F5,Import!$B$3:$AL$671,9,FALSE),"") -> 113 | R5: =IFERROR(VLOOKUP($F5,Import!$B$3:$AL$671,10,FALSE),"") -> 21 | S5: =IFERROR(VLOOKUP($F5,Import!$B$3:$AL$671,11,FALSE),"") -> 0.314 | T5: 183.376 | U5: =IF(G5='User Input'!$C$1,1,0) -> 0 | V5: 0 | W5: 0 | X5: Mookie Betts | Y5: 0 | Z5: BOS | AA5: =IFERROR(VLOOKUP($F5,Import!$B$3:$AL$671,35,FALSE),"") ->  | AC5: 3 | AD5: =IFERROR(VLOOKUP(AI5,Import!$B$3:$T$672,19,FALSE),"") -> 35 | AE5: =IFERROR(VLOOKUP(AI5,Import!$AT$3:$AU$672,2,FALSE),"") -> 3 | AF5: =IFERROR(VLOOKUP(AI5,Import!$AN$3:$AR$672,5,FALSE),"") -> 2 | AG5: =IFERROR(VLOOKUP(AI5,Import!$AD$3:$AH$672,5,FALSE),"") ->  | AH5: =IFERROR(VLOOKUP(AI5,Import!$AZ$3:$BA$672,2,FALSE),"") -> 2 | AI5: =IFERROR(VLOOKUP(AC5,Import!$W$3:$X$672,2,FALSE),"") -> Madison Bumgarner | AL5: =IFERROR(VLOOKUP($AI5,Import!$B$3:$L$671,2,FALSE),"") -> SF | AM5: =IFERROR(VLOOKUP($AI5,Import!$B$3:$L$671,3,FALSE),"") -> SP | AN5: =IFERROR(VLOOKUP($AI5,Import!$B$3:$L$671,4,FALSE),"") -> SP | AO5: =IFERROR(VLOOKUP($AI5,Import!$B$3:$L$671,5,FALSE),"") -> 29 | AP5: =IFERROR(VLOOKUP($AI5,Import!$B$4:$L$671,2,FALSE),"") -> SF | AQ5: =IFERROR(VLOOKUP($AI5,Import!$B$3:$X$672,12,FALSE),"") -> 218 | AR5: =IFERROR(VLOOKUP($AI5,Import!$B$3:$X$672,15,FALSE),"") -> 2.78 | AS5: =IFERROR(VLOOKUP($AI5,Import!$B$3:$X$672,16,FALSE),"") -> 1.04 | AT5: =IFERROR(VLOOKUP($AI5,Import!$B$3:$X$672,13,FALSE),"") -> 17 | AU5: =IFERROR(VLOOKUP($AI5,Import!$B$3:$X$672,14,FALSE),"") -> 0 | AV5: =IFERROR(VLOOKUP($AI5,Import!$B$3:$X$672,17,FALSE),"") -> 232 | AW5: 606.04 | AX5: 226.72 | AY5: =IF(AJ5='User Input'!$C$1,1,0) -> 0 | AZ5: 0 | BA5: 0 | BB5: Madison Bumgarner | BC5: 0 | BD5: SF | BE5: =IFERROR(VLOOKUP($AI5,Import!$B$3:$AL$671,35,FALSE),"") ->  | BF5: =9*(Table2[[#This Row],[K]]/Table2[[#This Row],[IP]]) -> 9.577981651 | BG5: =IFERROR(VLOOKUP($AI5,PITCH!$B$3:$AA$737,25,FALSE),"N/A") -> 7.238372093 | BO5: =IF(BP5="","",MAX(BO$1:BO4)+1) -> 4 | BP5: =IF('User Input'!C4=0,"",'User Input'!C4) -> d | BQ5: d
A6: 4 | B6: =IFERROR(VLOOKUP(F6,Import!$B$4:$T$672,19,FALSE),"") -> 4 | C6: =IFERROR(VLOOKUP(F6,Import!$AN$3:$AR$672,4,FALSE),"") -> 3 | D6: =IFERROR(VLOOKUP(F6,Import!$AD$3:$AL$672,4,FALSE),"") ->  | E6: =IFERROR(VLOOKUP(F6,Import!$AW$3:$AX$672,2,FALSE),"") -> 8 | F6: =IFERROR(VLOOKUP(A6,Import!$V$3:$X$672,3,FALSE),"") -> Kris Bryant | I6: =IFERROR(VLOOKUP($F6,Import!$B$3:$AL$671,2,FALSE),"") -> CHC | J6: =IFERROR(VLOOKUP($F6,Import!$B$3:$AL$671,3,FALSE),"") -> 3B/OF | K6: =IFERROR(VLOOKUP($F6,Import!$B$3:$AL$671,4,FALSE),"") -> 1B/3B/ OF | L6: =IFERROR(VLOOKUP($F6,Import!$B$3:$AL$671,5,FALSE),"") -> 47 | M6: =IFERROR(VLOOKUP($F6,Import!$B$4:$L$671,2,FALSE),"") -> CHC | N6: =IFERROR(VLOOKUP($F6,Import!$B$3:$AL$671,6,FALSE),"") -> 588 | O6: =IFERROR(VLOOKUP($F6,Import!$B$3:$AL$671,7,FALSE),"") -> 106 | P6: =IFERROR(VLOOKUP($F6,Import!$B$3:$AL$671,8,FALSE),"") -> 34 | Q6: =IFERROR(VLOOKUP($F6,Import!$B$3:$AL$671,9,FALSE),"") -> 113 | R6: =IFERROR(VLOOKUP($F6,Import!$B$3:$AL$671,10,FALSE),"") -> 10 | S6: =IFERROR(VLOOKUP($F6,Import!$B$3:$AL$671,11,FALSE),"") -> 0.288 | T6: 169.344 | U6: =IF(G6='User Input'!$C$1,1,0) -> 0 | V6: 0 | W6: 0 | X6: Kris Bryant | Y6: 0 | Z6: CHC | AA6: =IFERROR(VLOOKUP($F6,Import!$B$3:$AL$671,35,FALSE),"") ->  | AC6: 4 | AD6: =IFERROR(VLOOKUP(AI6,Import!$B$3:$T$672,19,FALSE),"") -> 36 | AE6: =IFERROR(VLOOKUP(AI6,Import!$AT$3:$AU$672,2,FALSE),"") -> 7 | AF6: =IFERROR(VLOOKUP(AI6,Import!$AN$3:$AR$672,5,FALSE),"") -> 5 | AG6: =IFERROR(VLOOKUP(AI6,Import!$AD$3:$AH$672,5,FALSE),"") ->  | AH6: =IFERROR(VLOOKUP(AI6,Import!$AZ$3:$BA$672,2,FALSE),"") -> 3 | AI6: =IFERROR(VLOOKUP(AC6,Import!$W$3:$X$672,2,FALSE),"") -> Chris Sale | AL6: =IFERROR(VLOOKUP($AI6,Import!$B$3:$L$671,2,FALSE),"") -> BOS | AM6: =IFERROR(VLOOKUP($AI6,Import!$B$3:$L$671,3,FALSE),"") -> SP | AN6: =IFERROR(VLOOKUP($AI6,Import!$B$3:$L$671,4,FALSE),"") -> SP | AO6: =IFERROR(VLOOKUP($AI6,Import!$B$3:$L$671,5,FALSE),"") -> 29 | AP6: =IFERROR(VLOOKUP($AI6,Import!$B$4:$L$671,2,FALSE),"") -> BOS | AQ6: =IFERROR(VLOOKUP($AI6,Import!$B$3:$X$672,12,FALSE),"") -> 225 | AR6: =IFERROR(VLOOKUP($AI6,Import!$B$3:$X$672,15,FALSE),"") -> 3.31 | AS6: =IFERROR(VLOOKUP($AI6,Import!$B$3:$X$672,16,FALSE),"") -> 1.08 | AT6: =IFERROR(VLOOKUP($AI6,Import!$B$3:$X$672,13,FALSE),"") -> 18 | AU6: =IFERROR(VLOOKUP($AI6,Import!$B$3:$X$672,14,FALSE),"") -> 0 | AV6: =IFERROR(VLOOKUP($AI6,Import!$B$3:$X$672,17,FALSE),"") -> 244 | AW6: 744.75 | AX6: 243 | AY6: =IF(AJ6='User Input'!$C$1,1,0) -> 0 | AZ6: 0 | BA6: 0 | BB6: Chris Sale | BC6: 0 | BD6: BOS | BE6: =IFERROR(VLOOKUP($AI6,Import!$B$3:$AL$671,35,FALSE),"") ->  | BF6: =9*(Table2[[#This Row],[K]]/Table2[[#This Row],[IP]]) -> 9.76 | BG6: =IFERROR(VLOOKUP($AI6,PITCH!$B$3:$AA$737,25,FALSE),"N/A") -> 7.448559671 | BO6: =IF(BP6="","",MAX(BO$1:BO5)+1) -> 5 | BP6: =IF('User Input'!C5=0,"",'User Input'!C5) -> e | BQ6: e
A7: 5 | B7: =IFERROR(VLOOKUP(F7,Import!$B$4:$T$672,19,FALSE),"") -> 5 | C7: =IFERROR(VLOOKUP(F7,Import!$AN$3:$AR$672,4,FALSE),"") -> 9 | D7: =IFERROR(VLOOKUP(F7,Import!$AD$3:$AL$672,4,FALSE),"") ->  | E7: =IFERROR(VLOOKUP(F7,Import!$AW$3:$AX$672,2,FALSE),"") -> 10 | F7: =IFERROR(VLOOKUP(A7,Import!$V$3:$X$672,3,FALSE),"") -> Jose Altuve | I7: =IFERROR(VLOOKUP($F7,Import!$B$3:$AL$671,2,FALSE),"") -> HOU | J7: =IFERROR(VLOOKUP($F7,Import!$B$3:$AL$671,3,FALSE),"") -> 2B | K7: =IFERROR(VLOOKUP($F7,Import!$B$3:$AL$671,4,FALSE),"") -> 2B | L7: =IFERROR(VLOOKUP($F7,Import!$B$3:$AL$671,5,FALSE),"") -> 46 | M7: =IFERROR(VLOOKUP($F7,Import!$B$4:$L$671,2,FALSE),"") -> HOU | N7: =IFERROR(VLOOKUP($F7,Import!$B$3:$AL$671,6,FALSE),"") -> 612 | O7: =IFERROR(VLOOKUP($F7,Import!$B$3:$AL$671,7,FALSE),"") -> 107 | P7: =IFERROR(VLOOKUP($F7,Import!$B$3:$AL$671,8,FALSE),"") -> 18 | Q7: =IFERROR(VLOOKUP($F7,Import!$B$3:$AL$671,9,FALSE),"") -> 81 | R7: =IFERROR(VLOOKUP($F7,Import!$B$3:$AL$671,10,FALSE),"") -> 37 | S7: =IFERROR(VLOOKUP($F7,Import!$B$3:$AL$671,11,FALSE),"") -> 0.321 | T7: 196.452 | U7: =IF(G7='User Input'!$C$1,1,0) -> 0 | V7: 0 | W7: 0 | X7: Jose Altuve | Y7: 0 | Z7: HOU | AA7: =IFERROR(VLOOKUP($F7,Import!$B$3:$AL$671,35,FALSE),"") ->  | AC7: 5 | AD7: =IFERROR(VLOOKUP(AI7,Import!$B$3:$T$672,19,FALSE),"") -> 41 | AE7: =IFERROR(VLOOKUP(AI7,Import!$AT$3:$AU$672,2,FALSE),"") -> 4 | AF7: =IFERROR(VLOOKUP(AI7,Import!$AN$3:$AR$672,5,FALSE),"") -> 3 | AG7: =IFERROR(VLOOKUP(AI7,Import!$AD$3:$AH$672,5,FALSE),"") ->  | AH7: =IFERROR(VLOOKUP(AI7,Import!$AZ$3:$BA$672,2,FALSE),"") -> 9 | AI7: =IFERROR(VLOOKUP(AC7,Import!$W$3:$X$672,2,FALSE),"") -> Noah Syndergaard | AL7: =IFERROR(VLOOKUP($AI7,Import!$B$3:$L$671,2,FALSE),"") -> NYM | AM7: =IFERROR(VLOOKUP($AI7,Import!$B$3:$L$671,3,FALSE),"") -> SP | AN7: =IFERROR(VLOOKUP($AI7,Import!$B$3:$L$671,4,FALSE),"") -> SP | AO7: =IFERROR(VLOOKUP($AI7,Import!$B$3:$L$671,5,FALSE),"") -> 28 | AP7: =IFERROR(VLOOKUP($AI7,Import!$B$4:$L$671,2,FALSE),"") -> NYM | AQ7: =IFERROR(VLOOKUP($AI7,Import!$B$3:$X$672,12,FALSE),"") -> 203 | AR7: =IFERROR(VLOOKUP($AI7,Import!$B$3:$X$672,15,FALSE),"") -> 2.67 | AS7: =IFERROR(VLOOKUP($AI7,Import!$B$3:$X$672,16,FALSE),"") -> 1.05 | AT7: =IFERROR(VLOOKUP($AI7,Import!$B$3:$X$672,13,FALSE),"") -> 16 | AU7: =IFERROR(VLOOKUP($AI7,Import!$B$3:$X$672,14,FALSE),"") -> 0 | AV7: =IFERROR(VLOOKUP($AI7,Import!$B$3:$X$672,17,FALSE),"") -> 235 | AW7: 542.01 | AX7: 213.15 | AY7: =IF(AJ7='User Input'!$C$1,1,0) -> 0 | AZ7: 0 | BA7: 0 | BB7: Noah Syndergaard | BC7: 0 | BD7: NYM | BE7: =IFERROR(VLOOKUP($AI7,Import!$B$3:$AL$671,35,FALSE),"") ->  | BF7: =9*(Table2[[#This Row],[K]]/Table2[[#This Row],[IP]]) -> 10.41871921 | BG7: =IFERROR(VLOOKUP($AI7,PITCH!$B$3:$AA$737,25,FALSE),"N/A") -> 8.338012353 | BO7: =IF(BP7="","",MAX(BO$1:BO6)+1) -> 6 | BP7: =IF('User Input'!C6=0,"",'User Input'!C6) -> f | BQ7: f
A8: 6 | B8: =IFERROR(VLOOKUP(F8,Import!$B$4:$T$672,19,FALSE),"") -> 6 | C8: =IFERROR(VLOOKUP(F8,Import!$AN$3:$AR$672,4,FALSE),"") -> 6 | D8: =IFERROR(VLOOKUP(F8,Import!$AD$3:$AL$672,4,FALSE),"") ->  | E8: =IFERROR(VLOOKUP(F8,Import!$AW$3:$AX$672,2,FALSE),"") -> 3 | F8: =IFERROR(VLOOKUP(A8,Import!$V$3:$X$672,3,FALSE),"") -> Nolan Arenado | I8: =IFERROR(VLOOKUP($F8,Import!$B$3:$AL$671,2,FALSE),"") -> COL | J8: =IFERROR(VLOOKUP($F8,Import!$B$3:$AL$671,3,FALSE),"") -> 3B | K8: =IFERROR(VLOOKUP($F8,Import!$B$3:$AL$671,4,FALSE),"") -> 3B | L8: =IFERROR(VLOOKUP($F8,Import!$B$3:$AL$671,5,FALSE),"") -> 46 | M8: =IFERROR(VLOOKUP($F8,Import!$B$4:$L$671,2,FALSE),"") -> COL | N8: =IFERROR(VLOOKUP($F8,Import!$B$3:$AL$671,6,FALSE),"") -> 601 | O8: =IFERROR(VLOOKUP($F8,Import!$B$3:$AL$671,7,FALSE),"") -> 103 | P8: =IFERROR(VLOOKUP($F8,Import!$B$3:$AL$671,8,FALSE),"") -> 38 | Q8: =IFERROR(VLOOKUP($F8,Import!$B$3:$AL$671,9,FALSE),"") -> 123 | R8: =IFERROR(VLOOKUP($F8,Import!$B$3:$AL$671,10,FALSE),"") -> 2 | S8: =IFERROR(VLOOKUP($F8,Import!$B$3:$AL$671,11,FALSE),"") -> 0.291 | T8: 174.891 | U8: =IF(G8='User Input'!$C$1,1,0) -> 0 | V8: 0 | W8: 0 | X8: Nolan Arenado | Y8: 0 | Z8: COL | AA8: =IFERROR(VLOOKUP($F8,Import!$B$3:$AL$671,35,FALSE),"") ->  | AC8: 6 | AD8: =IFERROR(VLOOKUP(AI8,Import!$B$3:$T$672,19,FALSE),"") -> 42 | AE8: =IFERROR(VLOOKUP(AI8,Import!$AT$3:$AU$672,2,FALSE),"") -> 11 | AF8: =IFERROR(VLOOKUP(AI8,Import!$AN$3:$AR$672,5,FALSE),"") -> 7 | AG8: =IFERROR(VLOOKUP(AI8,Import!$AD$3:$AH$672,5,FALSE),"") ->  | AH8: =IFERROR(VLOOKUP(AI8,Import!$AZ$3:$BA$672,2,FALSE),"") -> 8 | AI8: =IFERROR(VLOOKUP(AC8,Import!$W$3:$X$672,2,FALSE),"") -> Jake Arrieta | AL8: =IFERROR(VLOOKUP($AI8,Import!$B$3:$L$671,2,FALSE),"") -> CHC | AM8: =IFERROR(VLOOKUP($AI8,Import!$B$3:$L$671,3,FALSE),"") -> SP | AN8: =IFERROR(VLOOKUP($AI8,Import!$B$3:$L$671,4,FALSE),"") -> SP | AO8: =IFERROR(VLOOKUP($AI8,Import!$B$3:$L$671,5,FALSE),"") -> 27 | AP8: =IFERROR(VLOOKUP($AI8,Import!$B$4:$L$671,2,FALSE),"") -> CHC | AQ8: =IFERROR(VLOOKUP($AI8,Import!$B$3:$X$672,12,FALSE),"") -> 205 | AR8: =IFERROR(VLOOKUP($AI8,Import!$B$3:$X$672,15,FALSE),"") -> 2.98 | AS8: =IFERROR(VLOOKUP($AI8,Import!$B$3:$X$672,16,FALSE),"") -> 1.06 | AT8: =IFERROR(VLOOKUP($AI8,Import!$B$3:$X$672,13,FALSE),"") -> 17 | AU8: =IFERROR(VLOOKUP($AI8,Import!$B$3:$X$672,14,FALSE),"") -> 0 | AV8: =IFERROR(VLOOKUP($AI8,Import!$B$3:$X$672,17,FALSE),"") -> 196 | AW8: 610.9 | AX8: 217.3 | AY8: =IF(AJ8='User Input'!$C$1,1,0) -> 0 | AZ8: 0 | BA8: 0 | BB8: Jake Arrieta | BC8: 0 | BD8: CHC | BE8: =IFERROR(VLOOKUP($AI8,Import!$B$3:$AL$671,35,FALSE),"") ->  | BF8: =9*(Table2[[#This Row],[K]]/Table2[[#This Row],[IP]]) -> 8.604878049 | BG8: =IFERROR(VLOOKUP($AI8,PITCH!$B$3:$AA$737,25,FALSE),"N/A") -> 5.98173516 | BO8: =IF(BP8="","",MAX(BO$1:BO7)+1) -> 7 | BP8: =IF('User Input'!C7=0,"",'User Input'!C7) -> g | BQ8: g
A9: 7 | B9: =IFERROR(VLOOKUP(F9,Import!$B$4:$T$672,19,FALSE),"") -> 7 | C9: =IFERROR(VLOOKUP(F9,Import!$AN$3:$AR$672,4,FALSE),"") -> 11 | D9: =IFERROR(VLOOKUP(F9,Import!$AD$3:$AL$672,4,FALSE),"") ->  | E9: =IFERROR(VLOOKUP(F9,Import!$AW$3:$AX$672,2,FALSE),"") -> 6 | F9: =IFERROR(VLOOKUP(A9,Import!$V$3:$X$672,3,FALSE),"") -> Anthony Rizzo | I9: =IFERROR(VLOOKUP($F9,Import!$B$3:$AL$671,2,FALSE),"") -> CHC | J9: =IFERROR(VLOOKUP($F9,Import!$B$3:$AL$671,3,FALSE),"") -> 1B | K9: =IFERROR(VLOOKUP($F9,Import!$B$3:$AL$671,4,FALSE),"") -> 1B | L9: =IFERROR(VLOOKUP($F9,Import!$B$3:$AL$671,5,FALSE),"") -> 45 | M9: =IFERROR(VLOOKUP($F9,Import!$B$4:$L$671,2,FALSE),"") -> CHC | N9: =IFERROR(VLOOKUP($F9,Import!$B$3:$AL$671,6,FALSE),"") -> 571 | O9: =IFERROR(VLOOKUP($F9,Import!$B$3:$AL$671,7,FALSE),"") -> 97 | P9: =IFERROR(VLOOKUP($F9,Import!$B$3:$AL$671,8,FALSE),"") -> 35 | Q9: =IFERROR(VLOOKUP($F9,Import!$B$3:$AL$671,9,FALSE),"") -> 109 | R9: =IFERROR(VLOOKUP($F9,Import!$B$3:$AL$671,10,FALSE),"") -> 7 | S9: =IFERROR(VLOOKUP($F9,Import!$B$3:$AL$671,11,FALSE),"") -> 0.297 | T9: 169.587 | U9: =IF(G9='User Input'!$C$1,1,0) -> 0 | V9: 0 | W9: 0 | X9: Anthony Rizzo | Y9: 0 | Z9: CHC | AA9: =IFERROR(VLOOKUP($F9,Import!$B$3:$AL$671,35,FALSE),"") ->  | AC9: 7 | AD9: =IFERROR(VLOOKUP(AI9,Import!$B$3:$T$672,19,FALSE),"") -> 43 | AE9: =IFERROR(VLOOKUP(AI9,Import!$AT$3:$AU$672,2,FALSE),"") -> 9 | AF9: =IFERROR(VLOOKUP(AI9,Import!$AN$3:$AR$672,5,FALSE),"") -> 10 | AG9: =IFERROR(VLOOKUP(AI9,Import!$AD$3:$AH$672,5,FALSE),"") ->  | AH9: =IFERROR(VLOOKUP(AI9,Import!$AZ$3:$BA$672,2,FALSE),"") -> 6 | AI9: =IFERROR(VLOOKUP(AC9,Import!$W$3:$X$672,2,FALSE),"") -> Jon Lester | AL9: =IFERROR(VLOOKUP($AI9,Import!$B$3:$L$671,2,FALSE),"") -> CHC | AM9: =IFERROR(VLOOKUP($AI9,Import!$B$3:$L$671,3,FALSE),"") -> SP | AN9: =IFERROR(VLOOKUP($AI9,Import!$B$3:$L$671,4,FALSE),"") -> SP | AO9: =IFERROR(VLOOKUP($AI9,Import!$B$3:$L$671,5,FALSE),"") -> 26 | AP9: =IFERROR(VLOOKUP($AI9,Import!$B$4:$L$671,2,FALSE),"") -> CHC | AQ9: =IFERROR(VLOOKUP($AI9,Import!$B$3:$X$672,12,FALSE),"") -> 210 | AR9: =IFERROR(VLOOKUP($AI9,Import!$B$3:$X$672,15,FALSE),"") -> 3.35 | AS9: =IFERROR(VLOOKUP($AI9,Import!$B$3:$X$672,16,FALSE),"") -> 1.1 | AT9: =IFERROR(VLOOKUP($AI9,Import!$B$3:$X$672,13,FALSE),"") -> 16 | AU9: =IFERROR(VLOOKUP($AI9,Import!$B$3:$X$672,14,FALSE),"") -> 0 | AV9: =IFERROR(VLOOKUP($AI9,Import!$B$3:$X$672,17,FALSE),"") -> 206 | AW9: 703.5 | AX9: 231 | AY9: =IF(AJ9='User Input'!$C$1,1,0) -> 0 | AZ9: 0 | BA9: 0 | BB9: Jon Lester | BC9: 0 | BD9: CHC | BE9: =IFERROR(VLOOKUP($AI9,Import!$B$3:$AL$671,35,FALSE),"") ->  | BF9: =9*(Table2[[#This Row],[K]]/Table2[[#This Row],[IP]]) -> 8.828571429 | BG9: =IFERROR(VLOOKUP($AI9,PITCH!$B$3:$AA$737,25,FALSE),"N/A") -> 6.587628866 | BO9: =IF(BP9="","",MAX(BO$1:BO8)+1) -> 8 | BP9: =IF('User Input'!C8=0,"",'User Input'!C8) -> h | BQ9: h
A10: 8 | B10: =IFERROR(VLOOKUP(F10,Import!$B$4:$T$672,19,FALSE),"") -> 8 | C10: =IFERROR(VLOOKUP(F10,Import!$AN$3:$AR$672,4,FALSE),"") -> 7 | D10: =IFERROR(VLOOKUP(F10,Import!$AD$3:$AL$672,4,FALSE),"") ->  | E10: =IFERROR(VLOOKUP(F10,Import!$AW$3:$AX$672,2,FALSE),"") -> 14 | F10: =IFERROR(VLOOKUP(A10,Import!$V$3:$X$672,3,FALSE),"") -> Manny Machado | I10: =IFERROR(VLOOKUP($F10,Import!$B$3:$AL$671,2,FALSE),"") -> BAL | J10: =IFERROR(VLOOKUP($F10,Import!$B$3:$AL$671,3,FALSE),"") -> SS/3B | K10: =IFERROR(VLOOKUP($F10,Import!$B$3:$AL$671,4,FALSE),"") -> SS/3B | L10: =IFERROR(VLOOKUP($F10,Import!$B$3:$AL$671,5,FALSE),"") -> 45 | M10: =IFERROR(VLOOKUP($F10,Import!$B$4:$L$671,2,FALSE),"") -> BAL | N10: =IFERROR(VLOOKUP($F10,Import!$B$3:$AL$671,6,FALSE),"") -> 603 | O10: =IFERROR(VLOOKUP($F10,Import!$B$3:$AL$671,7,FALSE),"") -> 102 | P10: =IFERROR(VLOOKUP($F10,Import!$B$3:$AL$671,8,FALSE),"") -> 35 | Q10: =IFERROR(VLOOKUP($F10,Import!$B$3:$AL$671,9,FALSE),"") -> 107 | R10: =IFERROR(VLOOKUP($F10,Import!$B$3:$AL$671,10,FALSE),"") -> 5 | S10: =IFERROR(VLOOKUP($F10,Import!$B$3:$AL$671,11,FALSE),"") -> 0.292 | T10: 176.076 | U10: =IF(G10='User Input'!$C$1,1,0) -> 0 | V10: 0 | W10: 0 | X10: Manny Machado | Y10: 0 | Z10: BAL | AA10: =IFERROR(VLOOKUP($F10,Import!$B$3:$AL$671,35,FALSE),"") ->  | AC10: 8 | AD10: =IFERROR(VLOOKUP(AI10,Import!$B$3:$T$672,19,FALSE),"") -> 46 | AE10: =IFERROR(VLOOKUP(AI10,Import!$AT$3:$AU$672,2,FALSE),"") -> 8 | AF10: =IFERROR(VLOOKUP(AI10,Import!$AN$3:$AR$672,5,FALSE),"") ->  | AG10: =IFERROR(VLOOKUP(AI10,Import!$AD$3:$AH$672,5,FALSE),"") ->  | AH10: =IFERROR(VLOOKUP(AI10,Import!$AZ$3:$BA$672,2,FALSE),"") -> 10 | AI10: =IFERROR(VLOOKUP(AC10,Import!$W$3:$X$672,2,FALSE),"") -> Justin Verlander | AL10: =IFERROR(VLOOKUP($AI10,Import!$B$3:$L$671,2,FALSE),"") -> DET | AM10: =IFERROR(VLOOKUP($AI10,Import!$B$3:$L$671,3,FALSE),"") -> SP | AN10: =IFERROR(VLOOKUP($AI10,Import!$B$3:$L$671,4,FALSE),"") -> SP | AO10: =IFERROR(VLOOKUP($AI10,Import!$B$3:$L$671,5,FALSE),"") -> 25 | AP10: =IFERROR(VLOOKUP($AI10,Import!$B$4:$L$671,2,FALSE),"") -> DET | AQ10: =IFERROR(VLOOKUP($AI10,Import!$B$3:$X$672,12,FALSE),"") -> 217 | AR10: =IFERROR(VLOOKUP($AI10,Import!$B$3:$X$672,15,FALSE),"") -> 3.31 | AS10: =IFERROR(VLOOKUP($AI10,Import!$B$3:$X$672,16,FALSE),"") -> 1.05 | AT10: =IFERROR(VLOOKUP($AI10,Import!$B$3:$X$672,13,FALSE),"") -> 15 | AU10: =IFERROR(VLOOKUP($AI10,Import!$B$3:$X$672,14,FALSE),"") -> 0 | AV10: =IFERROR(VLOOKUP($AI10,Import!$B$3:$X$672,17,FALSE),"") -> 220 | AW10: 718.27 | AX10: 227.85 | AY10: =IF(AJ10='User Input'!$C$1,1,0) -> 0 | AZ10: 0 | BA10: 0 | BB10: Justin Verlander | BC10: 0 | BD10: DET | BE10: =IFERROR(VLOOKUP($AI10,Import!$B$3:$AL$671,35,FALSE),"") ->  | BF10: =9*(Table2[[#This Row],[K]]/Table2[[#This Row],[IP]]) -> 9.124423963 | BG10: =IFERROR(VLOOKUP($AI10,PITCH!$B$3:$AA$737,25,FALSE),"N/A") -> 6.715116279 | BO10: =IF(BP10="","",MAX(BO$1:BO9)+1) -> 9 | BP10: =IF('User Input'!C9=0,"",'User Input'!C9) -> i | BQ10: i
A11: 9 | B11: =IFERROR(VLOOKUP(F11,Import!$B$4:$T$672,19,FALSE),"") -> 9 | C11: =IFERROR(VLOOKUP(F11,Import!$AN$3:$AR$672,4,FALSE),"") -> 4 | D11: =IFERROR(VLOOKUP(F11,Import!$AD$3:$AL$672,4,FALSE),"") ->  | E11: =IFERROR(VLOOKUP(F11,Import!$AW$3:$AX$672,2,FALSE),"") -> 7 | F11: =IFERROR(VLOOKUP(A11,Import!$V$3:$X$672,3,FALSE),"") -> Bryce Harper | I11: =IFERROR(VLOOKUP($F11,Import!$B$3:$AL$671,2,FALSE),"") -> WSH | J11: =IFERROR(VLOOKUP($F11,Import!$B$3:$AL$671,3,FALSE),"") -> OF | K11: =IFERROR(VLOOKUP($F11,Import!$B$3:$AL$671,4,FALSE),"") -> OF | L11: =IFERROR(VLOOKUP($F11,Import!$B$3:$AL$671,5,FALSE),"") -> 44 | M11: =IFERROR(VLOOKUP($F11,Import!$B$4:$L$671,2,FALSE),"") -> WSH | N11: =IFERROR(VLOOKUP($F11,Import!$B$3:$AL$671,6,FALSE),"") -> 534 | O11: =IFERROR(VLOOKUP($F11,Import!$B$3:$AL$671,7,FALSE),"") -> 96 | P11: =IFERROR(VLOOKUP($F11,Import!$B$3:$AL$671,8,FALSE),"") -> 33 | Q11: =IFERROR(VLOOKUP($F11,Import!$B$3:$AL$671,9,FALSE),"") -> 106 | R11: =IFERROR(VLOOKUP($F11,Import!$B$3:$AL$671,10,FALSE),"") -> 12 | S11: =IFERROR(VLOOKUP($F11,Import!$B$3:$AL$671,11,FALSE),"") -> 0.291 | T11: 155.394 | U11: =IF(G11='User Input'!$C$1,1,0) -> 0 | V11: 0 | W11: 0 | X11: Bryce Harper | Y11: 0 | Z11: WSH | AA11: =IFERROR(VLOOKUP($F11,Import!$B$3:$AL$671,35,FALSE),"") ->  | AC11: 9 | AD11: =IFERROR(VLOOKUP(AI11,Import!$B$3:$T$672,19,FALSE),"") -> 47 | AE11: =IFERROR(VLOOKUP(AI11,Import!$AT$3:$AU$672,2,FALSE),"") -> 6 | AF11: =IFERROR(VLOOKUP(AI11,Import!$AN$3:$AR$672,5,FALSE),"") -> 9 | AG11: =IFERROR(VLOOKUP(AI11,Import!$AD$3:$AH$672,5,FALSE),"") ->  | AH11: =IFERROR(VLOOKUP(AI11,Import!$AZ$3:$BA$672,2,FALSE),"") -> 4 | AI11: =IFERROR(VLOOKUP(AC11,Import!$W$3:$X$672,2,FALSE),"") -> Corey Kluber | AL11: =IFERROR(VLOOKUP($AI11,Import!$B$3:$L$671,2,FALSE),"") -> CLE | AM11: =IFERROR(VLOOKUP($AI11,Import!$B$3:$L$671,3,FALSE),"") -> SP | AN11: =IFERROR(VLOOKUP($AI11,Import!$B$3:$L$671,4,FALSE),"") -> SP | AO11: =IFERROR(VLOOKUP($AI11,Import!$B$3:$L$671,5,FALSE),"") -> 23 | AP11: =IFERROR(VLOOKUP($AI11,Import!$B$4:$L$671,2,FALSE),"") -> CLE | AQ11: =IFERROR(VLOOKUP($AI11,Import!$B$3:$X$672,12,FALSE),"") -> 220 | AR11: =IFERROR(VLOOKUP($AI11,Import!$B$3:$X$672,15,FALSE),"") -> 3.36 | AS11: =IFERROR(VLOOKUP($AI11,Import!$B$3:$X$672,16,FALSE),"") -> 1.08 | AT11: =IFERROR(VLOOKUP($AI11,Import!$B$3:$X$672,13,FALSE),"") -> 17 | AU11: =IFERROR(VLOOKUP($AI11,Import!$B$3:$X$672,14,FALSE),"") -> 0 | AV11: =IFERROR(VLOOKUP($AI11,Import!$B$3:$X$672,17,FALSE),"") -> 229 | AW11: 739.2 | AX11: 237.6 | AY11: =IF(AJ11='User Input'!$C$1,1,0) -> 0 | AZ11: 0 | BA11: 0 | BB11: Corey Kluber | BC11: 0 | BD11: CLE | BE11: =IFERROR(VLOOKUP($AI11,Import!$B$3:$AL$671,35,FALSE),"") ->  | BF11: =9*(Table2[[#This Row],[K]]/Table2[[#This Row],[IP]]) -> 9.368181818 | BG11: =IFERROR(VLOOKUP($AI11,PITCH!$B$3:$AA$737,25,FALSE),"N/A") -> 7.151162791 | BO11: =IF(BP11="","",MAX(BO$1:BO10)+1) -> 10 | BP11: =IF('User Input'!C10=0,"",'User Input'!C10) -> j | BQ11: j
A12: 10 | B12: =IFERROR(VLOOKUP(F12,Import!$B$4:$T$672,19,FALSE),"") -> 10 | C12: =IFERROR(VLOOKUP(F12,Import!$AN$3:$AR$672,4,FALSE),"") -> 21 | D12: =IFERROR(VLOOKUP(F12,Import!$AD$3:$AL$672,4,FALSE),"") ->  | E12: =IFERROR(VLOOKUP(F12,Import!$AW$3:$AX$672,2,FALSE),"") -> 5 | F12: =IFERROR(VLOOKUP(A12,Import!$V$3:$X$672,3,FALSE),"") -> Josh Donaldson | I12: =IFERROR(VLOOKUP($F12,Import!$B$3:$AL$671,2,FALSE),"") -> TOR | J12: =IFERROR(VLOOKUP($F12,Import!$B$3:$AL$671,3,FALSE),"") -> 3B | K12: =IFERROR(VLOOKUP($F12,Import!$B$3:$AL$671,4,FALSE),"") -> 3B | L12: =IFERROR(VLOOKUP($F12,Import!$B$3:$AL$671,5,FALSE),"") -> 43 | M12: =IFERROR(VLOOKUP($F12,Import!$B$4:$L$671,2,FALSE),"") -> TOR | N12: =IFERROR(VLOOKUP($F12,Import!$B$3:$AL$671,6,FALSE),"") -> 570 | O12: =IFERROR(VLOOKUP($F12,Import!$B$3:$AL$671,7,FALSE),"") -> 95 | P12: =IFERROR(VLOOKUP($F12,Import!$B$3:$AL$671,8,FALSE),"") -> 32 | Q12: =IFERROR(VLOOKUP($F12,Import!$B$3:$AL$671,9,FALSE),"") -> 101 | R12: =IFERROR(VLOOKUP($F12,Import!$B$3:$AL$671,10,FALSE),"") -> 6 | S12: =IFERROR(VLOOKUP($F12,Import!$B$3:$AL$671,11,FALSE),"") -> 0.287 | T12: 163.59 | U12: =IF(G12='User Input'!$C$1,1,0) -> 0 | V12: 0 | W12: 0 | X12: Josh Donaldson | Y12: 0 | Z12: TOR | AA12: =IFERROR(VLOOKUP($F12,Import!$B$3:$AL$671,35,FALSE),"") ->  | AC12: 10 | AD12: =IFERROR(VLOOKUP(AI12,Import!$B$3:$T$672,19,FALSE),"") -> 48 | AE12: =IFERROR(VLOOKUP(AI12,Import!$AT$3:$AU$672,2,FALSE),"") -> 5 | AF12: =IFERROR(VLOOKUP(AI12,Import!$AN$3:$AR$672,5,FALSE),"") -> 8 | AG12: =IFERROR(VLOOKUP(AI12,Import!$AD$3:$AH$672,5,FALSE),"") ->  | AH12: =IFERROR(VLOOKUP(AI12,Import!$AZ$3:$BA$672,2,FALSE),"") -> 34 | AI12: =IFERROR(VLOOKUP(AC12,Import!$W$3:$X$672,2,FALSE),"") -> Yu Darvish | AL12: =IFERROR(VLOOKUP($AI12,Import!$B$3:$L$671,2,FALSE),"") -> TEX | AM12: =IFERROR(VLOOKUP($AI12,Import!$B$3:$L$671,3,FALSE),"") -> SP | AN12: =IFERROR(VLOOKUP($AI12,Import!$B$3:$L$671,4,FALSE),"") -> SP | AO12: =IFERROR(VLOOKUP($AI12,Import!$B$3:$L$671,5,FALSE),"") -> 23 | AP12: =IFERROR(VLOOKUP($AI12,Import!$B$4:$L$671,2,FALSE),"") -> TEX | AQ12: =IFERROR(VLOOKUP($AI12,Import!$B$3:$X$672,12,FALSE),"") -> 201 | AR12: =IFERROR(VLOOKUP($AI12,Import!$B$3:$X$672,15,FALSE),"") -> 3.04 | AS12: =IFERROR(VLOOKUP($AI12,Import!$B$3:$X$672,16,FALSE),"") -> 1.15 | AT12: =IFERROR(VLOOKUP($AI12,Import!$B$3:$X$672,13,FALSE),"") -> 15 | AU12: =IFERROR(VLOOKUP($AI12,Import!$B$3:$X$672,14,FALSE),"") -> 0 | AV12: =IFERROR(VLOOKUP($AI12,Import!$B$3:$X$672,17,FALSE),"") -> 239 | AW12: 611.04 | AX12: 231.15 | AY12: =IF(AJ12='User Input'!$C$1,1,0) -> 0 | AZ12: 0 | BA12: 0 | BB12: Yu Darvish | BC12: 0 | BD12: TEX | BE12: =IFERROR(VLOOKUP($AI12,Import!$B$3:$AL$671,35,FALSE),"") ->  | BF12: =9*(Table2[[#This Row],[K]]/Table2[[#This Row],[IP]]) -> 10.70149254 | BG12: =IFERROR(VLOOKUP($AI12,PITCH!$B$3:$AA$737,25,FALSE),"N/A") -> 7.528893781 | BO12: =IF(BP12="","",MAX(BO$1:BO11)+1) -> 11 | BP12: =IF('User Input'!C11=0,"",'User Input'!C11) -> k | BQ12: k
A13: 11 | B13: =IFERROR(VLOOKUP(F13,Import!$B$4:$T$672,19,FALSE),"") -> 11 | C13: =IFERROR(VLOOKUP(F13,Import!$AN$3:$AR$672,4,FALSE),"") -> 26 | D13: =IFERROR(VLOOKUP(F13,Import!$AD$3:$AL$672,4,FALSE),"") ->  | E13: =IFERROR(VLOOKUP(F13,Import!$AW$3:$AX$672,2,FALSE),"") -> 11 | F13: =IFERROR(VLOOKUP(A13,Import!$V$3:$X$672,3,FALSE),"") -> Miguel Cabrera | I13: =IFERROR(VLOOKUP($F13,Import!$B$3:$AL$671,2,FALSE),"") -> DET | J13: =IFERROR(VLOOKUP($F13,Import!$B$3:$AL$671,3,FALSE),"") -> 1B | K13: =IFERROR(VLOOKUP($F13,Import!$B$3:$AL$671,4,FALSE),"") -> 1B | L13: =IFERROR(VLOOKUP($F13,Import!$B$3:$AL$671,5,FALSE),"") -> 43 | M13: =IFERROR(VLOOKUP($F13,Import!$B$4:$L$671,2,FALSE),"") -> DET | N13: =IFERROR(VLOOKUP($F13,Import!$B$3:$AL$671,6,FALSE),"") -> 577 | O13: =IFERROR(VLOOKUP($F13,Import!$B$3:$AL$671,7,FALSE),"") -> 95 | P13: =IFERROR(VLOOKUP($F13,Import!$B$3:$AL$671,8,FALSE),"") -> 29 | Q13: =IFERROR(VLOOKUP($F13,Import!$B$3:$AL$671,9,FALSE),"") -> 105 | R13: =IFERROR(VLOOKUP($F13,Import!$B$3:$AL$671,10,FALSE),"") -> 1 | S13: =IFERROR(VLOOKUP($F13,Import!$B$3:$AL$671,11,FALSE),"") -> 0.317 | T13: 182.909 | U13: =IF(G13='User Input'!$C$1,1,0) -> 0 | V13: 0 | W13: 0 | X13: Miguel Cabrera | Y13: 0 | Z13: DET | AA13: =IFERROR(VLOOKUP($F13,Import!$B$3:$AL$671,35,FALSE),"") ->  | AC13: 11 | AD13: =IFERROR(VLOOKUP(AI13,Import!$B$3:$T$672,19,FALSE),"") -> 49 | AE13: =IFERROR(VLOOKUP(AI13,Import!$AT$3:$AU$672,2,FALSE),"") -> 14 | AF13: =IFERROR(VLOOKUP(AI13,Import!$AN$3:$AR$672,5,FALSE),"") -> 16 | AG13: =IFERROR(VLOOKUP(AI13,Import!$AD$3:$AH$672,5,FALSE),"") ->  | AH13: =IFERROR(VLOOKUP(AI13,Import!$AZ$3:$BA$672,2,FALSE),"") -> 7 | AI13: =IFERROR(VLOOKUP(AC13,Import!$W$3:$X$672,2,FALSE),"") -> Johnny Cueto | AL13: =IFERROR(VLOOKUP($AI13,Import!$B$3:$L$671,2,FALSE),"") -> SF | AM13: =IFERROR(VLOOKUP($AI13,Import!$B$3:$L$671,3,FALSE),"") -> SP | AN13: =IFERROR(VLOOKUP($AI13,Import!$B$3:$L$671,4,FALSE),"") -> SP | AO13: =IFERROR(VLOOKUP($AI13,Import!$B$3:$L$671,5,FALSE),"") -> 22 | AP13: =IFERROR(VLOOKUP($AI13,Import!$B$4:$L$671,2,FALSE),"") -> SF | AQ13: =IFERROR(VLOOKUP($AI13,Import!$B$3:$X$672,12,FALSE),"") -> 210 | AR13: =IFERROR(VLOOKUP($AI13,Import!$B$3:$X$672,15,FALSE),"") -> 3.04 | AS13: =IFERROR(VLOOKUP($AI13,Import!$B$3:$X$672,16,FALSE),"") -> 1.11 | AT13: =IFERROR(VLOOKUP($AI13,Import!$B$3:$X$672,13,FALSE),"") -> 16 | AU13: =IFERROR(VLOOKUP($AI13,Import!$B$3:$X$672,14,FALSE),"") -> 0 | AV13: =IFERROR(VLOOKUP($AI13,Import!$B$3:$X$672,17,FALSE),"") -> 192 | AW13: 638.4 | AX13: 233.1 | AY13: =IF(AJ13='User Input'!$C$1,1,0) -> 0 | AZ13: 0 | BA13: 0 | BB13: Johnny Cueto | BC13: 0 | BD13: SF | BE13: =IFERROR(VLOOKUP($AI13,Import!$B$3:$AL$671,35,FALSE),"") ->  | BF13: =9*(Table2[[#This Row],[K]]/Table2[[#This Row],[IP]]) -> 8.228571429 | BG13: =IFERROR(VLOOKUP($AI13,PITCH!$B$3:$AA$737,25,FALSE),"N/A") -> 5.844705882 | BO13: =IF(BP13="","",MAX(BO$1:BO12)+1) -> 12 | BP13: =IF('User Input'!C12=0,"",'User Input'!C12) -> l | BQ13: l
A14: 12 | B14: =IFERROR(VLOOKUP(F14,Import!$B$4:$T$672,19,FALSE),"") -> 12 | C14: =IFERROR(VLOOKUP(F14,Import!$AN$3:$AR$672,4,FALSE),"") -> 5 | D14: =IFERROR(VLOOKUP(F14,Import!$AD$3:$AL$672,4,FALSE),"") ->  | E14: =IFERROR(VLOOKUP(F14,Import!$AW$3:$AX$672,2,FALSE),"") -> 12 | F14: =IFERROR(VLOOKUP(A14,Import!$V$3:$X$672,3,FALSE),"") -> Trea Turner | I14: =IFERROR(VLOOKUP($F14,Import!$B$3:$AL$671,2,FALSE),"") -> WSH | J14: =IFERROR(VLOOKUP($F14,Import!$B$3:$AL$671,3,FALSE),"") -> 2B/OF | K14: =IFERROR(VLOOKUP($F14,Import!$B$3:$AL$671,4,FALSE),"") -> 2B/OF | L14: =IFERROR(VLOOKUP($F14,Import!$B$3:$AL$671,5,FALSE),"") -> 42 | M14: =IFERROR(VLOOKUP($F14,Import!$B$4:$L$671,2,FALSE),"") -> WSH | N14: =IFERROR(VLOOKUP($F14,Import!$B$3:$AL$671,6,FALSE),"") -> 577 | O14: =IFERROR(VLOOKUP($F14,Import!$B$3:$AL$671,7,FALSE),"") -> 102 | P14: =IFERROR(VLOOKUP($F14,Import!$B$3:$AL$671,8,FALSE),"") -> 16 | Q14: =IFERROR(VLOOKUP($F14,Import!$B$3:$AL$671,9,FALSE),"") -> 84 | R14: =IFERROR(VLOOKUP($F14,Import!$B$3:$AL$671,10,FALSE),"") -> 40 | S14: =IFERROR(VLOOKUP($F14,Import!$B$3:$AL$671,11,FALSE),"") -> 0.305 | T14: 175.985 | U14: =IF(G14='User Input'!$C$1,1,0) -> 0 | V14: 0 | W14: 0 | X14: Trea Turner | Y14: 0 | Z14: WSH | AA14: =IFERROR(VLOOKUP($F14,Import!$B$3:$AL$671,35,FALSE),"") ->  | AC14: 12 | AD14: =IFERROR(VLOOKUP(AI14,Import!$B$3:$T$672,19,FALSE),"") -> 50 | AE14: =IFERROR(VLOOKUP(AI14,Import!$AT$3:$AU$672,2,FALSE),"") -> 13 | AF14: =IFERROR(VLOOKUP(AI14,Import!$AN$3:$AR$672,5,FALSE),"") ->  | AG14: =IFERROR(VLOOKUP(AI14,Import!$AD$3:$AH$672,5,FALSE),"") ->  | AH14: =IFERROR(VLOOKUP(AI14,Import!$AZ$3:$BA$672,2,FALSE),"") -> 22 | AI14: =IFERROR(VLOOKUP(AC14,Import!$W$3:$X$672,2,FALSE),"") -> Carlos Carrasco | AL14: =IFERROR(VLOOKUP($AI14,Import!$B$3:$L$671,2,FALSE),"") -> CLE | AM14: =IFERROR(VLOOKUP($AI14,Import!$B$3:$L$671,3,FALSE),"") -> SP | AN14: =IFERROR(VLOOKUP($AI14,Import!$B$3:$L$671,4,FALSE),"") -> SP | AO14: =IFERROR(VLOOKUP($AI14,Import!$B$3:$L$671,5,FALSE),"") -> 22 | AP14: =IFERROR(VLOOKUP($AI14,Import!$B$4:$L$671,2,FALSE),"") -> CLE | AQ14: =IFERROR(VLOOKUP($AI14,Import!$B$3:$X$672,12,FALSE),"") -> 190 | AR14: =IFERROR(VLOOKUP($AI14,Import!$B$3:$X$672,15,FALSE),"") -> 3.28 | AS14: =IFERROR(VLOOKUP($AI14,Import!$B$3:$X$672,16,FALSE),"") -> 1.13 | AT14: =IFERROR(VLOOKUP($AI14,Import!$B$3:$X$672,13,FALSE),"") -> 15 | AU14: =IFERROR(VLOOKUP($AI14,Import!$B$3:$X$672,14,FALSE),"") -> 0 | AV14: =IFERROR(VLOOKUP($AI14,Import!$B$3:$X$672,17,FALSE),"") -> 192 | AW14: 623.2 | AX14: 214.7 | AY14: =IF(AJ14='User Input'!$C$1,1,0) -> 0 | AZ14: 0 | BA14: 0 | BB14: Carlos Carrasco | BC14: 0 | BD14: CLE | BE14: =IFERROR(VLOOKUP($AI14,Import!$B$3:$AL$671,35,FALSE),"") ->  | BF14: =9*(Table2[[#This Row],[K]]/Table2[[#This Row],[IP]]) -> 9.094736842 | BG14: =IFERROR(VLOOKUP($AI14,PITCH!$B$3:$AA$737,25,FALSE),"N/A") -> 6.842716193 | BO14: =IF(BP14="","",MAX(BO$1:BO13)+1) ->  | BP14: =IF('User Input'!C13=0,"",'User Input'!C13) -> 
A15: 13 | B15: =IFERROR(VLOOKUP(F15,Import!$B$4:$T$672,19,FALSE),"") -> 13 | C15: =IFERROR(VLOOKUP(F15,Import!$AN$3:$AR$672,4,FALSE),"") -> 12 | D15: =IFERROR(VLOOKUP(F15,Import!$AD$3:$AL$672,4,FALSE),"") ->  | E15: =IFERROR(VLOOKUP(F15,Import!$AW$3:$AX$672,2,FALSE),"") -> 17 | F15: =IFERROR(VLOOKUP(A15,Import!$V$4:$X$672,3,FALSE),"") -> Carlos Correa | I15: =IFERROR(VLOOKUP($F15,Import!$B$3:$AL$671,2,FALSE),"") -> HOU | J15: =IFERROR(VLOOKUP($F15,Import!$B$3:$AL$671,3,FALSE),"") -> SS | K15: =IFERROR(VLOOKUP($F15,Import!$B$3:$AL$671,4,FALSE),"") -> SS | L15: =IFERROR(VLOOKUP($F15,Import!$B$3:$AL$671,5,FALSE),"") -> 42 | M15: =IFERROR(VLOOKUP($F15,Import!$B$4:$L$671,2,FALSE),"") -> HOU | N15: =IFERROR(VLOOKUP($F15,Import!$B$3:$AL$671,6,FALSE),"") -> 575 | O15: =IFERROR(VLOOKUP($F15,Import!$B$3:$AL$671,7,FALSE),"") -> 98 | P15: =IFERROR(VLOOKUP($F15,Import!$B$3:$AL$671,8,FALSE),"") -> 26 | Q15: =IFERROR(VLOOKUP($F15,Import!$B$3:$AL$671,9,FALSE),"") -> 104 | R15: =IFERROR(VLOOKUP($F15,Import!$B$3:$AL$671,10,FALSE),"") -> 20 | S15: =IFERROR(VLOOKUP($F15,Import!$B$3:$AL$671,11,FALSE),"") -> 0.275 | T15: 158.125 | U15: =IF(G15='User Input'!$C$1,1,0) -> 0 | V15: 0 | W15: 0 | X15: Carlos Correa | Y15: 0 | Z15: HOU | AA15: =IFERROR(VLOOKUP($F15,Import!$B$3:$AL$671,35,FALSE),"") ->  | AC15: 13 | AD15: =IFERROR(VLOOKUP(AI15,Import!$B$3:$T$672,19,FALSE),"") -> 51 | AE15: =IFERROR(VLOOKUP(AI15,Import!$AT$3:$AU$672,2,FALSE),"") ->  | AF15: =IFERROR(VLOOKUP(AI15,Import!$AN$3:$AR$672,5,FALSE),"") ->  | AG15: =IFERROR(VLOOKUP(AI15,Import!$AD$3:$AH$672,5,FALSE),"") ->  | AH15: =IFERROR(VLOOKUP(AI15,Import!$AZ$3:$BA$672,2,FALSE),"") -> 15 | AI15: =IFERROR(VLOOKUP(AC15,Import!$W$3:$X$672,2,FALSE),"") -> Kenley Jansen | AL15: =IFERROR(VLOOKUP($AI15,Import!$B$3:$L$671,2,FALSE),"") -> LAD | AM15: =IFERROR(VLOOKUP($AI15,Import!$B$3:$L$671,3,FALSE),"") -> RP | AN15: =IFERROR(VLOOKUP($AI15,Import!$B$3:$L$671,4,FALSE),"") -> RP | AO15: =IFERROR(VLOOKUP($AI15,Import!$B$3:$L$671,5,FALSE),"") -> 22 | AP15: =IFERROR(VLOOKUP($AI15,Import!$B$4:$L$671,2,FALSE),"") -> LAD | AQ15: =IFERROR(VLOOKUP($AI15,Import!$B$3:$X$672,12,FALSE),"") -> 65 | AR15: =IFERROR(VLOOKUP($AI15,Import!$B$3:$X$672,15,FALSE),"") -> 2.11 | AS15: =IFERROR(VLOOKUP($AI15,Import!$B$3:$X$672,16,FALSE),"") -> 0.81 | AT15: =IFERROR(VLOOKUP($AI15,Import!$B$3:$X$672,13,FALSE),"") -> 4 | AU15: =IFERROR(VLOOKUP($AI15,Import!$B$3:$X$672,14,FALSE),"") -> 45 | AV15: =IFERROR(VLOOKUP($AI15,Import!$B$3:$X$672,17,FALSE),"") -> 100 | AW15: 137.15 | AX15: 52.65 | AY15: =IF(AJ15='User Input'!$C$1,1,0) -> 0 | AZ15: 0 | BA15: 0 | BB15: Kenley Jansen | BC15: 0 | BD15: LAD | BE15: =IFERROR(VLOOKUP($AI15,Import!$B$3:$AL$671,35,FALSE),"") ->  | BF15: =9*(Table2[[#This Row],[K]]/Table2[[#This Row],[IP]]) -> 13.84615385 | BG15: =IFERROR(VLOOKUP($AI15,PITCH!$B$3:$AA$737,25,FALSE),"N/A") -> 10.41666667 | BO15: =IF(BP15="","",MAX(BO$1:BO14)+1) ->  | BP15: =IF('User Input'!C14=0,"",'User Input'!C14) -> 
A16: 14 | B16: =IFERROR(VLOOKUP(F16,Import!$B$4:$T$672,19,FALSE),"") -> 14 | C16: =IFERROR(VLOOKUP(F16,Import!$AN$3:$AR$672,4,FALSE),"") -> 19 | D16: =IFERROR(VLOOKUP(F16,Import!$AD$3:$AL$672,4,FALSE),"") ->  | E16: =IFERROR(VLOOKUP(F16,Import!$AW$3:$AX$672,2,FALSE),"") -> 40 | F16: =IFERROR(VLOOKUP(A16,Import!$V$3:$X$672,3,FALSE),"") -> Rougned Odor | I16: =IFERROR(VLOOKUP($F16,Import!$B$3:$AL$671,2,FALSE),"") -> TEX | J16: =IFERROR(VLOOKUP($F16,Import!$B$3:$AL$671,3,FALSE),"") -> 2B | K16: =IFERROR(VLOOKUP($F16,Import!$B$3:$AL$671,4,FALSE),"") -> 2B | L16: =IFERROR(VLOOKUP($F16,Import!$B$3:$AL$671,5,FALSE),"") -> 42 | M16: =IFERROR(VLOOKUP($F16,Import!$B$4:$L$671,2,FALSE),"") -> TEX | N16: =IFERROR(VLOOKUP($F16,Import!$B$3:$AL$671,6,FALSE),"") -> 581 | O16: =IFERROR(VLOOKUP($F16,Import!$B$3:$AL$671,7,FALSE),"") -> 92 | P16: =IFERROR(VLOOKUP($F16,Import!$B$3:$AL$671,8,FALSE),"") -> 28 | Q16: =IFERROR(VLOOKUP($F16,Import!$B$3:$AL$671,9,FALSE),"") -> 98 | R16: =IFERROR(VLOOKUP($F16,Import!$B$3:$AL$671,10,FALSE),"") -> 15 | S16: =IFERROR(VLOOKUP($F16,Import!$B$3:$AL$671,11,FALSE),"") -> 0.281 | T16: 163.261 | U16: =IF(G16='User Input'!$C$1,1,0) -> 0 | V16: 0 | W16: 0 | X16: Rougned Odor | Y16: 0 | Z16: TEX | AA16: =IFERROR(VLOOKUP($F16,Import!$B$3:$AL$671,35,FALSE),"") ->  | AC16: 14 | AD16: =IFERROR(VLOOKUP(AI16,Import!$B$3:$T$672,19,FALSE),"") -> 52 | AE16: =IFERROR(VLOOKUP(AI16,Import!$AT$3:$AU$672,2,FALSE),"") ->  | AF16: =IFERROR(VLOOKUP(AI16,Import!$AN$3:$AR$672,5,FALSE),"") ->  | AG16: =IFERROR(VLOOKUP(AI16,Import!$AD$3:$AH$672,5,FALSE),"") ->  | AH16: =IFERROR(VLOOKUP(AI16,Import!$AZ$3:$BA$672,2,FALSE),"") -> 33 | AI16: =IFERROR(VLOOKUP(AC16,Import!$W$3:$X$672,2,FALSE),"") -> Aroldis Chapman | AL16: =IFERROR(VLOOKUP($AI16,Import!$B$3:$L$671,2,FALSE),"") -> NYY | AM16: =IFERROR(VLOOKUP($AI16,Import!$B$3:$L$671,3,FALSE),"") -> RP | AN16: =IFERROR(VLOOKUP($AI16,Import!$B$3:$L$671,4,FALSE),"") -> RP | AO16: =IFERROR(VLOOKUP($AI16,Import!$B$3:$L$671,5,FALSE),"") -> 22 | AP16: =IFERROR(VLOOKUP($AI16,Import!$B$4:$L$671,2,FALSE),"") -> NYY | AQ16: =IFERROR(VLOOKUP($AI16,Import!$B$3:$X$672,12,FALSE),"") -> 64 | AR16: =IFERROR(VLOOKUP($AI16,Import!$B$3:$X$672,15,FALSE),"") -> 1.98 | AS16: =IFERROR(VLOOKUP($AI16,Import!$B$3:$X$672,16,FALSE),"") -> 0.95 | AT16: =IFERROR(VLOOKUP($AI16,Import!$B$3:$X$672,13,FALSE),"") -> 5 | AU16: =IFERROR(VLOOKUP($AI16,Import!$B$3:$X$672,14,FALSE),"") -> 42 | AV16: =IFERROR(VLOOKUP($AI16,Import!$B$3:$X$672,17,FALSE),"") -> 100 | AW16: 126.72 | AX16: 60.8 | AY16: =IF(AJ16='User Input'!$C$1,1,0) -> 0 | AZ16: 0 | BA16: 0 | BB16: Aroldis Chapman | BC16: 0 | BD16: NYY | BE16: =IFERROR(VLOOKUP($AI16,Import!$B$3:$AL$671,35,FALSE),"") ->  | BF16: =9*(Table2[[#This Row],[K]]/Table2[[#This Row],[IP]]) -> 14.0625 | BG16: =IFERROR(VLOOKUP($AI16,PITCH!$B$3:$AA$737,25,FALSE),"N/A") -> 10.69444444 | BO16: =IF(BP16="","",MAX(BO$1:BO15)+1) ->  | BP16: =IF('User Input'!C15=0,"",'User Input'!C15) -> 
A17: 15 | B17: =IFERROR(VLOOKUP(F17,Import!$B$4:$T$672,19,FALSE),"") -> 15 | C17: =IFERROR(VLOOKUP(F17,Import!$AN$3:$AR$672,4,FALSE),"") -> 17 | D17: =IFERROR(VLOOKUP(F17,Import!$AD$3:$AL$672,4,FALSE),"") ->  | E17: =IFERROR(VLOOKUP(F17,Import!$AW$3:$AX$672,2,FALSE),"") -> 15 | F17: =IFERROR(VLOOKUP(A17,Import!$V$3:$X$672,3,FALSE),"") -> Freddie Freeman | I17: =IFERROR(VLOOKUP($F17,Import!$B$3:$AL$671,2,FALSE),"") -> ATL | J17: =IFERROR(VLOOKUP($F17,Import!$B$3:$AL$671,3,FALSE),"") -> 1B | K17: =IFERROR(VLOOKUP($F17,Import!$B$3:$AL$671,4,FALSE),"") -> 1B | L17: =IFERROR(VLOOKUP($F17,Import!$B$3:$AL$671,5,FALSE),"") -> 41 | M17: =IFERROR(VLOOKUP($F17,Import!$B$4:$L$671,2,FALSE),"") -> ATL | N17: =IFERROR(VLOOKUP($F17,Import!$B$3:$AL$671,6,FALSE),"") -> 575 | O17: =IFERROR(VLOOKUP($F17,Import!$B$3:$AL$671,7,FALSE),"") -> 93 | P17: =IFERROR(VLOOKUP($F17,Import!$B$3:$AL$671,8,FALSE),"") -> 31 | Q17: =IFERROR(VLOOKUP($F17,Import!$B$3:$AL$671,9,FALSE),"") -> 97 | R17: =IFERROR(VLOOKUP($F17,Import!$B$3:$AL$671,10,FALSE),"") -> 6 | S17: =IFERROR(VLOOKUP($F17,Import!$B$3:$AL$671,11,FALSE),"") -> 0.295 | T17: 169.625 | U17: =IF(G17='User Input'!$C$1,1,0) -> 0 | V17: 0 | W17: 0 | X17: Freddie Freeman | Y17: 0 | Z17: ATL | AA17: =IFERROR(VLOOKUP($F17,Import!$B$3:$AL$671,35,FALSE),"") ->  | AC17: 15 | AD17: =IFERROR(VLOOKUP(AI17,Import!$B$3:$T$672,19,FALSE),"") -> 53 | AE17: =IFERROR(VLOOKUP(AI17,Import!$AT$3:$AU$672,2,FALSE),"") ->  | AF17: =IFERROR(VLOOKUP(AI17,Import!$AN$3:$AR$672,5,FALSE),"") ->  | AG17: =IFERROR(VLOOKUP(AI17,Import!$AD$3:$AH$672,5,FALSE),"") ->  | AH17: =IFERROR(VLOOKUP(AI17,Import!$AZ$3:$BA$672,2,FALSE),"") -> 25 | AI17: =IFERROR(VLOOKUP(AC17,Import!$W$3:$X$672,2,FALSE),"") -> Zach Britton | AL17: =IFERROR(VLOOKUP($AI17,Import!$B$3:$L$671,2,FALSE),"") -> BAL | AM17: =IFERROR(VLOOKUP($AI17,Import!$B$3:$L$671,3,FALSE),"") -> RP | AN17: =IFERROR(VLOOKUP($AI17,Import!$B$3:$L$671,4,FALSE),"") -> RP | AO17: =IFERROR(VLOOKUP($AI17,Import!$B$3:$L$671,5,FALSE),"") -> 22 | AP17: =IFERROR(VLOOKUP($AI17,Import!$B$4:$L$671,2,FALSE),"") -> BAL | AQ17: =IFERROR(VLOOKUP($AI17,Import!$B$3:$X$672,12,FALSE),"") -> 66 | AR17: =IFERROR(VLOOKUP($AI17,Import!$B$3:$X$672,15,FALSE),"") -> 1.78 | AS17: =IFERROR(VLOOKUP($AI17,Import!$B$3:$X$672,16,FALSE),"") -> 0.93 | AT17: =IFERROR(VLOOKUP($AI17,Import!$B$3:$X$672,13,FALSE),"") -> 3 | AU17: =IFERROR(VLOOKUP($AI17,Import!$B$3:$X$672,14,FALSE),"") -> 42 | AV17: =IFERROR(VLOOKUP($AI17,Import!$B$3:$X$672,17,FALSE),"") -> 78 | AW17: 117.48 | AX17: 61.38 | AY17: =IF(AJ17='User Input'!$C$1,1,0) -> 0 | AZ17: 0 | BA17: 0 | BB17: Zach Britton | BC17: 0 | BD17: BAL | BE17: =IFERROR(VLOOKUP($AI17,Import!$B$3:$AL$671,35,FALSE),"") ->  | BF17: =9*(Table2[[#This Row],[K]]/Table2[[#This Row],[IP]]) -> 10.63636364 | BG17: =IFERROR(VLOOKUP($AI17,PITCH!$B$3:$AA$737,25,FALSE),"N/A") -> 7.361111111 | BO17: =IF(BP17="","",MAX(BO$1:BO16)+1) ->  | BP17: =IF('User Input'!C16=0,"",'User Input'!C16) -> 
A18: 16 | B18: =IFERROR(VLOOKUP(F18,Import!$B$4:$T$672,19,FALSE),"") -> 16 | C18: =IFERROR(VLOOKUP(F18,Import!$AN$3:$AR$672,4,FALSE),"") -> 22 | D18: =IFERROR(VLOOKUP(F18,Import!$AD$3:$AL$672,4,FALSE),"") ->  | E18: =IFERROR(VLOOKUP(F18,Import!$AW$3:$AX$672,2,FALSE),"") -> 28 | F18: =IFERROR(VLOOKUP(A18,Import!$V$3:$X$672,3,FALSE),"") -> George Springer | I18: =IFERROR(VLOOKUP($F18,Import!$B$3:$AL$671,2,FALSE),"") -> HOU | J18: =IFERROR(VLOOKUP($F18,Import!$B$3:$AL$671,3,FALSE),"") -> OF | K18: =IFERROR(VLOOKUP($F18,Import!$B$3:$AL$671,4,FALSE),"") -> OF | L18: =IFERROR(VLOOKUP($F18,Import!$B$3:$AL$671,5,FALSE),"") -> 40 | M18: =IFERROR(VLOOKUP($F18,Import!$B$4:$L$671,2,FALSE),"") -> HOU | N18: =IFERROR(VLOOKUP($F18,Import!$B$3:$AL$671,6,FALSE),"") -> 590 | O18: =IFERROR(VLOOKUP($F18,Import!$B$3:$AL$671,7,FALSE),"") -> 103 | P18: =IFERROR(VLOOKUP($F18,Import!$B$3:$AL$671,8,FALSE),"") -> 32 | Q18: =IFERROR(VLOOKUP($F18,Import!$B$3:$AL$671,9,FALSE),"") -> 88 | R18: =IFERROR(VLOOKUP($F18,Import!$B$3:$AL$671,10,FALSE),"") -> 10 | S18: =IFERROR(VLOOKUP($F18,Import!$B$3:$AL$671,11,FALSE),"") -> 0.255 | T18: 150.45 | U18: =IF(G18='User Input'!$C$1,1,0) -> 0 | V18: 0 | W18: 0 | X18: George Springer | Y18: 0 | Z18: HOU | AA18: =IFERROR(VLOOKUP($F18,Import!$B$3:$AL$671,35,FALSE),"") ->  | AC18: 16 | AD18: =IFERROR(VLOOKUP(AI18,Import!$B$3:$T$672,19,FALSE),"") -> 55 | AE18: =IFERROR(VLOOKUP(AI18,Import!$AT$3:$AU$672,2,FALSE),"") ->  | AF18: =IFERROR(VLOOKUP(AI18,Import!$AN$3:$AR$672,5,FALSE),"") ->  | AG18: =IFERROR(VLOOKUP(AI18,Import!$AD$3:$AH$672,5,FALSE),"") ->  | AH18: =IFERROR(VLOOKUP(AI18,Import!$AZ$3:$BA$672,2,FALSE),"") -> 32 | AI18: =IFERROR(VLOOKUP(AC18,Import!$W$3:$X$672,2,FALSE),"") -> Mark Melancon | AL18: =IFERROR(VLOOKUP($AI18,Import!$B$3:$L$671,2,FALSE),"") -> SF | AM18: =IFERROR(VLOOKUP($AI18,Import!$B$3:$L$671,3,FALSE),"") -> RP | AN18: =IFERROR(VLOOKUP($AI18,Import!$B$3:$L$671,4,FALSE),"") -> RP | AO18: =IFERROR(VLOOKUP($AI18,Import!$B$3:$L$671,5,FALSE),"") -> 21 | AP18: =IFERROR(VLOOKUP($AI18,Import!$B$4:$L$671,2,FALSE),"") -> SF | AQ18: =IFERROR(VLOOKUP($AI18,Import!$B$3:$X$672,12,FALSE),"") -> 62 | AR18: =IFERROR(VLOOKUP($AI18,Import!$B$3:$X$672,15,FALSE),"") -> 2.26 | AS18: =IFERROR(VLOOKUP($AI18,Import!$B$3:$X$672,16,FALSE),"") -> 0.97 | AT18: =IFERROR(VLOOKUP($AI18,Import!$B$3:$X$672,13,FALSE),"") -> 4 | AU18: =IFERROR(VLOOKUP($AI18,Import!$B$3:$X$672,14,FALSE),"") -> 42 | AV18: =IFERROR(VLOOKUP($AI18,Import!$B$3:$X$672,17,FALSE),"") -> 58 | AW18: 140.12 | AX18: 60.14 | AY18: =IF(AJ18='User Input'!$C$1,1,0) -> 0 | AZ18: 0 | BA18: 0 | BB18: Mark Melancon | BC18: 0 | BD18: SF | BE18: =IFERROR(VLOOKUP($AI18,Import!$B$3:$AL$671,35,FALSE),"") ->  | BF18: =9*(Table2[[#This Row],[K]]/Table2[[#This Row],[IP]]) -> 8.419354839 | BG18: =IFERROR(VLOOKUP($AI18,PITCH!$B$3:$AA$737,25,FALSE),"N/A") -> 6.388888889 | BO18: =IF(BP18="","",MAX(BO$1:BO17)+1) ->  | BP18: =IF('User Input'!C17=0,"",'User Input'!C17) -> 
A19: 17 | B19: =IFERROR(VLOOKUP(F19,Import!$B$4:$T$672,19,FALSE),"") -> 17 | C19: =IFERROR(VLOOKUP(F19,Import!$AN$3:$AR$672,4,FALSE),"") -> 14 | D19: =IFERROR(VLOOKUP(F19,Import!$AD$3:$AL$672,4,FALSE),"") ->  | E19: =IFERROR(VLOOKUP(F19,Import!$AW$3:$AX$672,2,FALSE),"") -> 19 | F19: =IFERROR(VLOOKUP(A19,Import!$V$3:$X$672,3,FALSE),"") -> Charlie Blackmon | I19: =IFERROR(VLOOKUP($F19,Import!$B$3:$AL$671,2,FALSE),"") -> COL | J19: =IFERROR(VLOOKUP($F19,Import!$B$3:$AL$671,3,FALSE),"") -> OF | K19: =IFERROR(VLOOKUP($F19,Import!$B$3:$AL$671,4,FALSE),"") -> OF | L19: =IFERROR(VLOOKUP($F19,Import!$B$3:$AL$671,5,FALSE),"") -> 39 | M19: =IFERROR(VLOOKUP($F19,Import!$B$4:$L$671,2,FALSE),"") -> COL | N19: =IFERROR(VLOOKUP($F19,Import!$B$3:$AL$671,6,FALSE),"") -> 594 | O19: =IFERROR(VLOOKUP($F19,Import!$B$3:$AL$671,7,FALSE),"") -> 104 | P19: =IFERROR(VLOOKUP($F19,Import!$B$3:$AL$671,8,FALSE),"") -> 21 | Q19: =IFERROR(VLOOKUP($F19,Import!$B$3:$AL$671,9,FALSE),"") -> 67 | R19: =IFERROR(VLOOKUP($F19,Import!$B$3:$AL$671,10,FALSE),"") -> 24 | S19: =IFERROR(VLOOKUP($F19,Import!$B$3:$AL$671,11,FALSE),"") -> 0.303 | T19: 179.982 | U19: =IF(G19='User Input'!$C$1,1,0) -> 0 | V19: 0 | W19: 0 | X19: Charlie Blackmon | Y19: 0 | Z19: COL | AA19: =IFERROR(VLOOKUP($F19,Import!$B$3:$AL$671,35,FALSE),"") ->  | AC19: 17 | AD19: =IFERROR(VLOOKUP(AI19,Import!$B$3:$T$672,19,FALSE),"") -> 66 | AE19: =IFERROR(VLOOKUP(AI19,Import!$AT$3:$AU$672,2,FALSE),"") -> 24 | AF19: =IFERROR(VLOOKUP(AI19,Import!$AN$3:$AR$672,5,FALSE),"") -> 11 | AG19: =IFERROR(VLOOKUP(AI19,Import!$AD$3:$AH$672,5,FALSE),"") ->  | AH19: =IFERROR(VLOOKUP(AI19,Import!$AZ$3:$BA$672,2,FALSE),"") -> 11 | AI19: =IFERROR(VLOOKUP(AC19,Import!$W$3:$X$672,2,FALSE),"") -> Chris Archer | AL19: =IFERROR(VLOOKUP($AI19,Import!$B$3:$L$671,2,FALSE),"") -> TB | AM19: =IFERROR(VLOOKUP($AI19,Import!$B$3:$L$671,3,FALSE),"") -> SP | AN19: =IFERROR(VLOOKUP($AI19,Import!$B$3:$L$671,4,FALSE),"") -> SP | AO19: =IFERROR(VLOOKUP($AI19,Import!$B$3:$L$671,5,FALSE),"") -> 18 | AP19: =IFERROR(VLOOKUP($AI19,Import!$B$4:$L$671,2,FALSE),"") -> TB | AQ19: =IFERROR(VLOOKUP($AI19,Import!$B$3:$X$672,12,FALSE),"") -> 200 | AR19: =IFERROR(VLOOKUP($AI19,Import!$B$3:$X$672,15,FALSE),"") -> 3.33 | AS19: =IFERROR(VLOOKUP($AI19,Import!$B$3:$X$672,16,FALSE),"") -> 1.17 | AT19: =IFERROR(VLOOKUP($AI19,Import!$B$3:$X$672,13,FALSE),"") -> 13 | AU19: =IFERROR(VLOOKUP($AI19,Import!$B$3:$X$672,14,FALSE),"") -> 0 | AV19: =IFERROR(VLOOKUP($AI19,Import!$B$3:$X$672,17,FALSE),"") -> 225 | AW19: 666 | AX19: 234 | AY19: =IF(AJ19='User Input'!$C$1,1,0) -> 0 | AZ19: 0 | BA19: 0 | BB19: Chris Archer | BC19: 0 | BD19: TB | BE19: =IFERROR(VLOOKUP($AI19,Import!$B$3:$AL$671,35,FALSE),"") ->  | BF19: =9*(Table2[[#This Row],[K]]/Table2[[#This Row],[IP]]) -> 10.125 | BG19: =IFERROR(VLOOKUP($AI19,PITCH!$B$3:$AA$737,25,FALSE),"N/A") -> 6.670409882 | BO19: =IF(BP19="","",MAX(BO$1:BO18)+1) ->  | BP19: =IF('User Input'!C18=0,"",'User Input'!C18) -> 
A20: 18 | B20: =IFERROR(VLOOKUP(F20,Import!$B$4:$T$672,19,FALSE),"") -> 18 | C20: =IFERROR(VLOOKUP(F20,Import!$AN$3:$AR$672,4,FALSE),"") -> 15 | D20: =IFERROR(VLOOKUP(F20,Import!$AD$3:$AL$672,4,FALSE),"") ->  | E20: =IFERROR(VLOOKUP(F20,Import!$AW$3:$AX$672,2,FALSE),"") -> 69 | F20: =IFERROR(VLOOKUP(A20,Import!$V$3:$X$672,3,FALSE),"") -> Starling Marte | I20: =IFERROR(VLOOKUP($F20,Import!$B$3:$AL$671,2,FALSE),"") -> PIT | J20: =IFERROR(VLOOKUP($F20,Import!$B$3:$AL$671,3,FALSE),"") -> OF | K20: =IFERROR(VLOOKUP($F20,Import!$B$3:$AL$671,4,FALSE),"") -> OF | L20: =IFERROR(VLOOKUP($F20,Import!$B$3:$AL$671,5,FALSE),"") -> 38 | M20: =IFERROR(VLOOKUP($F20,Import!$B$4:$L$671,2,FALSE),"") -> PIT | N20: =IFERROR(VLOOKUP($F20,Import!$B$3:$AL$671,6,FALSE),"") -> 549 | O20: =IFERROR(VLOOKUP($F20,Import!$B$3:$AL$671,7,FALSE),"") -> 81 | P20: =IFERROR(VLOOKUP($F20,Import!$B$3:$AL$671,8,FALSE),"") -> 17 | Q20: =IFERROR(VLOOKUP($F20,Import!$B$3:$AL$671,9,FALSE),"") -> 88 | R20: =IFERROR(VLOOKUP($F20,Import!$B$3:$AL$671,10,FALSE),"") -> 37 | S20: =IFERROR(VLOOKUP($F20,Import!$B$3:$AL$671,11,FALSE),"") -> 0.295 | T20: 161.955 | U20: =IF(G20='User Input'!$C$1,1,0) -> 0 | V20: 0 | W20: 0 | X20: Starling Marte | Y20: 0 | Z20: PIT | AA20: =IFERROR(VLOOKUP($F20,Import!$B$3:$AL$671,35,FALSE),"") ->  | AC20: 18 | AD20: =IFERROR(VLOOKUP(AI20,Import!$B$3:$T$672,19,FALSE),"") -> 67 | AE20: =IFERROR(VLOOKUP(AI20,Import!$AT$3:$AU$672,2,FALSE),"") -> 23 | AF20: =IFERROR(VLOOKUP(AI20,Import!$AN$3:$AR$672,5,FALSE),"") ->  | AG20: =IFERROR(VLOOKUP(AI20,Import!$AD$3:$AH$672,5,FALSE),"") ->  | AH20: =IFERROR(VLOOKUP(AI20,Import!$AZ$3:$BA$672,2,FALSE),"") -> 19 | AI20: =IFERROR(VLOOKUP(AC20,Import!$W$3:$X$672,2,FALSE),"") -> Carlos Martinez | AL20: =IFERROR(VLOOKUP($AI20,Import!$B$3:$L$671,2,FALSE),"") -> STL | AM20: =IFERROR(VLOOKUP($AI20,Import!$B$3:$L$671,3,FALSE),"") -> SP | AN20: =IFERROR(VLOOKUP($AI20,Import!$B$3:$L$671,4,FALSE),"") -> SP | AO20: =IFERROR(VLOOKUP($AI20,Import!$B$3:$L$671,5,FALSE),"") -> 18 | AP20: =IFERROR(VLOOKUP($AI20,Import!$B$4:$L$671,2,FALSE),"") -> STL | AQ20: =IFERROR(VLOOKUP($AI20,Import!$B$3:$X$672,12,FALSE),"") -> 205 | AR20: =IFERROR(VLOOKUP($AI20,Import!$B$3:$X$672,15,FALSE),"") -> 3.17 | AS20: =IFERROR(VLOOKUP($AI20,Import!$B$3:$X$672,16,FALSE),"") -> 1.19 | AT20: =IFERROR(VLOOKUP($AI20,Import!$B$3:$X$672,13,FALSE),"") -> 15 | AU20: =IFERROR(VLOOKUP($AI20,Import!$B$3:$X$672,14,FALSE),"") -> 0 | AV20: =IFERROR(VLOOKUP($AI20,Import!$B$3:$X$672,17,FALSE),"") -> 193 | AW20: 649.85 | AX20: 243.95 | AY20: =IF(AJ20='User Input'!$C$1,1,0) -> 0 | AZ20: 0 | BA20: 0 | BB20: Carlos Martinez | BC20: 0 | BD20: STL | BE20: =IFERROR(VLOOKUP($AI20,Import!$B$3:$AL$671,35,FALSE),"") ->  | BF20: =9*(Table2[[#This Row],[K]]/Table2[[#This Row],[IP]]) -> 8.473170732 | BG20: =IFERROR(VLOOKUP($AI20,PITCH!$B$3:$AA$737,25,FALSE),"N/A") -> 5.335051546 | BO20: =IF(BP20="","",MAX(BO$1:BO19)+1) ->  | BP20: =IF('User Input'!C19=0,"",'User Input'!C19) -> 
A21: 19 | B21: =IFERROR(VLOOKUP(F21,Import!$B$4:$T$672,19,FALSE),"") -> 19 | C21: =IFERROR(VLOOKUP(F21,Import!$AN$3:$AR$672,4,FALSE),"") -> 52 | D21: =IFERROR(VLOOKUP(F21,Import!$AD$3:$AL$672,4,FALSE),"") ->  | E21: =IFERROR(VLOOKUP(F21,Import!$AW$3:$AX$672,2,FALSE),"") -> 13 | F21: =IFERROR(VLOOKUP(A21,Import!$V$3:$X$672,3,FALSE),"") -> Edwin Encarnacion | I21: =IFERROR(VLOOKUP($F21,Import!$B$3:$AL$671,2,FALSE),"") -> CLE | J21: =IFERROR(VLOOKUP($F21,Import!$B$3:$AL$671,3,FALSE),"") -> 1B | K21: =IFERROR(VLOOKUP($F21,Import!$B$3:$AL$671,4,FALSE),"") -> 1B | L21: =IFERROR(VLOOKUP($F21,Import!$B$3:$AL$671,5,FALSE),"") -> 37 | M21: =IFERROR(VLOOKUP($F21,Import!$B$4:$L$671,2,FALSE),"") -> CLE | N21: =IFERROR(VLOOKUP($F21,Import!$B$3:$AL$671,6,FALSE),"") -> 535 | O21: =IFERROR(VLOOKUP($F21,Import!$B$3:$AL$671,7,FALSE),"") -> 88 | P21: =IFERROR(VLOOKUP($F21,Import!$B$3:$AL$671,8,FALSE),"") -> 36 | Q21: =IFERROR(VLOOKUP($F21,Import!$B$3:$AL$671,9,FALSE),"") -> 105 | R21: =IFERROR(VLOOKUP($F21,Import!$B$3:$AL$671,10,FALSE),"") -> 2 | S21: =IFERROR(VLOOKUP($F21,Import!$B$3:$AL$671,11,FALSE),"") -> 0.26 | T21: 139.1 | U21: =IF(G21='User Input'!$C$1,1,0) -> 0 | V21: 0 | W21: 0 | X21: Edwin Encarnacion | Y21: 0 | Z21: CLE | AA21: =IFERROR(VLOOKUP($F21,Import!$B$3:$AL$671,35,FALSE),"") ->  | AC21: 19 | AD21: =IFERROR(VLOOKUP(AI21,Import!$B$3:$T$672,19,FALSE),"") -> 68 | AE21: =IFERROR(VLOOKUP(AI21,Import!$AT$3:$AU$672,2,FALSE),"") -> 15 | AF21: =IFERROR(VLOOKUP(AI21,Import!$AN$3:$AR$672,5,FALSE),"") -> 13 | AG21: =IFERROR(VLOOKUP(AI21,Import!$AD$3:$AH$672,5,FALSE),"") ->  | AH21: =IFERROR(VLOOKUP(AI21,Import!$AZ$3:$BA$672,2,FALSE),"") -> 27 | AI21: =IFERROR(VLOOKUP(AC21,Import!$W$3:$X$672,2,FALSE),"") -> Jacob deGrom | AL21: =IFERROR(VLOOKUP($AI21,Import!$B$3:$L$671,2,FALSE),"") -> NYM | AM21: =IFERROR(VLOOKUP($AI21,Import!$B$3:$L$671,3,FALSE),"") -> SP | AN21: =IFERROR(VLOOKUP($AI21,Import!$B$3:$L$671,4,FALSE),"") -> SP | AO21: =IFERROR(VLOOKUP($AI21,Import!$B$3:$L$671,5,FALSE),"") -> 18 | AP21: =IFERROR(VLOOKUP($AI21,Import!$B$4:$L$671,2,FALSE),"") -> NYM | AQ21: =IFERROR(VLOOKUP($AI21,Import!$B$3:$X$672,12,FALSE),"") -> 194 | AR21: =IFERROR(VLOOKUP($AI21,Import!$B$3:$X$672,15,FALSE),"") -> 3.12 | AS21: =IFERROR(VLOOKUP($AI21,Import!$B$3:$X$672,16,FALSE),"") -> 1.15 | AT21: =IFERROR(VLOOKUP($AI21,Import!$B$3:$X$672,13,FALSE),"") -> 13 | AU21: =IFERROR(VLOOKUP($AI21,Import!$B$3:$X$672,14,FALSE),"") -> 0 | AV21: =IFERROR(VLOOKUP($AI21,Import!$B$3:$X$672,17,FALSE),"") -> 191 | AW21: 605.28 | AX21: 223.1 | AY21: =IF(AJ21='User Input'!$C$1,1,0) -> 0 | AZ21: 0 | BA21: 0 | BB21: Jacob deGrom | BC21: 0 | BD21: NYM | BE21: =IFERROR(VLOOKUP($AI21,Import!$B$3:$AL$671,35,FALSE),"") ->  | BF21: =9*(Table2[[#This Row],[K]]/Table2[[#This Row],[IP]]) -> 8.860824742 | BG21: =IFERROR(VLOOKUP($AI21,PITCH!$B$3:$AA$737,25,FALSE),"N/A") -> 6.513812155 | BO21: =IF(BP21="","",MAX(BO$1:BO20)+1) ->  | BP21: =IF('User Input'!C20=0,"",'User Input'!C20) -> 
A22: 20 | B22: =IFERROR(VLOOKUP(F22,Import!$B$4:$T$672,19,FALSE),"") -> 20 | C22: =IFERROR(VLOOKUP(F22,Import!$AN$3:$AR$672,4,FALSE),"") -> 13 | D22: =IFERROR(VLOOKUP(F22,Import!$AD$3:$AL$672,4,FALSE),"") ->  | E22: =IFERROR(VLOOKUP(F22,Import!$AW$3:$AX$672,2,FALSE),"") -> 55 | F22: =IFERROR(VLOOKUP(A22,Import!$V$3:$X$672,3,FALSE),"") -> Trevor Story | I22: =IFERROR(VLOOKUP($F22,Import!$B$3:$AL$671,2,FALSE),"") -> COL | J22: =IFERROR(VLOOKUP($F22,Import!$B$3:$AL$671,3,FALSE),"") -> SS | K22: =IFERROR(VLOOKUP($F22,Import!$B$3:$AL$671,4,FALSE),"") -> SS | L22: =IFERROR(VLOOKUP($F22,Import!$B$3:$AL$671,5,FALSE),"") -> 36 | M22: =IFERROR(VLOOKUP($F22,Import!$B$4:$L$671,2,FALSE),"") -> COL | N22: =IFERROR(VLOOKUP($F22,Import!$B$3:$AL$671,6,FALSE),"") -> 575 | O22: =IFERROR(VLOOKUP($F22,Import!$B$3:$AL$671,7,FALSE),"") -> 89 | P22: =IFERROR(VLOOKUP($F22,Import!$B$3:$AL$671,8,FALSE),"") -> 31 | Q22: =IFERROR(VLOOKUP($F22,Import!$B$3:$AL$671,9,FALSE),"") -> 98 | R22: =IFERROR(VLOOKUP($F22,Import!$B$3:$AL$671,10,FALSE),"") -> 12 | S22: =IFERROR(VLOOKUP($F22,Import!$B$3:$AL$671,11,FALSE),"") -> 0.258 | T22: 148.35 | U22: =IF(G22='User Input'!$C$1,1,0) -> 0 | V22: 0 | W22: 0 | X22: Trevor Story | Y22: 0 | Z22: COL | AA22: =IFERROR(VLOOKUP($F22,Import!$B$3:$AL$671,35,FALSE),"") ->  | AC22: 20 | AD22: =IFERROR(VLOOKUP(AI22,Import!$B$3:$T$672,19,FALSE),"") -> 69 | AE22: =IFERROR(VLOOKUP(AI22,Import!$AT$3:$AU$672,2,FALSE),"") -> 10 | AF22: =IFERROR(VLOOKUP(AI22,Import!$AN$3:$AR$672,5,FALSE),"") -> 6 | AG22: =IFERROR(VLOOKUP(AI22,Import!$AD$3:$AH$672,5,FALSE),"") ->  | AH22: =IFERROR(VLOOKUP(AI22,Import!$AZ$3:$BA$672,2,FALSE),"") -> 23 | AI22: =IFERROR(VLOOKUP(AC22,Import!$W$3:$X$672,2,FALSE),"") -> Stephen Strasburg | AL22: =IFERROR(VLOOKUP($AI22,Import!$B$3:$L$671,2,FALSE),"") -> WSH | AM22: =IFERROR(VLOOKUP($AI22,Import!$B$3:$L$671,3,FALSE),"") -> SP | AN22: =IFERROR(VLOOKUP($AI22,Import!$B$3:$L$671,4,FALSE),"") -> SP | AO22: =IFERROR(VLOOKUP($AI22,Import!$B$3:$L$671,5,FALSE),"") -> 18 | AP22: =IFERROR(VLOOKUP($AI22,Import!$B$4:$L$671,2,FALSE),"") -> WSH | AQ22: =IFERROR(VLOOKUP($AI22,Import!$B$3:$X$672,12,FALSE),"") -> 163 | AR22: =IFERROR(VLOOKUP($AI22,Import!$B$3:$X$672,15,FALSE),"") -> 3.55 | AS22: =IFERROR(VLOOKUP($AI22,Import!$B$3:$X$672,16,FALSE),"") -> 1.1 | AT22: =IFERROR(VLOOKUP($AI22,Import!$B$3:$X$672,13,FALSE),"") -> 12 | AU22: =IFERROR(VLOOKUP($AI22,Import!$B$3:$X$672,14,FALSE),"") -> 0 | AV22: =IFERROR(VLOOKUP($AI22,Import!$B$3:$X$672,17,FALSE),"") -> 190 | AW22: 578.65 | AX22: 179.3 | AY22: =IF(AJ22='User Input'!$C$1,1,0) -> 0 | AZ22: 0 | BA22: 0 | BB22: Stephen Strasburg | BC22: 0 | BD22: WSH | BE22: =IFERROR(VLOOKUP($AI22,Import!$B$3:$AL$671,35,FALSE),"") ->  | BF22: =9*(Table2[[#This Row],[K]]/Table2[[#This Row],[IP]]) -> 10.49079755 | BG22: =IFERROR(VLOOKUP($AI22,PITCH!$B$3:$AA$737,25,FALSE),"N/A") -> 8.124635993 | BO22: =IF(BP22="","",MAX(BO$1:BO21)+1) ->  | BP22: =IF('User Input'!C21=0,"",'User Input'!C21) -> 
A23: 21 | B23: =IFERROR(VLOOKUP(F23,Import!$B$4:$T$672,19,FALSE),"") -> 23 | C23: =IFERROR(VLOOKUP(F23,Import!$AN$3:$AR$672,4,FALSE),"") -> 29 | D23: =IFERROR(VLOOKUP(F23,Import!$AD$3:$AL$672,4,FALSE),"") ->  | E23: =IFERROR(VLOOKUP(F23,Import!$AW$3:$AX$672,2,FALSE),"") -> 52 | F23: =IFERROR(VLOOKUP(A23,Import!$V$3:$X$672,3,FALSE),"") -> Giancarlo Stanton | I23: =IFERROR(VLOOKUP($F23,Import!$B$3:$AL$671,2,FALSE),"") -> MIA | J23: =IFERROR(VLOOKUP($F23,Import!$B$3:$AL$671,3,FALSE),"") -> OF | K23: =IFERROR(VLOOKUP($F23,Import!$B$3:$AL$671,4,FALSE),"") -> OF | L23: =IFERROR(VLOOKUP($F23,Import!$B$3:$AL$671,5,FALSE),"") -> 34 | M23: =IFERROR(VLOOKUP($F23,Import!$B$4:$L$671,2,FALSE),"") -> MIA | N23: =IFERROR(VLOOKUP($F23,Import!$B$3:$AL$671,6,FALSE),"") -> 529 | O23: =IFERROR(VLOOKUP($F23,Import!$B$3:$AL$671,7,FALSE),"") -> 84 | P23: =IFERROR(VLOOKUP($F23,Import!$B$3:$AL$671,8,FALSE),"") -> 38 | Q23: =IFERROR(VLOOKUP($F23,Import!$B$3:$AL$671,9,FALSE),"") -> 103 | R23: =IFERROR(VLOOKUP($F23,Import!$B$3:$AL$671,10,FALSE),"") -> 1 | S23: =IFERROR(VLOOKUP($F23,Import!$B$3:$AL$671,11,FALSE),"") -> 0.253 | T23: 133.837 | U23: =IF(G23='User Input'!$C$1,1,0) -> 0 | V23: 0 | W23: 0 | X23: Giancarlo Stanton | Y23: 0 | Z23: MIA | AA23: =IFERROR(VLOOKUP($F23,Import!$B$3:$AL$671,35,FALSE),"") ->  | AC23: 21 | AD23: =IFERROR(VLOOKUP(AI23,Import!$B$3:$T$672,19,FALSE),"") -> 70 | AE23: =IFERROR(VLOOKUP(AI23,Import!$AT$3:$AU$672,2,FALSE),"") -> 20 | AF23: =IFERROR(VLOOKUP(AI23,Import!$AN$3:$AR$672,5,FALSE),"") ->  | AG23: =IFERROR(VLOOKUP(AI23,Import!$AD$3:$AH$672,5,FALSE),"") ->  | AH23: =IFERROR(VLOOKUP(AI23,Import!$AZ$3:$BA$672,2,FALSE),"") -> 29 | AI23: =IFERROR(VLOOKUP(AC23,Import!$W$3:$X$672,2,FALSE),"") -> Danny Duffy | AL23: =IFERROR(VLOOKUP($AI23,Import!$B$3:$L$671,2,FALSE),"") -> KC | AM23: =IFERROR(VLOOKUP($AI23,Import!$B$3:$L$671,3,FALSE),"") -> SP | AN23: =IFERROR(VLOOKUP($AI23,Import!$B$3:$L$671,4,FALSE),"") -> SP | AO23: =IFERROR(VLOOKUP($AI23,Import!$B$3:$L$671,5,FALSE),"") -> 18 | AP23: =IFERROR(VLOOKUP($AI23,Import!$B$4:$L$671,2,FALSE),"") -> KC | AQ23: =IFERROR(VLOOKUP($AI23,Import!$B$3:$X$672,12,FALSE),"") -> 195 | AR23: =IFERROR(VLOOKUP($AI23,Import!$B$3:$X$672,15,FALSE),"") -> 3.45 | AS23: =IFERROR(VLOOKUP($AI23,Import!$B$3:$X$672,16,FALSE),"") -> 1.15 | AT23: =IFERROR(VLOOKUP($AI23,Import!$B$3:$X$672,13,FALSE),"") -> 13 | AU23: =IFERROR(VLOOKUP($AI23,Import!$B$3:$X$672,14,FALSE),"") -> 0 | AV23: =IFERROR(VLOOKUP($AI23,Import!$B$3:$X$672,17,FALSE),"") -> 201 | AW23: 672.75 | AX23: 224.25 | AY23: =IF(AJ23='User Input'!$C$1,1,0) -> 0 | AZ23: 0 | BA23: 0 | BB23: Danny Duffy | BC23: 0 | BD23: KC | BE23: =IFERROR(VLOOKUP($AI23,Import!$B$3:$AL$671,35,FALSE),"") ->  | BF23: =9*(Table2[[#This Row],[K]]/Table2[[#This Row],[IP]]) -> 9.276923077 | BG23: =IFERROR(VLOOKUP($AI23,PITCH!$B$3:$AA$737,25,FALSE),"N/A") -> 5.701570681 | BO23: =IF(BP23="","",MAX(BO$1:BO22)+1) ->  | BP23: =IF('User Input'!C22=0,"",'User Input'!C22) -> 
A24: 22 | B24: =IFERROR(VLOOKUP(F24,Import!$B$4:$T$672,19,FALSE),"") -> 24 | C24: =IFERROR(VLOOKUP(F24,Import!$AN$3:$AR$672,4,FALSE),"") -> 16 | D24: =IFERROR(VLOOKUP(F24,Import!$AD$3:$AL$672,4,FALSE),"") ->  | E24: =IFERROR(VLOOKUP(F24,Import!$AW$3:$AX$672,2,FALSE),"") -> 30 | F24: =IFERROR(VLOOKUP(A24,Import!$V$3:$X$672,3,FALSE),"") -> Francisco Lindor | I24: =IFERROR(VLOOKUP($F24,Import!$B$3:$AL$671,2,FALSE),"") -> CLE | J24: =IFERROR(VLOOKUP($F24,Import!$B$3:$AL$671,3,FALSE),"") -> SS | K24: =IFERROR(VLOOKUP($F24,Import!$B$3:$AL$671,4,FALSE),"") -> SS | L24: =IFERROR(VLOOKUP($F24,Import!$B$3:$AL$671,5,FALSE),"") -> 33 | M24: =IFERROR(VLOOKUP($F24,Import!$B$4:$L$671,2,FALSE),"") -> CLE | N24: =IFERROR(VLOOKUP($F24,Import!$B$3:$AL$671,6,FALSE),"") -> 607 | O24: =IFERROR(VLOOKUP($F24,Import!$B$3:$AL$671,7,FALSE),"") -> 103 | P24: =IFERROR(VLOOKUP($F24,Import!$B$3:$AL$671,8,FALSE),"") -> 17 | Q24: =IFERROR(VLOOKUP($F24,Import!$B$3:$AL$671,9,FALSE),"") -> 82 | R24: =IFERROR(VLOOKUP($F24,Import!$B$3:$AL$671,10,FALSE),"") -> 19 | S24: =IFERROR(VLOOKUP($F24,Import!$B$3:$AL$671,11,FALSE),"") -> 0.308 | T24: 186.956 | U24: =IF(G24='User Input'!$C$1,1,0) -> 0 | V24: 0 | W24: 0 | X24: Francisco Lindor | Y24: 0 | Z24: CLE | AA24: =IFERROR(VLOOKUP($F24,Import!$B$3:$AL$671,35,FALSE),"") ->  | AC24: 22 | AD24: =IFERROR(VLOOKUP(AI24,Import!$B$3:$T$672,19,FALSE),"") -> 71 | AE24: =IFERROR(VLOOKUP(AI24,Import!$AT$3:$AU$672,2,FALSE),"") -> 16 | AF24: =IFERROR(VLOOKUP(AI24,Import!$AN$3:$AR$672,5,FALSE),"") ->  | AG24: =IFERROR(VLOOKUP(AI24,Import!$AD$3:$AH$672,5,FALSE),"") ->  | AH24: =IFERROR(VLOOKUP(AI24,Import!$AZ$3:$BA$672,2,FALSE),"") -> 35 | AI24: =IFERROR(VLOOKUP(AC24,Import!$W$3:$X$672,2,FALSE),"") -> Kenta Maeda | AL24: =IFERROR(VLOOKUP($AI24,Import!$B$3:$L$671,2,FALSE),"") -> LAD | AM24: =IFERROR(VLOOKUP($AI24,Import!$B$3:$L$671,3,FALSE),"") -> SP | AN24: =IFERROR(VLOOKUP($AI24,Import!$B$3:$L$671,4,FALSE),"") -> SP | AO24: =IFERROR(VLOOKUP($AI24,Import!$B$3:$L$671,5,FALSE),"") -> 18 | AP24: =IFERROR(VLOOKUP($AI24,Import!$B$4:$L$671,2,FALSE),"") -> LAD | AQ24: =IFERROR(VLOOKUP($AI24,Import!$B$3:$X$672,12,FALSE),"") -> 195 | AR24: =IFERROR(VLOOKUP($AI24,Import!$B$3:$X$672,15,FALSE),"") -> 3.39 | AS24: =IFERROR(VLOOKUP($AI24,Import!$B$3:$X$672,16,FALSE),"") -> 1.13 | AT24: =IFERROR(VLOOKUP($AI24,Import!$B$3:$X$672,13,FALSE),"") -> 15 | AU24: =IFERROR(VLOOKUP($AI24,Import!$B$3:$X$672,14,FALSE),"") -> 0 | AV24: =IFERROR(VLOOKUP($AI24,Import!$B$3:$X$672,17,FALSE),"") -> 198 | AW24: 661.05 | AX24: 220.35 | AY24: =IF(AJ24='User Input'!$C$1,1,0) -> 0 | AZ24: 0 | BA24: 0 | BB24: Kenta Maeda | BC24: 0 | BD24: LAD | BE24: =IFERROR(VLOOKUP($AI24,Import!$B$3:$AL$671,35,FALSE),"") ->  | BF24: =9*(Table2[[#This Row],[K]]/Table2[[#This Row],[IP]]) -> 9.138461538 | BG24: =IFERROR(VLOOKUP($AI24,PITCH!$B$3:$AA$737,25,FALSE),"N/A") -> 6.126900198 | BO24: =IF(BP24="","",MAX(BO$1:BO23)+1) ->  | BP24: =IF('User Input'!C23=0,"",'User Input'!C23) -> 
A25: 23 | B25: =IFERROR(VLOOKUP(F25,Import!$B$4:$T$672,19,FALSE),"") -> 25 | C25: =IFERROR(VLOOKUP(F25,Import!$AN$3:$AR$672,4,FALSE),"") -> 25 | D25: =IFERROR(VLOOKUP(F25,Import!$AD$3:$AL$672,4,FALSE),"") ->  | E25: =IFERROR(VLOOKUP(F25,Import!$AW$3:$AX$672,2,FALSE),"") -> 9 | F25: =IFERROR(VLOOKUP(A25,Import!$V$3:$X$672,3,FALSE),"") -> Joey Votto | I25: =IFERROR(VLOOKUP($F25,Import!$B$3:$AL$671,2,FALSE),"") -> CIN | J25: =IFERROR(VLOOKUP($F25,Import!$B$3:$AL$671,3,FALSE),"") -> 1B | K25: =IFERROR(VLOOKUP($F25,Import!$B$3:$AL$671,4,FALSE),"") -> 1B | L25: =IFERROR(VLOOKUP($F25,Import!$B$3:$AL$671,5,FALSE),"") -> 33 | M25: =IFERROR(VLOOKUP($F25,Import!$B$4:$L$671,2,FALSE),"") -> CIN | N25: =IFERROR(VLOOKUP($F25,Import!$B$3:$AL$671,6,FALSE),"") -> 530 | O25: =IFERROR(VLOOKUP($F25,Import!$B$3:$AL$671,7,FALSE),"") -> 84 | P25: =IFERROR(VLOOKUP($F25,Import!$B$3:$AL$671,8,FALSE),"") -> 25 | Q25: =IFERROR(VLOOKUP($F25,Import!$B$3:$AL$671,9,FALSE),"") -> 91 | R25: =IFERROR(VLOOKUP($F25,Import!$B$3:$AL$671,10,FALSE),"") -> 7 | S25: =IFERROR(VLOOKUP($F25,Import!$B$3:$AL$671,11,FALSE),"") -> 0.308 | T25: 163.24 | U25: =IF(G25='User Input'!$C$1,1,0) -> 0 | V25: 0 | W25: 0 | X25: Joey Votto | Y25: 0 | Z25: CIN | AA25: =IFERROR(VLOOKUP($F25,Import!$B$3:$AL$671,35,FALSE),"") ->  | AC25: 23 | AD25: =IFERROR(VLOOKUP(AI25,Import!$B$3:$T$672,19,FALSE),"") -> 78 | AE25: =IFERROR(VLOOKUP(AI25,Import!$AT$3:$AU$672,2,FALSE),"") -> 22 | AF25: =IFERROR(VLOOKUP(AI25,Import!$AN$3:$AR$672,5,FALSE),"") ->  | AG25: =IFERROR(VLOOKUP(AI25,Import!$AD$3:$AH$672,5,FALSE),"") ->  | AH25: =IFERROR(VLOOKUP(AI25,Import!$AZ$3:$BA$672,2,FALSE),"") -> 43 | AI25: =IFERROR(VLOOKUP(AC25,Import!$W$3:$X$672,2,FALSE),"") -> Danny Salazar | AL25: =IFERROR(VLOOKUP($AI25,Import!$B$3:$L$671,2,FALSE),"") -> CLE | AM25: =IFERROR(VLOOKUP($AI25,Import!$B$3:$L$671,3,FALSE),"") -> SP | AN25: =IFERROR(VLOOKUP($AI25,Import!$B$3:$L$671,4,FALSE),"") -> SP | AO25: =IFERROR(VLOOKUP($AI25,Import!$B$3:$L$671,5,FALSE),"") -> 16 | AP25: =IFERROR(VLOOKUP($AI25,Import!$B$4:$L$671,2,FALSE),"") -> CLE | AQ25: =IFERROR(VLOOKUP($AI25,Import!$B$3:$X$672,12,FALSE),"") -> 180 | AR25: =IFERROR(VLOOKUP($AI25,Import!$B$3:$X$672,15,FALSE),"") -> 3.44 | AS25: =IFERROR(VLOOKUP($AI25,Import!$B$3:$X$672,16,FALSE),"") -> 1.15 | AT25: =IFERROR(VLOOKUP($AI25,Import!$B$3:$X$672,13,FALSE),"") -> 14 | AU25: =IFERROR(VLOOKUP($AI25,Import!$B$3:$X$672,14,FALSE),"") -> 0 | AV25: =IFERROR(VLOOKUP($AI25,Import!$B$3:$X$672,17,FALSE),"") -> 201 | AW25: 619.2 | AX25: 207 | AY25: =IF(AJ25='User Input'!$C$1,1,0) -> 0 | AZ25: 0 | BA25: 0 | BB25: Danny Salazar | BC25: 0 | BD25: CLE | BE25: =IFERROR(VLOOKUP($AI25,Import!$B$3:$AL$671,35,FALSE),"") ->  | BF25: =9*(Table2[[#This Row],[K]]/Table2[[#This Row],[IP]]) -> 10.05 | BG25: =IFERROR(VLOOKUP($AI25,PITCH!$B$3:$AA$737,25,FALSE),"N/A") -> 6.500622665 | BO25: =IF(BP25="","",MAX(BO$1:BO24)+1) ->  | BP25: =IF('User Input'!C24=0,"",'User Input'!C24) -> 
A26: 24 | B26: =IFERROR(VLOOKUP(F26,Import!$B$4:$T$672,19,FALSE),"") -> 26 | C26: =IFERROR(VLOOKUP(F26,Import!$AN$3:$AR$672,4,FALSE),"") -> 35 | D26: =IFERROR(VLOOKUP(F26,Import!$AD$3:$AL$672,4,FALSE),"") ->  | E26: =IFERROR(VLOOKUP(F26,Import!$AW$3:$AX$672,2,FALSE),"") -> 44 | F26: =IFERROR(VLOOKUP(A26,Import!$V$3:$X$672,3,FALSE),"") -> J.D. Martinez | I26: =IFERROR(VLOOKUP($F26,Import!$B$3:$AL$671,2,FALSE),"") -> DET | J26: =IFERROR(VLOOKUP($F26,Import!$B$3:$AL$671,3,FALSE),"") -> OF | K26: =IFERROR(VLOOKUP($F26,Import!$B$3:$AL$671,4,FALSE),"") -> OF | L26: =IFERROR(VLOOKUP($F26,Import!$B$3:$AL$671,5,FALSE),"") -> 32 | M26: =IFERROR(VLOOKUP($F26,Import!$B$4:$L$671,2,FALSE),"") -> DET | N26: =IFERROR(VLOOKUP($F26,Import!$B$3:$AL$671,6,FALSE),"") -> 551 | O26: =IFERROR(VLOOKUP($F26,Import!$B$3:$AL$671,7,FALSE),"") -> 94 | P26: =IFERROR(VLOOKUP($F26,Import!$B$3:$AL$671,8,FALSE),"") -> 33 | Q26: =IFERROR(VLOOKUP($F26,Import!$B$3:$AL$671,9,FALSE),"") -> 87 | R26: =IFERROR(VLOOKUP($F26,Import!$B$3:$AL$671,10,FALSE),"") -> 2 | S26: =IFERROR(VLOOKUP($F26,Import!$B$3:$AL$671,11,FALSE),"") -> 0.278 | T26: 153.178 | U26: =IF(G26='User Input'!$C$1,1,0) -> 0 | V26: 0 | W26: 0 | X26: J.D. Martinez | Y26: 0 | Z26: DET | AA26: =IFERROR(VLOOKUP($F26,Import!$B$3:$AL$671,35,FALSE),"") ->  | AC26: 24 | AD26: =IFERROR(VLOOKUP(AI26,Import!$B$3:$T$672,19,FALSE),"") -> 80 | AE26: =IFERROR(VLOOKUP(AI26,Import!$AT$3:$AU$672,2,FALSE),"") -> 17 | AF26: =IFERROR(VLOOKUP(AI26,Import!$AN$3:$AR$672,5,FALSE),"") -> 15 | AG26: =IFERROR(VLOOKUP(AI26,Import!$AD$3:$AH$672,5,FALSE),"") ->  | AH26: =IFERROR(VLOOKUP(AI26,Import!$AZ$3:$BA$672,2,FALSE),"") -> 39 | AI26: =IFERROR(VLOOKUP(AC26,Import!$W$3:$X$672,2,FALSE),"") -> Gerrit Cole | AL26: =IFERROR(VLOOKUP($AI26,Import!$B$3:$L$671,2,FALSE),"") -> PIT | AM26: =IFERROR(VLOOKUP($AI26,Import!$B$3:$L$671,3,FALSE),"") -> SP | AN26: =IFERROR(VLOOKUP($AI26,Import!$B$3:$L$671,4,FALSE),"") -> SP | AO26: =IFERROR(VLOOKUP($AI26,Import!$B$3:$L$671,5,FALSE),"") -> 16 | AP26: =IFERROR(VLOOKUP($AI26,Import!$B$4:$L$671,2,FALSE),"") -> PIT | AQ26: =IFERROR(VLOOKUP($AI26,Import!$B$3:$X$672,12,FALSE),"") -> 193 | AR26: =IFERROR(VLOOKUP($AI26,Import!$B$3:$X$672,15,FALSE),"") -> 3.45 | AS26: =IFERROR(VLOOKUP($AI26,Import!$B$3:$X$672,16,FALSE),"") -> 1.14 | AT26: =IFERROR(VLOOKUP($AI26,Import!$B$3:$X$672,13,FALSE),"") -> 15 | AU26: =IFERROR(VLOOKUP($AI26,Import!$B$3:$X$672,14,FALSE),"") -> 0 | AV26: =IFERROR(VLOOKUP($AI26,Import!$B$3:$X$672,17,FALSE),"") -> 188 | AW26: 665.85 | AX26: 220.02 | AY26: =IF(AJ26='User Input'!$C$1,1,0) -> 0 | AZ26: 0 | BA26: 0 | BB26: Gerrit Cole | BC26: 0 | BD26: PIT | BE26: =IFERROR(VLOOKUP($AI26,Import!$B$3:$AL$671,35,FALSE),"") ->  | BF26: =9*(Table2[[#This Row],[K]]/Table2[[#This Row],[IP]]) -> 8.766839378 | BG26: =IFERROR(VLOOKUP($AI26,PITCH!$B$3:$AA$737,25,FALSE),"N/A") -> 5.844155844 | BO26: =IF(BP26="","",MAX(BO$1:BO25)+1) ->  | BP26: =IF('User Input'!C25=0,"",'User Input'!C25) -> 
A27: 25 | B27: =IFERROR(VLOOKUP(F27,Import!$B$4:$T$672,19,FALSE),"") -> 27 | C27: =IFERROR(VLOOKUP(F27,Import!$AN$3:$AR$672,4,FALSE),"") -> 23 | D27: =IFERROR(VLOOKUP(F27,Import!$AD$3:$AL$672,4,FALSE),"") ->  | E27: =IFERROR(VLOOKUP(F27,Import!$AW$3:$AX$672,2,FALSE),"") -> 39 | F27: =IFERROR(VLOOKUP(A27,Import!$V$3:$X$672,3,FALSE),"") -> Xander Bogaerts | I27: =IFERROR(VLOOKUP($F27,Import!$B$3:$AL$671,2,FALSE),"") -> BOS | J27: =IFERROR(VLOOKUP($F27,Import!$B$3:$AL$671,3,FALSE),"") -> SS | K27: =IFERROR(VLOOKUP($F27,Import!$B$3:$AL$671,4,FALSE),"") -> SS | L27: =IFERROR(VLOOKUP($F27,Import!$B$3:$AL$671,5,FALSE),"") -> 32 | M27: =IFERROR(VLOOKUP($F27,Import!$B$4:$L$671,2,FALSE),"") -> BOS | N27: =IFERROR(VLOOKUP($F27,Import!$B$3:$AL$671,6,FALSE),"") -> 614 | O27: =IFERROR(VLOOKUP($F27,Import!$B$3:$AL$671,7,FALSE),"") -> 107 | P27: =IFERROR(VLOOKUP($F27,Import!$B$3:$AL$671,8,FALSE),"") -> 22 | Q27: =IFERROR(VLOOKUP($F27,Import!$B$3:$AL$671,9,FALSE),"") -> 94 | R27: =IFERROR(VLOOKUP($F27,Import!$B$3:$AL$671,10,FALSE),"") -> 11 | S27: =IFERROR(VLOOKUP($F27,Import!$B$3:$AL$671,11,FALSE),"") -> 0.304 | T27: 186.656 | U27: =IF(G27='User Input'!$C$1,1,0) -> 0 | V27: 0 | W27: 0 | X27: Xander Bogaerts | Y27: 0 | Z27: BOS | AA27: =IFERROR(VLOOKUP($F27,Import!$B$3:$AL$671,35,FALSE),"") ->  | AC27: 25 | AD27: =IFERROR(VLOOKUP(AI27,Import!$B$3:$T$672,19,FALSE),"") -> 81 | AE27: =IFERROR(VLOOKUP(AI27,Import!$AT$3:$AU$672,2,FALSE),"") -> 36 | AF27: =IFERROR(VLOOKUP(AI27,Import!$AN$3:$AR$672,5,FALSE),"") ->  | AG27: =IFERROR(VLOOKUP(AI27,Import!$AD$3:$AH$672,5,FALSE),"") ->  | AH27: =IFERROR(VLOOKUP(AI27,Import!$AZ$3:$BA$672,2,FALSE),"") -> 16 | AI27: =IFERROR(VLOOKUP(AC27,Import!$W$3:$X$672,2,FALSE),"") -> Jose Quintana | AL27: =IFERROR(VLOOKUP($AI27,Import!$B$3:$L$671,2,FALSE),"") -> CHW | AM27: =IFERROR(VLOOKUP($AI27,Import!$B$3:$L$671,3,FALSE),"") -> SP | AN27: =IFERROR(VLOOKUP($AI27,Import!$B$3:$L$671,4,FALSE),"") -> SP | AO27: =IFERROR(VLOOKUP($AI27,Import!$B$3:$L$671,5,FALSE),"") -> 16 | AP27: =IFERROR(VLOOKUP($AI27,Import!$B$4:$L$671,2,FALSE),"") -> CHW | AQ27: =IFERROR(VLOOKUP($AI27,Import!$B$3:$X$672,12,FALSE),"") -> 204 | AR27: =IFERROR(VLOOKUP($AI27,Import!$B$3:$X$672,15,FALSE),"") -> 3.35 | AS27: =IFERROR(VLOOKUP($AI27,Import!$B$3:$X$672,16,FALSE),"") -> 1.2 | AT27: =IFERROR(VLOOKUP($AI27,Import!$B$3:$X$672,13,FALSE),"") -> 14 | AU27: =IFERROR(VLOOKUP($AI27,Import!$B$3:$X$672,14,FALSE),"") -> 0 | AV27: =IFERROR(VLOOKUP($AI27,Import!$B$3:$X$672,17,FALSE),"") -> 181 | AW27: 683.4 | AX27: 244.8 | AY27: =IF(AJ27='User Input'!$C$1,1,0) -> 0 | AZ27: 0 | BA27: 0 | BB27: Jose Quintana | BC27: 0 | BD27: CHW | BE27: =IFERROR(VLOOKUP($AI27,Import!$B$3:$AL$671,35,FALSE),"") ->  | BF27: =9*(Table2[[#This Row],[K]]/Table2[[#This Row],[IP]]) -> 7.985294118 | BG27: =IFERROR(VLOOKUP($AI27,PITCH!$B$3:$AA$737,25,FALSE),"N/A") -> 5.574425574 | BP27: =IF('User Input'!C26=0,"",'User Input'!C26) -> 
A28: 26 | B28: =IFERROR(VLOOKUP(F28,Import!$B$4:$T$672,19,FALSE),"") -> 28 | C28: =IFERROR(VLOOKUP(F28,Import!$AN$3:$AR$672,4,FALSE),"") -> 47 | D28: =IFERROR(VLOOKUP(F28,Import!$AD$3:$AL$672,4,FALSE),"") ->  | E28: =IFERROR(VLOOKUP(F28,Import!$AW$3:$AX$672,2,FALSE),"") -> 22 | F28: =IFERROR(VLOOKUP(A28,Import!$V$3:$X$672,3,FALSE),"") -> Robinson Cano | I28: =IFERROR(VLOOKUP($F28,Import!$B$3:$AL$671,2,FALSE),"") -> SEA | J28: =IFERROR(VLOOKUP($F28,Import!$B$3:$AL$671,3,FALSE),"") -> 2B | K28: =IFERROR(VLOOKUP($F28,Import!$B$3:$AL$671,4,FALSE),"") -> 2B | L28: =IFERROR(VLOOKUP($F28,Import!$B$3:$AL$671,5,FALSE),"") -> 32 | M28: =IFERROR(VLOOKUP($F28,Import!$B$4:$L$671,2,FALSE),"") -> SEA | N28: =IFERROR(VLOOKUP($F28,Import!$B$3:$AL$671,6,FALSE),"") -> 605 | O28: =IFERROR(VLOOKUP($F28,Import!$B$3:$AL$671,7,FALSE),"") -> 86 | P28: =IFERROR(VLOOKUP($F28,Import!$B$3:$AL$671,8,FALSE),"") -> 26 | Q28: =IFERROR(VLOOKUP($F28,Import!$B$3:$AL$671,9,FALSE),"") -> 91 | R28: =IFERROR(VLOOKUP($F28,Import!$B$3:$AL$671,10,FALSE),"") -> 2 | S28: =IFERROR(VLOOKUP($F28,Import!$B$3:$AL$671,11,FALSE),"") -> 0.291 | T28: 176.055 | U28: =IF(G28='User Input'!$C$1,1,0) -> 0 | V28: 0 | W28: 0 | X28: Robinson Cano | Y28: 0 | Z28: SEA | AA28: =IFERROR(VLOOKUP($F28,Import!$B$3:$AL$671,35,FALSE),"") ->  | AC28: 26 | AD28: =IFERROR(VLOOKUP(AI28,Import!$B$3:$T$672,19,FALSE),"") -> 82 | AE28: =IFERROR(VLOOKUP(AI28,Import!$AT$3:$AU$672,2,FALSE),"") -> 19 | AF28: =IFERROR(VLOOKUP(AI28,Import!$AN$3:$AR$672,5,FALSE),"") -> 14 | AG28: =IFERROR(VLOOKUP(AI28,Import!$AD$3:$AH$672,5,FALSE),"") ->  | AH28: =IFERROR(VLOOKUP(AI28,Import!$AZ$3:$BA$672,2,FALSE),"") -> 20 | AI28: =IFERROR(VLOOKUP(AC28,Import!$W$3:$X$672,2,FALSE),"") -> Kyle Hendricks | AL28: =IFERROR(VLOOKUP($AI28,Import!$B$3:$L$671,2,FALSE),"") -> CHC | AM28: =IFERROR(VLOOKUP($AI28,Import!$B$3:$L$671,3,FALSE),"") -> SP | AN28: =IFERROR(VLOOKUP($AI28,Import!$B$3:$L$671,4,FALSE),"") -> SP | AO28: =IFERROR(VLOOKUP($AI28,Import!$B$3:$L$671,5,FALSE),"") -> 15 | AP28: =IFERROR(VLOOKUP($AI28,Import!$B$4:$L$671,2,FALSE),"") -> CHC | AQ28: =IFERROR(VLOOKUP($AI28,Import!$B$3:$X$672,12,FALSE),"") -> 198 | AR28: =IFERROR(VLOOKUP($AI28,Import!$B$3:$X$672,15,FALSE),"") -> 3.41 | AS28: =IFERROR(VLOOKUP($AI28,Import!$B$3:$X$672,16,FALSE),"") -> 1.14 | AT28: =IFERROR(VLOOKUP($AI28,Import!$B$3:$X$672,13,FALSE),"") -> 14 | AU28: =IFERROR(VLOOKUP($AI28,Import!$B$3:$X$672,14,FALSE),"") -> 0 | AV28: =IFERROR(VLOOKUP($AI28,Import!$B$3:$X$672,17,FALSE),"") -> 175 | AW28: 675.18 | AX28: 225.72 | AY28: =IF(AJ28='User Input'!$C$1,1,0) -> 0 | AZ28: 0 | BA28: 0 | BB28: Kyle Hendricks | BC28: 0 | BD28: CHC | BE28: =IFERROR(VLOOKUP($AI28,Import!$B$3:$AL$671,35,FALSE),"") ->  | BF28: =9*(Table2[[#This Row],[K]]/Table2[[#This Row],[IP]]) -> 7.954545455 | BG28: =IFERROR(VLOOKUP($AI28,PITCH!$B$3:$AA$737,25,FALSE),"N/A") -> 5.722826087
A29: 27 | B29: =IFERROR(VLOOKUP(F29,Import!$B$4:$T$672,19,FALSE),"") -> 29 | C29: =IFERROR(VLOOKUP(F29,Import!$AN$3:$AR$672,4,FALSE),"") -> 10 | D29: =IFERROR(VLOOKUP(F29,Import!$AD$3:$AL$672,4,FALSE),"") ->  | E29: =IFERROR(VLOOKUP(F29,Import!$AW$3:$AX$672,2,FALSE),"") -> 26 | F29: =IFERROR(VLOOKUP(A29,Import!$V$3:$X$672,3,FALSE),"") -> Corey Seager | I29: =IFERROR(VLOOKUP($F29,Import!$B$3:$AL$671,2,FALSE),"") -> LAD | J29: =IFERROR(VLOOKUP($F29,Import!$B$3:$AL$671,3,FALSE),"") -> SS | K29: =IFERROR(VLOOKUP($F29,Import!$B$3:$AL$671,4,FALSE),"") -> SS | L29: =IFERROR(VLOOKUP($F29,Import!$B$3:$AL$671,5,FALSE),"") -> 31 | M29: =IFERROR(VLOOKUP($F29,Import!$B$4:$L$671,2,FALSE),"") -> LAD | N29: =IFERROR(VLOOKUP($F29,Import!$B$3:$AL$671,6,FALSE),"") -> 610 | O29: =IFERROR(VLOOKUP($F29,Import!$B$3:$AL$671,7,FALSE),"") -> 96 | P29: =IFERROR(VLOOKUP($F29,Import!$B$3:$AL$671,8,FALSE),"") -> 28 | Q29: =IFERROR(VLOOKUP($F29,Import!$B$3:$AL$671,9,FALSE),"") -> 85 | R29: =IFERROR(VLOOKUP($F29,Import!$B$3:$AL$671,10,FALSE),"") -> 3 | S29: =IFERROR(VLOOKUP($F29,Import!$B$3:$AL$671,11,FALSE),"") -> 0.298 | T29: 181.78 | U29: =IF(G29='User Input'!$C$1,1,0) -> 0 | V29: 0 | W29: 0 | X29: Corey Seager | Y29: 0 | Z29: LAD | AA29: =IFERROR(VLOOKUP($F29,Import!$B$3:$AL$671,35,FALSE),"") ->  | AC29: 27 | AD29: =IFERROR(VLOOKUP(AI29,Import!$B$3:$T$672,19,FALSE),"") -> 84 | AE29: =IFERROR(VLOOKUP(AI29,Import!$AT$3:$AU$672,2,FALSE),"") -> 18 | AF29: =IFERROR(VLOOKUP(AI29,Import!$AN$3:$AR$672,5,FALSE),"") ->  | AG29: =IFERROR(VLOOKUP(AI29,Import!$AD$3:$AH$672,5,FALSE),"") ->  | AH29: =IFERROR(VLOOKUP(AI29,Import!$AZ$3:$BA$672,2,FALSE),"") -> 18 | AI29: =IFERROR(VLOOKUP(AC29,Import!$W$3:$X$672,2,FALSE),"") -> Masahiro Tanaka | AL29: =IFERROR(VLOOKUP($AI29,Import!$B$3:$L$671,2,FALSE),"") -> NYY | AM29: =IFERROR(VLOOKUP($AI29,Import!$B$3:$L$671,3,FALSE),"") -> SP | AN29: =IFERROR(VLOOKUP($AI29,Import!$B$3:$L$671,4,FALSE),"") -> SP | AO29: =IFERROR(VLOOKUP($AI29,Import!$B$3:$L$671,5,FALSE),"") -> 15 | AP29: =IFERROR(VLOOKUP($AI29,Import!$B$4:$L$671,2,FALSE),"") -> NYY | AQ29: =IFERROR(VLOOKUP($AI29,Import!$B$3:$X$672,12,FALSE),"") -> 201 | AR29: =IFERROR(VLOOKUP($AI29,Import!$B$3:$X$672,15,FALSE),"") -> 3.47 | AS29: =IFERROR(VLOOKUP($AI29,Import!$B$3:$X$672,16,FALSE),"") -> 1.13 | AT29: =IFERROR(VLOOKUP($AI29,Import!$B$3:$X$672,13,FALSE),"") -> 13 | AU29: =IFERROR(VLOOKUP($AI29,Import!$B$3:$X$672,14,FALSE),"") -> 0 | AV29: =IFERROR(VLOOKUP($AI29,Import!$B$3:$X$672,17,FALSE),"") -> 172 | AW29: 697.47 | AX29: 227.13 | AY29: =IF(AJ29='User Input'!$C$1,1,0) -> 0 | AZ29: 0 | BA29: 0 | BB29: Masahiro Tanaka | BC29: 0 | BD29: NYY | BE29: =IFERROR(VLOOKUP($AI29,Import!$B$3:$AL$671,35,FALSE),"") ->  | BF29: =9*(Table2[[#This Row],[K]]/Table2[[#This Row],[IP]]) -> 7.701492537 | BG29: =IFERROR(VLOOKUP($AI29,PITCH!$B$3:$AA$737,25,FALSE),"N/A") -> 5.778491172 | BP29: =IF('User Input'!C28=0,"",'User Input'!C28) -> 
A30: 28 | B30: =IFERROR(VLOOKUP(F30,Import!$B$4:$T$672,19,FALSE),"") -> 30 | C30: =IFERROR(VLOOKUP(F30,Import!$AN$3:$AR$672,4,FALSE),"") -> 20 | D30: =IFERROR(VLOOKUP(F30,Import!$AD$3:$AL$672,4,FALSE),"") ->  | E30: =IFERROR(VLOOKUP(F30,Import!$AW$3:$AX$672,2,FALSE),"") -> 46 | F30: =IFERROR(VLOOKUP(A30,Import!$V$3:$X$672,3,FALSE),"") -> Jonathan Villar | I30: =IFERROR(VLOOKUP($F30,Import!$B$3:$AL$671,2,FALSE),"") -> MIL | J30: =IFERROR(VLOOKUP($F30,Import!$B$3:$AL$671,3,FALSE),"") -> SS/3B | K30: =IFERROR(VLOOKUP($F30,Import!$B$3:$AL$671,4,FALSE),"") -> 2B/SS/ 3B | L30: =IFERROR(VLOOKUP($F30,Import!$B$3:$AL$671,5,FALSE),"") -> 31 | M30: =IFERROR(VLOOKUP($F30,Import!$B$4:$L$671,2,FALSE),"") -> MIL | N30: =IFERROR(VLOOKUP($F30,Import!$B$3:$AL$671,6,FALSE),"") -> 565 | O30: =IFERROR(VLOOKUP($F30,Import!$B$3:$AL$671,7,FALSE),"") -> 91 | P30: =IFERROR(VLOOKUP($F30,Import!$B$3:$AL$671,8,FALSE),"") -> 15 | Q30: =IFERROR(VLOOKUP($F30,Import!$B$3:$AL$671,9,FALSE),"") -> 51 | R30: =IFERROR(VLOOKUP($F30,Import!$B$3:$AL$671,10,FALSE),"") -> 37 | S30: =IFERROR(VLOOKUP($F30,Import!$B$3:$AL$671,11,FALSE),"") -> 0.257 | T30: 145.205 | U30: =IF(G30='User Input'!$C$1,1,0) -> 0 | V30: 0 | W30: 0 | X30: Jonathan Villar | Y30: 0 | Z30: MIL | AA30: =IFERROR(VLOOKUP($F30,Import!$B$3:$AL$671,35,FALSE),"") ->  | AC30: 28 | AD30: =IFERROR(VLOOKUP(AI30,Import!$B$3:$T$672,19,FALSE),"") -> 85 | AE30: =IFERROR(VLOOKUP(AI30,Import!$AT$3:$AU$672,2,FALSE),"") -> 21 | AF30: =IFERROR(VLOOKUP(AI30,Import!$AN$3:$AR$672,5,FALSE),"") ->  | AG30: =IFERROR(VLOOKUP(AI30,Import!$AD$3:$AH$672,5,FALSE),"") ->  | AH30: =IFERROR(VLOOKUP(AI30,Import!$AZ$3:$BA$672,2,FALSE),"") -> 14 | AI30: =IFERROR(VLOOKUP(AC30,Import!$W$3:$X$672,2,FALSE),"") -> Cole Hamels | AL30: =IFERROR(VLOOKUP($AI30,Import!$B$3:$L$671,2,FALSE),"") -> TEX | AM30: =IFERROR(VLOOKUP($AI30,Import!$B$3:$L$671,3,FALSE),"") -> SP | AN30: =IFERROR(VLOOKUP($AI30,Import!$B$3:$L$671,4,FALSE),"") -> SP | AO30: =IFERROR(VLOOKUP($AI30,Import!$B$3:$L$671,5,FALSE),"") -> 15 | AP30: =IFERROR(VLOOKUP($AI30,Import!$B$4:$L$671,2,FALSE),"") -> TEX | AQ30: =IFERROR(VLOOKUP($AI30,Import!$B$3:$X$672,12,FALSE),"") -> 202 | AR30: =IFERROR(VLOOKUP($AI30,Import!$B$3:$X$672,15,FALSE),"") -> 3.56 | AS30: =IFERROR(VLOOKUP($AI30,Import!$B$3:$X$672,16,FALSE),"") -> 1.22 | AT30: =IFERROR(VLOOKUP($AI30,Import!$B$3:$X$672,13,FALSE),"") -> 15 | AU30: =IFERROR(VLOOKUP($AI30,Import!$B$3:$X$672,14,FALSE),"") -> 0 | AV30: =IFERROR(VLOOKUP($AI30,Import!$B$3:$X$672,17,FALSE),"") -> 197 | AW30: 719.12 | AX30: 246.44 | AY30: =IF(AJ30='User Input'!$C$1,1,0) -> 0 | AZ30: 0 | BA30: 0 | BB30: Cole Hamels | BC30: 0 | BD30: TEX | BE30: =IFERROR(VLOOKUP($AI30,Import!$B$3:$AL$671,35,FALSE),"") ->  | BF30: =9*(Table2[[#This Row],[K]]/Table2[[#This Row],[IP]]) -> 8.777227723 | BG30: =IFERROR(VLOOKUP($AI30,PITCH!$B$3:$AA$737,25,FALSE),"N/A") -> 5.520618557
A31: 29 | B31: =IFERROR(VLOOKUP(F31,Import!$B$4:$T$672,19,FALSE),"") -> 31 | C31: =IFERROR(VLOOKUP(F31,Import!$AN$3:$AR$672,4,FALSE),"") -> 51 | D31: =IFERROR(VLOOKUP(F31,Import!$AD$3:$AL$672,4,FALSE),"") ->  | E31: =IFERROR(VLOOKUP(F31,Import!$AW$3:$AX$672,2,FALSE),"") -> 20 | F31: =IFERROR(VLOOKUP(A31,Import!$V$3:$X$672,3,FALSE),"") -> Nelson Cruz | I31: =IFERROR(VLOOKUP($F31,Import!$B$3:$AL$671,2,FALSE),"") -> SEA | J31: =IFERROR(VLOOKUP($F31,Import!$B$3:$AL$671,3,FALSE),"") -> OF | K31: =IFERROR(VLOOKUP($F31,Import!$B$3:$AL$671,4,FALSE),"") -> OF | L31: =IFERROR(VLOOKUP($F31,Import!$B$3:$AL$671,5,FALSE),"") -> 31 | M31: =IFERROR(VLOOKUP($F31,Import!$B$4:$L$671,2,FALSE),"") -> SEA | N31: =IFERROR(VLOOKUP($F31,Import!$B$3:$AL$671,6,FALSE),"") -> 537 | O31: =IFERROR(VLOOKUP($F31,Import!$B$3:$AL$671,7,FALSE),"") -> 88 | P31: =IFERROR(VLOOKUP($F31,Import!$B$3:$AL$671,8,FALSE),"") -> 33 | Q31: =IFERROR(VLOOKUP($F31,Import!$B$3:$AL$671,9,FALSE),"") -> 98 | R31: =IFERROR(VLOOKUP($F31,Import!$B$3:$AL$671,10,FALSE),"") -> 1 | S31: =IFERROR(VLOOKUP($F31,Import!$B$3:$AL$671,11,FALSE),"") -> 0.265 | T31: 142.305 | U31: =IF(G31='User Input'!$C$1,1,0) -> 0 | V31: 0 | W31: 0 | X31: Nelson Cruz | Y31: 0 | Z31: SEA | AA31: =IFERROR(VLOOKUP($F31,Import!$B$3:$AL$671,35,FALSE),"") ->  | AC31: 29 | AD31: =IFERROR(VLOOKUP(AI31,Import!$B$3:$T$672,19,FALSE),"") -> 86 | AE31: =IFERROR(VLOOKUP(AI31,Import!$AT$3:$AU$672,2,FALSE),"") -> 29 | AF31: =IFERROR(VLOOKUP(AI31,Import!$AN$3:$AR$672,5,FALSE),"") ->  | AG31: =IFERROR(VLOOKUP(AI31,Import!$AD$3:$AH$672,5,FALSE),"") ->  | AH31: =IFERROR(VLOOKUP(AI31,Import!$AZ$3:$BA$672,2,FALSE),"") -> 89 | AI31: =IFERROR(VLOOKUP(AC31,Import!$W$3:$X$672,2,FALSE),"") -> Rich Hill | AL31: =IFERROR(VLOOKUP($AI31,Import!$B$3:$L$671,2,FALSE),"") -> LAD | AM31: =IFERROR(VLOOKUP($AI31,Import!$B$3:$L$671,3,FALSE),"") -> SP | AN31: =IFERROR(VLOOKUP($AI31,Import!$B$3:$L$671,4,FALSE),"") -> SP | AO31: =IFERROR(VLOOKUP($AI31,Import!$B$3:$L$671,5,FALSE),"") -> 15 | AP31: =IFERROR(VLOOKUP($AI31,Import!$B$4:$L$671,2,FALSE),"") -> LAD | AQ31: =IFERROR(VLOOKUP($AI31,Import!$B$3:$X$672,12,FALSE),"") -> 125 | AR31: =IFERROR(VLOOKUP($AI31,Import!$B$3:$X$672,15,FALSE),"") -> 2.74 | AS31: =IFERROR(VLOOKUP($AI31,Import!$B$3:$X$672,16,FALSE),"") -> 1.03 | AT31: =IFERROR(VLOOKUP($AI31,Import!$B$3:$X$672,13,FALSE),"") -> 14 | AU31: =IFERROR(VLOOKUP($AI31,Import!$B$3:$X$672,14,FALSE),"") -> 0 | AV31: =IFERROR(VLOOKUP($AI31,Import!$B$3:$X$672,17,FALSE),"") -> 144 | AW31: 342.5 | AX31: 128.75 | AY31: =IF(AJ31='User Input'!$C$1,1,0) -> 0 | AZ31: 0 | BA31: 0 | BB31: Rich Hill | BC31: 0 | BD31: LAD | BE31: =IFERROR(VLOOKUP($AI31,Import!$B$3:$AL$671,35,FALSE),"") ->  | BF31: =9*(Table2[[#This Row],[K]]/Table2[[#This Row],[IP]]) -> 10.368 | BG31: =IFERROR(VLOOKUP($AI31,PITCH!$B$3:$AA$737,25,FALSE),"N/A") -> 6.932685635
A32: 30 | B32: =IFERROR(VLOOKUP(F32,Import!$B$4:$T$672,19,FALSE),"") -> 32 | C32: =IFERROR(VLOOKUP(F32,Import!$AN$3:$AR$672,4,FALSE),"") -> 43 | D32: =IFERROR(VLOOKUP(F32,Import!$AD$3:$AL$672,4,FALSE),"") ->  | E32: =IFERROR(VLOOKUP(F32,Import!$AW$3:$AX$672,2,FALSE),"") -> 24 | F32: =IFERROR(VLOOKUP(A32,Import!$V$3:$X$672,3,FALSE),"") -> Ryan Braun | I32: =IFERROR(VLOOKUP($F32,Import!$B$3:$AL$671,2,FALSE),"") -> MIL | J32: =IFERROR(VLOOKUP($F32,Import!$B$3:$AL$671,3,FALSE),"") -> OF | K32: =IFERROR(VLOOKUP($F32,Import!$B$3:$AL$671,4,FALSE),"") -> OF | L32: =IFERROR(VLOOKUP($F32,Import!$B$3:$AL$671,5,FALSE),"") -> 30 | M32: =IFERROR(VLOOKUP($F32,Import!$B$4:$L$671,2,FALSE),"") -> MIL | N32: =IFERROR(VLOOKUP($F32,Import!$B$3:$AL$671,6,FALSE),"") -> 505 | O32: =IFERROR(VLOOKUP($F32,Import!$B$3:$AL$671,7,FALSE),"") -> 82 | P32: =IFERROR(VLOOKUP($F32,Import!$B$3:$AL$671,8,FALSE),"") -> 25 | Q32: =IFERROR(VLOOKUP($F32,Import!$B$3:$AL$671,9,FALSE),"") -> 89 | R32: =IFERROR(VLOOKUP($F32,Import!$B$3:$AL$671,10,FALSE),"") -> 14 | S32: =IFERROR(VLOOKUP($F32,Import!$B$3:$AL$671,11,FALSE),"") -> 0.291 | T32: 146.955 | U32: =IF(G32='User Input'!$C$1,1,0) -> 0 | V32: 0 | W32: 0 | X32: Ryan Braun | Y32: 0 | Z32: MIL | AA32: =IFERROR(VLOOKUP($F32,Import!$B$3:$AL$671,35,FALSE),"") ->  | AC32: 30 | AD32: =IFERROR(VLOOKUP(AI32,Import!$B$3:$T$672,19,FALSE),"") -> 87 | AE32: =IFERROR(VLOOKUP(AI32,Import!$AT$3:$AU$672,2,FALSE),"") -> 31 | AF32: =IFERROR(VLOOKUP(AI32,Import!$AN$3:$AR$672,5,FALSE),"") ->  | AG32: =IFERROR(VLOOKUP(AI32,Import!$AD$3:$AH$672,5,FALSE),"") ->  | AH32: =IFERROR(VLOOKUP(AI32,Import!$AZ$3:$BA$672,2,FALSE),"") -> 31 | AI32: =IFERROR(VLOOKUP(AC32,Import!$W$3:$X$672,2,FALSE),"") -> John Lackey | AL32: =IFERROR(VLOOKUP($AI32,Import!$B$3:$L$671,2,FALSE),"") -> CHC | AM32: =IFERROR(VLOOKUP($AI32,Import!$B$3:$L$671,3,FALSE),"") -> SP | AN32: =IFERROR(VLOOKUP($AI32,Import!$B$3:$L$671,4,FALSE),"") -> SP | AO32: =IFERROR(VLOOKUP($AI32,Import!$B$3:$L$671,5,FALSE),"") -> 14 | AP32: =IFERROR(VLOOKUP($AI32,Import!$B$4:$L$671,2,FALSE),"") -> CHC | AQ32: =IFERROR(VLOOKUP($AI32,Import!$B$3:$X$672,12,FALSE),"") -> 190 | AR32: =IFERROR(VLOOKUP($AI32,Import!$B$3:$X$672,15,FALSE),"") -> 3.54 | AS32: =IFERROR(VLOOKUP($AI32,Import!$B$3:$X$672,16,FALSE),"") -> 1.15 | AT32: =IFERROR(VLOOKUP($AI32,Import!$B$3:$X$672,13,FALSE),"") -> 14 | AU32: =IFERROR(VLOOKUP($AI32,Import!$B$3:$X$672,14,FALSE),"") -> 0 | AV32: =IFERROR(VLOOKUP($AI32,Import!$B$3:$X$672,17,FALSE),"") -> 177 | AW32: 672.6 | AX32: 218.5 | AY32: =IF(AJ32='User Input'!$C$1,1,0) -> 0 | AZ32: 0 | BA32: 0 | BB32: John Lackey | BC32: 0 | BD32: CHC | BE32: =IFERROR(VLOOKUP($AI32,Import!$B$3:$AL$671,35,FALSE),"") ->  | BF32: =9*(Table2[[#This Row],[K]]/Table2[[#This Row],[IP]]) -> 8.384210526 | BG32: =IFERROR(VLOOKUP($AI32,PITCH!$B$3:$AA$737,25,FALSE),"N/A") -> 5.737618546
A33: 31 | B33: =IFERROR(VLOOKUP(F33,Import!$B$4:$T$672,19,FALSE),"") -> 33 | C33: =IFERROR(VLOOKUP(F33,Import!$AN$3:$AR$672,4,FALSE),"") -> 27 | D33: =IFERROR(VLOOKUP(F33,Import!$AD$3:$AL$672,4,FALSE),"") ->  | E33: =IFERROR(VLOOKUP(F33,Import!$AW$3:$AX$672,2,FALSE),"") -> 18 | F33: =IFERROR(VLOOKUP(A33,Import!$V$3:$X$672,3,FALSE),"") -> Brian Dozier | I33: =IFERROR(VLOOKUP($F33,Import!$B$3:$AL$671,2,FALSE),"") -> MIN | J33: =IFERROR(VLOOKUP($F33,Import!$B$3:$AL$671,3,FALSE),"") -> 2B | K33: =IFERROR(VLOOKUP($F33,Import!$B$3:$AL$671,4,FALSE),"") -> 2B | L33: =IFERROR(VLOOKUP($F33,Import!$B$3:$AL$671,5,FALSE),"") -> 30 | M33: =IFERROR(VLOOKUP($F33,Import!$B$4:$L$671,2,FALSE),"") -> MIN | N33: =IFERROR(VLOOKUP($F33,Import!$B$3:$AL$671,6,FALSE),"") -> 595 | O33: =IFERROR(VLOOKUP($F33,Import!$B$3:$AL$671,7,FALSE),"") -> 102 | P33: =IFERROR(VLOOKUP($F33,Import!$B$3:$AL$671,8,FALSE),"") -> 25 | Q33: =IFERROR(VLOOKUP($F33,Import!$B$3:$AL$671,9,FALSE),"") -> 74 | R33: =IFERROR(VLOOKUP($F33,Import!$B$3:$AL$671,10,FALSE),"") -> 15 | S33: =IFERROR(VLOOKUP($F33,Import!$B$3:$AL$671,11,FALSE),"") -> 0.248 | T33: 147.56 | U33: =IF(G33='User Input'!$C$1,1,0) -> 0 | V33: 0 | W33: 0 | X33: Brian Dozier | Y33: 0 | Z33: MIN | AA33: =IFERROR(VLOOKUP($F33,Import!$B$3:$AL$671,35,FALSE),"") ->  | AC33: 31 | AD33: =IFERROR(VLOOKUP(AI33,Import!$B$3:$T$672,19,FALSE),"") -> 102 | AE33: =IFERROR(VLOOKUP(AI33,Import!$AT$3:$AU$672,2,FALSE),"") ->  | AF33: =IFERROR(VLOOKUP(AI33,Import!$AN$3:$AR$672,5,FALSE),"") ->  | AG33: =IFERROR(VLOOKUP(AI33,Import!$AD$3:$AH$672,5,FALSE),"") ->  | AH33: =IFERROR(VLOOKUP(AI33,Import!$AZ$3:$BA$672,2,FALSE),"") -> 53 | AI33: =IFERROR(VLOOKUP(AC33,Import!$W$3:$X$672,2,FALSE),"") -> Edwin Diaz | AL33: =IFERROR(VLOOKUP($AI33,Import!$B$3:$L$671,2,FALSE),"") -> SEA | AM33: =IFERROR(VLOOKUP($AI33,Import!$B$3:$L$671,3,FALSE),"") -> RP | AN33: =IFERROR(VLOOKUP($AI33,Import!$B$3:$L$671,4,FALSE),"") -> RP | AO33: =IFERROR(VLOOKUP($AI33,Import!$B$3:$L$671,5,FALSE),"") -> 12 | AP33: =IFERROR(VLOOKUP($AI33,Import!$B$4:$L$671,2,FALSE),"") -> SEA | AQ33: =IFERROR(VLOOKUP($AI33,Import!$B$3:$X$672,12,FALSE),"") -> 63 | AR33: =IFERROR(VLOOKUP($AI33,Import!$B$3:$X$672,15,FALSE),"") -> 2.21 | AS33: =IFERROR(VLOOKUP($AI33,Import!$B$3:$X$672,16,FALSE),"") -> 1.12 | AT33: =IFERROR(VLOOKUP($AI33,Import!$B$3:$X$672,13,FALSE),"") -> 3 | AU33: =IFERROR(VLOOKUP($AI33,Import!$B$3:$X$672,14,FALSE),"") -> 40 | AV33: =IFERROR(VLOOKUP($AI33,Import!$B$3:$X$672,17,FALSE),"") -> 84 | AW33: 139.23 | AX33: 70.56 | AY33: =IF(AJ33='User Input'!$C$1,1,0) -> 0 | AZ33: 0 | BA33: 0 | BB33: Edwin Diaz | BC33: 0 | BD33: SEA | BE33: =IFERROR(VLOOKUP($AI33,Import!$B$3:$AL$671,35,FALSE),"") ->  | BF33: =9*(Table2[[#This Row],[K]]/Table2[[#This Row],[IP]]) -> 12 | BG33: =IFERROR(VLOOKUP($AI33,PITCH!$B$3:$AA$737,25,FALSE),"N/A") -> 8.457223001
A34: 32 | B34: =IFERROR(VLOOKUP(F34,Import!$B$4:$T$672,19,FALSE),"") -> 34 | C34: =IFERROR(VLOOKUP(F34,Import!$AN$3:$AR$672,4,FALSE),"") -> 82 | D34: =IFERROR(VLOOKUP(F34,Import!$AD$3:$AL$672,4,FALSE),"") ->  | E34: =IFERROR(VLOOKUP(F34,Import!$AW$3:$AX$672,2,FALSE),"") -> 71 | F34: =IFERROR(VLOOKUP(A34,Import!$V$3:$X$672,3,FALSE),"") -> Jean Segura | I34: =IFERROR(VLOOKUP($F34,Import!$B$3:$AL$671,2,FALSE),"") -> SEA | J34: =IFERROR(VLOOKUP($F34,Import!$B$3:$AL$671,3,FALSE),"") -> 2B/SS | K34: =IFERROR(VLOOKUP($F34,Import!$B$3:$AL$671,4,FALSE),"") -> 2B/SS | L34: =IFERROR(VLOOKUP($F34,Import!$B$3:$AL$671,5,FALSE),"") -> 29 | M34: =IFERROR(VLOOKUP($F34,Import!$B$4:$L$671,2,FALSE),"") -> SEA | N34: =IFERROR(VLOOKUP($F34,Import!$B$3:$AL$671,6,FALSE),"") -> 580 | O34: =IFERROR(VLOOKUP($F34,Import!$B$3:$AL$671,7,FALSE),"") -> 83 | P34: =IFERROR(VLOOKUP($F34,Import!$B$3:$AL$671,8,FALSE),"") -> 11 | Q34: =IFERROR(VLOOKUP($F34,Import!$B$3:$AL$671,9,FALSE),"") -> 46 | R34: =IFERROR(VLOOKUP($F34,Import!$B$3:$AL$671,10,FALSE),"") -> 27 | S34: =IFERROR(VLOOKUP($F34,Import!$B$3:$AL$671,11,FALSE),"") -> 0.274 | T34: 158.92 | U34: =IF(G34='User Input'!$C$1,1,0) -> 0 | V34: 0 | W34: 0 | X34: Jean Segura | Y34: 0 | Z34: SEA | AA34: =IFERROR(VLOOKUP($F34,Import!$B$3:$AL$671,35,FALSE),"") ->  | AC34: 32 | AD34: =IFERROR(VLOOKUP(AI34,Import!$B$3:$T$672,19,FALSE),"") -> 104 | AE34: =IFERROR(VLOOKUP(AI34,Import!$AT$3:$AU$672,2,FALSE),"") ->  | AF34: =IFERROR(VLOOKUP(AI34,Import!$AN$3:$AR$672,5,FALSE),"") ->  | AG34: =IFERROR(VLOOKUP(AI34,Import!$AD$3:$AH$672,5,FALSE),"") ->  | AH34: =IFERROR(VLOOKUP(AI34,Import!$AZ$3:$BA$672,2,FALSE),"") -> 37 | AI34: =IFERROR(VLOOKUP(AC34,Import!$W$3:$X$672,2,FALSE),"") -> Roberto Osuna | AL34: =IFERROR(VLOOKUP($AI34,Import!$B$3:$L$671,2,FALSE),"") -> TOR | AM34: =IFERROR(VLOOKUP($AI34,Import!$B$3:$L$671,3,FALSE),"") -> RP | AN34: =IFERROR(VLOOKUP($AI34,Import!$B$3:$L$671,4,FALSE),"") -> RP | AO34: =IFERROR(VLOOKUP($AI34,Import!$B$3:$L$671,5,FALSE),"") -> 11 | AP34: =IFERROR(VLOOKUP($AI34,Import!$B$4:$L$671,2,FALSE),"") -> TOR | AQ34: =IFERROR(VLOOKUP($AI34,Import!$B$3:$X$672,12,FALSE),"") -> 70 | AR34: =IFERROR(VLOOKUP($AI34,Import!$B$3:$X$672,15,FALSE),"") -> 2.46 | AS34: =IFERROR(VLOOKUP($AI34,Import!$B$3:$X$672,16,FALSE),"") -> 1.01 | AT34: =IFERROR(VLOOKUP($AI34,Import!$B$3:$X$672,13,FALSE),"") -> 4 | AU34: =IFERROR(VLOOKUP($AI34,Import!$B$3:$X$672,14,FALSE),"") -> 40 | AV34: =IFERROR(VLOOKUP($AI34,Import!$B$3:$X$672,17,FALSE),"") -> 75 | AW34: 172.2 | AX34: 70.7 | AY34: =IF(AJ34='User Input'!$C$1,1,0) -> 0 | AZ34: 0 | BA34: 0 | BB34: Roberto Osuna | BC34: 0 | BD34: TOR | BE34: =IFERROR(VLOOKUP($AI34,Import!$B$3:$AL$671,35,FALSE),"") ->  | BF34: =9*(Table2[[#This Row],[K]]/Table2[[#This Row],[IP]]) -> 9.642857143 | BG34: =IFERROR(VLOOKUP($AI34,PITCH!$B$3:$AA$737,25,FALSE),"N/A") -> 7.5
A35: 33 | B35: =IFERROR(VLOOKUP(F35,Import!$B$4:$T$672,19,FALSE),"") -> 37 | C35: =IFERROR(VLOOKUP(F35,Import!$AN$3:$AR$672,4,FALSE),"") -> 36 | D35: =IFERROR(VLOOKUP(F35,Import!$AD$3:$AL$672,4,FALSE),"") ->  | E35: =IFERROR(VLOOKUP(F35,Import!$AW$3:$AX$672,2,FALSE),"") -> 29 | F35: =IFERROR(VLOOKUP(A35,Import!$V$4:$X$672,3,FALSE),"") -> Jose Abreu | I35: =IFERROR(VLOOKUP($F35,Import!$B$3:$AL$671,2,FALSE),"") -> CHW | J35: =IFERROR(VLOOKUP($F35,Import!$B$3:$AL$671,3,FALSE),"") -> 1B | K35: =IFERROR(VLOOKUP($F35,Import!$B$3:$AL$671,4,FALSE),"") -> 1B | L35: =IFERROR(VLOOKUP($F35,Import!$B$3:$AL$671,5,FALSE),"") -> 29 | M35: =IFERROR(VLOOKUP($F35,Import!$B$4:$L$671,2,FALSE),"") -> CHW | N35: =IFERROR(VLOOKUP($F35,Import!$B$3:$AL$671,6,FALSE),"") -> 603 | O35: =IFERROR(VLOOKUP($F35,Import!$B$3:$AL$671,7,FALSE),"") -> 73 | P35: =IFERROR(VLOOKUP($F35,Import!$B$3:$AL$671,8,FALSE),"") -> 28 | Q35: =IFERROR(VLOOKUP($F35,Import!$B$3:$AL$671,9,FALSE),"") -> 92 | R35: =IFERROR(VLOOKUP($F35,Import!$B$3:$AL$671,10,FALSE),"") -> 0 | S35: =IFERROR(VLOOKUP($F35,Import!$B$3:$AL$671,11,FALSE),"") -> 0.306 | T35: 184.518 | U35: =IF(G35='User Input'!$C$1,1,0) -> 0 | V35: 0 | W35: 0 | X35: Jose Abreu | Y35: 0 | Z35: CHW | AA35: =IFERROR(VLOOKUP($F35,Import!$B$3:$AL$671,35,FALSE),"") ->  | AC35: 33 | AD35: =IFERROR(VLOOKUP(AI35,Import!$B$3:$T$672,19,FALSE),"") -> 108 | AE35: =IFERROR(VLOOKUP(AI35,Import!$AT$3:$AU$672,2,FALSE),"") -> 40 | AF35: =IFERROR(VLOOKUP(AI35,Import!$AN$3:$AR$672,5,FALSE),"") ->  | AG35: =IFERROR(VLOOKUP(AI35,Import!$AD$3:$AH$672,5,FALSE),"") ->  | AH35: =IFERROR(VLOOKUP(AI35,Import!$AZ$3:$BA$672,2,FALSE),"") -> 44 | AI35: =IFERROR(VLOOKUP(AC35,Import!$W$3:$X$672,2,FALSE),"") -> Kevin Gausman | AL35: =IFERROR(VLOOKUP($AI35,Import!$B$3:$L$671,2,FALSE),"") -> BAL | AM35: =IFERROR(VLOOKUP($AI35,Import!$B$3:$L$671,3,FALSE),"") -> SP | AN35: =IFERROR(VLOOKUP($AI35,Import!$B$3:$L$671,4,FALSE),"") -> SP | AO35: =IFERROR(VLOOKUP($AI35,Import!$B$3:$L$671,5,FALSE),"") -> 10 | AP35: =IFERROR(VLOOKUP($AI35,Import!$B$4:$L$671,2,FALSE),"") -> BAL | AQ35: =IFERROR(VLOOKUP($AI35,Import!$B$3:$X$672,12,FALSE),"") -> 195 | AR35: =IFERROR(VLOOKUP($AI35,Import!$B$3:$X$672,15,FALSE),"") -> 3.51 | AS35: =IFERROR(VLOOKUP($AI35,Import!$B$3:$X$672,16,FALSE),"") -> 1.25 | AT35: =IFERROR(VLOOKUP($AI35,Import!$B$3:$X$672,13,FALSE),"") -> 13 | AU35: =IFERROR(VLOOKUP($AI35,Import!$B$3:$X$672,14,FALSE),"") -> 0 | AV35: =IFERROR(VLOOKUP($AI35,Import!$B$3:$X$672,17,FALSE),"") -> 193 | AW35: 684.45 | AX35: 243.75 | AY35: =IF(AJ35='User Input'!$C$1,1,0) -> 0 | AZ35: 0 | BA35: 0 | BB35: Kevin Gausman | BC35: 0 | BD35: BAL | BE35: =IFERROR(VLOOKUP($AI35,Import!$B$3:$AL$671,35,FALSE),"") ->  | BF35: =9*(Table2[[#This Row],[K]]/Table2[[#This Row],[IP]]) -> 8.907692308 | BG35: =IFERROR(VLOOKUP($AI35,PITCH!$B$3:$AA$737,25,FALSE),"N/A") -> 5.702054795
A36: 34 | B36: =IFERROR(VLOOKUP(F36,Import!$B$4:$T$672,19,FALSE),"") -> 38 | C36: =IFERROR(VLOOKUP(F36,Import!$AN$3:$AR$672,4,FALSE),"") ->  | D36: =IFERROR(VLOOKUP(F36,Import!$AD$3:$AL$672,4,FALSE),"") ->  | E36: =IFERROR(VLOOKUP(F36,Import!$AW$3:$AX$672,2,FALSE),"") -> 49 | F36: =IFERROR(VLOOKUP(A36,Import!$V$3:$X$672,3,FALSE),"") -> Hanley Ramirez | I36: =IFERROR(VLOOKUP($F36,Import!$B$3:$AL$671,2,FALSE),"") -> BOS | J36: =IFERROR(VLOOKUP($F36,Import!$B$3:$AL$671,3,FALSE),"") -> 1B | K36: =IFERROR(VLOOKUP($F36,Import!$B$3:$AL$671,4,FALSE),"") -> 1B | L36: =IFERROR(VLOOKUP($F36,Import!$B$3:$AL$671,5,FALSE),"") -> 29 | M36: =IFERROR(VLOOKUP($F36,Import!$B$4:$L$671,2,FALSE),"") -> BOS | N36: =IFERROR(VLOOKUP($F36,Import!$B$3:$AL$671,6,FALSE),"") -> 518 | O36: =IFERROR(VLOOKUP($F36,Import!$B$3:$AL$671,7,FALSE),"") -> 84 | P36: =IFERROR(VLOOKUP($F36,Import!$B$3:$AL$671,8,FALSE),"") -> 25 | Q36: =IFERROR(VLOOKUP($F36,Import!$B$3:$AL$671,9,FALSE),"") -> 89 | R36: =IFERROR(VLOOKUP($F36,Import!$B$3:$AL$671,10,FALSE),"") -> 6 | S36: =IFERROR(VLOOKUP($F36,Import!$B$3:$AL$671,11,FALSE),"") -> 0.278 | T36: 144.004 | U36: =IF(G36='User Input'!$C$1,1,0) -> 0 | V36: 0 | W36: 0 | X36: Hanley Ramirez | Y36: 0 | Z36: BOS | AA36: =IFERROR(VLOOKUP($F36,Import!$B$3:$AL$671,35,FALSE),"") ->  | AC36: 34 | AD36: =IFERROR(VLOOKUP(AI36,Import!$B$3:$T$672,19,FALSE),"") -> 109 | AE36: =IFERROR(VLOOKUP(AI36,Import!$AT$3:$AU$672,2,FALSE),"") ->  | AF36: =IFERROR(VLOOKUP(AI36,Import!$AN$3:$AR$672,5,FALSE),"") ->  | AG36: =IFERROR(VLOOKUP(AI36,Import!$AD$3:$AH$672,5,FALSE),"") ->  | AH36: =IFERROR(VLOOKUP(AI36,Import!$AZ$3:$BA$672,2,FALSE),"") -> 62 | AI36: =IFERROR(VLOOKUP(AC36,Import!$W$3:$X$672,2,FALSE),"") -> Ken Giles | AL36: =IFERROR(VLOOKUP($AI36,Import!$B$3:$L$671,2,FALSE),"") -> HOU | AM36: =IFERROR(VLOOKUP($AI36,Import!$B$3:$L$671,3,FALSE),"") -> RP | AN36: =IFERROR(VLOOKUP($AI36,Import!$B$3:$L$671,4,FALSE),"") -> RP | AO36: =IFERROR(VLOOKUP($AI36,Import!$B$3:$L$671,5,FALSE),"") -> 10 | AP36: =IFERROR(VLOOKUP($AI36,Import!$B$4:$L$671,2,FALSE),"") -> HOU | AQ36: =IFERROR(VLOOKUP($AI36,Import!$B$3:$X$672,12,FALSE),"") -> 66 | AR36: =IFERROR(VLOOKUP($AI36,Import!$B$3:$X$672,15,FALSE),"") -> 2.87 | AS36: =IFERROR(VLOOKUP($AI36,Import!$B$3:$X$672,16,FALSE),"") -> 1.15 | AT36: =IFERROR(VLOOKUP($AI36,Import!$B$3:$X$672,13,FALSE),"") -> 4 | AU36: =IFERROR(VLOOKUP($AI36,Import!$B$3:$X$672,14,FALSE),"") -> 38 | AV36: =IFERROR(VLOOKUP($AI36,Import!$B$3:$X$672,17,FALSE),"") -> 96 | AW36: 189.42 | AX36: 75.9 | AY36: =IF(AJ36='User Input'!$C$1,1,0) -> 0 | AZ36: 0 | BA36: 0 | BB36: Ken Giles | BC36: 0 | BD36: HOU | BE36: =IFERROR(VLOOKUP($AI36,Import!$B$3:$AL$671,35,FALSE),"") ->  | BF36: =9*(Table2[[#This Row],[K]]/Table2[[#This Row],[IP]]) -> 13.09090909 | BG36: =IFERROR(VLOOKUP($AI36,PITCH!$B$3:$AA$737,25,FALSE),"N/A") -> 8.472222222
A37: 35 | B37: =IFERROR(VLOOKUP(F37,Import!$B$4:$T$672,19,FALSE),"") -> 39 | C37: =IFERROR(VLOOKUP(F37,Import!$AN$3:$AR$672,4,FALSE),"") -> 37 | D37: =IFERROR(VLOOKUP(F37,Import!$AD$3:$AL$672,4,FALSE),"") ->  | E37: =IFERROR(VLOOKUP(F37,Import!$AW$3:$AX$672,2,FALSE),"") -> 23 | F37: =IFERROR(VLOOKUP(A37,Import!$V$3:$X$672,3,FALSE),"") -> Kyle Seager | I37: =IFERROR(VLOOKUP($F37,Import!$B$3:$AL$671,2,FALSE),"") -> SEA | J37: =IFERROR(VLOOKUP($F37,Import!$B$3:$AL$671,3,FALSE),"") -> 3B | K37: =IFERROR(VLOOKUP($F37,Import!$B$3:$AL$671,4,FALSE),"") -> 3B | L37: =IFERROR(VLOOKUP($F37,Import!$B$3:$AL$671,5,FALSE),"") -> 28 | M37: =IFERROR(VLOOKUP($F37,Import!$B$4:$L$671,2,FALSE),"") -> SEA | N37: =IFERROR(VLOOKUP($F37,Import!$B$3:$AL$671,6,FALSE),"") -> 591 | O37: =IFERROR(VLOOKUP($F37,Import!$B$3:$AL$671,7,FALSE),"") -> 84 | P37: =IFERROR(VLOOKUP($F37,Import!$B$3:$AL$671,8,FALSE),"") -> 27 | Q37: =IFERROR(VLOOKUP($F37,Import!$B$3:$AL$671,9,FALSE),"") -> 92 | R37: =IFERROR(VLOOKUP($F37,Import!$B$3:$AL$671,10,FALSE),"") -> 4 | S37: =IFERROR(VLOOKUP($F37,Import!$B$3:$AL$671,11,FALSE),"") -> 0.269 | T37: 158.979 | U37: =IF(G37='User Input'!$C$1,1,0) -> 0 | V37: 0 | W37: 0 | X37: Kyle Seager | Y37: 0 | Z37: SEA | AA37: =IFERROR(VLOOKUP($F37,Import!$B$3:$AL$671,35,FALSE),"") ->  | AC37: 35 | AD37: =IFERROR(VLOOKUP(AI37,Import!$B$3:$T$672,19,FALSE),"") -> 112 | AE37: =IFERROR(VLOOKUP(AI37,Import!$AT$3:$AU$672,2,FALSE),"") ->  | AF37: =IFERROR(VLOOKUP(AI37,Import!$AN$3:$AR$672,5,FALSE),"") ->  | AG37: =IFERROR(VLOOKUP(AI37,Import!$AD$3:$AH$672,5,FALSE),"") ->  | AH37: =IFERROR(VLOOKUP(AI37,Import!$AZ$3:$BA$672,2,FALSE),"") -> 51 | AI37: =IFERROR(VLOOKUP(AC37,Import!$W$3:$X$672,2,FALSE),"") -> Craig Kimbrel | AL37: =IFERROR(VLOOKUP($AI37,Import!$B$3:$L$671,2,FALSE),"") -> BOS | AM37: =IFERROR(VLOOKUP($AI37,Import!$B$3:$L$671,3,FALSE),"") -> RP | AN37: =IFERROR(VLOOKUP($AI37,Import!$B$3:$L$671,4,FALSE),"") -> RP | AO37: =IFERROR(VLOOKUP($AI37,Import!$B$3:$L$671,5,FALSE),"") -> 10 | AP37: =IFERROR(VLOOKUP($AI37,Import!$B$4:$L$671,2,FALSE),"") -> BOS | AQ37: =IFERROR(VLOOKUP($AI37,Import!$B$3:$X$672,12,FALSE),"") -> 60 | AR37: =IFERROR(VLOOKUP($AI37,Import!$B$3:$X$672,15,FALSE),"") -> 2.95 | AS37: =IFERROR(VLOOKUP($AI37,Import!$B$3:$X$672,16,FALSE),"") -> 1.14 | AT37: =IFERROR(VLOOKUP($AI37,Import!$B$3:$X$672,13,FALSE),"") -> 3 | AU37: =IFERROR(VLOOKUP($AI37,Import!$B$3:$X$672,14,FALSE),"") -> 38 | AV37: =IFERROR(VLOOKUP($AI37,Import!$B$3:$X$672,17,FALSE),"") -> 87 | AW37: 177 | AX37: 68.4 | AY37: =IF(AJ37='User Input'!$C$1,1,0) -> 0 | AZ37: 0 | BA37: 0 | BB37: Craig Kimbrel | BC37: 0 | BD37: BOS | BE37: =IFERROR(VLOOKUP($AI37,Import!$B$3:$AL$671,35,FALSE),"") ->  | BF37: =9*(Table2[[#This Row],[K]]/Table2[[#This Row],[IP]]) -> 13.05 | BG37: =IFERROR(VLOOKUP($AI37,PITCH!$B$3:$AA$737,25,FALSE),"N/A") -> 8.181818182
A38: 36 | B38: =IFERROR(VLOOKUP(F38,Import!$B$4:$T$672,19,FALSE),"") -> 40 | C38: =IFERROR(VLOOKUP(F38,Import!$AN$3:$AR$672,4,FALSE),"") -> 46 | D38: =IFERROR(VLOOKUP(F38,Import!$AD$3:$AL$672,4,FALSE),"") ->  | E38: =IFERROR(VLOOKUP(F38,Import!$AW$3:$AX$672,2,FALSE),"") -> 45 | F38: =IFERROR(VLOOKUP(A38,Import!$V$3:$X$672,3,FALSE),"") -> Anthony Rendon | I38: =IFERROR(VLOOKUP($F38,Import!$B$3:$AL$671,2,FALSE),"") -> WSH | J38: =IFERROR(VLOOKUP($F38,Import!$B$3:$AL$671,3,FALSE),"") -> 3B | K38: =IFERROR(VLOOKUP($F38,Import!$B$3:$AL$671,4,FALSE),"") -> 3B | L38: =IFERROR(VLOOKUP($F38,Import!$B$3:$AL$671,5,FALSE),"") -> 28 | M38: =IFERROR(VLOOKUP($F38,Import!$B$4:$L$671,2,FALSE),"") -> WSH | N38: =IFERROR(VLOOKUP($F38,Import!$B$3:$AL$671,6,FALSE),"") -> 551 | O38: =IFERROR(VLOOKUP($F38,Import!$B$3:$AL$671,7,FALSE),"") -> 84 | P38: =IFERROR(VLOOKUP($F38,Import!$B$3:$AL$671,8,FALSE),"") -> 25 | Q38: =IFERROR(VLOOKUP($F38,Import!$B$3:$AL$671,9,FALSE),"") -> 96 | R38: =IFERROR(VLOOKUP($F38,Import!$B$3:$AL$671,10,FALSE),"") -> 9 | S38: =IFERROR(VLOOKUP($F38,Import!$B$3:$AL$671,11,FALSE),"") -> 0.268 | T38: 147.668 | U38: =IF(G38='User Input'!$C$1,1,0) -> 0 | V38: 0 | W38: 0 | X38: Anthony Rendon | Y38: 0 | Z38: WSH | AA38: =IFERROR(VLOOKUP($F38,Import!$B$3:$AL$671,35,FALSE),"") ->  | AC38: 36 | AD38: =IFERROR(VLOOKUP(AI38,Import!$B$3:$T$672,19,FALSE),"") -> 115 | AE38: =IFERROR(VLOOKUP(AI38,Import!$AT$3:$AU$672,2,FALSE),"") -> 27 | AF38: =IFERROR(VLOOKUP(AI38,Import!$AN$3:$AR$672,5,FALSE),"") ->  | AG38: =IFERROR(VLOOKUP(AI38,Import!$AD$3:$AH$672,5,FALSE),"") ->  | AH38: =IFERROR(VLOOKUP(AI38,Import!$AZ$3:$BA$672,2,FALSE),"") -> 70 | AI38: =IFERROR(VLOOKUP(AC38,Import!$W$3:$X$672,2,FALSE),"") -> Lance McCullers | AL38: =IFERROR(VLOOKUP($AI38,Import!$B$3:$L$671,2,FALSE),"") -> HOU | AM38: =IFERROR(VLOOKUP($AI38,Import!$B$3:$L$671,3,FALSE),"") -> SP | AN38: =IFERROR(VLOOKUP($AI38,Import!$B$3:$L$671,4,FALSE),"") -> SP | AO38: =IFERROR(VLOOKUP($AI38,Import!$B$3:$L$671,5,FALSE),"") -> 9 | AP38: =IFERROR(VLOOKUP($AI38,Import!$B$4:$L$671,2,FALSE),"") -> HOU | AQ38: =IFERROR(VLOOKUP($AI38,Import!$B$3:$X$672,12,FALSE),"") -> 170 | AR38: =IFERROR(VLOOKUP($AI38,Import!$B$3:$X$672,15,FALSE),"") -> 3.26 | AS38: =IFERROR(VLOOKUP($AI38,Import!$B$3:$X$672,16,FALSE),"") -> 1.19 | AT38: =IFERROR(VLOOKUP($AI38,Import!$B$3:$X$672,13,FALSE),"") -> 12 | AU38: =IFERROR(VLOOKUP($AI38,Import!$B$3:$X$672,14,FALSE),"") -> 0 | AV38: =IFERROR(VLOOKUP($AI38,Import!$B$3:$X$672,17,FALSE),"") -> 205 | AW38: 554.2 | AX38: 202.3 | AY38: =IF(AJ38='User Input'!$C$1,1,0) -> 0 | AZ38: 0 | BA38: 0 | BB38: Lance McCullers | BC38: 0 | BD38: HOU | BE38: =IFERROR(VLOOKUP($AI38,Import!$B$3:$AL$671,35,FALSE),"") ->  | BF38: =9*(Table2[[#This Row],[K]]/Table2[[#This Row],[IP]]) -> 10.85294118 | BG38: =IFERROR(VLOOKUP($AI38,PITCH!$B$3:$AA$737,25,FALSE),"N/A") -> 6.243868255
A39: 37 | B39: =IFERROR(VLOOKUP(F39,Import!$B$4:$T$672,19,FALSE),"") -> 44 | C39: =IFERROR(VLOOKUP(F39,Import!$AN$3:$AR$672,4,FALSE),"") -> 53 | D39: =IFERROR(VLOOKUP(F39,Import!$AD$3:$AL$672,4,FALSE),"") ->  | E39: =IFERROR(VLOOKUP(F39,Import!$AW$3:$AX$672,2,FALSE),"") -> 32 | F39: =IFERROR(VLOOKUP(A39,Import!$V$3:$X$672,3,FALSE),"") -> Yoenis Cespedes | I39: =IFERROR(VLOOKUP($F39,Import!$B$3:$AL$671,2,FALSE),"") -> NYM | J39: =IFERROR(VLOOKUP($F39,Import!$B$3:$AL$671,3,FALSE),"") -> OF | K39: =IFERROR(VLOOKUP($F39,Import!$B$3:$AL$671,4,FALSE),"") -> OF | L39: =IFERROR(VLOOKUP($F39,Import!$B$3:$AL$671,5,FALSE),"") -> 26 | M39: =IFERROR(VLOOKUP($F39,Import!$B$4:$L$671,2,FALSE),"") -> NYM | N39: =IFERROR(VLOOKUP($F39,Import!$B$3:$AL$671,6,FALSE),"") -> 550 | O39: =IFERROR(VLOOKUP($F39,Import!$B$3:$AL$671,7,FALSE),"") -> 86 | P39: =IFERROR(VLOOKUP($F39,Import!$B$3:$AL$671,8,FALSE),"") -> 29 | Q39: =IFERROR(VLOOKUP($F39,Import!$B$3:$AL$671,9,FALSE),"") -> 97 | R39: =IFERROR(VLOOKUP($F39,Import!$B$3:$AL$671,10,FALSE),"") -> 5 | S39: =IFERROR(VLOOKUP($F39,Import!$B$3:$AL$671,11,FALSE),"") -> 0.278 | T39: 152.9 | U39: =IF(G39='User Input'!$C$1,1,0) -> 0 | V39: 0 | W39: 0 | X39: Yoenis Cespedes | Y39: 0 | Z39: NYM | AA39: =IFERROR(VLOOKUP($F39,Import!$B$3:$AL$671,35,FALSE),"") ->  | AC39: 37 | AD39: =IFERROR(VLOOKUP(AI39,Import!$B$3:$T$672,19,FALSE),"") -> 124 | AE39: =IFERROR(VLOOKUP(AI39,Import!$AT$3:$AU$672,2,FALSE),"") -> 54 | AF39: =IFERROR(VLOOKUP(AI39,Import!$AN$3:$AR$672,5,FALSE),"") ->  | AG39: =IFERROR(VLOOKUP(AI39,Import!$AD$3:$AH$672,5,FALSE),"") ->  | AH39: =IFERROR(VLOOKUP(AI39,Import!$AZ$3:$BA$672,2,FALSE),"") -> 85 | AI39: =IFERROR(VLOOKUP(AC39,Import!$W$3:$X$672,2,FALSE),"") -> Aaron Nola | AL39: =IFERROR(VLOOKUP($AI39,Import!$B$3:$L$671,2,FALSE),"") -> PHI | AM39: =IFERROR(VLOOKUP($AI39,Import!$B$3:$L$671,3,FALSE),"") -> SP | AN39: =IFERROR(VLOOKUP($AI39,Import!$B$3:$L$671,4,FALSE),"") -> SP | AO39: =IFERROR(VLOOKUP($AI39,Import!$B$3:$L$671,5,FALSE),"") -> 8 | AP39: =IFERROR(VLOOKUP($AI39,Import!$B$4:$L$671,2,FALSE),"") -> PHI | AQ39: =IFERROR(VLOOKUP($AI39,Import!$B$3:$X$672,12,FALSE),"") -> 155 | AR39: =IFERROR(VLOOKUP($AI39,Import!$B$3:$X$672,15,FALSE),"") -> 3.46 | AS39: =IFERROR(VLOOKUP($AI39,Import!$B$3:$X$672,16,FALSE),"") -> 1.21 | AT39: =IFERROR(VLOOKUP($AI39,Import!$B$3:$X$672,13,FALSE),"") -> 10 | AU39: =IFERROR(VLOOKUP($AI39,Import!$B$3:$X$672,14,FALSE),"") -> 0 | AV39: =IFERROR(VLOOKUP($AI39,Import!$B$3:$X$672,17,FALSE),"") -> 161 | AW39: 536.3 | AX39: 187.55 | AY39: =IF(AJ39='User Input'!$C$1,1,0) -> 0 | AZ39: 0 | BA39: 0 | BB39: Aaron Nola | BC39: 0 | BD39: PHI | BE39: =IFERROR(VLOOKUP($AI39,Import!$B$3:$AL$671,35,FALSE),"") ->  | BF39: =9*(Table2[[#This Row],[K]]/Table2[[#This Row],[IP]]) -> 9.348387097 | BG39: =IFERROR(VLOOKUP($AI39,PITCH!$B$3:$AA$737,25,FALSE),"N/A") -> 6.077922078
A40: 38 | B40: =IFERROR(VLOOKUP(F40,Import!$B$4:$T$672,19,FALSE),"") -> 45 | C40: =IFERROR(VLOOKUP(F40,Import!$AN$3:$AR$672,4,FALSE),"") -> 31 | D40: =IFERROR(VLOOKUP(F40,Import!$AD$3:$AL$672,4,FALSE),"") ->  | E40: =IFERROR(VLOOKUP(F40,Import!$AW$3:$AX$672,2,FALSE),"") -> 53 | F40: =IFERROR(VLOOKUP(A40,Import!$V$3:$X$672,3,FALSE),"") -> Mark Trumbo | I40: =IFERROR(VLOOKUP($F40,Import!$B$3:$AL$671,2,FALSE),"") -> BAL | J40: =IFERROR(VLOOKUP($F40,Import!$B$3:$AL$671,3,FALSE),"") -> OF | K40: =IFERROR(VLOOKUP($F40,Import!$B$3:$AL$671,4,FALSE),"") -> 1B/OF | L40: =IFERROR(VLOOKUP($F40,Import!$B$3:$AL$671,5,FALSE),"") -> 26 | M40: =IFERROR(VLOOKUP($F40,Import!$B$4:$L$671,2,FALSE),"") -> BAL | N40: =IFERROR(VLOOKUP($F40,Import!$B$3:$AL$671,6,FALSE),"") -> 557 | O40: =IFERROR(VLOOKUP($F40,Import!$B$3:$AL$671,7,FALSE),"") -> 81 | P40: =IFERROR(VLOOKUP($F40,Import!$B$3:$AL$671,8,FALSE),"") -> 33 | Q40: =IFERROR(VLOOKUP($F40,Import!$B$3:$AL$671,9,FALSE),"") -> 95 | R40: =IFERROR(VLOOKUP($F40,Import!$B$3:$AL$671,10,FALSE),"") -> 2 | S40: =IFERROR(VLOOKUP($F40,Import!$B$3:$AL$671,11,FALSE),"") -> 0.252 | T40: 140.364 | U40: =IF(G40='User Input'!$C$1,1,0) -> 0 | V40: 0 | W40: 0 | X40: Mark Trumbo | Y40: 0 | Z40: BAL | AA40: =IFERROR(VLOOKUP($F40,Import!$B$3:$AL$671,35,FALSE),"") ->  | AC40: 38 | AD40: =IFERROR(VLOOKUP(AI40,Import!$B$3:$T$672,19,FALSE),"") -> 125 | AE40: =IFERROR(VLOOKUP(AI40,Import!$AT$3:$AU$672,2,FALSE),"") -> 42 | AF40: =IFERROR(VLOOKUP(AI40,Import!$AN$3:$AR$672,5,FALSE),"") ->  | AG40: =IFERROR(VLOOKUP(AI40,Import!$AD$3:$AH$672,5,FALSE),"") ->  | AH40: =IFERROR(VLOOKUP(AI40,Import!$AZ$3:$BA$672,2,FALSE),"") -> 102 | AI40: =IFERROR(VLOOKUP(AC40,Import!$W$3:$X$672,2,FALSE),"") -> Taijuan Walker | AL40: =IFERROR(VLOOKUP($AI40,Import!$B$3:$L$671,2,FALSE),"") -> ARI | AM40: =IFERROR(VLOOKUP($AI40,Import!$B$3:$L$671,3,FALSE),"") -> SP | AN40: =IFERROR(VLOOKUP($AI40,Import!$B$3:$L$671,4,FALSE),"") -> SP | AO40: =IFERROR(VLOOKUP($AI40,Import!$B$3:$L$671,5,FALSE),"") -> 8 | AP40: =IFERROR(VLOOKUP($AI40,Import!$B$4:$L$671,2,FALSE),"") -> ARI | AQ40: =IFERROR(VLOOKUP($AI40,Import!$B$3:$X$672,12,FALSE),"") -> 160 | AR40: =IFERROR(VLOOKUP($AI40,Import!$B$3:$X$672,15,FALSE),"") -> 3.44 | AS40: =IFERROR(VLOOKUP($AI40,Import!$B$3:$X$672,16,FALSE),"") -> 1.18 | AT40: =IFERROR(VLOOKUP($AI40,Import!$B$3:$X$672,13,FALSE),"") -> 12 | AU40: =IFERROR(VLOOKUP($AI40,Import!$B$3:$X$672,14,FALSE),"") -> 0 | AV40: =IFERROR(VLOOKUP($AI40,Import!$B$3:$X$672,17,FALSE),"") -> 153 | AW40: 550.4 | AX40: 188.8 | AY40: =IF(AJ40='User Input'!$C$1,1,0) -> 0 | AZ40: 0 | BA40: 0 | BB40: Taijuan Walker | BC40: 0 | BD40: ARI | BE40: =IFERROR(VLOOKUP($AI40,Import!$B$3:$AL$671,35,FALSE),"") ->  | BF40: =9*(Table2[[#This Row],[K]]/Table2[[#This Row],[IP]]) -> 8.60625 | BG40: =IFERROR(VLOOKUP($AI40,PITCH!$B$3:$AA$737,25,FALSE),"N/A") -> 5.556402439
A41: 39 | B41: =IFERROR(VLOOKUP(F41,Import!$B$4:$T$672,19,FALSE),"") -> 54 | C41: =IFERROR(VLOOKUP(F41,Import!$AN$3:$AR$672,4,FALSE),"") -> 34 | D41: =IFERROR(VLOOKUP(F41,Import!$AD$3:$AL$672,4,FALSE),"") ->  | E41: =IFERROR(VLOOKUP(F41,Import!$AW$3:$AX$672,2,FALSE),"") -> 47 | F41: =IFERROR(VLOOKUP(A41,Import!$V$3:$X$672,3,FALSE),"") -> Gregory Polanco | I41: =IFERROR(VLOOKUP($F41,Import!$B$3:$AL$671,2,FALSE),"") -> PIT | J41: =IFERROR(VLOOKUP($F41,Import!$B$3:$AL$671,3,FALSE),"") -> OF | K41: =IFERROR(VLOOKUP($F41,Import!$B$3:$AL$671,4,FALSE),"") -> OF | L41: =IFERROR(VLOOKUP($F41,Import!$B$3:$AL$671,5,FALSE),"") -> 21 | M41: =IFERROR(VLOOKUP($F41,Import!$B$4:$L$671,2,FALSE),"") -> PIT | N41: =IFERROR(VLOOKUP($F41,Import!$B$3:$AL$671,6,FALSE),"") -> 572 | O41: =IFERROR(VLOOKUP($F41,Import!$B$3:$AL$671,7,FALSE),"") -> 77 | P41: =IFERROR(VLOOKUP($F41,Import!$B$3:$AL$671,8,FALSE),"") -> 23 | Q41: =IFERROR(VLOOKUP($F41,Import!$B$3:$AL$671,9,FALSE),"") -> 89 | R41: =IFERROR(VLOOKUP($F41,Import!$B$3:$AL$671,10,FALSE),"") -> 24 | S41: =IFERROR(VLOOKUP($F41,Import!$B$3:$AL$671,11,FALSE),"") -> 0.262 | T41: 149.864 | U41: =IF(G41='User Input'!$C$1,1,0) -> 0 | V41: 0 | W41: 0 | X41: Gregory Polanco | Y41: 0 | Z41: PIT | AA41: =IFERROR(VLOOKUP($F41,Import!$B$3:$AL$671,35,FALSE),"") ->  | AC41: 39 | AD41: =IFERROR(VLOOKUP(AI41,Import!$B$3:$T$672,19,FALSE),"") -> 126 | AE41: =IFERROR(VLOOKUP(AI41,Import!$AT$3:$AU$672,2,FALSE),"") ->  | AF41: =IFERROR(VLOOKUP(AI41,Import!$AN$3:$AR$672,5,FALSE),"") ->  | AG41: =IFERROR(VLOOKUP(AI41,Import!$AD$3:$AH$672,5,FALSE),"") ->  | AH41: =IFERROR(VLOOKUP(AI41,Import!$AZ$3:$BA$672,2,FALSE),"") -> 73 | AI41: =IFERROR(VLOOKUP(AC41,Import!$W$3:$X$672,2,FALSE),"") -> Kelvin Herrera | AL41: =IFERROR(VLOOKUP($AI41,Import!$B$3:$L$671,2,FALSE),"") -> KC | AM41: =IFERROR(VLOOKUP($AI41,Import!$B$3:$L$671,3,FALSE),"") -> RP | AN41: =IFERROR(VLOOKUP($AI41,Import!$B$3:$L$671,4,FALSE),"") -> RP | AO41: =IFERROR(VLOOKUP($AI41,Import!$B$3:$L$671,5,FALSE),"") -> 8 | AP41: =IFERROR(VLOOKUP($AI41,Import!$B$4:$L$671,2,FALSE),"") -> KC | AQ41: =IFERROR(VLOOKUP($AI41,Import!$B$3:$X$672,12,FALSE),"") -> 68 | AR41: =IFERROR(VLOOKUP($AI41,Import!$B$3:$X$672,15,FALSE),"") -> 2.61 | AS41: =IFERROR(VLOOKUP($AI41,Import!$B$3:$X$672,16,FALSE),"") -> 1.08 | AT41: =IFERROR(VLOOKUP($AI41,Import!$B$3:$X$672,13,FALSE),"") -> 2 | AU41: =IFERROR(VLOOKUP($AI41,Import!$B$3:$X$672,14,FALSE),"") -> 36 | AV41: =IFERROR(VLOOKUP($AI41,Import!$B$3:$X$672,17,FALSE),"") -> 76 | AW41: 177.48 | AX41: 73.44 | AY41: =IF(AJ41='User Input'!$C$1,1,0) -> 0 | AZ41: 0 | BA41: 0 | BB41: Kelvin Herrera | BC41: 0 | BD41: KC | BE41: =IFERROR(VLOOKUP($AI41,Import!$B$3:$AL$671,35,FALSE),"") ->  | BF41: =9*(Table2[[#This Row],[K]]/Table2[[#This Row],[IP]]) -> 10.05882353 | BG41: =IFERROR(VLOOKUP($AI41,PITCH!$B$3:$AA$737,25,FALSE),"N/A") -> 6.805555556
A42: 40 | B42: =IFERROR(VLOOKUP(F42,Import!$B$4:$T$672,19,FALSE),"") -> 56 | C42: =IFERROR(VLOOKUP(F42,Import!$AN$3:$AR$672,4,FALSE),"") ->  | D42: =IFERROR(VLOOKUP(F42,Import!$AD$3:$AL$672,4,FALSE),"") ->  | E42: =IFERROR(VLOOKUP(F42,Import!$AW$3:$AX$672,2,FALSE),"") -> 63 | F42: =IFERROR(VLOOKUP(A42,Import!$V$3:$X$672,3,FALSE),"") -> A.J. Pollock | I42: =IFERROR(VLOOKUP($F42,Import!$B$3:$AL$671,2,FALSE),"") -> ARI | J42: =IFERROR(VLOOKUP($F42,Import!$B$3:$AL$671,3,FALSE),"") -> OF | K42: =IFERROR(VLOOKUP($F42,Import!$B$3:$AL$671,4,FALSE),"") -> OF | L42: =IFERROR(VLOOKUP($F42,Import!$B$3:$AL$671,5,FALSE),"") -> 20 | M42: =IFERROR(VLOOKUP($F42,Import!$B$4:$L$671,2,FALSE),"") -> ARI | N42: =IFERROR(VLOOKUP($F42,Import!$B$3:$AL$671,6,FALSE),"") -> 581 | O42: =IFERROR(VLOOKUP($F42,Import!$B$3:$AL$671,7,FALSE),"") -> 97 | P42: =IFERROR(VLOOKUP($F42,Import!$B$3:$AL$671,8,FALSE),"") -> 16 | Q42: =IFERROR(VLOOKUP($F42,Import!$B$3:$AL$671,9,FALSE),"") -> 61 | R42: =IFERROR(VLOOKUP($F42,Import!$B$3:$AL$671,10,FALSE),"") -> 26 | S42: =IFERROR(VLOOKUP($F42,Import!$B$3:$AL$671,11,FALSE),"") -> 0.273 | T42: 158.613 | U42: =IF(G42='User Input'!$C$1,1,0) -> 0 | V42: 0 | W42: 0 | X42: A.J. Pollock | Y42: 0 | Z42: ARI | AA42: =IFERROR(VLOOKUP($F42,Import!$B$3:$AL$671,35,FALSE),"") ->  | AC42: 40 | AD42: =IFERROR(VLOOKUP(AI42,Import!$B$3:$T$672,19,FALSE),"") -> 127 | AE42: =IFERROR(VLOOKUP(AI42,Import!$AT$3:$AU$672,2,FALSE),"") -> 49 | AF42: =IFERROR(VLOOKUP(AI42,Import!$AN$3:$AR$672,5,FALSE),"") ->  | AG42: =IFERROR(VLOOKUP(AI42,Import!$AD$3:$AH$672,5,FALSE),"") ->  | AH42: =IFERROR(VLOOKUP(AI42,Import!$AZ$3:$BA$672,2,FALSE),"") -> 52 | AI42: =IFERROR(VLOOKUP(AC42,Import!$W$3:$X$672,2,FALSE),"") -> Marcus Stroman | AL42: =IFERROR(VLOOKUP($AI42,Import!$B$3:$L$671,2,FALSE),"") -> TOR | AM42: =IFERROR(VLOOKUP($AI42,Import!$B$3:$L$671,3,FALSE),"") -> SP | AN42: =IFERROR(VLOOKUP($AI42,Import!$B$3:$L$671,4,FALSE),"") -> SP | AO42: =IFERROR(VLOOKUP($AI42,Import!$B$3:$L$671,5,FALSE),"") -> 7 | AP42: =IFERROR(VLOOKUP($AI42,Import!$B$4:$L$671,2,FALSE),"") -> TOR | AQ42: =IFERROR(VLOOKUP($AI42,Import!$B$3:$X$672,12,FALSE),"") -> 204 | AR42: =IFERROR(VLOOKUP($AI42,Import!$B$3:$X$672,15,FALSE),"") -> 3.55 | AS42: =IFERROR(VLOOKUP($AI42,Import!$B$3:$X$672,16,FALSE),"") -> 1.24 | AT42: =IFERROR(VLOOKUP($AI42,Import!$B$3:$X$672,13,FALSE),"") -> 12 | AU42: =IFERROR(VLOOKUP($AI42,Import!$B$3:$X$672,14,FALSE),"") -> 0 | AV42: =IFERROR(VLOOKUP($AI42,Import!$B$3:$X$672,17,FALSE),"") -> 184 | AW42: 724.2 | AX42: 252.96 | AY42: =IF(AJ42='User Input'!$C$1,1,0) -> 0 | AZ42: 0 | BA42: 0 | BB42: Marcus Stroman | BC42: 0 | BD42: TOR | BE42: =IFERROR(VLOOKUP($AI42,Import!$B$3:$AL$671,35,FALSE),"") ->  | BF42: =9*(Table2[[#This Row],[K]]/Table2[[#This Row],[IP]]) -> 8.117647059 | BG42: =IFERROR(VLOOKUP($AI42,PITCH!$B$3:$AA$737,25,FALSE),"N/A") -> 4.909090909
A43: 41 | B43: =IFERROR(VLOOKUP(F43,Import!$B$4:$T$672,19,FALSE),"") -> 57 | C43: =IFERROR(VLOOKUP(F43,Import!$AN$3:$AR$672,4,FALSE),"") -> 32 | D43: =IFERROR(VLOOKUP(F43,Import!$AD$3:$AL$672,4,FALSE),"") ->  | E43: =IFERROR(VLOOKUP(F43,Import!$AW$3:$AX$672,2,FALSE),"") -> 36 | F43: =IFERROR(VLOOKUP(A43,Import!$V$3:$X$672,3,FALSE),"") -> Wil Myers | I43: =IFERROR(VLOOKUP($F43,Import!$B$3:$AL$671,2,FALSE),"") -> SD | J43: =IFERROR(VLOOKUP($F43,Import!$B$3:$AL$671,3,FALSE),"") -> 1B | K43: =IFERROR(VLOOKUP($F43,Import!$B$3:$AL$671,4,FALSE),"") -> 1B/OF | L43: =IFERROR(VLOOKUP($F43,Import!$B$3:$AL$671,5,FALSE),"") -> 20 | M43: =IFERROR(VLOOKUP($F43,Import!$B$4:$L$671,2,FALSE),"") -> SD | N43: =IFERROR(VLOOKUP($F43,Import!$B$3:$AL$671,6,FALSE),"") -> 567 | O43: =IFERROR(VLOOKUP($F43,Import!$B$3:$AL$671,7,FALSE),"") -> 81 | P43: =IFERROR(VLOOKUP($F43,Import!$B$3:$AL$671,8,FALSE),"") -> 25 | Q43: =IFERROR(VLOOKUP($F43,Import!$B$3:$AL$671,9,FALSE),"") -> 91 | R43: =IFERROR(VLOOKUP($F43,Import!$B$3:$AL$671,10,FALSE),"") -> 15 | S43: =IFERROR(VLOOKUP($F43,Import!$B$3:$AL$671,11,FALSE),"") -> 0.264 | T43: 149.688 | U43: =IF(G43='User Input'!$C$1,1,0) -> 0 | V43: 0 | W43: 0 | X43: Wil Myers | Y43: 0 | Z43: SD | AA43: =IFERROR(VLOOKUP($F43,Import!$B$3:$AL$671,35,FALSE),"") ->  | AC43: 41 | AD43: =IFERROR(VLOOKUP(AI43,Import!$B$3:$T$672,19,FALSE),"") -> 130 | AE43: =IFERROR(VLOOKUP(AI43,Import!$AT$3:$AU$672,2,FALSE),"") ->  | AF43: =IFERROR(VLOOKUP(AI43,Import!$AN$3:$AR$672,5,FALSE),"") ->  | AG43: =IFERROR(VLOOKUP(AI43,Import!$AD$3:$AH$672,5,FALSE),"") ->  | AH43: =IFERROR(VLOOKUP(AI43,Import!$AZ$3:$BA$672,2,FALSE),"") -> 42 | AI43: =IFERROR(VLOOKUP(AC43,Import!$W$3:$X$672,2,FALSE),"") -> Seung Hwan Oh | AL43: =IFERROR(VLOOKUP($AI43,Import!$B$3:$L$671,2,FALSE),"") -> STL | AM43: =IFERROR(VLOOKUP($AI43,Import!$B$3:$L$671,3,FALSE),"") -> RP | AN43: =IFERROR(VLOOKUP($AI43,Import!$B$3:$L$671,4,FALSE),"") -> RP | AO43: =IFERROR(VLOOKUP($AI43,Import!$B$3:$L$671,5,FALSE),"") -> 7 | AP43: =IFERROR(VLOOKUP($AI43,Import!$B$4:$L$671,2,FALSE),"") -> STL | AQ43: =IFERROR(VLOOKUP($AI43,Import!$B$3:$X$672,12,FALSE),"") -> 71 | AR43: =IFERROR(VLOOKUP($AI43,Import!$B$3:$X$672,15,FALSE),"") -> 2.65 | AS43: =IFERROR(VLOOKUP($AI43,Import!$B$3:$X$672,16,FALSE),"") -> 1.08 | AT43: =IFERROR(VLOOKUP($AI43,Import!$B$3:$X$672,13,FALSE),"") -> 4 | AU43: =IFERROR(VLOOKUP($AI43,Import!$B$3:$X$672,14,FALSE),"") -> 40 | AV43: =IFERROR(VLOOKUP($AI43,Import!$B$3:$X$672,17,FALSE),"") -> 88 | AW43: 188.15 | AX43: 76.68 | AY43: =IF(AJ43='User Input'!$C$1,1,0) -> 0 | AZ43: 0 | BA43: 0 | BB43: Seung Hwan Oh | BC43: 0 | BD43: STL | BE43: =IFERROR(VLOOKUP($AI43,Import!$B$3:$AL$671,35,FALSE),"") ->  | BF43: =9*(Table2[[#This Row],[K]]/Table2[[#This Row],[IP]]) -> 11.15492958 | BG43: =IFERROR(VLOOKUP($AI43,PITCH!$B$3:$AA$737,25,FALSE),"N/A") -> 7.5
